{"text_format":"1","workbook":"xlsx","n_sheets":4,"sheets":["Title page, Please read!","Address and samples info","Samples 96","Plate labelling"],"not_rendered":{"charts":0,"images":5,"macros":1,"external_links":0,"defined_names":14,"comments":1,"pivot_tables":0},"unopened":[],"bounds":{"document_bytes":16777216,"sheet_cells":100000,"rows_first":2000,"rows_last":500,"rows_between":2000,"halvings":0,"cell_chars":16384,"cell_head_chars":4096},"cells_cut":0,"cells_raw":0,"read":"whole","date_system":"1900"}

{"sheet":"Title page, Please read!","index":0,"n_rows":0,"n_cols":0,"rows_kept":0,"cut":false,"hidden":false,"merged":[]}

{"sheet":"Address and samples info","index":1,"n_rows":59,"n_cols":7,"rows_kept":59,"cut":false,"hidden":false,"merged":[[33,0,33,1],[33,3,33,5],[34,0,34,1],[34,3,34,5],[37,4,37,5],[58,3,58,5],[57,3,57,4],[29,0,29,5],[54,3,54,4],[55,1,56,5],[35,0,35,1],[38,0,38,1],[51,3,51,4],[31,0,31,1],[31,4,31,5],[32,0,32,1],[52,3,52,4],[53,3,53,4],[54,0,54,1],[32,4,32,5]]}
[]
[]
["Address and Sample Information",null,null,null,null,null,"UV absorbance (A260, OD260)   "]
["Please, fill out light grey fields!",null,null,null,null,null,"Picogreen/Qubit"]
[]
[null,"Contact information to Owner of samples",null,null,null,"Handling of samples, communication","Other: "]
["Owner, samples:",null,null,null,"Contact:"]
["Project code (from quote)"]
["Address:",null,null,null,"Address:",null,"Yes"]
[null,null,null,null,null,null,"No "]
["Street address:",null,null,null,"Street address:",null,"Do not know"]
["Postal code, City:",null,null,null,"Postal code, City:"]
["Country:",null,null,null,"Country:"]
["Email:",null,null,null,"Email:",null,"H2O"]
["Phone:",null,null,null,"Phone:",null,"1XTE"]
[]
[null,"Contact information to OlinkExplore project coordinators:",null,null,null,null,"Other: "]
[null,"Affinity Proteomics Uppsala","NGI-Uppsala, SNP&SEQ Technology Platform",null,null,"Address for delivery of samples"]
["Contact:","Mikael Åberg","Ulrika Liljedahl",null,"Contact:","Ulrika Liljedahl"]
["Address:","Uppsala University, BMC, Box 392","Uppsala University, BMC , Box1432 ",null,"Address:","Uppsala University, Biomedical Centre","Blood"]
[null,"Affinity Proteomics Uppsala","SNP&SEQ Technology Platform ",null,null,"SNP&SEQ Technology Platform ","Tissue"]
["Street address:","Husargatan 3 ","Husargatan 3 ",null,"Street address:","Husargatan 3","Saliva"]
["Postal code, City:","751 06 Uppsala ","751 44 Uppsala ",null,"Postal code, City:","752 37","Other: "]
["Country:","Sweden  ","Sweden  ",null,"Country:","Sweden"]
["Email:","explorelab@scilifelab.uu.se","explorelab@scilifelab.uu.se",null,"Email:","explorelab@scilifelab.uu.se","genomic DNA"]
["Phone:","Phone: +46 (0)70 425 04 05 ","Phone: +46 (0)70 167 94 59 ",null,"Phone:","Phone: +46 (0)70 167 94 59","Whole genome amplified"]
[]
[null,null,null,null,null,null,"cDNA"]
["General Information"]
["Please note that samples must be delivered in 96-well microtiter plates covered with plastic film properly packed in cellular plastic or similar to avoid them being damaged during the transport. ABgene, AB-0800-L, is our recommended plate type. For plastic cover films we use ABgene, AB-0558. Both products can be obtained from us. If other plate types have been used, please provide a clean plate together with the sample plates! Delivery of samples must be arranged via emial to explorelab@scilifelab.uu.se  before shipping to make sure the samples are taken care of upon arrival. ",null,null,null,null,null,"RNA"]
["Sample Information, (Use drop-down list)",null,null,"Select value:","Comment, notes"]
["Sample type: ",null,null,"Click & Select"]
["Species:",null,null,"Click & Select"]
["Handling of samples after project:",null,null,"Use drop-down list"]
["Additional information:"]
[]
["Risk assesment of samples (Use drop-down list)",null,null,"Select value:","Comment, notes"]
["Have the samples been tested for HIV, Sars-Cov-2, Hepatitis B and C or other blood-borne diseases?",null,null,"Click & Select"]
[null,null,null,null,null,null,"Will be performed by SNP&SEQ platform"]
[null,"Enter specific return adress if appropriate! (The cost for the return is paid by the user.)",null,null,null,null,"Will not be performed by SNP&SEQ platform"]
["Name:"]
["Address:",null,null,null,null,null,"Yes"]
["Address:",null,null,null,null,null,"No"]
["Street address:"]
["Postal code, City:"]
["Country:",null,null,null,null,null,"Use drop-down list"]
["Email:",null,null,null,null,null,"Dry ice"]
["Phone:",null,null,null,null,null,"RT"]
["  ",null,null,null,null,null,"Other"]
[]
["Clinical Biomarkers / SNP&SEQ Technology Platform notes",null,null,null,null,null,"Human"]
["Arrival of samples: ",null,null,"Date",null,"Comment","Other"]
["Samples arrived and unpacked:"]
["Comment: "]
["Checked against Sample Submission form: "]
["Comment: "]
[]
["E-mail confirmation sent to customer:"]
["Enter In-house sample prefix: "]

{"sheet":"Samples 96","index":2,"n_rows":5007,"n_cols":34,"rows_kept":2250,"cut":true,"hidden":false,"merged":[],"bounds":{"rows_first":1000,"rows_last":250,"rows_between":1000,"halvings":1}}
["Plate #","PlatePos","Individual","Sample ID","Conc ng/μl","Vol μl (< 80μl)","Comment",{"$f":"IF(AH1=1,\"Volume out of range 20 µl to 80 ul is accepted. Please contact the SNP&SEQ Technology Platform for guidance!\",\" \")","v":" "},null,null,null,null,null,null,null,null,null,null,null,null,null,"StartRow",4,null,null,"To text","PlateIndex","N_Blanks","ShowPlate",{"$f":"MATCH(AF1,AE:AE,0)","v":{"$error":"#N/A"}},null,1,"CheckVolumes",{"$f":"IF(COUNTIF(INDEX($1:$1048576,2,6):INDEX($1:$1048576,5761,6),\"<20\")+COUNTIF(INDEX($1:$1048576,2,6):INDEX($1:$1048576,5761,6),\">80\")>0,1,0)","v":0}]
[1,"A1",{"$f":"IF(D2=0,\"\",D2)","v":""},null,0.01,null,null,null,null,null,null,null,null,null,null,null,null,null,null,null,null,"PanelHeight",13,null,null,{"$f":"IF(LEN(INDEX($1:$1048576,ROW(),4))>0,INDEX($1:$1048576,ROW(),4),\" \")","v":" "},null,null,null,{"$error":"#N/A"},{"$f":"IF(COUNTBLANK(D2)=0,A2)","v":false},2,20]
[1,"B1",{"$f":"IF(D3=0,\"\",D3)","v":""},null,0.01,null,null,null,{"$f":"IF(AC4=1,\"Plate \"&TEXT(AA4+1,\"0\"),\"\")","v":""},null,null,null,null,null,null,null,null,null,null,null,null,"WellsInPlate",86,null,null," ",null,null,null,{"$error":"#N/A"},{"$f":"IF(COUNTBLANK(D3)=0,A3)","v":false},3,81]
[1,"C1",{"$f":"IF(D4=0,\"\",D4)","v":""},null,0.01,null,null,null,{"$f":"IF($AC4=1,\"1\",\"\")","v":""},{"$f":"IF($AC4=1,\"2\",\"\")","v":""},{"$f":"IF($AC4=1,\"3\",\"\")","v":""},{"$f":"IF($AC4=1,\"4\",\"\")","v":""},{"$f":"IF($AC4=1,\"5\",\"\")","v":""},{"$f":"IF($AC4=1,\"6\",\"\")","v":""},{"$f":"IF($AC4=1,\"7\",\"\")","v":""},{"$f":"IF($AC4=1,\"8\",\"\")","v":""},{"$f":"IF($AC4=1,\"9\",\"\")","v":""},{"$f":"IF($AC4=1,\"10\",\"\")","v":""},{"$f":"IF($AC4=1,\"11\",\"\")","v":""},{"$f":"IF($AC4=1,\"12\",\"\")","v":""},null,null,null,null,null," ",{"$f":"CEILING((ROW()-StartRow+1)/PanelHeight,1)-1","v":0},{"$f":"COUNTBLANK(OFFSET(INDEX($1:$1048576,2,4),AA4*WellsInPlate,0,WellsInPlate,1))","v":86},{"$f":"IF(AB4=WellsInPlate,0,1)","v":0},{"$error":"#N/A"},{"$f":"IF(COUNTBLANK(D4)=0,A4)","v":false},4]
[1,"D1",{"$f":"IF(D5=0,\"\",D5)","v":""},null,0.01,null,null,{"$f":"IF(AC5=1,\"A\",\"\")","v":""},{"$f":"OFFSET($Z$2,ROW()-StartRow-1-$AA5*PanelHeight+$AA5*WellsInPlate+(COLUMN()-9)*8,0,1,1)","v":" "},{"$f":"OFFSET($Z$2,ROW()-StartRow-1-$AA5*PanelHeight+$AA5*WellsInPlate+(COLUMN()-9)*8,0,1,1)","v":" "}," "," "," "," ",{"$f":"OFFSET($Z$2,ROW()-StartRow-1-$AA5*PanelHeight+$AA5*WellsInPlate+(COLUMN()-9)*8,0,1,1)","v":" "}," "," "," ",{"$f":"OFFSET($Z$2,ROW()-StartRow-1-$AA5*PanelHeight+$AA5*WellsInPlate+(COLUMN()-9)*8,0,1,1)","v":" "},{"$f":"IF(COUNTIF(I5:S12,\" \")<88,\"leave empty\",\"\")","v":"leave empty"},null,null,null,null,null," ",{"$f":"CEILING((ROW()-StartRow+1)/PanelHeight,1)-1","v":0},86,{"$f":"IF(AB5=WellsInPlate,0,1)","v":0},{"$error":"#N/A"},{"$f":"IF(COUNTBLANK(D5)=0,A5)","v":false},5]
[1,"E1","",null,0.01,null,null,{"$f":"IF(AC6=1,\"B\",\"\")","v":""}," "," "," "," "," "," "," "," "," "," "," ",{"$f":"IF(T5=\"\",\"\",\"leave empty\")","v":"leave empty"},null,null,null,null,null," ",0,86,0,{"$error":"#N/A"},false,6]
[1,"F1","",null,0.01,null,null,{"$f":"IF(AC7=1,\"C\",\"\")","v":""},{"$f":"OFFSET($Z$2,ROW()-StartRow-1-$AA7*PanelHeight+$AA7*WellsInPlate+(COLUMN()-9)*8,0,1,1)","v":" "}," "," ",{"$f":"OFFSET($Z$2,ROW()-StartRow-1-$AA7*PanelHeight+$AA7*WellsInPlate+(COLUMN()-9)*8,0,1,1)","v":" "}," "," "," "," "," "," "," ",{"$f":"IF(T6=\"\",\"\",\"leave empty\")","v":"leave empty"},null,null,null,null,null," ",0,86,0,{"$error":"#N/A"},false,7]
[1,"G1","",null,0.01,null,null,{"$f":"IF(AC8=1,\"D\",\"\")","v":""}," "," "," ",{"$f":"OFFSET($Z$2,ROW()-StartRow-1-$AA8*PanelHeight+$AA8*WellsInPlate+(COLUMN()-9)*8,0,1,1)","v":" "}," "," "," "," "," "," "," ","leave empty",null,null,null,null,null," ",0,86,0,{"$error":"#N/A"},false,8]
[1,"H1","",null,0.01,null,null,{"$f":"IF(AC9=1,\"E\",\"\")","v":""}," "," "," "," "," "," "," "," "," "," "," ","leave empty",null,null,null,null,null," ",0,86,0,{"$error":"#N/A"},false,9]
[1,"A2","",null,0.01,null,null,{"$f":"IF(AC10=1,\"F\",\"\")","v":""}," "," "," "," "," "," "," "," "," "," "," ","leave empty",null,null,null,null,null," ",0,86,0,{"$error":"#N/A"},false,10]
[1,"B2","",null,0.01,null,null,{"$f":"IF(AC11=1,\"G\",\"\")","v":""}," "," "," "," "," "," "," "," "," "," ",{"$f":"IF(S10=\"\",\"\",\"leave empty\")","v":"leave empty"},"leave empty",null,null,null,null,null," ",0,86,0,{"$error":"#N/A"},false,11]
[1,"C2","",null,0.01,null,null,{"$f":"IF(AC12=1,\"H\",\"\")","v":""}," "," "," "," "," "," "," "," "," "," ",{"$f":"IF(S11=\"\",\"\",\"leave empty\")","v":"leave empty"},"leave empty",null,null,null,null,null," ",0,86,0,{"$error":"#N/A"},false,12]
[1,"D2","",null,0.01,null,null,null,null,null,null,null,null,null,null,null,null,null,null,null,null,null,null,null,null," ",0,86,0,{"$error":"#N/A"},false,13]
[1,"E2","",null,0.01,null,null,null,null,null,null,null,null,null,null,null,null,null,null,null,null,null,null,null,null," ",0,86,0,{"$error":"#N/A"},false,14]
[1,"F2","",null,0.01,null,null,null,null,null,null,null,null,null,null,null,null,null,null,null,null,null,null,null,null," ",0,86,0,{"$error":"#N/A"},false,15]
[1,"G2","",null,0.01,null,null,null,{"$f":"IF(AC17=1,\"Plate \"&TEXT(AA17+1,\"0\"),\"\")","v":""},null,null,null,null,null,null,null,null,null,null,null,null,null,null,null,null," ",0,86,0,{"$error":"#N/A"},false,16]
[1,"H2","",null,0.01,null,null,null,{"$f":"IF($AC17=1,\"1\",\"\")","v":""},{"$f":"IF($AC17=1,\"2\",\"\")","v":""},{"$f":"IF($AC17=1,\"3\",\"\")","v":""},{"$f":"IF($AC17=1,\"4\",\"\")","v":""},{"$f":"IF($AC17=1,\"5\",\"\")","v":""},{"$f":"IF($AC17=1,\"6\",\"\")","v":""},{"$f":"IF($AC17=1,\"7\",\"\")","v":""},{"$f":"IF($AC17=1,\"8\",\"\")","v":""},{"$f":"IF($AC17=1,\"9\",\"\")","v":""},{"$f":"IF($AC17=1,\"10\",\"\")","v":""},{"$f":"IF($AC17=1,\"11\",\"\")","v":""},{"$f":"IF($AC17=1,\"12\",\"\")","v":""},null,null,null,null,null," ",1,86,0,{"$error":"#N/A"},false,17]
[1,"A3","",null,0.01,null,null,{"$f":"IF(AC18=1,\"A\",\"\")","v":""},{"$f":"OFFSET($Z$2,ROW()-StartRow-1-$AA18*PanelHeight+$AA18*WellsInPlate+(COLUMN()-9)*8,0,1,1)","v":" "},{"$f":"OFFSET($Z$2,ROW()-StartRow-1-$AA18*PanelHeight+$AA18*WellsInPlate+(COLUMN()-9)*8,0,1,1)","v":" "}," "," "," "," "," "," "," "," "," ",{"$f":"IF(COUNTIF(I18:S25,\" \")<88,\"leave empty\",\"\")","v":"leave empty"},null,null,null,null,null," ",1,86,0,{"$error":"#N/A"},false,18]
[1,"B3","",null,0.01,null,null,{"$f":"IF(AC19=1,\"B\",\"\")","v":""},{"$f":"OFFSET($Z$2,ROW()-StartRow-1-$AA19*PanelHeight+$AA19*WellsInPlate+(COLUMN()-9)*8,0,1,1)","v":" "}," "," "," "," "," "," "," "," "," "," ",{"$f":"IF(T18=\"\",\"\",\"leave empty\")","v":"leave empty"},null,null,null,null,null," ",1,86,0,{"$error":"#N/A"},false,19]
[1,"C3","",null,0.01,null,null,{"$f":"IF(AC20=1,\"C\",\"\")","v":""}," "," "," "," "," "," "," "," "," "," "," ",{"$f":"IF(T19=\"\",\"\",\"leave empty\")","v":"leave empty"},null,null,null,null,null," ",1,86,0,{"$error":"#N/A"},false,20]
[1,"D3","",null,0.01,null,null,{"$f":"IF(AC21=1,\"D\",\"\")","v":""}," "," "," "," "," "," "," "," "," "," "," ","leave empty",null,null,null,null,null," ",1,86,0,{"$error":"#N/A"},false,21]
[1,"E3","",null,0.01,null,null,{"$f":"IF(AC22=1,\"E\",\"\")","v":""}," "," "," "," "," "," "," "," "," "," "," ","leave empty",null,null,null,null,null," ",1,86,0,{"$error":"#N/A"},false,22]
[1,"F3","",null,0.01,null,null,{"$f":"IF(AC23=1,\"F\",\"\")","v":""}," "," "," "," "," "," "," "," "," "," "," ","leave empty",null,null,null,null,null," ",1,86,0,{"$error":"#N/A"},false,23]
[1,"G3","",null,0.01,null,null,{"$f":"IF(AC24=1,\"G\",\"\")","v":""}," "," "," "," "," "," "," "," "," "," ",{"$f":"IF(S23=\"\",\"\",\"leave empty\")","v":"leave empty"},"leave empty",null,null,null,null,null," ",1,86,0,{"$error":"#N/A"},false,24]
[1,"H3","",null,0.01,null,null,{"$f":"IF(AC25=1,\"H\",\"\")","v":""}," "," "," "," "," "," "," "," "," "," ",{"$f":"IF(S24=\"\",\"\",\"leave empty\")","v":"leave empty"},{"$f":"IF(T24=\"\",\"\",\"leave empty\")","v":"leave empty"},null,null,null,null,null," ",1,86,0,{"$error":"#N/A"},false,25]
[1,"A4","",null,0.01,null,null,null,null,null,null,null,null,null,null,null,null,null,null,null,null,null,null,null,null," ",1,86,0,{"$error":"#N/A"},false,26]
[1,"B4","",null,0.01,null,null,null,null,null,null,null,null,null,null,null,null,null,null,null,null,null,null,null,null," ",1,86,0,{"$error":"#N/A"},false,27]
[1,"C4","",null,0.01,null,null,null,null,null,null,null,null,null,null,null,null,null,null,null,null,null,null,null,null," ",1,86,0,{"$error":"#N/A"},false,28]
[1,"D4","",null,0.01,null,null,null,{"$f":"IF(AC30=1,\"Plate \"&TEXT(AA30+1,\"0\"),\"\")","v":""},null,null,null,null,null,null,null,null,null,null,null,null,null,null,null,null," ",1,86,0,{"$error":"#N/A"},false,29]
[1,"E4","",null,0.01,null,null,null,{"$f":"IF($AC30=1,\"1\",\"\")","v":""},{"$f":"IF($AC30=1,\"2\",\"\")","v":""},{"$f":"IF($AC30=1,\"3\",\"\")","v":""},{"$f":"IF($AC30=1,\"4\",\"\")","v":""},{"$f":"IF($AC30=1,\"5\",\"\")","v":""},{"$f":"IF($AC30=1,\"6\",\"\")","v":""},{"$f":"IF($AC30=1,\"7\",\"\")","v":""},{"$f":"IF($AC30=1,\"8\",\"\")","v":""},{"$f":"IF($AC30=1,\"9\",\"\")","v":""},{"$f":"IF($AC30=1,\"10\",\"\")","v":""},{"$f":"IF($AC30=1,\"11\",\"\")","v":""},{"$f":"IF($AC30=1,\"12\",\"\")","v":""},null,null,null,null,null," ",2,86,0,{"$error":"#N/A"},false,30]
[1,"F4","",null,0.01,null,null,{"$f":"IF(AC31=1,\"A\",\"\")","v":""},{"$f":"OFFSET($Z$2,ROW()-StartRow-1-$AA31*PanelHeight+$AA31*WellsInPlate+(COLUMN()-9)*8,0,1,1)","v":" "}," "," "," "," "," "," "," "," "," "," ",{"$f":"IF(COUNTIF(I31:S38,\" \")<88,\"leave empty\",\"\")","v":"leave empty"},null,null,null,null,null," ",2,86,0,{"$error":"#N/A"},false,31]
[1,"G4","",null,0.01,null,null,{"$f":"IF(AC32=1,\"B\",\"\")","v":""}," "," "," "," "," "," "," "," "," "," "," ",{"$f":"IF(T31=\"\",\"\",\"leave empty\")","v":"leave empty"},null,null,null,null,null," ",2,86,0,{"$error":"#N/A"},false,32]
[1,"H4","",null,0.01,null,null,{"$f":"IF(AC33=1,\"C\",\"\")","v":""}," "," "," "," "," "," "," "," "," "," "," ",{"$f":"IF(T32=\"\",\"\",\"leave empty\")","v":"leave empty"},null,null,null,null,null," ",2,86,0,{"$f":"MATCH(AF33,AE:AE,0)","v":{"$error":"#N/A"}},false,33]
[1,"A5","",null,0.01,null,null,{"$f":"IF(AC34=1,\"D\",\"\")","v":""}," "," "," "," "," "," "," "," "," "," "," ","leave empty",null,null,null,null,null," ",2,86,0,{"$error":"#N/A"},false,34]
[1,"B5","",null,0.01,null,null,{"$f":"IF(AC35=1,\"E\",\"\")","v":""}," "," "," "," "," "," "," "," "," "," "," ","leave empty",null,null,null,null,null," ",2,86,0,{"$error":"#N/A"},false,35]
[1,"C5","",null,0.01,null,null,{"$f":"IF(AC36=1,\"F\",\"\")","v":""}," "," "," "," "," "," "," "," "," "," "," ","leave empty",null,null,null,null,null," ",2,86,0,{"$error":"#N/A"},false,36]
[1,"D5","",null,0.01,null,null,{"$f":"IF(AC37=1,\"G\",\"\")","v":""}," "," "," "," "," "," "," "," "," "," ",{"$f":"IF(S36=\"\",\"\",\"leave empty\")","v":"leave empty"},"leave empty",null,null,null,null,null," ",{"$f":"CEILING((ROW()-StartRow+1)/PanelHeight,1)-1","v":2},86,{"$f":"IF(AB37=WellsInPlate,0,1)","v":0},{"$error":"#N/A"},false,37]
[1,"E5","",null,0.01,null,null,{"$f":"IF(AC38=1,\"H\",\"\")","v":""}," "," "," "," "," "," "," "," "," "," ",{"$f":"IF(S37=\"\",\"\",\"leave empty\")","v":"leave empty"},"leave empty",null,null,null,null,null," ",2,86,0,{"$error":"#N/A"},false,38]
[1,"F5","",null,0.01,null,null,null,null,null,null,null,null,null,null,null,null,null,null,null,null,null,null,null,null," ",2,86,0,{"$error":"#N/A"},false,39]
[1,"G5","",null,0.01,null,null,null,null,null,null,null,null,null,null,null,null,null,null,null,null,null,null,null,null," ",2,86,0,{"$error":"#N/A"},false,40]
[1,"H5","",null,0.01,null,null,null,null,null,null,null,null,null,null,null,null,null,null,null,null,null,null,null,null," ",2,86,0,{"$error":"#N/A"},false,41]
[1,"A6","",null,0.01,null,null,null,{"$f":"IF(AC43=1,\"Plate \"&TEXT(AA43+1,\"0\"),\"\")","v":""},null,null,null,null,null,null,null,null,null,null,null,null,null,null,null,null," ",2,86,0,{"$error":"#N/A"},false,42]
[1,"B6","",null,0.01,null,null,null,{"$f":"IF($AC43=1,\"1\",\"\")","v":""},{"$f":"IF($AC43=1,\"2\",\"\")","v":""},{"$f":"IF($AC43=1,\"3\",\"\")","v":""},{"$f":"IF($AC43=1,\"4\",\"\")","v":""},{"$f":"IF($AC43=1,\"5\",\"\")","v":""},{"$f":"IF($AC43=1,\"6\",\"\")","v":""},{"$f":"IF($AC43=1,\"7\",\"\")","v":""},{"$f":"IF($AC43=1,\"8\",\"\")","v":""},{"$f":"IF($AC43=1,\"9\",\"\")","v":""},{"$f":"IF($AC43=1,\"10\",\"\")","v":""},{"$f":"IF($AC43=1,\"11\",\"\")","v":""},{"$f":"IF($AC43=1,\"12\",\"\")","v":""},null,null,null,null,null," ",3,86,0,{"$error":"#N/A"},false,43]
[1,"C6","",null,0.01,null,null,{"$f":"IF(AC44=1,\"A\",\"\")","v":""},{"$f":"OFFSET($Z$2,ROW()-StartRow-1-$AA44*PanelHeight+$AA44*WellsInPlate+(COLUMN()-9)*8,0,1,1)","v":" "}," "," "," "," "," "," "," "," "," "," ",{"$f":"IF(COUNTIF(I44:S51,\" \")<88,\"leave empty\",\"\")","v":"leave empty"},null,null,null,null,null," ",3,86,0,{"$error":"#N/A"},false,44]
[1,"D6","",null,0.01,null,null,{"$f":"IF(AC45=1,\"B\",\"\")","v":""}," "," "," "," "," "," "," "," "," "," "," ",{"$f":"IF(T44=\"\",\"\",\"leave empty\")","v":"leave empty"},null,null,null,null,null," ",3,86,0,{"$error":"#N/A"},false,45]
[1,"E6","",null,0.01,null,null,{"$f":"IF(AC46=1,\"C\",\"\")","v":""}," "," "," "," "," "," "," "," "," "," "," ",{"$f":"IF(T45=\"\",\"\",\"leave empty\")","v":"leave empty"},null,null,null,null,null," ",3,86,0,{"$error":"#N/A"},false,46]
[1,"F6","",null,0.01,null,null,{"$f":"IF(AC47=1,\"D\",\"\")","v":""}," "," "," "," "," "," "," "," "," "," "," ","leave empty",null,null,null,null,null," ",3,86,0,{"$error":"#N/A"},false,47]
[1,"G6","",null,0.01,null,null,{"$f":"IF(AC48=1,\"E\",\"\")","v":""}," "," "," "," "," "," "," "," "," "," "," ","leave empty",null,null,null,null,null," ",3,86,0,{"$error":"#N/A"},false,48]
[1,"H6","",null,0.01,null,null,{"$f":"IF(AC49=1,\"F\",\"\")","v":""}," "," "," "," "," "," "," "," "," "," "," ","leave empty",null,null,null,null,null," ",3,86,0,{"$error":"#N/A"},false,49]
[1,"A7","",null,0.01,null,null,{"$f":"IF(AC50=1,\"G\",\"\")","v":""}," "," "," "," "," "," "," "," "," "," ",{"$f":"IF(S49=\"\",\"\",\"leave empty\")","v":"leave empty"},"leave empty",null,null,null,null,null," ",3,86,0,{"$error":"#N/A"},false,50]
[1,"B7","",null,0.01,null,null,{"$f":"IF(AC51=1,\"H\",\"\")","v":""}," "," "," "," "," "," "," "," "," "," ",{"$f":"IF(S50=\"\",\"\",\"leave empty\")","v":"leave empty"},"leave empty",null,null,null,null,null," ",3,86,0,{"$error":"#N/A"},false,51]
[1,"C7","",null,0.01,null,null,null,null,null,null,null,null,null,null,null,null,null,null,null,null,null,null,null,null," ",3,86,0,{"$error":"#N/A"},false,52]
[1,"D7","",null,0.01,null,null,null,null,null,null,null,null,null,null,null,null,null,null,null,null,null,null,null,null," ",3,86,0,{"$error":"#N/A"},false,53]
[1,"E7","",null,0.01,null,null,null,null,null,null,null,null,null,null,null,null,null,null,null,null,null,null,null,null," ",3,86,0,{"$error":"#N/A"},false,54]
[1,"F7","",null,0.01,null,null,null,{"$f":"IF(AC56=1,\"Plate \"&TEXT(AA56+1,\"0\"),\"\")","v":""},null,null,null,null,null,null,null,null,null,null,null,null,null,null,null,null," ",3,86,0,{"$error":"#N/A"},false,55]
[1,"G7","",null,0.01,null,null,null,{"$f":"IF($AC56=1,\"1\",\"\")","v":""},{"$f":"IF($AC56=1,\"2\",\"\")","v":""},{"$f":"IF($AC56=1,\"3\",\"\")","v":""},{"$f":"IF($AC56=1,\"4\",\"\")","v":""},{"$f":"IF($AC56=1,\"5\",\"\")","v":""},{"$f":"IF($AC56=1,\"6\",\"\")","v":""},{"$f":"IF($AC56=1,\"7\",\"\")","v":""},{"$f":"IF($AC56=1,\"8\",\"\")","v":""},{"$f":"IF($AC56=1,\"9\",\"\")","v":""},{"$f":"IF($AC56=1,\"10\",\"\")","v":""},{"$f":"IF($AC56=1,\"11\",\"\")","v":""},{"$f":"IF($AC56=1,\"12\",\"\")","v":""},null,null,null,null,null," ",4,86,0,{"$error":"#N/A"},false,56]
[1,"H7","",null,0.01,null,null,{"$f":"IF(AC57=1,\"A\",\"\")","v":""},{"$f":"OFFSET($Z$2,ROW()-StartRow-1-$AA57*PanelHeight+$AA57*WellsInPlate+(COLUMN()-9)*8,0,1,1)","v":" "}," "," "," "," "," "," "," "," "," "," ",{"$f":"IF(COUNTIF(I57:S64,\" \")<88,\"leave empty\",\"\")","v":"leave empty"},null,null,null,null,null," ",4,86,0,{"$error":"#N/A"},false,57]
[1,"A8","",null,0.01,null,null,{"$f":"IF(AC58=1,\"B\",\"\")","v":""}," "," "," "," "," "," "," "," "," "," "," ",{"$f":"IF(T57=\"\",\"\",\"leave empty\")","v":"leave empty"},null,null,null,null,null," ",4,86,0,{"$error":"#N/A"},false,58]
[1,"B8","",null,0.01,null,null,{"$f":"IF(AC59=1,\"C\",\"\")","v":""}," "," "," "," "," "," "," "," "," "," "," ",{"$f":"IF(T58=\"\",\"\",\"leave empty\")","v":"leave empty"},null,null,null,null,null," ",4,86,0,{"$error":"#N/A"},false,59]
[1,"C8","",null,0.01,null,null,{"$f":"IF(AC60=1,\"D\",\"\")","v":""}," "," "," "," "," "," "," "," "," "," "," ","leave empty",null,null,null,null,null," ",4,86,0,{"$error":"#N/A"},false,60]
[1,"D8","",null,0.01,null,null,{"$f":"IF(AC61=1,\"E\",\"\")","v":""}," "," "," "," "," "," "," "," "," "," "," ","leave empty",null,null,null,null,null," ",4,86,0,{"$f":"60-COUNTIF(AD1:AD60,\"#N/A\")","v":0},false]
[1,"E8","",null,0.01,null,null,{"$f":"IF(AC62=1,\"F\",\"\")","v":""}," "," "," "," "," "," "," "," "," "," "," ","leave empty",null,null,null,null,null," ",4,86,0,null,false]
[1,"F8","",null,0.01,null,null,{"$f":"IF(AC63=1,\"G\",\"\")","v":""}," "," "," "," "," "," "," "," "," "," ",{"$f":"IF(S62=\"\",\"\",\"leave empty\")","v":"leave empty"},"leave empty",null,null,null,null,null," ",4,86,0,null,false]
[1,"G8","",null,0.01,null,null,{"$f":"IF(AC64=1,\"H\",\"\")","v":""}," "," "," "," "," "," "," "," "," "," ",{"$f":"IF(S63=\"\",\"\",\"leave empty\")","v":"leave empty"},"leave empty",null,null,null,null,null," ",4,86,0,null,false]
[1,"H8","",null,0.01,null,null,null,null,null,null,null,null,null,null,null,null,null,null,null,null,null,null,null,null," ",4,86,0,null,false]
[1,"A9","",null,0.01,null,null,null,null,null,null,null,null,null,null,null,null,null,null,null,null,null,null,null,null,{"$f":"IF(LEN(INDEX($1:$1048576,ROW(),4))>0,INDEX($1:$1048576,ROW(),4),\" \")","v":" "},4,86,0,null,false]
[1,"B9","",null,0.01,null,null,null,null,null,null,null,null,null,null,null,null,null,null,null,null,null,null,null,null," ",4,86,0,null,false]
[1,"C9","",null,0.01,null,null,null,{"$f":"IF(AC69=1,\"Plate \"&TEXT(AA69+1,\"0\"),\"\")","v":""},null,null,null,null,null,null,null,null,null,null,null,null,null,null,null,null," ",{"$f":"CEILING((ROW()-StartRow+1)/PanelHeight,1)-1","v":4},{"$f":"COUNTBLANK(OFFSET(INDEX($1:$1048576,2,4),AA68*WellsInPlate,0,WellsInPlate,1))","v":86},{"$f":"IF(AB68=WellsInPlate,0,1)","v":0},null,false]
[1,"D9",{"$f":"IF(D69=0,\"\",D69)","v":""},null,0.01,null,null,null,{"$f":"IF($AC69=1,\"1\",\"\")","v":""},{"$f":"IF($AC69=1,\"2\",\"\")","v":""},{"$f":"IF($AC69=1,\"3\",\"\")","v":""},{"$f":"IF($AC69=1,\"4\",\"\")","v":""},{"$f":"IF($AC69=1,\"5\",\"\")","v":""},{"$f":"IF($AC69=1,\"6\",\"\")","v":""},{"$f":"IF($AC69=1,\"7\",\"\")","v":""},{"$f":"IF($AC69=1,\"8\",\"\")","v":""},{"$f":"IF($AC69=1,\"9\",\"\")","v":""},{"$f":"IF($AC69=1,\"10\",\"\")","v":""},{"$f":"IF($AC69=1,\"11\",\"\")","v":""},{"$f":"IF($AC69=1,\"12\",\"\")","v":""},null,null,null,null,null," ",{"$f":"CEILING((ROW()-StartRow+1)/PanelHeight,1)-1","v":5},86,{"$f":"IF(AB69=WellsInPlate,0,1)","v":0},null,{"$f":"IF(COUNTBLANK(D69)=0,A69)","v":false}]
[1,"E9","",null,0.01,null,null,{"$f":"IF(AC70=1,\"A\",\"\")","v":""},{"$f":"OFFSET($Z$2,ROW()-StartRow-1-$AA70*PanelHeight+$AA70*WellsInPlate+(COLUMN()-9)*8,0,1,1)","v":" "}," "," "," "," "," "," "," "," "," "," ",{"$f":"IF(COUNTIF(I70:S77,\" \")<88,\"leave empty\",\"\")","v":"leave empty"},null,null,null,null,null," ",5,86,0,null,false]
[1,"F9","",null,0.01,null,null,{"$f":"IF(AC71=1,\"B\",\"\")","v":""}," "," "," "," "," "," "," "," "," "," "," ",{"$f":"IF(T70=\"\",\"\",\"leave empty\")","v":"leave empty"},null,null,null,null,null," ",5,86,0,null,false]
[1,"G9","",null,0.01,null,null,{"$f":"IF(AC72=1,\"C\",\"\")","v":""}," "," "," "," "," "," "," "," "," "," "," ",{"$f":"IF(T71=\"\",\"\",\"leave empty\")","v":"leave empty"},null,null,null,null,null," ",5,86,0,null,false]
[1,"H9","",null,0.01,null,null,{"$f":"IF(AC73=1,\"D\",\"\")","v":""}," "," "," "," "," "," "," "," "," "," "," ","leave empty",null,null,null,null,null," ",5,86,0,null,false]
[1,"A10","",null,0.01,null,null,{"$f":"IF(AC74=1,\"E\",\"\")","v":""}," "," "," "," "," "," "," "," "," "," "," ","leave empty",null,null,null,null,null," ",5,86,0,null,false]
[1,"B10","",null,0.01,null,null,{"$f":"IF(AC75=1,\"F\",\"\")","v":""}," "," "," "," "," "," "," "," "," "," "," ","leave empty",null,null,null,null,null," ",5,86,0,null,false]
[1,"C10","",null,0.01,null,null,{"$f":"IF(AC76=1,\"G\",\"\")","v":""}," "," "," "," "," "," "," "," "," "," ",{"$f":"IF(S75=\"\",\"\",\"leave empty\")","v":"leave empty"},"leave empty",null,null,null,null,null," ",5,86,0,null,false]
[1,"D10","",null,0.01,null,null,{"$f":"IF(AC77=1,\"H\",\"\")","v":""}," "," "," "," "," "," "," "," "," "," ",{"$f":"IF(S76=\"\",\"\",\"leave empty\")","v":"leave empty"},"leave empty",null,null,null,null,null," ",5,86,0,null,false]
[1,"E10","",null,0.01,null,null,null,null,null,null,null,null,null,null,null,null,null,null,null,null,null,null,null,null," ",5,86,0,null,false]
[1,"F10","",null,0.01,null,null,null,null,null,null,null,null,null,null,null,null,null,null,null,null,null,null,null,null," ",5,86,0,null,false]
[1,"G10","",null,0.01,null,null,null,null,null,null,null,null,null,null,null,null,null,null,null,null,null,null,null,null," ",5,86,0,null,false]
[1,"H10","",null,0.01,null,null,null,{"$f":"IF(AC82=1,\"Plate \"&TEXT(AA82+1,\"0\"),\"\")","v":""},null,null,null,null,null,null,null,null,null,null,null,null,null,null,null,null," ",5,86,0,null,false]
[1,"A11","",null,0.01,null,null,null,{"$f":"IF($AC82=1,\"1\",\"\")","v":""},{"$f":"IF($AC82=1,\"2\",\"\")","v":""},{"$f":"IF($AC82=1,\"3\",\"\")","v":""},{"$f":"IF($AC82=1,\"4\",\"\")","v":""},{"$f":"IF($AC82=1,\"5\",\"\")","v":""},{"$f":"IF($AC82=1,\"6\",\"\")","v":""},{"$f":"IF($AC82=1,\"7\",\"\")","v":""},{"$f":"IF($AC82=1,\"8\",\"\")","v":""},{"$f":"IF($AC82=1,\"9\",\"\")","v":""},{"$f":"IF($AC82=1,\"10\",\"\")","v":""},{"$f":"IF($AC82=1,\"11\",\"\")","v":""},{"$f":"IF($AC82=1,\"12\",\"\")","v":""},null,null,null,null,null," ",6,86,0,null,false]
[1,"B11","",null,0.01,null,null,{"$f":"IF(AC83=1,\"A\",\"\")","v":""},{"$f":"OFFSET($Z$2,ROW()-StartRow-1-$AA83*PanelHeight+$AA83*WellsInPlate+(COLUMN()-9)*8,0,1,1)","v":" "}," "," "," "," "," "," "," "," "," "," ",{"$f":"IF(COUNTIF(I83:S90,\" \")<88,\"leave empty\",\"\")","v":"leave empty"},null,null,null,null,null," ",6,86,0,null,false]
[1,"C11","",null,0.01,null,null,{"$f":"IF(AC84=1,\"B\",\"\")","v":""}," "," "," "," "," "," "," "," "," "," "," ",{"$f":"IF(T83=\"\",\"\",\"leave empty\")","v":"leave empty"},null,null,null,null,null," ",6,86,0,null,false]
[1,"D11","",null,0.01,null,null,{"$f":"IF(AC85=1,\"C\",\"\")","v":""}," "," "," "," "," "," "," "," "," "," "," ",{"$f":"IF(T84=\"\",\"\",\"leave empty\")","v":"leave empty"},null,null,null,null,null," ",6,86,0,null,false]
[1,"E11","",null,0.01,null,null,{"$f":"IF(AC86=1,\"D\",\"\")","v":""}," "," "," "," "," "," "," "," "," "," "," ","leave empty",null,null,null,null,null," ",6,86,0,null,false]
[1,"F11","",null,0.01,null,null,{"$f":"IF(AC87=1,\"E\",\"\")","v":""}," "," "," "," "," "," "," "," "," "," "," ","leave empty",null,null,null,null,null," ",6,86,0,null,false]
[2,"A1","",null,0.01,null,null,{"$f":"IF(AC88=1,\"F\",\"\")","v":""}," "," "," "," "," "," "," "," "," "," "," ","leave empty",null,null,null,null,null," ",6,86,0,null,{"$f":"IF(COUNTBLANK(#REF!)=0,#REF!)","v":{"$error":"#REF!"}}]
[2,"B1","",null,0.01,null,null,{"$f":"IF(AC89=1,\"G\",\"\")","v":""}," "," "," "," "," "," "," "," "," "," ",{"$f":"IF(S88=\"\",\"\",\"leave empty\")","v":"leave empty"},"leave empty",null,null,null,null,null," ",6,86,0,null,{"$f":"IF(COUNTBLANK(#REF!)=0,#REF!)","v":{"$error":"#REF!"}}]
[2,"C1","",null,0.01,null,null,{"$f":"IF(AC90=1,\"H\",\"\")","v":""},{"$f":"OFFSET($Z$2,ROW()-StartRow-1-$AA90*PanelHeight+$AA90*WellsInPlate+(COLUMN()-9)*8,0,1,1)","v":" "}," "," "," "," "," "," "," "," "," ",{"$f":"IF(S89=\"\",\"\",\"leave empty\")","v":"leave empty"},"leave empty",null,null,null,null,null," ",6,86,0,null,{"$f":"IF(COUNTBLANK(D88)=0,#REF!)","v":false}]
[2,"D1","",null,0.01,null,null,null,null,null,null,null,null,null,null,null,null,null,null,null,null,null,null,null,null," ",6,86,0,null,{"$f":"IF(COUNTBLANK(D89)=0,#REF!)","v":false}]
[2,"E1","",null,0.01,null,null,null,null,null,null,null,null,null,null,null,null,null,null,null,null,null,null,null,null," ",6,86,0,null,{"$f":"IF(COUNTBLANK(D90)=0,#REF!)","v":false}]
[2,"F1","",null,0.01,null,null,null,null,null,null,null,null,null,null,null,null,null,null,null,null,null,null,null,null," ",6,86,0,null,{"$f":"IF(COUNTBLANK(D91)=0,#REF!)","v":false}]
[2,"G1","",null,0.01,null,null,null,{"$f":"IF(AC95=1,\"Plate \"&TEXT(AA95+1,\"0\"),\"\")","v":""},null,null,null,null,null,null,null,null,null,null,null,null,null,null,null,null," ",6,86,0,null,{"$f":"IF(COUNTBLANK(D92)=0,#REF!)","v":false}]
[2,"H1","",null,0.01,null,null,null,{"$f":"IF($AC95=1,\"1\",\"\")","v":""},{"$f":"IF($AC95=1,\"2\",\"\")","v":""},{"$f":"IF($AC95=1,\"3\",\"\")","v":""},{"$f":"IF($AC95=1,\"4\",\"\")","v":""},{"$f":"IF($AC95=1,\"5\",\"\")","v":""},{"$f":"IF($AC95=1,\"6\",\"\")","v":""},{"$f":"IF($AC95=1,\"7\",\"\")","v":""},{"$f":"IF($AC95=1,\"8\",\"\")","v":""},{"$f":"IF($AC95=1,\"9\",\"\")","v":""},{"$f":"IF($AC95=1,\"10\",\"\")","v":""},{"$f":"IF($AC95=1,\"11\",\"\")","v":""},{"$f":"IF($AC95=1,\"12\",\"\")","v":""},null,null,null,null,null," ",7,86,0,null,{"$f":"IF(COUNTBLANK(D93)=0,#REF!)","v":false}]
[2,"A2","",null,0.01,null,null,{"$f":"IF(AC96=1,\"A\",\"\")","v":""},{"$f":"OFFSET($Z$2,ROW()-StartRow-1-$AA96*PanelHeight+$AA96*WellsInPlate+(COLUMN()-9)*8,0,1,1)","v":" "}," "," "," "," "," "," "," "," "," "," ",{"$f":"IF(COUNTIF(I96:S103,\" \")<88,\"leave empty\",\"\")","v":"leave empty"},null,null,null,null,null," ",7,86,0,null,{"$f":"IF(COUNTBLANK(D94)=0,#REF!)","v":false}]
[2,"B2","",null,0.01,null,null,{"$f":"IF(AC97=1,\"B\",\"\")","v":""}," "," "," "," "," "," "," "," "," "," "," ",{"$f":"IF(T96=\"\",\"\",\"leave empty\")","v":"leave empty"},null,null,null,null,null," ",7,86,0,null,{"$f":"IF(COUNTBLANK(D95)=0,#REF!)","v":false}]
[2,"C2","",null,0.01,null,null,{"$f":"IF(AC98=1,\"C\",\"\")","v":""},{"$f":"OFFSET($Z$2,ROW()-StartRow-1-$AA98*PanelHeight+$AA98*WellsInPlate+(COLUMN()-9)*8,0,1,1)","v":" "}," "," "," "," "," "," "," "," "," "," ",{"$f":"IF(T97=\"\",\"\",\"leave empty\")","v":"leave empty"},null,null,null,null,null," ",7,86,0,null,{"$f":"IF(COUNTBLANK(D96)=0,A88)","v":false}]
[2,"D2","",null,0.01,null,null,{"$f":"IF(AC99=1,\"D\",\"\")","v":""}," "," "," "," "," "," "," "," "," "," "," ","leave empty",null,null,null,null,null," ",7,86,0,null,false]
[2,"E2","",null,0.01,null,null,{"$f":"IF(AC100=1,\"E\",\"\")","v":""}," "," "," "," "," "," "," "," "," "," "," ","leave empty",null,null,null,null,null," ",7,86,0,null,false]
[2,"F2","",null,0.01,null,null,{"$f":"IF(AC101=1,\"F\",\"\")","v":""}," "," "," "," "," "," "," "," "," "," "," ","leave empty",null,null,null,null,null," ",{"$f":"CEILING((ROW()-StartRow+1)/PanelHeight,1)-1","v":7},86,{"$f":"IF(AB101=WellsInPlate,0,1)","v":0},null,false]
[2,"G2","",null,0.01,null,null,{"$f":"IF(AC102=1,\"G\",\"\")","v":""}," "," "," "," "," "," "," "," "," "," ",{"$f":"IF(S101=\"\",\"\",\"leave empty\")","v":"leave empty"},"leave empty",null,null,null,null,null," ",7,86,0,null,false]
[2,"H2","",null,0.01,null,null,{"$f":"IF(AC103=1,\"H\",\"\")","v":""}," "," "," "," "," "," "," "," "," "," ",{"$f":"IF(S102=\"\",\"\",\"leave empty\")","v":"leave empty"},"leave empty",null,null,null,null,null," ",7,86,0,null,false]
[2,"A3","",null,0.01,null,null,null,null,null,null,null,null,null,null,null,null,null,null,null,null,null,null,null,null," ",7,86,0,null,false]
[2,"B3","",null,0.01,null,null,null,null,null,null,null,null,null,null,null,null,null,null,null,null,null,null,null,null," ",7,86,0,null,false]
[2,"C3","",null,0.01,null,null,null,null,null,null,null,null,null,null,null,null,null,null,null,null,null,null,null,null," ",7,86,0,null,false]
[2,"D3","",null,0.01,null,null,null,{"$f":"IF(AC108=1,\"Plate \"&TEXT(AA108+1,\"0\"),\"\")","v":""},null,null,null,null,null,null,null,null,null,null,null,null,null,null,null,null," ",7,86,0,null,false]
[2,"E3","",null,0.01,null,null,null,{"$f":"IF($AC108=1,\"1\",\"\")","v":""},{"$f":"IF($AC108=1,\"2\",\"\")","v":""},{"$f":"IF($AC108=1,\"3\",\"\")","v":""},{"$f":"IF($AC108=1,\"4\",\"\")","v":""},{"$f":"IF($AC108=1,\"5\",\"\")","v":""},{"$f":"IF($AC108=1,\"6\",\"\")","v":""},{"$f":"IF($AC108=1,\"7\",\"\")","v":""},{"$f":"IF($AC108=1,\"8\",\"\")","v":""},{"$f":"IF($AC108=1,\"9\",\"\")","v":""},{"$f":"IF($AC108=1,\"10\",\"\")","v":""},{"$f":"IF($AC108=1,\"11\",\"\")","v":""},{"$f":"IF($AC108=1,\"12\",\"\")","v":""},null,null,null,null,null," ",8,86,0,null,false]
[2,"F3","",null,0.01,null,null,{"$f":"IF(AC109=1,\"A\",\"\")","v":""},{"$f":"OFFSET($Z$2,ROW()-StartRow-1-$AA109*PanelHeight+$AA109*WellsInPlate+(COLUMN()-9)*8,0,1,1)","v":" "}," "," "," "," "," "," "," "," "," "," ",{"$f":"IF(COUNTIF(I109:S116,\" \")<88,\"leave empty\",\"\")","v":"leave empty"},null,null,null,null,null," ",8,86,0,null,false]
[2,"G3","",null,0.01,null,null,{"$f":"IF(AC110=1,\"B\",\"\")","v":""}," "," "," "," "," "," "," "," "," "," "," ",{"$f":"IF(T109=\"\",\"\",\"leave empty\")","v":"leave empty"},null,null,null,null,null," ",8,86,0,null,false]
[2,"H3","",null,0.01,null,null,{"$f":"IF(AC111=1,\"C\",\"\")","v":""}," "," "," "," "," "," "," "," "," "," "," ",{"$f":"IF(T110=\"\",\"\",\"leave empty\")","v":"leave empty"},null,null,null,null,null," ",8,86,0,null,false]
[2,"A4","",null,0.01,null,null,{"$f":"IF(AC112=1,\"D\",\"\")","v":""}," "," "," "," "," "," "," "," "," "," "," ","leave empty",null,null,null,null,null," ",8,86,0,null,false]
[2,"B4","",null,0.01,null,null,{"$f":"IF(AC113=1,\"E\",\"\")","v":""}," "," "," "," "," "," "," "," "," "," "," ","leave empty",null,null,null,null,null," ",8,86,0,null,false]
[2,"C4","",null,0.01,null,null,{"$f":"IF(AC114=1,\"F\",\"\")","v":""}," "," "," "," "," "," "," "," "," "," "," ","leave empty",null,null,null,null,null," ",8,86,0,null,false]
[2,"D4","",null,0.01,null,null,{"$f":"IF(AC115=1,\"G\",\"\")","v":""}," "," "," "," "," "," "," "," "," "," ",{"$f":"IF(S114=\"\",\"\",\"leave empty\")","v":"leave empty"},"leave empty",null,null,null,null,null," ",8,86,0,null,false]
[2,"E4","",null,0.01,null,null,{"$f":"IF(AC116=1,\"H\",\"\")","v":""}," "," "," "," "," "," "," "," "," "," ",{"$f":"IF(S115=\"\",\"\",\"leave empty\")","v":"leave empty"},"leave empty",null,null,null,null,null," ",8,86,0,null,false]
[2,"F4","",null,0.01,null,null,null,null,null,null,null,null,null,null,null,null,null,null,null,null,null,null,null,null," ",8,86,0,null,false]
[2,"G4","",null,0.01,null,null,null,null,null,null,null,null,null,null,null,null,null,null,null,null,null,null,null,null," ",8,86,0,null,false]
[2,"H4","",null,0.01,null,null,null,null,null,null,null,null,null,null,null,null,null,null,null,null,null,null,null,null," ",8,86,0,null,false]
[2,"A5","",null,0.01,null,null,null,{"$f":"IF(AC121=1,\"Plate \"&TEXT(AA121+1,\"0\"),\"\")","v":""},null,null,null,null,null,null,null,null,null,null,null,null,null,null,null,null," ",8,86,0,null,false]
[2,"B5","",null,0.01,null,null,null,{"$f":"IF($AC121=1,\"1\",\"\")","v":""},{"$f":"IF($AC121=1,\"2\",\"\")","v":""},{"$f":"IF($AC121=1,\"3\",\"\")","v":""},{"$f":"IF($AC121=1,\"4\",\"\")","v":""},{"$f":"IF($AC121=1,\"5\",\"\")","v":""},{"$f":"IF($AC121=1,\"6\",\"\")","v":""},{"$f":"IF($AC121=1,\"7\",\"\")","v":""},{"$f":"IF($AC121=1,\"8\",\"\")","v":""},{"$f":"IF($AC121=1,\"9\",\"\")","v":""},{"$f":"IF($AC121=1,\"10\",\"\")","v":""},{"$f":"IF($AC121=1,\"11\",\"\")","v":""},{"$f":"IF($AC121=1,\"12\",\"\")","v":""},null,null,null,null,null," ",9,86,0,null,false]
[2,"C5","",null,0.01,null,null,{"$f":"IF(AC122=1,\"A\",\"\")","v":""},{"$f":"OFFSET($Z$2,ROW()-StartRow-1-$AA122*PanelHeight+$AA122*WellsInPlate+(COLUMN()-9)*8,0,1,1)","v":" "}," "," "," "," "," "," "," "," "," "," ",{"$f":"IF(COUNTIF(I122:S129,\" \")<88,\"leave empty\",\"\")","v":"leave empty"},null,null,null,null,null," ",9,86,0,null,false]
[2,"D5","",null,0.01,null,null,{"$f":"IF(AC123=1,\"B\",\"\")","v":""}," "," "," "," "," "," "," "," "," "," "," ",{"$f":"IF(T122=\"\",\"\",\"leave empty\")","v":"leave empty"},null,null,null,null,null," ",9,86,0,null,false]
[2,"E5","",null,0.01,null,null,{"$f":"IF(AC124=1,\"C\",\"\")","v":""}," "," "," "," "," "," "," "," "," "," "," ",{"$f":"IF(T123=\"\",\"\",\"leave empty\")","v":"leave empty"},null,null,null,null,null," ",9,86,0,null,false]
[2,"F5","",null,0.01,null,null,{"$f":"IF(AC125=1,\"D\",\"\")","v":""}," "," "," "," "," "," "," "," "," "," "," ","leave empty",null,null,null,null,null," ",9,86,0,null,false]
[2,"G5","",null,0.01,null,null,{"$f":"IF(AC126=1,\"E\",\"\")","v":""}," "," "," "," "," "," "," "," "," "," "," ","leave empty",null,null,null,null,null," ",9,86,0,null,false]
[2,"H5","",null,0.01,null,null,{"$f":"IF(AC127=1,\"F\",\"\")","v":""}," "," "," "," "," "," "," "," "," "," "," ","leave empty",null,null,null,null,null," ",9,86,0,null,false]
[2,"A6","",null,0.01,null,null,{"$f":"IF(AC128=1,\"G\",\"\")","v":""}," "," "," "," "," "," "," "," "," "," ",{"$f":"IF(S127=\"\",\"\",\"leave empty\")","v":"leave empty"},"leave empty",null,null,null,null,null," ",9,86,0,null,false]
[2,"B6","",null,0.01,null,null,{"$f":"IF(AC129=1,\"H\",\"\")","v":""}," "," "," "," "," "," "," "," "," "," ",{"$f":"IF(S128=\"\",\"\",\"leave empty\")","v":"leave empty"},"leave empty",null,null,null,null,null," ",9,86,0,null,false]
[2,"C6","",null,0.01,null,null,null,null,null,null,null,null,null,null,null,null,null,null,null,null,null,null,null,null,{"$f":"IF(LEN(INDEX($1:$1048576,ROW(),4))>0,INDEX($1:$1048576,ROW(),4),\" \")","v":" "},9,86,0,null,false]
[2,"D6",{"$f":"IF(D131=0,\"\",D131)","v":""},null,0.01,null,null,null,null,null,null,null,null,null,null,null,null,null,null,null,null,null,null,null,null," ",9,86,0,null,false]
[2,"E6","",null,0.01,null,null,null,null,null,null,null,null,null,null,null,null,null,null,null,null,null,null,null,null," ",{"$f":"CEILING((ROW()-StartRow+1)/PanelHeight,1)-1","v":9},{"$f":"COUNTBLANK(OFFSET(INDEX($1:$1048576,2,4),AA132*WellsInPlate,0,WellsInPlate,1))","v":86},{"$f":"IF(AB132=WellsInPlate,0,1)","v":0},null,false]
[2,"F6","",null,0.01,null,null,null,{"$f":"IF(AC134=1,\"Plate \"&TEXT(AA134+1,\"0\"),\"\")","v":""},null,null,null,null,null,null,null,null,null,null,null,null,null,null,null,null," ",{"$f":"CEILING((ROW()-StartRow+1)/PanelHeight,1)-1","v":9},86,{"$f":"IF(AB133=WellsInPlate,0,1)","v":0},null,false]
[2,"G6","",null,0.01,null,null,null,{"$f":"IF($AC134=1,\"1\",\"\")","v":""},{"$f":"IF($AC134=1,\"2\",\"\")","v":""},{"$f":"IF($AC134=1,\"3\",\"\")","v":""},{"$f":"IF($AC134=1,\"4\",\"\")","v":""},{"$f":"IF($AC134=1,\"5\",\"\")","v":""},{"$f":"IF($AC134=1,\"6\",\"\")","v":""},{"$f":"IF($AC134=1,\"7\",\"\")","v":""},{"$f":"IF($AC134=1,\"8\",\"\")","v":""},{"$f":"IF($AC134=1,\"9\",\"\")","v":""},{"$f":"IF($AC134=1,\"10\",\"\")","v":""},{"$f":"IF($AC134=1,\"11\",\"\")","v":""},{"$f":"IF($AC134=1,\"12\",\"\")","v":""},null,null,null,null,null," ",10,86,0,null,false]
[2,"H6","",null,0.01,null,null,{"$f":"IF(AC135=1,\"A\",\"\")","v":""},{"$f":"OFFSET($Z$2,ROW()-StartRow-1-$AA135*PanelHeight+$AA135*WellsInPlate+(COLUMN()-9)*8,0,1,1)","v":" "}," "," "," "," "," "," "," "," "," "," ",{"$f":"IF(COUNTIF(I135:S142,\" \")<88,\"leave empty\",\"\")","v":"leave empty"},null,null,null,null,null," ",10,86,0,null,false]
[2,"A7","",null,0.01,null,null,{"$f":"IF(AC136=1,\"B\",\"\")","v":""}," "," "," "," "," "," "," "," "," "," "," ",{"$f":"IF(T135=\"\",\"\",\"leave empty\")","v":"leave empty"},null,null,null,null,null," ",10,86,0,null,false]
[2,"B7","",null,0.01,null,null,{"$f":"IF(AC137=1,\"C\",\"\")","v":""}," "," "," "," "," "," "," "," "," "," "," ",{"$f":"IF(T136=\"\",\"\",\"leave empty\")","v":"leave empty"},null,null,null,null,null," ",10,86,0,null,false]
[2,"C7","",null,0.01,null,null,{"$f":"IF(AC138=1,\"D\",\"\")","v":""}," "," "," "," "," "," "," "," "," "," "," ","leave empty",null,null,null,null,null," ",10,86,0,null,false]
[2,"D7","",null,0.01,null,null,{"$f":"IF(AC139=1,\"E\",\"\")","v":""}," "," "," "," "," "," "," "," "," "," "," ","leave empty",null,null,null,null,null," ",10,86,0,null,false]
[2,"E7","",null,0.01,null,null,{"$f":"IF(AC140=1,\"F\",\"\")","v":""}," "," "," "," "," "," "," "," "," "," "," ","leave empty",null,null,null,null,null," ",10,86,0,null,false]
[2,"F7","",null,0.01,null,null,{"$f":"IF(AC141=1,\"G\",\"\")","v":""}," "," "," "," "," "," "," "," "," "," ",{"$f":"IF(S140=\"\",\"\",\"leave empty\")","v":"leave empty"},"leave empty",null,null,null,null,null," ",10,86,0,null,false]
[2,"G7","",null,0.01,null,null,{"$f":"IF(AC142=1,\"H\",\"\")","v":""}," "," "," "," "," "," "," "," "," "," ",{"$f":"IF(S141=\"\",\"\",\"leave empty\")","v":"leave empty"},"leave empty",null,null,null,null,null," ",10,86,0,null,false]
[2,"H7","",null,0.01,null,null,null,null,null,null,null,null,null,null,null,null,null,null,null,null,null,null,null,null," ",10,86,0,null,false]
[2,"A8","",null,0.01,null,null,null,null,null,null,null,null,null,null,null,null,null,null,null,null,null,null,null,null," ",10,86,0,null,false]
[2,"B8","",null,0.01,null,null,null,null,null,null,null,null,null,null,null,null,null,null,null,null,null,null,null,null," ",10,86,0,null,false]
[2,"C8","",null,0.01,null,null,null,{"$f":"IF(AC147=1,\"Plate \"&TEXT(AA147+1,\"0\"),\"\")","v":""},null,null,null,null,null,null,null,null,null,null,null,null,null,null,null,null," ",10,86,0,null,false]
[2,"D8","",null,0.01,null,null,null,{"$f":"IF($AC147=1,\"1\",\"\")","v":""},{"$f":"IF($AC147=1,\"2\",\"\")","v":""},{"$f":"IF($AC147=1,\"3\",\"\")","v":""},{"$f":"IF($AC147=1,\"4\",\"\")","v":""},{"$f":"IF($AC147=1,\"5\",\"\")","v":""},{"$f":"IF($AC147=1,\"6\",\"\")","v":""},{"$f":"IF($AC147=1,\"7\",\"\")","v":""},{"$f":"IF($AC147=1,\"8\",\"\")","v":""},{"$f":"IF($AC147=1,\"9\",\"\")","v":""},{"$f":"IF($AC147=1,\"10\",\"\")","v":""},{"$f":"IF($AC147=1,\"11\",\"\")","v":""},{"$f":"IF($AC147=1,\"12\",\"\")","v":""},null,null,null,null,null," ",11,86,0,null,false]
[2,"E8","",null,0.01,null,null,{"$f":"IF(AC148=1,\"A\",\"\")","v":""},{"$f":"OFFSET($Z$2,ROW()-StartRow-1-$AA148*PanelHeight+$AA148*WellsInPlate+(COLUMN()-9)*8,0,1,1)","v":" "}," "," "," "," "," "," "," "," "," "," ",{"$f":"IF(COUNTIF(I148:S155,\" \")<88,\"leave empty\",\"\")","v":"leave empty"},null,null,null,null,null," ",11,86,0,null,false]
[2,"F8","",null,0.01,null,null,{"$f":"IF(AC149=1,\"B\",\"\")","v":""}," "," "," "," "," "," "," "," "," "," "," ",{"$f":"IF(T148=\"\",\"\",\"leave empty\")","v":"leave empty"},null,null,null,null,null," ",11,86,0,null,false]
[2,"G8","",null,0.01,null,null,{"$f":"IF(AC150=1,\"C\",\"\")","v":""}," "," "," "," "," "," "," "," "," "," "," ",{"$f":"IF(T149=\"\",\"\",\"leave empty\")","v":"leave empty"},null,null,null,null,null," ",11,86,0,null,false]
[2,"H8","",null,0.01,null,null,{"$f":"IF(AC151=1,\"D\",\"\")","v":""}," "," "," "," "," "," "," "," "," "," "," ","leave empty",null,null,null,null,null," ",11,86,0,null,false]
[2,"A9","",null,0.01,null,null,{"$f":"IF(AC152=1,\"E\",\"\")","v":""}," "," "," "," "," "," "," "," "," "," "," ","leave empty",null,null,null,null,null," ",11,86,0,null,false]
[2,"B9","",null,0.01,null,null,{"$f":"IF(AC153=1,\"F\",\"\")","v":""}," "," "," "," "," "," "," "," "," "," "," ","leave empty",null,null,null,null,null," ",11,86,0,null,false]
[2,"C9","",null,0.01,null,null,{"$f":"IF(AC154=1,\"G\",\"\")","v":""}," "," "," "," "," "," "," "," "," "," ",{"$f":"IF(S153=\"\",\"\",\"leave empty\")","v":"leave empty"},"leave empty",null,null,null,null,null," ",11,86,0,null,false]
[2,"D9","",null,0.01,null,null,{"$f":"IF(AC155=1,\"H\",\"\")","v":""}," "," "," "," "," "," "," "," "," "," ",{"$f":"IF(S154=\"\",\"\",\"leave empty\")","v":"leave empty"},"leave empty",null,null,null,null,null," ",11,86,0,null,false]
[2,"E9","",null,0.01,null,null,null,null,null,null,null,null,null,null,null,null,null,null,null,null,null,null,null,null," ",11,86,0,null,false]
[2,"F9","",null,0.01,null,null,null,null,null,null,null,null,null,null,null,null,null,null,null,null,null,null,null,null," ",11,86,0,null,false]
[2,"G9","",null,0.01,null,null,null,null,null,null,null,null,null,null,null,null,null,null,null,null,null,null,null,null," ",11,86,0,null,false]
[2,"H9","",null,0.01,null,null,null,{"$f":"IF(AC160=1,\"Plate \"&TEXT(AA160+1,\"0\"),\"\")","v":""},null,null,null,null,null,null,null,null,null,null,null,null,null,null,null,null," ",11,86,0,null,false]
[2,"A10","",null,0.01,null,null,null,{"$f":"IF($AC160=1,\"1\",\"\")","v":""},{"$f":"IF($AC160=1,\"2\",\"\")","v":""},{"$f":"IF($AC160=1,\"3\",\"\")","v":""},{"$f":"IF($AC160=1,\"4\",\"\")","v":""},{"$f":"IF($AC160=1,\"5\",\"\")","v":""},{"$f":"IF($AC160=1,\"6\",\"\")","v":""},{"$f":"IF($AC160=1,\"7\",\"\")","v":""},{"$f":"IF($AC160=1,\"8\",\"\")","v":""},{"$f":"IF($AC160=1,\"9\",\"\")","v":""},{"$f":"IF($AC160=1,\"10\",\"\")","v":""},{"$f":"IF($AC160=1,\"11\",\"\")","v":""},{"$f":"IF($AC160=1,\"12\",\"\")","v":""},null,null,null,null,null," ",12,86,0,null,false]
[2,"B10","",null,0.01,null,null,{"$f":"IF(AC161=1,\"A\",\"\")","v":""},{"$f":"OFFSET($Z$2,ROW()-StartRow-1-$AA161*PanelHeight+$AA161*WellsInPlate+(COLUMN()-9)*8,0,1,1)","v":" "}," "," "," "," "," "," "," "," "," "," ",{"$f":"IF(COUNTIF(I161:S168,\" \")<88,\"leave empty\",\"\")","v":"leave empty"},null,null,null,null,null," ",12,86,0,null,false]
[2,"C10","",null,0.01,null,null,{"$f":"IF(AC162=1,\"B\",\"\")","v":""}," "," "," "," "," "," "," "," "," "," "," ",{"$f":"IF(T161=\"\",\"\",\"leave empty\")","v":"leave empty"},null,null,null,null,null," ",12,86,0,null,{"$f":"IF(COUNTBLANK(D160)=0,A152)","v":false}]
[2,"D10","",null,0.01,null,null,{"$f":"IF(AC163=1,\"C\",\"\")","v":""}," "," "," "," "," "," "," "," "," "," "," ",{"$f":"IF(T162=\"\",\"\",\"leave empty\")","v":"leave empty"},null,null,null,null,null," ",12,86,0,null,false]
[2,"E10","",null,0.01,null,null,{"$f":"IF(AC164=1,\"D\",\"\")","v":""}," "," "," "," "," "," "," "," "," "," "," ","leave empty",null,null,null,null,null," ",12,86,0,null,false]
[2,"F10","",null,0.01,null,null,{"$f":"IF(AC165=1,\"E\",\"\")","v":""}," "," "," "," "," "," "," "," "," "," "," ","leave empty",null,null,null,null,null," ",{"$f":"CEILING((ROW()-StartRow+1)/PanelHeight,1)-1","v":12},86,{"$f":"IF(AB165=WellsInPlate,0,1)","v":0},null,false]
[2,"G10","",null,0.01,null,null,{"$f":"IF(AC166=1,\"F\",\"\")","v":""}," "," "," "," "," "," "," "," "," "," "," ","leave empty",null,null,null,null,null," ",12,86,0,null,false]
[2,"H10","",null,0.01,null,null,{"$f":"IF(AC167=1,\"G\",\"\")","v":""}," "," "," "," "," "," "," "," "," "," ",{"$f":"IF(S166=\"\",\"\",\"leave empty\")","v":"leave empty"},"leave empty",null,null,null,null,null," ",12,86,0,null,false]
[2,"A11","",null,0.01,null,null,{"$f":"IF(AC168=1,\"H\",\"\")","v":""}," "," "," "," "," "," "," "," "," "," ",{"$f":"IF(S167=\"\",\"\",\"leave empty\")","v":"leave empty"},"leave empty",null,null,null,null,null," ",12,86,0,null,false]
[2,"B11","",null,0.01,null,null,null,null,null,null,null,null,null,null,null,null,null,null,null,null,null,null,null,null," ",12,86,0,null,false]
[2,"C11","",null,0.01,null,null,null,null,null,null,null,null,null,null,null,null,null,null,null,null,null,null,null,null," ",12,86,0,null,false]
[2,"D11","",null,0.01,null,null,null,null,null,null,null,null,null,null,null,null,null,null,null,null,null,null,null,null," ",12,86,0,null,false]
[2,"E11","",null,0.01,null,null,null,{"$f":"IF(AC173=1,\"Plate \"&TEXT(AA173+1,\"0\"),\"\")","v":""},null,null,null,null,null,null,null,null,null,null,null,null,null,null,null,null," ",12,86,0,null,false]
[2,"F11","",null,0.01,null,null,null,{"$f":"IF($AC173=1,\"1\",\"\")","v":""},{"$f":"IF($AC173=1,\"2\",\"\")","v":""},{"$f":"IF($AC173=1,\"3\",\"\")","v":""},{"$f":"IF($AC173=1,\"4\",\"\")","v":""},{"$f":"IF($AC173=1,\"5\",\"\")","v":""},{"$f":"IF($AC173=1,\"6\",\"\")","v":""},{"$f":"IF($AC173=1,\"7\",\"\")","v":""},{"$f":"IF($AC173=1,\"8\",\"\")","v":""},{"$f":"IF($AC173=1,\"9\",\"\")","v":""},{"$f":"IF($AC173=1,\"10\",\"\")","v":""},{"$f":"IF($AC173=1,\"11\",\"\")","v":""},{"$f":"IF($AC173=1,\"12\",\"\")","v":""},null,null,null,null,null," ",13,86,0,null,false]
[3,"A1","",null,0.01,null,null,{"$f":"IF(AC174=1,\"A\",\"\")","v":""},{"$f":"OFFSET($Z$2,ROW()-StartRow-1-$AA174*PanelHeight+$AA174*WellsInPlate+(COLUMN()-9)*8,0,1,1)","v":" "}," "," "," "," "," "," "," "," "," "," ",{"$f":"IF(COUNTIF(I174:S181,\" \")<88,\"leave empty\",\"\")","v":"leave empty"},null,null,null,null,null," ",13,86,0,null,false]
[3,"B1","",null,0.01,null,null,{"$f":"IF(AC175=1,\"B\",\"\")","v":""}," "," "," "," "," "," "," "," "," "," "," ",{"$f":"IF(T174=\"\",\"\",\"leave empty\")","v":"leave empty"},null,null,null,null,null," ",13,86,0,null,false]
[3,"C1","",null,0.01,null,null,{"$f":"IF(AC176=1,\"C\",\"\")","v":""}," "," "," "," "," "," "," "," "," "," "," ",{"$f":"IF(T175=\"\",\"\",\"leave empty\")","v":"leave empty"},null,null,null,null,null," ",13,86,0,null,{"$f":"IF(COUNTBLANK(#REF!)=0,A166)","v":{"$error":"#REF!"}}]
[3,"D1","",null,0.01,null,null,{"$f":"IF(AC177=1,\"D\",\"\")","v":""}," "," "," "," "," "," "," "," "," "," "," ",{"$f":"IF(T176=\"\",\"\",\"leave empty\")","v":"leave empty"},null,null,null,null,null," ",13,86,0,null,{"$f":"IF(COUNTBLANK(#REF!)=0,A167)","v":{"$error":"#REF!"}}]
[3,"E1","",null,0.01,null,null,{"$f":"IF(AC178=1,\"E\",\"\")","v":""}," "," "," "," "," "," "," "," "," "," "," ","leave empty",null,null,null,null,null," ",13,86,0,null,{"$f":"IF(COUNTBLANK(D174)=0,A168)","v":false}]
[3,"F1","",null,0.01,null,null,{"$f":"IF(AC179=1,\"F\",\"\")","v":""}," "," "," "," "," "," "," "," "," "," "," ","leave empty",null,null,null,null,null," ",13,86,0,null,false]
[3,"G1","",null,0.01,null,null,{"$f":"IF(AC180=1,\"G\",\"\")","v":""}," "," "," "," "," "," "," "," "," "," ",{"$f":"IF(S179=\"\",\"\",\"leave empty\")","v":"leave empty"},"leave empty",null,null,null,null,null," ",13,86,0,null,false]
[3,"H1","",null,0.01,null,null,{"$f":"IF(AC181=1,\"H\",\"\")","v":""}," "," "," "," "," "," "," "," "," "," ",{"$f":"IF(S180=\"\",\"\",\"leave empty\")","v":"leave empty"},"leave empty",null,null,null,null,null," ",13,86,0,null,false]
[3,"A2","",null,0.01,null,null,null,null,null,null,null,null,null,null,null,null,null,null,null,null,null,null,null,null," ",13,86,0,null,false]
[3,"B2","",null,0.01,null,null,null,null,null,null,null,null,null,null,null,null,null,null,null,null,null,null,null,null," ",13,86,0,null,false]
[3,"C2","",null,0.01,null,null,null,null,null,null,null,null,null,null,null,null,null,null,null,null,null,null,null,null," ",13,86,0,null,{"$f":"IF(COUNTBLANK(D180)=0,#REF!)","v":false}]
[3,"D2","",null,0.01,null,null,null,{"$f":"IF(AC186=1,\"Plate \"&TEXT(AA186+1,\"0\"),\"\")","v":""},null,null,null,null,null,null,null,null,null,null,null,null,null,null,null,null," ",13,86,0,null,{"$f":"IF(COUNTBLANK(D181)=0,#REF!)","v":false}]
[3,"E2","",null,0.01,null,null,null,{"$f":"IF($AC186=1,\"1\",\"\")","v":""},{"$f":"IF($AC186=1,\"2\",\"\")","v":""},{"$f":"IF($AC186=1,\"3\",\"\")","v":""},{"$f":"IF($AC186=1,\"4\",\"\")","v":""},{"$f":"IF($AC186=1,\"5\",\"\")","v":""},{"$f":"IF($AC186=1,\"6\",\"\")","v":""},{"$f":"IF($AC186=1,\"7\",\"\")","v":""},{"$f":"IF($AC186=1,\"8\",\"\")","v":""},{"$f":"IF($AC186=1,\"9\",\"\")","v":""},{"$f":"IF($AC186=1,\"10\",\"\")","v":""},{"$f":"IF($AC186=1,\"11\",\"\")","v":""},{"$f":"IF($AC186=1,\"12\",\"\")","v":""},null,null,null,null,null," ",14,86,0,null,{"$f":"IF(COUNTBLANK(D182)=0,A174)","v":false}]
[3,"F2","",null,0.01,null,null,{"$f":"IF(AC187=1,\"A\",\"\")","v":""},{"$f":"OFFSET($Z$2,ROW()-StartRow-1-$AA187*PanelHeight+$AA187*WellsInPlate+(COLUMN()-9)*8,0,1,1)","v":" "}," "," "," "," "," "," "," "," "," "," ",{"$f":"IF(COUNTIF(I187:S194,\" \")<88,\"leave empty\",\"\")","v":"leave empty"},null,null,null,null,null," ",14,86,0,null,false]
[3,"G2","",null,0.01,null,null,{"$f":"IF(AC188=1,\"B\",\"\")","v":""}," "," "," "," "," "," "," "," "," "," "," ",{"$f":"IF(T187=\"\",\"\",\"leave empty\")","v":"leave empty"},null,null,null,null,null," ",14,86,0,null,false]
[3,"H2","",null,0.01,null,null,{"$f":"IF(AC189=1,\"C\",\"\")","v":""}," "," "," "," "," "," "," "," "," "," "," ",{"$f":"IF(T188=\"\",\"\",\"leave empty\")","v":"leave empty"},null,null,null,null,null," ",14,86,0,null,false]
[3,"A3","",null,0.01,null,null,{"$f":"IF(AC190=1,\"D\",\"\")","v":""}," "," "," "," "," "," "," "," "," "," "," ","leave empty",null,null,null,null,null," ",14,86,0,null,false]
[3,"B3","",null,0.01,null,null,{"$f":"IF(AC191=1,\"E\",\"\")","v":""}," "," "," "," "," "," "," "," "," "," "," ","leave empty",null,null,null,null,null," ",14,86,0,null,false]
[3,"C3","",null,0.01,null,null,{"$f":"IF(AC192=1,\"F\",\"\")","v":""}," "," "," "," "," "," "," "," "," "," "," ","leave empty",null,null,null,null,null," ",14,86,0,null,false]
[3,"D3",{"$f":"IF(D193=0,\"\",D193)","v":""},null,0.01,null,null,{"$f":"IF(AC193=1,\"G\",\"\")","v":""}," "," "," "," "," "," "," "," "," "," ",{"$f":"IF(S192=\"\",\"\",\"leave empty\")","v":"leave empty"},"leave empty",null,null,null,null,null," ",14,86,0,null,false]
[3,"E3","",null,0.01,null,null,{"$f":"IF(AC194=1,\"H\",\"\")","v":""}," "," "," "," "," "," "," "," "," "," ",{"$f":"IF(S193=\"\",\"\",\"leave empty\")","v":"leave empty"},"leave empty",null,null,null,null,null,{"$f":"IF(LEN(INDEX($1:$1048576,ROW(),4))>0,INDEX($1:$1048576,ROW(),4),\" \")","v":" "},14,86,0,null,false]
[3,"F3","",null,0.01,null,null,null,null,null,null,null,null,null,null,null,null,null,null,null,null,null,null,null,null," ",14,86,0,null,false]
[3,"G3","",null,0.01,null,null,null,null,null,null,null,null,null,null,null,null,null,null,null,null,null,null,null,null," ",{"$f":"CEILING((ROW()-StartRow+1)/PanelHeight,1)-1","v":14},{"$f":"COUNTBLANK(OFFSET(INDEX($1:$1048576,2,4),AA196*WellsInPlate,0,WellsInPlate,1))","v":86},{"$f":"IF(AB196=WellsInPlate,0,1)","v":0},null,false]
[3,"H3","",null,0.01,null,null,null,null,null,null,null,null,null,null,null,null,null,null,null,null,null,null,null,null," ",{"$f":"CEILING((ROW()-StartRow+1)/PanelHeight,1)-1","v":14},86,{"$f":"IF(AB197=WellsInPlate,0,1)","v":0},null,false]
[3,"A4","",null,0.01,null,null,null,{"$f":"IF(AC199=1,\"Plate \"&TEXT(AA199+1,\"0\"),\"\")","v":""},null,null,null,null,null,null,null,null,null,null,null,null,null,null,null,null," ",14,86,0,null,false]
[3,"B4","",null,0.01,null,null,null,{"$f":"IF($AC199=1,\"1\",\"\")","v":""},{"$f":"IF($AC199=1,\"2\",\"\")","v":""},{"$f":"IF($AC199=1,\"3\",\"\")","v":""},{"$f":"IF($AC199=1,\"4\",\"\")","v":""},{"$f":"IF($AC199=1,\"5\",\"\")","v":""},{"$f":"IF($AC199=1,\"6\",\"\")","v":""},{"$f":"IF($AC199=1,\"7\",\"\")","v":""},{"$f":"IF($AC199=1,\"8\",\"\")","v":""},{"$f":"IF($AC199=1,\"9\",\"\")","v":""},{"$f":"IF($AC199=1,\"10\",\"\")","v":""},{"$f":"IF($AC199=1,\"11\",\"\")","v":""},{"$f":"IF($AC199=1,\"12\",\"\")","v":""},null,null,null,null,null," ",15,86,0,null,false]
[3,"C4","",null,0.01,null,null,{"$f":"IF(AC200=1,\"A\",\"\")","v":""},{"$f":"OFFSET($Z$2,ROW()-StartRow-1-$AA200*PanelHeight+$AA200*WellsInPlate+(COLUMN()-9)*8,0,1,1)","v":" "}," "," "," "," "," "," "," "," "," "," ",{"$f":"IF(COUNTIF(I200:S207,\" \")<88,\"leave empty\",\"\")","v":"leave empty"},null,null,null,null,null," ",15,86,0,null,false]
[3,"D4","",null,0.01,null,null,{"$f":"IF(AC201=1,\"B\",\"\")","v":""}," "," "," "," "," "," "," "," "," "," "," ",{"$f":"IF(T200=\"\",\"\",\"leave empty\")","v":"leave empty"},null,null,null,null,null," ",15,86,0,null,false]
[3,"E4","",null,0.01,null,null,{"$f":"IF(AC202=1,\"C\",\"\")","v":""}," "," "," "," "," "," "," "," "," "," "," ",{"$f":"IF(T201=\"\",\"\",\"leave empty\")","v":"leave empty"},null,null,null,null,null," ",15,86,0,null,false]
[3,"F4","",null,0.01,null,null,{"$f":"IF(AC203=1,\"D\",\"\")","v":""}," "," "," "," "," "," "," "," "," "," "," ","leave empty",null,null,null,null,null," ",15,86,0,null,false]
[3,"G4","",null,0.01,null,null,{"$f":"IF(AC204=1,\"E\",\"\")","v":""}," "," "," "," "," "," "," "," "," "," "," ","leave empty",null,null,null,null,null," ",15,86,0,null,false]
[3,"H4","",null,0.01,null,null,{"$f":"IF(AC205=1,\"F\",\"\")","v":""}," "," "," "," "," "," "," "," "," "," "," ","leave empty",null,null,null,null,null," ",15,86,0,null,false]
[3,"A5","",null,0.01,null,null,{"$f":"IF(AC206=1,\"G\",\"\")","v":""}," "," "," "," "," "," "," "," "," "," ",{"$f":"IF(S205=\"\",\"\",\"leave empty\")","v":"leave empty"},"leave empty",null,null,null,null,null," ",15,86,0,null,false]
[3,"B5","",null,0.01,null,null,{"$f":"IF(AC207=1,\"H\",\"\")","v":""}," "," "," "," "," "," "," "," "," "," ",{"$f":"IF(S206=\"\",\"\",\"leave empty\")","v":"leave empty"},"leave empty",null,null,null,null,null," ",15,86,0,null,false]
[3,"C5","",null,0.01,null,null,null,null,null,null,null,null,null,null,null,null,null,null,null,null,null,null,null,null," ",15,86,0,null,false]
[3,"D5","",null,0.01,null,null,null,null,null,null,null,null,null,null,null,null,null,null,null,null,null,null,null,null," ",15,86,0,null,false]
[3,"E5","",null,0.01,null,null,null,null,null,null,null,null,null,null,null,null,null,null,null,null,null,null,null,null," ",15,86,0,null,false]
[3,"F5","",null,0.01,null,null,null,{"$f":"IF(AC212=1,\"Plate \"&TEXT(AA212+1,\"0\"),\"\")","v":""},null,null,null,null,null,null,null,null,null,null,null,null,null,null,null,null," ",15,86,0,null,false]
[3,"G5","",null,0.01,null,null,null,{"$f":"IF($AC212=1,\"1\",\"\")","v":""},{"$f":"IF($AC212=1,\"2\",\"\")","v":""},{"$f":"IF($AC212=1,\"3\",\"\")","v":""},{"$f":"IF($AC212=1,\"4\",\"\")","v":""},{"$f":"IF($AC212=1,\"5\",\"\")","v":""},{"$f":"IF($AC212=1,\"6\",\"\")","v":""},{"$f":"IF($AC212=1,\"7\",\"\")","v":""},{"$f":"IF($AC212=1,\"8\",\"\")","v":""},{"$f":"IF($AC212=1,\"9\",\"\")","v":""},{"$f":"IF($AC212=1,\"10\",\"\")","v":""},{"$f":"IF($AC212=1,\"11\",\"\")","v":""},{"$f":"IF($AC212=1,\"12\",\"\")","v":""},null,null,null,null,null," ",16,86,0,null,false]
[3,"H5","",null,0.01,null,null,{"$f":"IF(AC213=1,\"A\",\"\")","v":""},{"$f":"OFFSET($Z$2,ROW()-StartRow-1-$AA213*PanelHeight+$AA213*WellsInPlate+(COLUMN()-9)*8,0,1,1)","v":" "}," "," "," "," "," "," "," "," "," "," ",{"$f":"IF(COUNTIF(I213:S220,\" \")<88,\"leave empty\",\"\")","v":"leave empty"},null,null,null,null,null," ",16,86,0,null,false]
[3,"A6","",null,0.01,null,null,{"$f":"IF(AC214=1,\"B\",\"\")","v":""}," "," "," "," "," "," "," "," "," "," "," ",{"$f":"IF(T213=\"\",\"\",\"leave empty\")","v":"leave empty"},null,null,null,null,null," ",16,86,0,null,false]
[3,"B6","",null,0.01,null,null,{"$f":"IF(AC215=1,\"C\",\"\")","v":""}," "," "," "," "," "," "," "," "," "," "," ",{"$f":"IF(T214=\"\",\"\",\"leave empty\")","v":"leave empty"},null,null,null,null,null," ",16,86,0,null,false]
[3,"C6","",null,0.01,null,null,{"$f":"IF(AC216=1,\"D\",\"\")","v":""}," "," "," "," "," "," "," "," "," "," "," ","leave empty",null,null,null,null,null," ",16,86,0,null,false]
[3,"D6","",null,0.01,null,null,{"$f":"IF(AC217=1,\"E\",\"\")","v":""}," "," "," "," "," "," "," "," "," "," "," ","leave empty",null,null,null,null,null," ",16,86,0,null,false]
[3,"E6","",null,0.01,null,null,{"$f":"IF(AC218=1,\"F\",\"\")","v":""}," "," "," "," "," "," "," "," "," "," "," ","leave empty",null,null,null,null,null," ",16,86,0,null,{"$f":"IF(COUNTBLANK(D214)=0,A206)","v":false}]
[3,"F6","",null,0.01,null,null,{"$f":"IF(AC219=1,\"G\",\"\")","v":""}," "," "," "," "," "," "," "," "," "," ",{"$f":"IF(S218=\"\",\"\",\"leave empty\")","v":"leave empty"},"leave empty",null,null,null,null,null," ",16,86,0,null,false]
[3,"G6","",null,0.01,null,null,{"$f":"IF(AC220=1,\"H\",\"\")","v":""}," "," "," "," "," "," "," "," "," "," ",{"$f":"IF(S219=\"\",\"\",\"leave empty\")","v":"leave empty"},"leave empty",null,null,null,null,null," ",16,86,0,null,false]
[3,"H6","",null,0.01,null,null,null,null,null,null,null,null,null,null,null,null,null,null,null,null,null,null,null,null," ",16,86,0,null,false]
[3,"A7","",null,0.01,null,null,null,null,null,null,null,null,null,null,null,null,null,null,null,null,null,null,null,null," ",16,86,0,null,false]
[3,"B7","",null,0.01,null,null,null,null,null,null,null,null,null,null,null,null,null,null,null,null,null,null,null,null," ",16,86,0,null,false]
[3,"C7","",null,0.01,null,null,null,{"$f":"IF(AC225=1,\"Plate \"&TEXT(AA225+1,\"0\"),\"\")","v":""},null,null,null,null,null,null,null,null,null,null,null,null,null,null,null,null," ",16,86,0,null,false]
[3,"D7","",null,0.01,null,null,null,{"$f":"IF($AC225=1,\"1\",\"\")","v":""},{"$f":"IF($AC225=1,\"2\",\"\")","v":""},{"$f":"IF($AC225=1,\"3\",\"\")","v":""},{"$f":"IF($AC225=1,\"4\",\"\")","v":""},{"$f":"IF($AC225=1,\"5\",\"\")","v":""},{"$f":"IF($AC225=1,\"6\",\"\")","v":""},{"$f":"IF($AC225=1,\"7\",\"\")","v":""},{"$f":"IF($AC225=1,\"8\",\"\")","v":""},{"$f":"IF($AC225=1,\"9\",\"\")","v":""},{"$f":"IF($AC225=1,\"10\",\"\")","v":""},{"$f":"IF($AC225=1,\"11\",\"\")","v":""},{"$f":"IF($AC225=1,\"12\",\"\")","v":""},null,null,null,null,null," ",17,86,0,null,false]
[3,"E7","",null,0.01,null,null,{"$f":"IF(AC226=1,\"A\",\"\")","v":""},{"$f":"OFFSET($Z$2,ROW()-StartRow-1-$AA226*PanelHeight+$AA226*WellsInPlate+(COLUMN()-9)*8,0,1,1)","v":" "}," "," "," "," "," "," "," "," "," "," ",{"$f":"IF(COUNTIF(I226:S233,\" \")<88,\"leave empty\",\"\")","v":"leave empty"},null,null,null,null,null," ",17,86,0,null,false]
[3,"F7","",null,0.01,null,null,{"$f":"IF(AC227=1,\"B\",\"\")","v":""}," "," "," "," "," "," "," "," "," "," "," ",{"$f":"IF(T226=\"\",\"\",\"leave empty\")","v":"leave empty"},null,null,null,null,null," ",17,86,0,null,false]
[3,"G7","",null,0.01,null,null,{"$f":"IF(AC228=1,\"C\",\"\")","v":""}," "," "," "," "," "," "," "," "," "," "," ",{"$f":"IF(T227=\"\",\"\",\"leave empty\")","v":"leave empty"},null,null,null,null,null," ",17,86,0,null,false]
[3,"H7","",null,0.01,null,null,{"$f":"IF(AC229=1,\"D\",\"\")","v":""}," "," "," "," "," "," "," "," "," "," "," ","leave empty",null,null,null,null,null," ",{"$f":"CEILING((ROW()-StartRow+1)/PanelHeight,1)-1","v":17},86,{"$f":"IF(AB229=WellsInPlate,0,1)","v":0},null,false]
[3,"A8","",null,0.01,null,null,{"$f":"IF(AC230=1,\"E\",\"\")","v":""}," "," "," "," "," "," "," "," "," "," "," ","leave empty",null,null,null,null,null," ",17,86,0,null,false]
[3,"B8","",null,0.01,null,null,{"$f":"IF(AC231=1,\"F\",\"\")","v":""}," "," "," "," "," "," "," "," "," "," "," ","leave empty",null,null,null,null,null," ",17,86,0,null,false]
[3,"C8","",null,0.01,null,null,{"$f":"IF(AC232=1,\"G\",\"\")","v":""}," "," "," "," "," "," "," "," "," "," ",{"$f":"IF(S231=\"\",\"\",\"leave empty\")","v":"leave empty"},"leave empty",null,null,null,null,null," ",17,86,0,null,false]
[3,"D8","",null,0.01,null,null,{"$f":"IF(AC233=1,\"H\",\"\")","v":""}," "," "," "," "," "," "," "," "," "," ",{"$f":"IF(S232=\"\",\"\",\"leave empty\")","v":"leave empty"},"leave empty",null,null,null,null,null," ",17,86,0,null,false]
[3,"E8","",null,0.01,null,null,null,null,null,null,null,null,null,null,null,null,null,null,null,null,null,null,null,null," ",17,86,0,null,false]
[3,"F8","",null,0.01,null,null,null,null,null,null,null,null,null,null,null,null,null,null,null,null,null,null,null,null," ",17,86,0,null,false]
[3,"G8","",null,0.01,null,null,null,null,null,null,null,null,null,null,null,null,null,null,null,null,null,null,null,null," ",17,86,0,null,false]
[3,"H8","",null,0.01,null,null,null,{"$f":"IF(AC238=1,\"Plate \"&TEXT(AA238+1,\"0\"),\"\")","v":""},null,null,null,null,null,null,null,null,null,null,null,null,null,null,null,null," ",17,86,0,null,false]
[3,"A9","",null,0.01,null,null,null,{"$f":"IF($AC238=1,\"1\",\"\")","v":""},{"$f":"IF($AC238=1,\"2\",\"\")","v":""},{"$f":"IF($AC238=1,\"3\",\"\")","v":""},{"$f":"IF($AC238=1,\"4\",\"\")","v":""},{"$f":"IF($AC238=1,\"5\",\"\")","v":""},{"$f":"IF($AC238=1,\"6\",\"\")","v":""},{"$f":"IF($AC238=1,\"7\",\"\")","v":""},{"$f":"IF($AC238=1,\"8\",\"\")","v":""},{"$f":"IF($AC238=1,\"9\",\"\")","v":""},{"$f":"IF($AC238=1,\"10\",\"\")","v":""},{"$f":"IF($AC238=1,\"11\",\"\")","v":""},{"$f":"IF($AC238=1,\"12\",\"\")","v":""},null,null,null,null,null," ",18,86,0,null,false]
[3,"B9","",null,0.01,null,null,{"$f":"IF(AC239=1,\"A\",\"\")","v":""},{"$f":"OFFSET($Z$2,ROW()-StartRow-1-$AA239*PanelHeight+$AA239*WellsInPlate+(COLUMN()-9)*8,0,1,1)","v":" "}," "," "," "," "," "," "," "," "," "," ",{"$f":"IF(COUNTIF(I239:S246,\" \")<88,\"leave empty\",\"\")","v":"leave empty"},null,null,null,null,null," ",18,86,0,null,false]
[3,"C9","",null,0.01,null,null,{"$f":"IF(AC240=1,\"B\",\"\")","v":""}," "," "," "," "," "," "," "," "," "," "," ",{"$f":"IF(T239=\"\",\"\",\"leave empty\")","v":"leave empty"},null,null,null,null,null," ",18,86,0,null,false]
[3,"D9","",null,0.01,null,null,{"$f":"IF(AC241=1,\"C\",\"\")","v":""}," "," "," "," "," "," "," "," "," "," "," ",{"$f":"IF(T240=\"\",\"\",\"leave empty\")","v":"leave empty"},null,null,null,null,null," ",18,86,0,null,false]
[3,"E9","",null,0.01,null,null,{"$f":"IF(AC242=1,\"D\",\"\")","v":""}," "," "," "," "," "," "," "," "," "," "," ","leave empty",null,null,null,null,null," ",18,86,0,null,false]
[3,"F9","",null,0.01,null,null,{"$f":"IF(AC243=1,\"E\",\"\")","v":""}," "," "," "," "," "," "," "," "," "," "," ","leave empty",null,null,null,null,null," ",18,86,0,null,false]
[3,"G9","",null,0.01,null,null,{"$f":"IF(AC244=1,\"F\",\"\")","v":""}," "," "," "," "," "," "," "," "," "," "," ","leave empty",null,null,null,null,null," ",18,86,0,null,false]
[3,"H9","",null,0.01,null,null,{"$f":"IF(AC245=1,\"G\",\"\")","v":""}," "," "," "," "," "," "," "," "," "," ",{"$f":"IF(S244=\"\",\"\",\"leave empty\")","v":"leave empty"},"leave empty",null,null,null,null,null," ",18,86,0,null,false]
[3,"A10","",null,0.01,null,null,{"$f":"IF(AC246=1,\"H\",\"\")","v":""}," "," "," "," "," "," "," "," "," "," ",{"$f":"IF(S245=\"\",\"\",\"leave empty\")","v":"leave empty"},"leave empty",null,null,null,null,null," ",18,86,0,null,false]
[3,"B10","",null,0.01,null,null,null,null,null,null,null,null,null,null,null,null,null,null,null,null,null,null,null,null," ",18,86,0,null,false]
[3,"C10","",null,0.01,null,null,null,null,null,null,null,null,null,null,null,null,null,null,null,null,null,null,null,null," ",18,86,0,null,false]
[3,"D10","",null,0.01,null,null,null,null,null,null,null,null,null,null,null,null,null,null,null,null,null,null,null,null," ",18,86,0,null,false]
[3,"E10","",null,0.01,null,null,null,{"$f":"IF(AC251=1,\"Plate \"&TEXT(AA251+1,\"0\"),\"\")","v":""},null,null,null,null,null,null,null,null,null,null,null,null,null,null,null,null," ",18,86,0,null,{"$f":"IF(COUNTBLANK(D246)=0,A238)","v":false}]
[3,"F10","",null,0.01,null,null,null,{"$f":"IF($AC251=1,\"1\",\"\")","v":""},{"$f":"IF($AC251=1,\"2\",\"\")","v":""},{"$f":"IF($AC251=1,\"3\",\"\")","v":""},{"$f":"IF($AC251=1,\"4\",\"\")","v":""},{"$f":"IF($AC251=1,\"5\",\"\")","v":""},{"$f":"IF($AC251=1,\"6\",\"\")","v":""},{"$f":"IF($AC251=1,\"7\",\"\")","v":""},{"$f":"IF($AC251=1,\"8\",\"\")","v":""},{"$f":"IF($AC251=1,\"9\",\"\")","v":""},{"$f":"IF($AC251=1,\"10\",\"\")","v":""},{"$f":"IF($AC251=1,\"11\",\"\")","v":""},{"$f":"IF($AC251=1,\"12\",\"\")","v":""},null,null,null,null,null," ",19,86,0,null,false]
[3,"G10","",null,0.01,null,null,{"$f":"IF(AC252=1,\"A\",\"\")","v":""},{"$f":"OFFSET($Z$2,ROW()-StartRow-1-$AA252*PanelHeight+$AA252*WellsInPlate+(COLUMN()-9)*8,0,1,1)","v":" "}," "," "," "," "," "," "," "," "," "," ",{"$f":"IF(COUNTIF(I252:S259,\" \")<88,\"leave empty\",\"\")","v":"leave empty"},null,null,null,null,null," ",19,86,0,null,false]
[3,"H10","",null,0.01,null,null,{"$f":"IF(AC253=1,\"B\",\"\")","v":""}," "," "," "," "," "," "," "," "," "," "," ",{"$f":"IF(T252=\"\",\"\",\"leave empty\")","v":"leave empty"},null,null,null,null,null," ",19,86,0,null,false]
[3,"A11","",null,0.01,null,null,{"$f":"IF(AC254=1,\"C\",\"\")","v":""}," "," "," "," "," "," "," "," "," "," "," ",{"$f":"IF(T253=\"\",\"\",\"leave empty\")","v":"leave empty"},null,null,null,null,null," ",19,86,0,null,false]
[3,"B11","",null,0.01,null,null,{"$f":"IF(AC255=1,\"D\",\"\")","v":""}," "," "," "," "," "," "," "," "," "," "," ","leave empty",null,null,null,null,null," ",19,86,0,null,false]
[3,"C11","",null,0.01,null,null,{"$f":"IF(AC256=1,\"E\",\"\")","v":""}," "," "," "," "," "," "," "," "," "," "," ","leave empty",null,null,null,null,null," ",19,86,0,null,false]
[3,"D11",{"$f":"IF(D257=0,\"\",D257)","v":""},null,0.01,null,null,{"$f":"IF(AC257=1,\"F\",\"\")","v":""}," "," "," "," "," "," "," "," "," "," "," ","leave empty",null,null,null,null,null," ",19,86,0,null,false]
[3,"E11","",null,0.01,null,null,{"$f":"IF(AC258=1,\"G\",\"\")","v":""}," "," "," "," "," "," "," "," "," "," ",{"$f":"IF(S257=\"\",\"\",\"leave empty\")","v":"leave empty"},"leave empty",null,null,null,null,null,{"$f":"IF(LEN(INDEX($1:$1048576,ROW(),4))>0,INDEX($1:$1048576,ROW(),4),\" \")","v":" "},19,86,0,null,false]
[3,"F11","",null,0.01,null,null,{"$f":"IF(AC259=1,\"H\",\"\")","v":""}," "," "," "," "," "," "," "," "," "," ",{"$f":"IF(S258=\"\",\"\",\"leave empty\")","v":"leave empty"},"leave empty",null,null,null,null,null," ",19,86,0,null,false]
[4,"A1","",null,0.01,null,null,null,null,null,null,null,null,null,null,null,null,null,null,null,null,null,null,null,null," ",{"$f":"CEILING((ROW()-StartRow+1)/PanelHeight,1)-1","v":19},{"$f":"COUNTBLANK(OFFSET(INDEX($1:$1048576,2,4),AA260*WellsInPlate,0,WellsInPlate,1))","v":86},{"$f":"IF(AB260=WellsInPlate,0,1)","v":0},null,false]
[4,"B1","",null,0.01,null,null,null,null,null,null,null,null,null,null,null,null,null,null,null,null,null,null,null,null," ",{"$f":"CEILING((ROW()-StartRow+1)/PanelHeight,1)-1","v":19},86,{"$f":"IF(AB261=WellsInPlate,0,1)","v":0},null,false]
[4,"C1","",null,0.01,null,null,null,null,null,null,null,null,null,null,null,null,null,null,null,null,null,null,null,null," ",19,86,0,null,false]
[4,"D1","",null,0.01,null,null,null,{"$f":"IF(AC264=1,\"Plate \"&TEXT(AA264+1,\"0\"),\"\")","v":""},null,null,null,null,null,null,null,null,null,null,null,null,null,null,null,null," ",19,86,0,null,false]
[4,"E1","",null,0.01,null,null,null,{"$f":"IF($AC264=1,\"1\",\"\")","v":""},{"$f":"IF($AC264=1,\"2\",\"\")","v":""},{"$f":"IF($AC264=1,\"3\",\"\")","v":""},{"$f":"IF($AC264=1,\"4\",\"\")","v":""},{"$f":"IF($AC264=1,\"5\",\"\")","v":""},{"$f":"IF($AC264=1,\"6\",\"\")","v":""},{"$f":"IF($AC264=1,\"7\",\"\")","v":""},{"$f":"IF($AC264=1,\"8\",\"\")","v":""},{"$f":"IF($AC264=1,\"9\",\"\")","v":""},{"$f":"IF($AC264=1,\"10\",\"\")","v":""},{"$f":"IF($AC264=1,\"11\",\"\")","v":""},{"$f":"IF($AC264=1,\"12\",\"\")","v":""},null,null,null,null,null," ",20,86,0,null,{"$f":"IF(COUNTBLANK(#REF!)=0,A252)","v":{"$error":"#REF!"}}]
[4,"F1","",null,0.01,null,null,{"$f":"IF(AC265=1,\"A\",\"\")","v":""},{"$f":"OFFSET($Z$2,ROW()-StartRow-1-$AA265*PanelHeight+$AA265*WellsInPlate+(COLUMN()-9)*8,0,1,1)","v":" "}," "," "," "," "," "," "," "," "," "," ",{"$f":"IF(COUNTIF(I265:S272,\" \")<88,\"leave empty\",\"\")","v":"leave empty"},null,null,null,null,null," ",20,86,0,null,{"$f":"IF(COUNTBLANK(#REF!)=0,A253)","v":{"$error":"#REF!"}}]
[4,"G1","",null,0.01,null,null,{"$f":"IF(AC266=1,\"B\",\"\")","v":""}," "," "," "," "," "," "," "," "," "," "," ",{"$f":"IF(T265=\"\",\"\",\"leave empty\")","v":"leave empty"},null,null,null,null,null," ",20,86,0,null,{"$f":"IF(COUNTBLANK(D260)=0,A254)","v":false}]
[4,"H1","",null,0.01,null,null,{"$f":"IF(AC267=1,\"C\",\"\")","v":""}," "," "," "," "," "," "," "," "," "," "," ",{"$f":"IF(T266=\"\",\"\",\"leave empty\")","v":"leave empty"},null,null,null,null,null," ",20,86,0,null,false]
[4,"A2","",null,0.01,null,null,{"$f":"IF(AC268=1,\"D\",\"\")","v":""}," "," "," "," "," "," "," "," "," "," "," ","leave empty",null,null,null,null,null," ",20,86,0,null,false]
[4,"B2","",null,0.01,null,null,{"$f":"IF(AC269=1,\"E\",\"\")","v":""}," "," "," "," "," "," "," "," "," "," "," ","leave empty",null,null,null,null,null," ",20,86,0,null,false]
[4,"C2","",null,0.01,null,null,{"$f":"IF(AC270=1,\"F\",\"\")","v":""}," "," "," "," "," "," "," "," "," "," "," ","leave empty",null,null,null,null,null," ",20,86,0,null,false]
[4,"D2","",null,0.01,null,null,{"$f":"IF(AC271=1,\"G\",\"\")","v":""}," "," "," "," "," "," "," "," "," "," ",{"$f":"IF(S270=\"\",\"\",\"leave empty\")","v":"leave empty"},"leave empty",null,null,null,null,null," ",20,86,0,null,false]
[4,"E2","",null,0.01,null,null,{"$f":"IF(AC272=1,\"H\",\"\")","v":""}," "," "," "," "," "," "," "," "," "," ",{"$f":"IF(S271=\"\",\"\",\"leave empty\")","v":"leave empty"},"leave empty",null,null,null,null,null," ",20,86,0,null,{"$f":"IF(COUNTBLANK(D266)=0,#REF!)","v":false}]
[4,"F2","",null,0.01,null,null,null,null,null,null,null,null,null,null,null,null,null,null,null,null,null,null,null,null," ",20,86,0,null,{"$f":"IF(COUNTBLANK(D267)=0,#REF!)","v":false}]
[4,"G2","",null,0.01,null,null,null,null,null,null,null,null,null,null,null,null,null,null,null,null,null,null,null,null," ",20,86,0,null,{"$f":"IF(COUNTBLANK(D268)=0,A260)","v":false}]
[4,"H2","",null,0.01,null,null,null,null,null,null,null,null,null,null,null,null,null,null,null,null,null,null,null,null," ",20,86,0,null,false]
[4,"A3","",null,0.01,null,null,null,{"$f":"IF(AC277=1,\"Plate \"&TEXT(AA277+1,\"0\"),\"\")","v":""},null,null,null,null,null,null,null,null,null,null,null,null,null,null,null,null," ",20,86,0,null,false]
[4,"B3","",null,0.01,null,null,null,{"$f":"IF($AC277=1,\"1\",\"\")","v":""},{"$f":"IF($AC277=1,\"2\",\"\")","v":""},{"$f":"IF($AC277=1,\"3\",\"\")","v":""},{"$f":"IF($AC277=1,\"4\",\"\")","v":""},{"$f":"IF($AC277=1,\"5\",\"\")","v":""},{"$f":"IF($AC277=1,\"6\",\"\")","v":""},{"$f":"IF($AC277=1,\"7\",\"\")","v":""},{"$f":"IF($AC277=1,\"8\",\"\")","v":""},{"$f":"IF($AC277=1,\"9\",\"\")","v":""},{"$f":"IF($AC277=1,\"10\",\"\")","v":""},{"$f":"IF($AC277=1,\"11\",\"\")","v":""},{"$f":"IF($AC277=1,\"12\",\"\")","v":""},null,null,null,null,null," ",21,86,0,null,false]
[4,"C3","",null,0.01,null,null,{"$f":"IF(AC278=1,\"A\",\"\")","v":""},{"$f":"OFFSET($Z$2,ROW()-StartRow-1-$AA278*PanelHeight+$AA278*WellsInPlate+(COLUMN()-9)*8,0,1,1)","v":" "}," "," "," "," "," "," "," "," "," "," ",{"$f":"IF(COUNTIF(I278:S285,\" \")<88,\"leave empty\",\"\")","v":"leave empty"},null,null,null,null,null," ",21,86,0,null,false]
[4,"D3","",null,0.01,null,null,{"$f":"IF(AC279=1,\"B\",\"\")","v":""}," "," "," "," "," "," "," "," "," "," "," ",{"$f":"IF(T278=\"\",\"\",\"leave empty\")","v":"leave empty"},null,null,null,null,null," ",21,86,0,null,false]
[4,"E3","",null,0.01,null,null,{"$f":"IF(AC280=1,\"C\",\"\")","v":""}," "," "," "," "," "," "," "," "," "," "," ",{"$f":"IF(T279=\"\",\"\",\"leave empty\")","v":"leave empty"},null,null,null,null,null," ",21,86,0,null,false]
[4,"F3","",null,0.01,null,null,{"$f":"IF(AC281=1,\"D\",\"\")","v":""}," "," "," "," "," "," "," "," "," "," "," ","leave empty",null,null,null,null,null," ",21,86,0,null,false]
[4,"G3","",null,0.01,null,null,{"$f":"IF(AC282=1,\"E\",\"\")","v":""}," "," "," "," "," "," "," "," "," "," "," ","leave empty",null,null,null,null,null," ",21,86,0,null,false]
[4,"H3","",null,0.01,null,null,{"$f":"IF(AC283=1,\"F\",\"\")","v":""}," "," "," "," "," "," "," "," "," "," "," ","leave empty",null,null,null,null,null," ",21,86,0,null,false]
[4,"A4","",null,0.01,null,null,{"$f":"IF(AC284=1,\"G\",\"\")","v":""}," "," "," "," "," "," "," "," "," "," ",{"$f":"IF(S283=\"\",\"\",\"leave empty\")","v":"leave empty"},"leave empty",null,null,null,null,null," ",21,86,0,null,false]
[4,"B4","",null,0.01,null,null,{"$f":"IF(AC285=1,\"H\",\"\")","v":""}," "," "," "," "," "," "," "," "," "," ",{"$f":"IF(S284=\"\",\"\",\"leave empty\")","v":"leave empty"},"leave empty",null,null,null,null,null," ",21,86,0,null,false]
[4,"C4","",null,0.01,null,null,null,null,null,null,null,null,null,null,null,null,null,null,null,null,null,null,null,null," ",21,86,0,null,false]
[4,"D4","",null,0.01,null,null,null,null,null,null,null,null,null,null,null,null,null,null,null,null,null,null,null,null," ",21,86,0,null,false]
[4,"E4","",null,0.01,null,null,null,null,null,null,null,null,null,null,null,null,null,null,null,null,null,null,null,null," ",21,86,0,null,false]
[4,"F4","",null,0.01,null,null,null,{"$f":"IF(AC290=1,\"Plate \"&TEXT(AA290+1,\"0\"),\"\")","v":""},null,null,null,null,null,null,null,null,null,null,null,null,null,null,null,null," ",21,86,0,null,false]
[4,"G4","",null,0.01,null,null,null,{"$f":"IF($AC290=1,\"1\",\"\")","v":""},{"$f":"IF($AC290=1,\"2\",\"\")","v":""},{"$f":"IF($AC290=1,\"3\",\"\")","v":""},{"$f":"IF($AC290=1,\"4\",\"\")","v":""},{"$f":"IF($AC290=1,\"5\",\"\")","v":""},{"$f":"IF($AC290=1,\"6\",\"\")","v":""},{"$f":"IF($AC290=1,\"7\",\"\")","v":""},{"$f":"IF($AC290=1,\"8\",\"\")","v":""},{"$f":"IF($AC290=1,\"9\",\"\")","v":""},{"$f":"IF($AC290=1,\"10\",\"\")","v":""},{"$f":"IF($AC290=1,\"11\",\"\")","v":""},{"$f":"IF($AC290=1,\"12\",\"\")","v":""},null,null,null,null,null," ",22,86,0,null,false]
[4,"H4","",null,0.01,null,null,{"$f":"IF(AC291=1,\"A\",\"\")","v":""},{"$f":"OFFSET($Z$2,ROW()-StartRow-1-$AA291*PanelHeight+$AA291*WellsInPlate+(COLUMN()-9)*8,0,1,1)","v":" "}," "," "," "," "," "," "," "," "," "," ",{"$f":"IF(COUNTIF(I291:S298,\" \")<88,\"leave empty\",\"\")","v":"leave empty"},null,null,null,null,null," ",22,86,0,null,false]
[4,"A5","",null,0.01,null,null,{"$f":"IF(AC292=1,\"B\",\"\")","v":""}," "," "," "," "," "," "," "," "," "," "," ",{"$f":"IF(T291=\"\",\"\",\"leave empty\")","v":"leave empty"},null,null,null,null,null," ",22,86,0,null,false]
[4,"B5","",null,0.01,null,null,{"$f":"IF(AC293=1,\"C\",\"\")","v":""}," "," "," "," "," "," "," "," "," "," "," ",{"$f":"IF(T292=\"\",\"\",\"leave empty\")","v":"leave empty"},null,null,null,null,null," ",{"$f":"CEILING((ROW()-StartRow+1)/PanelHeight,1)-1","v":22},86,{"$f":"IF(AB293=WellsInPlate,0,1)","v":0},null,false]
[4,"C5","",null,0.01,null,null,{"$f":"IF(AC294=1,\"D\",\"\")","v":""}," "," "," "," "," "," "," "," "," "," "," ","leave empty",null,null,null,null,null," ",22,86,0,null,false]
[4,"D5","",null,0.01,null,null,{"$f":"IF(AC295=1,\"E\",\"\")","v":""}," "," "," "," "," "," "," "," "," "," "," ","leave empty",null,null,null,null,null," ",22,86,0,null,false]
[4,"E5","",null,0.01,null,null,{"$f":"IF(AC296=1,\"F\",\"\")","v":""}," "," "," "," "," "," "," "," "," "," "," ","leave empty",null,null,null,null,null," ",22,86,0,null,false]
[4,"F5","",null,0.01,null,null,{"$f":"IF(AC297=1,\"G\",\"\")","v":""}," "," "," "," "," "," "," "," "," "," ",{"$f":"IF(S296=\"\",\"\",\"leave empty\")","v":"leave empty"},"leave empty",null,null,null,null,null," ",22,86,0,null,false]
[4,"G5","",null,0.01,null,null,{"$f":"IF(AC298=1,\"H\",\"\")","v":""}," "," "," "," "," "," "," "," "," "," ",{"$f":"IF(S297=\"\",\"\",\"leave empty\")","v":"leave empty"},"leave empty",null,null,null,null,null," ",22,86,0,null,false]
[4,"H5","",null,0.01,null,null,null,null,null,null,null,null,null,null,null,null,null,null,null,null,null,null,null,null," ",22,86,0,null,false]
[4,"A6","",null,0.01,null,null,null,null,null,null,null,null,null,null,null,null,null,null,null,null,null,null,null,null," ",22,86,0,null,false]
[4,"B6","",null,0.01,null,null,null,null,null,null,null,null,null,null,null,null,null,null,null,null,null,null,null,null," ",22,86,0,null,false]
[4,"C6","",null,0.01,null,null,null,{"$f":"IF(AC303=1,\"Plate \"&TEXT(AA303+1,\"0\"),\"\")","v":""},null,null,null,null,null,null,null,null,null,null,null,null,null,null,null,null," ",22,86,0,null,false]
[4,"D6","",null,0.01,null,null,null,{"$f":"IF($AC303=1,\"1\",\"\")","v":""},{"$f":"IF($AC303=1,\"2\",\"\")","v":""},{"$f":"IF($AC303=1,\"3\",\"\")","v":""},{"$f":"IF($AC303=1,\"4\",\"\")","v":""},{"$f":"IF($AC303=1,\"5\",\"\")","v":""},{"$f":"IF($AC303=1,\"6\",\"\")","v":""},{"$f":"IF($AC303=1,\"7\",\"\")","v":""},{"$f":"IF($AC303=1,\"8\",\"\")","v":""},{"$f":"IF($AC303=1,\"9\",\"\")","v":""},{"$f":"IF($AC303=1,\"10\",\"\")","v":""},{"$f":"IF($AC303=1,\"11\",\"\")","v":""},{"$f":"IF($AC303=1,\"12\",\"\")","v":""},null,null,null,null,null," ",23,86,0,null,false]
[4,"E6","",null,0.01,null,null,{"$f":"IF(AC304=1,\"A\",\"\")","v":""},{"$f":"OFFSET($Z$2,ROW()-StartRow-1-$AA304*PanelHeight+$AA304*WellsInPlate+(COLUMN()-9)*8,0,1,1)","v":" "}," "," "," "," "," "," "," "," "," "," ",{"$f":"IF(COUNTIF(I304:S311,\" \")<88,\"leave empty\",\"\")","v":"leave empty"},null,null,null,null,null," ",23,86,0,null,false]
[4,"F6","",null,0.01,null,null,{"$f":"IF(AC305=1,\"B\",\"\")","v":""}," "," "," "," "," "," "," "," "," "," "," ",{"$f":"IF(T304=\"\",\"\",\"leave empty\")","v":"leave empty"},null,null,null,null,null," ",23,86,0,null,false]
[4,"G6","",null,0.01,null,null,{"$f":"IF(AC306=1,\"C\",\"\")","v":""}," "," "," "," "," "," "," "," "," "," "," ",{"$f":"IF(T305=\"\",\"\",\"leave empty\")","v":"leave empty"},null,null,null,null,null," ",23,86,0,null,{"$f":"IF(COUNTBLANK(D300)=0,A292)","v":false}]
[4,"H6","",null,0.01,null,null,{"$f":"IF(AC307=1,\"D\",\"\")","v":""}," "," "," "," "," "," "," "," "," "," "," ","leave empty",null,null,null,null,null," ",23,86,0,null,false]
[4,"A7","",null,0.01,null,null,{"$f":"IF(AC308=1,\"E\",\"\")","v":""}," "," "," "," "," "," "," "," "," "," "," ","leave empty",null,null,null,null,null," ",23,86,0,null,false]
[4,"B7","",null,0.01,null,null,{"$f":"IF(AC309=1,\"F\",\"\")","v":""}," "," "," "," "," "," "," "," "," "," "," ","leave empty",null,null,null,null,null," ",23,86,0,null,false]
[4,"C7","",null,0.01,null,null,{"$f":"IF(AC310=1,\"G\",\"\")","v":""}," "," "," "," "," "," "," "," "," "," ",{"$f":"IF(S309=\"\",\"\",\"leave empty\")","v":"leave empty"},"leave empty",null,null,null,null,null," ",23,86,0,null,false]
[4,"D7","",null,0.01,null,null,{"$f":"IF(AC311=1,\"H\",\"\")","v":""}," "," "," "," "," "," "," "," "," "," ",{"$f":"IF(S310=\"\",\"\",\"leave empty\")","v":"leave empty"},"leave empty",null,null,null,null,null," ",23,86,0,null,false]
[4,"E7","",null,0.01,null,null,null,null,null,null,null,null,null,null,null,null,null,null,null,null,null,null,null,null," ",23,86,0,null,false]
[4,"F7","",null,0.01,null,null,null,null,null,null,null,null,null,null,null,null,null,null,null,null,null,null,null,null," ",23,86,0,null,false]
[4,"G7","",null,0.01,null,null,null,null,null,null,null,null,null,null,null,null,null,null,null,null,null,null,null,null," ",23,86,0,null,false]
[4,"H7","",null,0.01,null,null,null,{"$f":"IF(AC316=1,\"Plate \"&TEXT(AA316+1,\"0\"),\"\")","v":""},null,null,null,null,null,null,null,null,null,null,null,null,null,null,null,null," ",23,86,0,null,false]
[4,"A8","",null,0.01,null,null,null,{"$f":"IF($AC316=1,\"1\",\"\")","v":""},{"$f":"IF($AC316=1,\"2\",\"\")","v":""},{"$f":"IF($AC316=1,\"3\",\"\")","v":""},{"$f":"IF($AC316=1,\"4\",\"\")","v":""},{"$f":"IF($AC316=1,\"5\",\"\")","v":""},{"$f":"IF($AC316=1,\"6\",\"\")","v":""},{"$f":"IF($AC316=1,\"7\",\"\")","v":""},{"$f":"IF($AC316=1,\"8\",\"\")","v":""},{"$f":"IF($AC316=1,\"9\",\"\")","v":""},{"$f":"IF($AC316=1,\"10\",\"\")","v":""},{"$f":"IF($AC316=1,\"11\",\"\")","v":""},{"$f":"IF($AC316=1,\"12\",\"\")","v":""},null,null,null,null,null," ",24,86,0,null,false]
[4,"B8","",null,0.01,null,null,{"$f":"IF(AC317=1,\"A\",\"\")","v":""},{"$f":"OFFSET($Z$2,ROW()-StartRow-1-$AA317*PanelHeight+$AA317*WellsInPlate+(COLUMN()-9)*8,0,1,1)","v":" "}," "," "," "," "," "," "," "," "," "," ",{"$f":"IF(COUNTIF(I317:S324,\" \")<88,\"leave empty\",\"\")","v":"leave empty"},null,null,null,null,null," ",24,86,0,null,false]
[4,"C8","",null,0.01,null,null,{"$f":"IF(AC318=1,\"B\",\"\")","v":""}," "," "," "," "," "," "," "," "," "," "," ",{"$f":"IF(T317=\"\",\"\",\"leave empty\")","v":"leave empty"},null,null,null,null,null," ",24,86,0,null,false]
[4,"D8",{"$f":"IF(D319=0,\"\",D319)","v":""},null,0.01,null,null,{"$f":"IF(AC319=1,\"C\",\"\")","v":""}," "," "," "," "," "," "," "," "," "," "," ",{"$f":"IF(T318=\"\",\"\",\"leave empty\")","v":"leave empty"},null,null,null,null,null," ",24,86,0,null,false]
[4,"E8","",null,0.01,null,null,{"$f":"IF(AC320=1,\"D\",\"\")","v":""}," "," "," "," "," "," "," "," "," "," "," ","leave empty",null,null,null,null,null," ",24,86,0,null,false]
[4,"F8","",null,0.01,null,null,{"$f":"IF(AC321=1,\"E\",\"\")","v":""}," "," "," "," "," "," "," "," "," "," "," ","leave empty",null,null,null,null,null," ",24,86,0,null,false]
[4,"G8","",null,0.01,null,null,{"$f":"IF(AC322=1,\"F\",\"\")","v":""}," "," "," "," "," "," "," "," "," "," "," ","leave empty",null,null,null,null,null,{"$f":"IF(LEN(INDEX($1:$1048576,ROW(),4))>0,INDEX($1:$1048576,ROW(),4),\" \")","v":" "},24,86,0,null,false]
[4,"H8","",null,0.01,null,null,{"$f":"IF(AC323=1,\"G\",\"\")","v":""}," "," "," "," "," "," "," "," "," "," ",{"$f":"IF(S322=\"\",\"\",\"leave empty\")","v":"leave empty"},"leave empty",null,null,null,null,null," ",24,86,0,null,false]
[4,"A9","",null,0.01,null,null,{"$f":"IF(AC324=1,\"H\",\"\")","v":""}," "," "," "," "," "," "," "," "," "," ",{"$f":"IF(S323=\"\",\"\",\"leave empty\")","v":"leave empty"},"leave empty",null,null,null,null,null," ",{"$f":"CEILING((ROW()-StartRow+1)/PanelHeight,1)-1","v":24},{"$f":"COUNTBLANK(OFFSET(INDEX($1:$1048576,2,4),AA324*WellsInPlate,0,WellsInPlate,1))","v":86},{"$f":"IF(AB324=WellsInPlate,0,1)","v":0},null,false]
[4,"B9","",null,0.01,null,null,null,null,null,null,null,null,null,null,null,null,null,null,null,null,null,null,null,null," ",{"$f":"CEILING((ROW()-StartRow+1)/PanelHeight,1)-1","v":24},86,{"$f":"IF(AB325=WellsInPlate,0,1)","v":0},null,false]
[4,"C9","",null,0.01,null,null,null,null,null,null,null,null,null,null,null,null,null,null,null,null,null,null,null,null," ",24,86,0,null,false]
[4,"D9","",null,0.01,null,null,null,null,null,null,null,null,null,null,null,null,null,null,null,null,null,null,null,null," ",24,86,0,null,false]
[4,"E9","",null,0.01,null,null,null,{"$f":"IF(AC329=1,\"Plate \"&TEXT(AA329+1,\"0\"),\"\")","v":""},null,null,null,null,null,null,null,null,null,null,null,null,null,null,null,null," ",24,86,0,null,false]
[4,"F9","",null,0.01,null,null,null,{"$f":"IF($AC329=1,\"1\",\"\")","v":""},{"$f":"IF($AC329=1,\"2\",\"\")","v":""},{"$f":"IF($AC329=1,\"3\",\"\")","v":""},{"$f":"IF($AC329=1,\"4\",\"\")","v":""},{"$f":"IF($AC329=1,\"5\",\"\")","v":""},{"$f":"IF($AC329=1,\"6\",\"\")","v":""},{"$f":"IF($AC329=1,\"7\",\"\")","v":""},{"$f":"IF($AC329=1,\"8\",\"\")","v":""},{"$f":"IF($AC329=1,\"9\",\"\")","v":""},{"$f":"IF($AC329=1,\"10\",\"\")","v":""},{"$f":"IF($AC329=1,\"11\",\"\")","v":""},{"$f":"IF($AC329=1,\"12\",\"\")","v":""},null,null,null,null,null," ",25,86,0,null,false]
[4,"G9","",null,0.01,null,null,{"$f":"IF(AC330=1,\"A\",\"\")","v":""},{"$f":"OFFSET($Z$2,ROW()-StartRow-1-$AA330*PanelHeight+$AA330*WellsInPlate+(COLUMN()-9)*8,0,1,1)","v":" "}," "," "," "," "," "," "," "," "," "," ",{"$f":"IF(COUNTIF(I330:S337,\" \")<88,\"leave empty\",\"\")","v":"leave empty"},null,null,null,null,null," ",25,86,0,null,false]
[4,"H9","",null,0.01,null,null,{"$f":"IF(AC331=1,\"B\",\"\")","v":""}," "," "," "," "," "," "," "," "," "," "," ",{"$f":"IF(T330=\"\",\"\",\"leave empty\")","v":"leave empty"},null,null,null,null,null," ",25,86,0,null,false]
[4,"A10","",null,0.01,null,null,{"$f":"IF(AC332=1,\"C\",\"\")","v":""}," "," "," "," "," "," "," "," "," "," "," ",{"$f":"IF(T331=\"\",\"\",\"leave empty\")","v":"leave empty"},null,null,null,null,null," ",25,86,0,null,false]
[4,"B10","",null,0.01,null,null,{"$f":"IF(AC333=1,\"D\",\"\")","v":""}," "," "," "," "," "," "," "," "," "," "," ","leave empty",null,null,null,null,null," ",25,86,0,null,false]
[4,"C10","",null,0.01,null,null,{"$f":"IF(AC334=1,\"E\",\"\")","v":""}," "," "," "," "," "," "," "," "," "," "," ","leave empty",null,null,null,null,null," ",25,86,0,null,false]
[4,"D10","",null,0.01,null,null,{"$f":"IF(AC335=1,\"F\",\"\")","v":""}," "," "," "," "," "," "," "," "," "," "," ","leave empty",null,null,null,null,null," ",25,86,0,null,false]
[4,"E10","",null,0.01,null,null,{"$f":"IF(AC336=1,\"G\",\"\")","v":""}," "," "," "," "," "," "," "," "," "," ",{"$f":"IF(S335=\"\",\"\",\"leave empty\")","v":"leave empty"},"leave empty",null,null,null,null,null," ",25,86,0,null,false]
[4,"F10","",null,0.01,null,null,{"$f":"IF(AC337=1,\"H\",\"\")","v":""}," "," "," "," "," "," "," "," "," "," ",{"$f":"IF(S336=\"\",\"\",\"leave empty\")","v":"leave empty"},"leave empty",null,null,null,null,null," ",25,86,0,null,false]
[4,"G10","",null,0.01,null,null,null,null,null,null,null,null,null,null,null,null,null,null,null,null,null,null,null,null," ",25,86,0,null,{"$f":"IF(COUNTBLANK(D332)=0,A324)","v":false}]
[4,"H10","",null,0.01,null,null,null,null,null,null,null,null,null,null,null,null,null,null,null,null,null,null,null,null," ",25,86,0,null,false]
[4,"A11","",null,0.01,null,null,null,null,null,null,null,null,null,null,null,null,null,null,null,null,null,null,null,null," ",25,86,0,null,false]
[4,"B11","",null,0.01,null,null,null,{"$f":"IF(AC342=1,\"Plate \"&TEXT(AA342+1,\"0\"),\"\")","v":""},null,null,null,null,null,null,null,null,null,null,null,null,null,null,null,null," ",25,86,0,null,false]
[4,"C11","",null,0.01,null,null,null,{"$f":"IF($AC342=1,\"1\",\"\")","v":""},{"$f":"IF($AC342=1,\"2\",\"\")","v":""},{"$f":"IF($AC342=1,\"3\",\"\")","v":""},{"$f":"IF($AC342=1,\"4\",\"\")","v":""},{"$f":"IF($AC342=1,\"5\",\"\")","v":""},{"$f":"IF($AC342=1,\"6\",\"\")","v":""},{"$f":"IF($AC342=1,\"7\",\"\")","v":""},{"$f":"IF($AC342=1,\"8\",\"\")","v":""},{"$f":"IF($AC342=1,\"9\",\"\")","v":""},{"$f":"IF($AC342=1,\"10\",\"\")","v":""},{"$f":"IF($AC342=1,\"11\",\"\")","v":""},{"$f":"IF($AC342=1,\"12\",\"\")","v":""},null,null,null,null,null," ",26,86,0,null,false]
[4,"D11","",null,0.01,null,null,{"$f":"IF(AC343=1,\"A\",\"\")","v":""},{"$f":"OFFSET($Z$2,ROW()-StartRow-1-$AA343*PanelHeight+$AA343*WellsInPlate+(COLUMN()-9)*8,0,1,1)","v":" "}," "," "," "," "," "," "," "," "," "," ",{"$f":"IF(COUNTIF(I343:S350,\" \")<88,\"leave empty\",\"\")","v":"leave empty"},null,null,null,null,null," ",26,86,0,null,false]
[4,"E11","",null,0.01,null,null,{"$f":"IF(AC344=1,\"B\",\"\")","v":""}," "," "," "," "," "," "," "," "," "," "," ",{"$f":"IF(T343=\"\",\"\",\"leave empty\")","v":"leave empty"},null,null,null,null,null," ",26,86,0,null,false]
[4,"F11","",null,0.01,null,null,{"$f":"IF(AC345=1,\"C\",\"\")","v":""}," "," "," "," "," "," "," "," "," "," "," ",{"$f":"IF(T344=\"\",\"\",\"leave empty\")","v":"leave empty"},null,null,null,null,null," ",26,86,0,null,false]
[5,"A1","",null,0.01,null,null,{"$f":"IF(AC346=1,\"D\",\"\")","v":""}," "," "," "," "," "," "," "," "," "," "," ","leave empty",null,null,null,null,null," ",26,86,0,null,false]
[5,"B1","",null,0.01,null,null,{"$f":"IF(AC347=1,\"E\",\"\")","v":""}," "," "," "," "," "," "," "," "," "," "," ","leave empty",null,null,null,null,null," ",26,86,0,null,false]
[5,"C1","",null,0.01,null,null,{"$f":"IF(AC348=1,\"F\",\"\")","v":""}," "," "," "," "," "," "," "," "," "," "," ","leave empty",null,null,null,null,null," ",26,86,0,null,false]
[5,"D1","",null,0.01,null,null,{"$f":"IF(AC349=1,\"G\",\"\")","v":""}," "," "," "," "," "," "," "," "," "," ",{"$f":"IF(S348=\"\",\"\",\"leave empty\")","v":"leave empty"},"leave empty",null,null,null,null,null," ",26,86,0,null,false]
[5,"E1","",null,0.01,null,null,{"$f":"IF(AC350=1,\"H\",\"\")","v":""}," "," "," "," "," "," "," "," "," "," ",{"$f":"IF(S349=\"\",\"\",\"leave empty\")","v":"leave empty"},"leave empty",null,null,null,null,null," ",26,86,0,null,false]
[5,"F1","",null,0.01,null,null,null,null,null,null,null,null,null,null,null,null,null,null,null,null,null,null,null,null," ",26,86,0,null,false]
[5,"G1","",null,0.01,null,null,null,null,null,null,null,null,null,null,null,null,null,null,null,null,null,null,null,null," ",26,86,0,null,{"$f":"IF(COUNTBLANK(#REF!)=0,A338)","v":{"$error":"#REF!"}}]
[5,"H1","",null,0.01,null,null,null,null,null,null,null,null,null,null,null,null,null,null,null,null,null,null,null,null," ",26,86,0,null,{"$f":"IF(COUNTBLANK(#REF!)=0,A339)","v":{"$error":"#REF!"}}]
[5,"A2","",null,0.01,null,null,null,{"$f":"IF(AC355=1,\"Plate \"&TEXT(AA355+1,\"0\"),\"\")","v":""},null,null,null,null,null,null,null,null,null,null,null,null,null,null,null,null," ",26,86,0,null,{"$f":"IF(COUNTBLANK(D346)=0,A340)","v":false}]
[5,"B2","",null,0.01,null,null,null,{"$f":"IF($AC355=1,\"1\",\"\")","v":""},{"$f":"IF($AC355=1,\"2\",\"\")","v":""},{"$f":"IF($AC355=1,\"3\",\"\")","v":""},{"$f":"IF($AC355=1,\"4\",\"\")","v":""},{"$f":"IF($AC355=1,\"5\",\"\")","v":""},{"$f":"IF($AC355=1,\"6\",\"\")","v":""},{"$f":"IF($AC355=1,\"7\",\"\")","v":""},{"$f":"IF($AC355=1,\"8\",\"\")","v":""},{"$f":"IF($AC355=1,\"9\",\"\")","v":""},{"$f":"IF($AC355=1,\"10\",\"\")","v":""},{"$f":"IF($AC355=1,\"11\",\"\")","v":""},{"$f":"IF($AC355=1,\"12\",\"\")","v":""},null,null,null,null,null," ",27,86,0,null,false]
[5,"C2","",null,0.01,null,null,{"$f":"IF(AC356=1,\"A\",\"\")","v":""},{"$f":"OFFSET($Z$2,ROW()-StartRow-1-$AA356*PanelHeight+$AA356*WellsInPlate+(COLUMN()-9)*8,0,1,1)","v":" "}," "," "," "," "," "," "," "," "," "," ",{"$f":"IF(COUNTIF(I356:S363,\" \")<88,\"leave empty\",\"\")","v":"leave empty"},null,null,null,null,null," ",27,86,0,null,false]
[5,"D2","",null,0.01,null,null,{"$f":"IF(AC357=1,\"B\",\"\")","v":""}," "," "," "," "," "," "," "," "," "," "," ",{"$f":"IF(T356=\"\",\"\",\"leave empty\")","v":"leave empty"},null,null,null,null,null," ",{"$f":"CEILING((ROW()-StartRow+1)/PanelHeight,1)-1","v":27},86,{"$f":"IF(AB357=WellsInPlate,0,1)","v":0},null,false]
[5,"E2","",null,0.01,null,null,{"$f":"IF(AC358=1,\"C\",\"\")","v":""}," "," "," "," "," "," "," "," "," "," "," ",{"$f":"IF(T357=\"\",\"\",\"leave empty\")","v":"leave empty"},null,null,null,null,null," ",27,86,0,null,false]
[5,"F2","",null,0.01,null,null,{"$f":"IF(AC359=1,\"D\",\"\")","v":""}," "," "," "," "," "," "," "," "," "," "," ","leave empty",null,null,null,null,null," ",27,86,0,null,false]
[5,"G2","",null,0.01,null,null,{"$f":"IF(AC360=1,\"E\",\"\")","v":""}," "," "," "," "," "," "," "," "," "," "," ","leave empty",null,null,null,null,null," ",27,86,0,null,{"$f":"IF(COUNTBLANK(D352)=0,#REF!)","v":false}]
[5,"H2","",null,0.01,null,null,{"$f":"IF(AC361=1,\"F\",\"\")","v":""}," "," "," "," "," "," "," "," "," "," "," ","leave empty",null,null,null,null,null," ",27,86,0,null,{"$f":"IF(COUNTBLANK(D353)=0,#REF!)","v":false}]
[5,"A3","",null,0.01,null,null,{"$f":"IF(AC362=1,\"G\",\"\")","v":""}," "," "," "," "," "," "," "," "," "," ",{"$f":"IF(S361=\"\",\"\",\"leave empty\")","v":"leave empty"},"leave empty",null,null,null,null,null," ",27,86,0,null,{"$f":"IF(COUNTBLANK(D354)=0,A346)","v":false}]
[5,"B3","",null,0.01,null,null,{"$f":"IF(AC363=1,\"H\",\"\")","v":""}," "," "," "," "," "," "," "," "," "," ",{"$f":"IF(S362=\"\",\"\",\"leave empty\")","v":"leave empty"},"leave empty",null,null,null,null,null," ",27,86,0,null,false]
[5,"C3","",null,0.01,null,null,null,null,null,null,null,null,null,null,null,null,null,null,null,null,null,null,null,null," ",27,86,0,null,false]
[5,"D3","",null,0.01,null,null,null,null,null,null,null,null,null,null,null,null,null,null,null,null,null,null,null,null," ",27,86,0,null,false]
[5,"E3","",null,0.01,null,null,null,null,null,null,null,null,null,null,null,null,null,null,null,null,null,null,null,null," ",27,86,0,null,false]
[5,"F3","",null,0.01,null,null,null,{"$f":"IF(AC368=1,\"Plate \"&TEXT(AA368+1,\"0\"),\"\")","v":""},null,null,null,null,null,null,null,null,null,null,null,null,null,null,null,null," ",27,86,0,null,false]
[5,"G3","",null,0.01,null,null,null,{"$f":"IF($AC368=1,\"1\",\"\")","v":""},{"$f":"IF($AC368=1,\"2\",\"\")","v":""},{"$f":"IF($AC368=1,\"3\",\"\")","v":""},{"$f":"IF($AC368=1,\"4\",\"\")","v":""},{"$f":"IF($AC368=1,\"5\",\"\")","v":""},{"$f":"IF($AC368=1,\"6\",\"\")","v":""},{"$f":"IF($AC368=1,\"7\",\"\")","v":""},{"$f":"IF($AC368=1,\"8\",\"\")","v":""},{"$f":"IF($AC368=1,\"9\",\"\")","v":""},{"$f":"IF($AC368=1,\"10\",\"\")","v":""},{"$f":"IF($AC368=1,\"11\",\"\")","v":""},{"$f":"IF($AC368=1,\"12\",\"\")","v":""},null,null,null,null,null," ",28,86,0,null,false]
[5,"H3","",null,0.01,null,null,{"$f":"IF(AC369=1,\"A\",\"\")","v":""},{"$f":"OFFSET($Z$2,ROW()-StartRow-1-$AA369*PanelHeight+$AA369*WellsInPlate+(COLUMN()-9)*8,0,1,1)","v":" "}," "," "," "," "," "," "," "," "," "," ",{"$f":"IF(COUNTIF(I369:S376,\" \")<88,\"leave empty\",\"\")","v":"leave empty"},null,null,null,null,null," ",28,86,0,null,false]
[5,"A4","",null,0.01,null,null,{"$f":"IF(AC370=1,\"B\",\"\")","v":""}," "," "," "," "," "," "," "," "," "," "," ",{"$f":"IF(T369=\"\",\"\",\"leave empty\")","v":"leave empty"},null,null,null,null,null," ",28,86,0,null,false]
[5,"B4","",null,0.01,null,null,{"$f":"IF(AC371=1,\"C\",\"\")","v":""}," "," "," "," "," "," "," "," "," "," "," ",{"$f":"IF(T370=\"\",\"\",\"leave empty\")","v":"leave empty"},null,null,null,null,null," ",28,86,0,null,false]
[5,"C4","",null,0.01,null,null,{"$f":"IF(AC372=1,\"D\",\"\")","v":""}," "," "," "," "," "," "," "," "," "," "," ","leave empty",null,null,null,null,null," ",28,86,0,null,false]
[5,"D4","",null,0.01,null,null,{"$f":"IF(AC373=1,\"E\",\"\")","v":""}," "," "," "," "," "," "," "," "," "," "," ","leave empty",null,null,null,null,null," ",28,86,0,null,false]
[5,"E4","",null,0.01,null,null,{"$f":"IF(AC374=1,\"F\",\"\")","v":""}," "," "," "," "," "," "," "," "," "," "," ","leave empty",null,null,null,null,null," ",28,86,0,null,false]
[5,"F4","",null,0.01,null,null,{"$f":"IF(AC375=1,\"G\",\"\")","v":""}," "," "," "," "," "," "," "," "," "," ",{"$f":"IF(S374=\"\",\"\",\"leave empty\")","v":"leave empty"},"leave empty",null,null,null,null,null," ",28,86,0,null,false]
[5,"G4","",null,0.01,null,null,{"$f":"IF(AC376=1,\"H\",\"\")","v":""}," "," "," "," "," "," "," "," "," "," ",{"$f":"IF(S375=\"\",\"\",\"leave empty\")","v":"leave empty"},"leave empty",null,null,null,null,null," ",28,86,0,null,false]
[5,"H4","",null,0.01,null,null,null,null,null,null,null,null,null,null,null,null,null,null,null,null,null,null,null,null," ",28,86,0,null,false]
[5,"A5","",null,0.01,null,null,null,null,null,null,null,null,null,null,null,null,null,null,null,null,null,null,null,null," ",28,86,0,null,false]
[5,"B5","",null,0.01,null,null,null,null,null,null,null,null,null,null,null,null,null,null,null,null,null,null,null,null," ",28,86,0,null,false]
[5,"C5","",null,0.01,null,null,null,{"$f":"IF(AC381=1,\"Plate \"&TEXT(AA381+1,\"0\"),\"\")","v":""},null,null,null,null,null,null,null,null,null,null,null,null,null,null,null,null," ",28,86,0,null,false]
[5,"D5",{"$f":"IF(D381=0,\"\",D381)","v":""},null,0.01,null,null,null,{"$f":"IF($AC381=1,\"1\",\"\")","v":""},{"$f":"IF($AC381=1,\"2\",\"\")","v":""},{"$f":"IF($AC381=1,\"3\",\"\")","v":""},{"$f":"IF($AC381=1,\"4\",\"\")","v":""},{"$f":"IF($AC381=1,\"5\",\"\")","v":""},{"$f":"IF($AC381=1,\"6\",\"\")","v":""},{"$f":"IF($AC381=1,\"7\",\"\")","v":""},{"$f":"IF($AC381=1,\"8\",\"\")","v":""},{"$f":"IF($AC381=1,\"9\",\"\")","v":""},{"$f":"IF($AC381=1,\"10\",\"\")","v":""},{"$f":"IF($AC381=1,\"11\",\"\")","v":""},{"$f":"IF($AC381=1,\"12\",\"\")","v":""},null,null,null,null,null," ",29,86,0,null,false]
[5,"E5","",null,0.01,null,null,{"$f":"IF(AC382=1,\"A\",\"\")","v":""},{"$f":"OFFSET($Z$2,ROW()-StartRow-1-$AA382*PanelHeight+$AA382*WellsInPlate+(COLUMN()-9)*8,0,1,1)","v":" "}," "," "," "," "," "," "," "," "," "," ",{"$f":"IF(COUNTIF(I382:S389,\" \")<88,\"leave empty\",\"\")","v":"leave empty"},null,null,null,null,null," ",29,86,0,null,false]
[5,"F5","",null,0.01,null,null,{"$f":"IF(AC383=1,\"B\",\"\")","v":""}," "," "," "," "," "," "," "," "," "," "," ",{"$f":"IF(T382=\"\",\"\",\"leave empty\")","v":"leave empty"},null,null,null,null,null," ",29,86,0,null,false]
[5,"G5","",null,0.01,null,null,{"$f":"IF(AC384=1,\"C\",\"\")","v":""}," "," "," "," "," "," "," "," "," "," "," ",{"$f":"IF(T383=\"\",\"\",\"leave empty\")","v":"leave empty"},null,null,null,null,null," ",29,86,0,null,false]
[5,"H5","",null,0.01,null,null,{"$f":"IF(AC385=1,\"D\",\"\")","v":""}," "," "," "," "," "," "," "," "," "," "," ","leave empty",null,null,null,null,null," ",29,86,0,null,false]
[5,"A6","",null,0.01,null,null,{"$f":"IF(AC386=1,\"E\",\"\")","v":""}," "," "," "," "," "," "," "," "," "," "," ","leave empty",null,null,null,null,null,{"$f":"IF(LEN(INDEX($1:$1048576,ROW(),4))>0,INDEX($1:$1048576,ROW(),4),\" \")","v":" "},29,86,0,null,false]
[5,"B6","",null,0.01,null,null,{"$f":"IF(AC387=1,\"F\",\"\")","v":""}," "," "," "," "," "," "," "," "," "," "," ","leave empty",null,null,null,null,null," ",29,86,0,null,false]
[5,"C6","",null,0.01,null,null,{"$f":"IF(AC388=1,\"G\",\"\")","v":""}," "," "," "," "," "," "," "," "," "," ",{"$f":"IF(S387=\"\",\"\",\"leave empty\")","v":"leave empty"},"leave empty",null,null,null,null,null," ",{"$f":"CEILING((ROW()-StartRow+1)/PanelHeight,1)-1","v":29},{"$f":"COUNTBLANK(OFFSET(INDEX($1:$1048576,2,4),AA388*WellsInPlate,0,WellsInPlate,1))","v":86},{"$f":"IF(AB388=WellsInPlate,0,1)","v":0},null,false]
[5,"D6","",null,0.01,null,null,{"$f":"IF(AC389=1,\"H\",\"\")","v":""}," "," "," "," "," "," "," "," "," "," ",{"$f":"IF(S388=\"\",\"\",\"leave empty\")","v":"leave empty"},"leave empty",null,null,null,null,null," ",{"$f":"CEILING((ROW()-StartRow+1)/PanelHeight,1)-1","v":29},86,{"$f":"IF(AB389=WellsInPlate,0,1)","v":0},null,false]
[5,"E6","",null,0.01,null,null,null,null,null,null,null,null,null,null,null,null,null,null,null,null,null,null,null,null," ",29,86,0,null,false]
[5,"F6","",null,0.01,null,null,null,null,null,null,null,null,null,null,null,null,null,null,null,null,null,null,null,null," ",29,86,0,null,false]
[5,"G6","",null,0.01,null,null,null,null,null,null,null,null,null,null,null,null,null,null,null,null,null,null,null,null," ",29,86,0,null,false]
[5,"H6","",null,0.01,null,null,null,{"$f":"IF(AC394=1,\"Plate \"&TEXT(AA394+1,\"0\"),\"\")","v":""},null,null,null,null,null,null,null,null,null,null,null,null,null,null,null,null," ",29,86,0,null,false]
[5,"A7","",null,0.01,null,null,null,{"$f":"IF($AC394=1,\"1\",\"\")","v":""},{"$f":"IF($AC394=1,\"2\",\"\")","v":""},{"$f":"IF($AC394=1,\"3\",\"\")","v":""},{"$f":"IF($AC394=1,\"4\",\"\")","v":""},{"$f":"IF($AC394=1,\"5\",\"\")","v":""},{"$f":"IF($AC394=1,\"6\",\"\")","v":""},{"$f":"IF($AC394=1,\"7\",\"\")","v":""},{"$f":"IF($AC394=1,\"8\",\"\")","v":""},{"$f":"IF($AC394=1,\"9\",\"\")","v":""},{"$f":"IF($AC394=1,\"10\",\"\")","v":""},{"$f":"IF($AC394=1,\"11\",\"\")","v":""},{"$f":"IF($AC394=1,\"12\",\"\")","v":""},null,null,null,null,null," ",30,86,0,null,{"$f":"IF(COUNTBLANK(D386)=0,A378)","v":false}]
[5,"B7","",null,0.01,null,null,{"$f":"IF(AC395=1,\"A\",\"\")","v":""},{"$f":"OFFSET($Z$2,ROW()-StartRow-1-$AA395*PanelHeight+$AA395*WellsInPlate+(COLUMN()-9)*8,0,1,1)","v":" "}," "," "," "," "," "," "," "," "," "," ",{"$f":"IF(COUNTIF(I395:S402,\" \")<88,\"leave empty\",\"\")","v":"leave empty"},null,null,null,null,null," ",30,86,0,null,false]
[5,"C7","",null,0.01,null,null,{"$f":"IF(AC396=1,\"B\",\"\")","v":""}," "," "," "," "," "," "," "," "," "," "," ",{"$f":"IF(T395=\"\",\"\",\"leave empty\")","v":"leave empty"},null,null,null,null,null," ",30,86,0,null,false]
[5,"D7","",null,0.01,null,null,{"$f":"IF(AC397=1,\"C\",\"\")","v":""}," "," "," "," "," "," "," "," "," "," "," ",{"$f":"IF(T396=\"\",\"\",\"leave empty\")","v":"leave empty"},null,null,null,null,null," ",30,86,0,null,false]
[5,"E7","",null,0.01,null,null,{"$f":"IF(AC398=1,\"D\",\"\")","v":""}," "," "," "," "," "," "," "," "," "," "," ","leave empty",null,null,null,null,null," ",30,86,0,null,false]
[5,"F7","",null,0.01,null,null,{"$f":"IF(AC399=1,\"E\",\"\")","v":""}," "," "," "," "," "," "," "," "," "," "," ","leave empty",null,null,null,null,null," ",30,86,0,null,false]
[5,"G7","",null,0.01,null,null,{"$f":"IF(AC400=1,\"F\",\"\")","v":""}," "," "," "," "," "," "," "," "," "," "," ","leave empty",null,null,null,null,null," ",30,86,0,null,false]
[5,"H7","",null,0.01,null,null,{"$f":"IF(AC401=1,\"G\",\"\")","v":""}," "," "," "," "," "," "," "," "," "," ",{"$f":"IF(S400=\"\",\"\",\"leave empty\")","v":"leave empty"},"leave empty",null,null,null,null,null," ",30,86,0,null,false]
[5,"A8","",null,0.01,null,null,{"$f":"IF(AC402=1,\"H\",\"\")","v":""}," "," "," "," "," "," "," "," "," "," ",{"$f":"IF(S401=\"\",\"\",\"leave empty\")","v":"leave empty"},"leave empty",null,null,null,null,null," ",30,86,0,null,false]
[5,"B8","",null,0.01,null,null,null,null,null,null,null,null,null,null,null,null,null,null,null,null,null,null,null,null," ",30,86,0,null,false]
[5,"C8","",null,0.01,null,null,null,null,null,null,null,null,null,null,null,null,null,null,null,null,null,null,null,null," ",30,86,0,null,false]
[5,"D8","",null,0.01,null,null,null,null,null,null,null,null,null,null,null,null,null,null,null,null,null,null,null,null," ",30,86,0,null,false]
[5,"E8","",null,0.01,null,null,null,{"$f":"IF(AC407=1,\"Plate \"&TEXT(AA407+1,\"0\"),\"\")","v":""},null,null,null,null,null,null,null,null,null,null,null,null,null,null,null,null," ",30,86,0,null,false]
[5,"F8","",null,0.01,null,null,null,{"$f":"IF($AC407=1,\"1\",\"\")","v":""},{"$f":"IF($AC407=1,\"2\",\"\")","v":""},{"$f":"IF($AC407=1,\"3\",\"\")","v":""},{"$f":"IF($AC407=1,\"4\",\"\")","v":""},{"$f":"IF($AC407=1,\"5\",\"\")","v":""},{"$f":"IF($AC407=1,\"6\",\"\")","v":""},{"$f":"IF($AC407=1,\"7\",\"\")","v":""},{"$f":"IF($AC407=1,\"8\",\"\")","v":""},{"$f":"IF($AC407=1,\"9\",\"\")","v":""},{"$f":"IF($AC407=1,\"10\",\"\")","v":""},{"$f":"IF($AC407=1,\"11\",\"\")","v":""},{"$f":"IF($AC407=1,\"12\",\"\")","v":""},null,null,null,null,null," ",31,86,0,null,false]
[5,"G8","",null,0.01,null,null,{"$f":"IF(AC408=1,\"A\",\"\")","v":""},{"$f":"OFFSET($Z$2,ROW()-StartRow-1-$AA408*PanelHeight+$AA408*WellsInPlate+(COLUMN()-9)*8,0,1,1)","v":" "}," "," "," "," "," "," "," "," "," "," ",{"$f":"IF(COUNTIF(I408:S415,\" \")<88,\"leave empty\",\"\")","v":"leave empty"},null,null,null,null,null," ",31,86,0,null,false]
[5,"H8","",null,0.01,null,null,{"$f":"IF(AC409=1,\"B\",\"\")","v":""}," "," "," "," "," "," "," "," "," "," "," ",{"$f":"IF(T408=\"\",\"\",\"leave empty\")","v":"leave empty"},null,null,null,null,null," ",31,86,0,null,false]
[5,"A9","",null,0.01,null,null,{"$f":"IF(AC410=1,\"C\",\"\")","v":""}," "," "," "," "," "," "," "," "," "," "," ",{"$f":"IF(T409=\"\",\"\",\"leave empty\")","v":"leave empty"},null,null,null,null,null," ",31,86,0,null,false]
[5,"B9","",null,0.01,null,null,{"$f":"IF(AC411=1,\"D\",\"\")","v":""}," "," "," "," "," "," "," "," "," "," "," ","leave empty",null,null,null,null,null," ",31,86,0,null,false]
[5,"C9","",null,0.01,null,null,{"$f":"IF(AC412=1,\"E\",\"\")","v":""}," "," "," "," "," "," "," "," "," "," "," ","leave empty",null,null,null,null,null," ",31,86,0,null,false]
[5,"D9","",null,0.01,null,null,{"$f":"IF(AC413=1,\"F\",\"\")","v":""}," "," "," "," "," "," "," "," "," "," "," ","leave empty",null,null,null,null,null," ",31,86,0,null,false]
[5,"E9","",null,0.01,null,null,{"$f":"IF(AC414=1,\"G\",\"\")","v":""}," "," "," "," "," "," "," "," "," "," ",{"$f":"IF(S413=\"\",\"\",\"leave empty\")","v":"leave empty"},"leave empty",null,null,null,null,null," ",31,86,0,null,false]
[5,"F9","",null,0.01,null,null,{"$f":"IF(AC415=1,\"H\",\"\")","v":""}," "," "," "," "," "," "," "," "," "," ",{"$f":"IF(S414=\"\",\"\",\"leave empty\")","v":"leave empty"},"leave empty",null,null,null,null,null," ",31,86,0,null,false]
[5,"G9","",null,0.01,null,null,null,null,null,null,null,null,null,null,null,null,null,null,null,null,null,null,null,null," ",31,86,0,null,false]
[5,"H9","",null,0.01,null,null,null,null,null,null,null,null,null,null,null,null,null,null,null,null,null,null,null,null," ",31,86,0,null,false]
[5,"A10","",null,0.01,null,null,null,null,null,null,null,null,null,null,null,null,null,null,null,null,null,null,null,null," ",31,86,0,null,false]
[5,"B10","",null,0.01,null,null,null,{"$f":"IF(AC420=1,\"Plate \"&TEXT(AA420+1,\"0\"),\"\")","v":""},null,null,null,null,null,null,null,null,null,null,null,null,null,null,null,null," ",31,86,0,null,false]
[5,"C10","",null,0.01,null,null,null,{"$f":"IF($AC420=1,\"1\",\"\")","v":""},{"$f":"IF($AC420=1,\"2\",\"\")","v":""},{"$f":"IF($AC420=1,\"3\",\"\")","v":""},{"$f":"IF($AC420=1,\"4\",\"\")","v":""},{"$f":"IF($AC420=1,\"5\",\"\")","v":""},{"$f":"IF($AC420=1,\"6\",\"\")","v":""},{"$f":"IF($AC420=1,\"7\",\"\")","v":""},{"$f":"IF($AC420=1,\"8\",\"\")","v":""},{"$f":"IF($AC420=1,\"9\",\"\")","v":""},{"$f":"IF($AC420=1,\"10\",\"\")","v":""},{"$f":"IF($AC420=1,\"11\",\"\")","v":""},{"$f":"IF($AC420=1,\"12\",\"\")","v":""},null,null,null,null,null," ",32,86,0,null,false]
[5,"D10","",null,0.01,null,null,{"$f":"IF(AC421=1,\"A\",\"\")","v":""},{"$f":"OFFSET($Z$2,ROW()-StartRow-1-$AA421*PanelHeight+$AA421*WellsInPlate+(COLUMN()-9)*8,0,1,1)","v":" "}," "," "," "," "," "," "," "," "," "," ",{"$f":"IF(COUNTIF(I421:S428,\" \")<88,\"leave empty\",\"\")","v":"leave empty"},null,null,null,null,null," ",{"$f":"CEILING((ROW()-StartRow+1)/PanelHeight,1)-1","v":32},86,{"$f":"IF(AB421=WellsInPlate,0,1)","v":0},null,false]
[5,"E10","",null,0.01,null,null,{"$f":"IF(AC422=1,\"B\",\"\")","v":""}," "," "," "," "," "," "," "," "," "," "," ",{"$f":"IF(T421=\"\",\"\",\"leave empty\")","v":"leave empty"},null,null,null,null,null," ",32,86,0,null,false]
[5,"F10","",null,0.01,null,null,{"$f":"IF(AC423=1,\"C\",\"\")","v":""}," "," "," "," "," "," "," "," "," "," "," ",{"$f":"IF(T422=\"\",\"\",\"leave empty\")","v":"leave empty"},null,null,null,null,null," ",32,86,0,null,false]
[5,"G10","",null,0.01,null,null,{"$f":"IF(AC424=1,\"D\",\"\")","v":""}," "," "," "," "," "," "," "," "," "," "," ","leave empty",null,null,null,null,null," ",32,86,0,null,false]
[5,"H10","",null,0.01,null,null,{"$f":"IF(AC425=1,\"E\",\"\")","v":""}," "," "," "," "," "," "," "," "," "," "," ","leave empty",null,null,null,null,null," ",32,86,0,null,false]
[5,"A11","",null,0.01,null,null,{"$f":"IF(AC426=1,\"F\",\"\")","v":""}," "," "," "," "," "," "," "," "," "," "," ","leave empty",null,null,null,null,null," ",32,86,0,null,{"$f":"IF(COUNTBLANK(D418)=0,A410)","v":false}]
[5,"B11","",null,0.01,null,null,{"$f":"IF(AC427=1,\"G\",\"\")","v":""}," "," "," "," "," "," "," "," "," "," ",{"$f":"IF(S426=\"\",\"\",\"leave empty\")","v":"leave empty"},"leave empty",null,null,null,null,null," ",32,86,0,null,false]
[5,"C11","",null,0.01,null,null,{"$f":"IF(AC428=1,\"H\",\"\")","v":""}," "," "," "," "," "," "," "," "," "," ",{"$f":"IF(S427=\"\",\"\",\"leave empty\")","v":"leave empty"},"leave empty",null,null,null,null,null," ",32,86,0,null,false]
[5,"D11","",null,0.01,null,null,null,null,null,null,null,null,null,null,null,null,null,null,null,null,null,null,null,null," ",32,86,0,null,false]
[5,"E11","",null,0.01,null,null,null,null,null,null,null,null,null,null,null,null,null,null,null,null,null,null,null,null," ",32,86,0,null,false]
[5,"F11","",null,0.01,null,null,null,null,null,null,null,null,null,null,null,null,null,null,null,null,null,null,null,null," ",32,86,0,null,false]
[6,"A1","",null,0.01,null,null,null,{"$f":"IF(AC433=1,\"Plate \"&TEXT(AA433+1,\"0\"),\"\")","v":""},null,null,null,null,null,null,null,null,null,null,null,null,null,null,null,null," ",32,86,0,null,false]
[6,"B1","",null,0.01,null,null,null,{"$f":"IF($AC433=1,\"1\",\"\")","v":""},{"$f":"IF($AC433=1,\"2\",\"\")","v":""},{"$f":"IF($AC433=1,\"3\",\"\")","v":""},{"$f":"IF($AC433=1,\"4\",\"\")","v":""},{"$f":"IF($AC433=1,\"5\",\"\")","v":""},{"$f":"IF($AC433=1,\"6\",\"\")","v":""},{"$f":"IF($AC433=1,\"7\",\"\")","v":""},{"$f":"IF($AC433=1,\"8\",\"\")","v":""},{"$f":"IF($AC433=1,\"9\",\"\")","v":""},{"$f":"IF($AC433=1,\"10\",\"\")","v":""},{"$f":"IF($AC433=1,\"11\",\"\")","v":""},{"$f":"IF($AC433=1,\"12\",\"\")","v":""},null,null,null,null,null," ",33,86,0,null,false]
[6,"C1","",null,0.01,null,null,{"$f":"IF(AC434=1,\"A\",\"\")","v":""},{"$f":"OFFSET($Z$2,ROW()-StartRow-1-$AA434*PanelHeight+$AA434*WellsInPlate+(COLUMN()-9)*8,0,1,1)","v":" "}," "," "," "," "," "," "," "," "," "," ",{"$f":"IF(COUNTIF(I434:S441,\" \")<88,\"leave empty\",\"\")","v":"leave empty"},null,null,null,null,null," ",33,86,0,null,false]
[6,"D1","",null,0.01,null,null,{"$f":"IF(AC435=1,\"B\",\"\")","v":""}," "," "," "," "," "," "," "," "," "," "," ",{"$f":"IF(T434=\"\",\"\",\"leave empty\")","v":"leave empty"},null,null,null,null,null," ",33,86,0,null,false]
[6,"E1","",null,0.01,null,null,{"$f":"IF(AC436=1,\"C\",\"\")","v":""}," "," "," "," "," "," "," "," "," "," "," ",{"$f":"IF(T435=\"\",\"\",\"leave empty\")","v":"leave empty"},null,null,null,null,null," ",33,86,0,null,false]
[6,"F1","",null,0.01,null,null,{"$f":"IF(AC437=1,\"D\",\"\")","v":""}," "," "," "," "," "," "," "," "," "," "," ","leave empty",null,null,null,null,null," ",33,86,0,null,false]
[6,"G1","",null,0.01,null,null,{"$f":"IF(AC438=1,\"E\",\"\")","v":""}," "," "," "," "," "," "," "," "," "," "," ","leave empty",null,null,null,null,null," ",33,86,0,null,false]
[6,"H1","",null,0.01,null,null,{"$f":"IF(AC439=1,\"F\",\"\")","v":""}," "," "," "," "," "," "," "," "," "," "," ","leave empty",null,null,null,null,null," ",33,86,0,null,false]
[6,"A2","",null,0.01,null,null,{"$f":"IF(AC440=1,\"G\",\"\")","v":""}," "," "," "," "," "," "," "," "," "," ",{"$f":"IF(S439=\"\",\"\",\"leave empty\")","v":"leave empty"},"leave empty",null,null,null,null,null," ",33,86,0,null,{"$f":"IF(COUNTBLANK(#REF!)=0,A424)","v":{"$error":"#REF!"}}]
[6,"B2","",null,0.01,null,null,{"$f":"IF(AC441=1,\"H\",\"\")","v":""}," "," "," "," "," "," "," "," "," "," ",{"$f":"IF(S440=\"\",\"\",\"leave empty\")","v":"leave empty"},"leave empty",null,null,null,null,null," ",33,86,0,null,{"$f":"IF(COUNTBLANK(#REF!)=0,A425)","v":{"$error":"#REF!"}}]
[6,"C2","",null,0.01,null,null,null,null,null,null,null,null,null,null,null,null,null,null,null,null,null,null,null,null," ",33,86,0,null,{"$f":"IF(COUNTBLANK(D432)=0,A426)","v":false}]
[6,"D2",{"$f":"IF(D443=0,\"\",D443)","v":""},null,0.01,null,null,null,null,null,null,null,null,null,null,null,null,null,null,null,null,null,null,null,null," ",33,86,0,null,false]
[6,"E2","",null,0.01,null,null,null,null,null,null,null,null,null,null,null,null,null,null,null,null,null,null,null,null," ",33,86,0,null,false]
[6,"F2","",null,0.01,null,null,null,{"$f":"IF(AC446=1,\"Plate \"&TEXT(AA446+1,\"0\"),\"\")","v":""},null,null,null,null,null,null,null,null,null,null,null,null,null,null,null,null," ",33,86,0,null,false]
[6,"G2","",null,0.01,null,null,null,{"$f":"IF($AC446=1,\"1\",\"\")","v":""},{"$f":"IF($AC446=1,\"2\",\"\")","v":""},{"$f":"IF($AC446=1,\"3\",\"\")","v":""},{"$f":"IF($AC446=1,\"4\",\"\")","v":""},{"$f":"IF($AC446=1,\"5\",\"\")","v":""},{"$f":"IF($AC446=1,\"6\",\"\")","v":""},{"$f":"IF($AC446=1,\"7\",\"\")","v":""},{"$f":"IF($AC446=1,\"8\",\"\")","v":""},{"$f":"IF($AC446=1,\"9\",\"\")","v":""},{"$f":"IF($AC446=1,\"10\",\"\")","v":""},{"$f":"IF($AC446=1,\"11\",\"\")","v":""},{"$f":"IF($AC446=1,\"12\",\"\")","v":""},null,null,null,null,null," ",34,86,0,null,false]
[6,"H2","",null,0.01,null,null,{"$f":"IF(AC447=1,\"A\",\"\")","v":""},{"$f":"OFFSET($Z$2,ROW()-StartRow-1-$AA447*PanelHeight+$AA447*WellsInPlate+(COLUMN()-9)*8,0,1,1)","v":" "}," "," "," "," "," "," "," "," "," "," ",{"$f":"IF(COUNTIF(I447:S454,\" \")<88,\"leave empty\",\"\")","v":"leave empty"},null,null,null,null,null," ",34,86,0,null,false]
[6,"A3","",null,0.01,null,null,{"$f":"IF(AC448=1,\"B\",\"\")","v":""}," "," "," "," "," "," "," "," "," "," "," ",{"$f":"IF(T447=\"\",\"\",\"leave empty\")","v":"leave empty"},null,null,null,null,null," ",34,86,0,null,{"$f":"IF(COUNTBLANK(D438)=0,#REF!)","v":false}]
[6,"B3","",null,0.01,null,null,{"$f":"IF(AC449=1,\"C\",\"\")","v":""}," "," "," "," "," "," "," "," "," "," "," ",{"$f":"IF(T448=\"\",\"\",\"leave empty\")","v":"leave empty"},null,null,null,null,null," ",34,86,0,null,{"$f":"IF(COUNTBLANK(D439)=0,#REF!)","v":false}]
[6,"C3","",null,0.01,null,null,{"$f":"IF(AC450=1,\"D\",\"\")","v":""}," "," "," "," "," "," "," "," "," "," "," ","leave empty",null,null,null,null,null,{"$f":"IF(LEN(INDEX($1:$1048576,ROW(),4))>0,INDEX($1:$1048576,ROW(),4),\" \")","v":" "},34,86,0,null,{"$f":"IF(COUNTBLANK(D440)=0,A432)","v":false}]
[6,"D3","",null,0.01,null,null,{"$f":"IF(AC451=1,\"E\",\"\")","v":""}," "," "," "," "," "," "," "," "," "," "," ","leave empty",null,null,null,null,null," ",34,86,0,null,false]
[6,"E3","",null,0.01,null,null,{"$f":"IF(AC452=1,\"F\",\"\")","v":""}," "," "," "," "," "," "," "," "," "," "," ","leave empty",null,null,null,null,null," ",{"$f":"CEILING((ROW()-StartRow+1)/PanelHeight,1)-1","v":34},{"$f":"COUNTBLANK(OFFSET(INDEX($1:$1048576,2,4),AA452*WellsInPlate,0,WellsInPlate,1))","v":86},{"$f":"IF(AB452=WellsInPlate,0,1)","v":0},null,false]
[6,"F3","",null,0.01,null,null,{"$f":"IF(AC453=1,\"G\",\"\")","v":""}," "," "," "," "," "," "," "," "," "," ",{"$f":"IF(S452=\"\",\"\",\"leave empty\")","v":"leave empty"},"leave empty",null,null,null,null,null," ",{"$f":"CEILING((ROW()-StartRow+1)/PanelHeight,1)-1","v":34},86,{"$f":"IF(AB453=WellsInPlate,0,1)","v":0},null,false]
[6,"G3","",null,0.01,null,null,{"$f":"IF(AC454=1,\"H\",\"\")","v":""}," "," "," "," "," "," "," "," "," "," ",{"$f":"IF(S453=\"\",\"\",\"leave empty\")","v":"leave empty"},"leave empty",null,null,null,null,null," ",34,86,0,null,false]
[6,"H3","",null,0.01,null,null,null,null,null,null,null,null,null,null,null,null,null,null,null,null,null,null,null,null," ",34,86,0,null,false]
[6,"A4","",null,0.01,null,null,null,null,null,null,null,null,null,null,null,null,null,null,null,null,null,null,null,null," ",34,86,0,null,false]
[6,"B4","",null,0.01,null,null,null,null,null,null,null,null,null,null,null,null,null,null,null,null,null,null,null,null," ",34,86,0,null,false]
[6,"C4","",null,0.01,null,null,null,{"$f":"IF(AC459=1,\"Plate \"&TEXT(AA459+1,\"0\"),\"\")","v":""},null,null,null,null,null,null,null,null,null,null,null,null,null,null,null,null," ",34,86,0,null,false]
[6,"D4","",null,0.01,null,null,null,{"$f":"IF($AC459=1,\"1\",\"\")","v":""},{"$f":"IF($AC459=1,\"2\",\"\")","v":""},{"$f":"IF($AC459=1,\"3\",\"\")","v":""},{"$f":"IF($AC459=1,\"4\",\"\")","v":""},{"$f":"IF($AC459=1,\"5\",\"\")","v":""},{"$f":"IF($AC459=1,\"6\",\"\")","v":""},{"$f":"IF($AC459=1,\"7\",\"\")","v":""},{"$f":"IF($AC459=1,\"8\",\"\")","v":""},{"$f":"IF($AC459=1,\"9\",\"\")","v":""},{"$f":"IF($AC459=1,\"10\",\"\")","v":""},{"$f":"IF($AC459=1,\"11\",\"\")","v":""},{"$f":"IF($AC459=1,\"12\",\"\")","v":""},null,null,null,null,null," ",35,86,0,null,false]
[6,"E4","",null,0.01,null,null,{"$f":"IF(AC460=1,\"A\",\"\")","v":""},{"$f":"OFFSET($Z$2,ROW()-StartRow-1-$AA460*PanelHeight+$AA460*WellsInPlate+(COLUMN()-9)*8,0,1,1)","v":" "}," "," "," "," "," "," "," "," "," "," ",{"$f":"IF(COUNTIF(I460:S467,\" \")<88,\"leave empty\",\"\")","v":"leave empty"},null,null,null,null,null," ",35,86,0,null,false]
[6,"F4","",null,0.01,null,null,{"$f":"IF(AC461=1,\"B\",\"\")","v":""}," "," "," "," "," "," "," "," "," "," "," ",{"$f":"IF(T460=\"\",\"\",\"leave empty\")","v":"leave empty"},null,null,null,null,null," ",35,86,0,null,false]
[6,"G4","",null,0.01,null,null,{"$f":"IF(AC462=1,\"C\",\"\")","v":""}," "," "," "," "," "," "," "," "," "," "," ",{"$f":"IF(T461=\"\",\"\",\"leave empty\")","v":"leave empty"},null,null,null,null,null," ",35,86,0,null,false]
[6,"H4","",null,0.01,null,null,{"$f":"IF(AC463=1,\"D\",\"\")","v":""}," "," "," "," "," "," "," "," "," "," "," ","leave empty",null,null,null,null,null," ",35,86,0,null,false]
[6,"A5","",null,0.01,null,null,{"$f":"IF(AC464=1,\"E\",\"\")","v":""}," "," "," "," "," "," "," "," "," "," "," ","leave empty",null,null,null,null,null," ",35,86,0,null,false]
[6,"B5","",null,0.01,null,null,{"$f":"IF(AC465=1,\"F\",\"\")","v":""}," "," "," "," "," "," "," "," "," "," "," ","leave empty",null,null,null,null,null," ",35,86,0,null,false]
[6,"C5","",null,0.01,null,null,{"$f":"IF(AC466=1,\"G\",\"\")","v":""}," "," "," "," "," "," "," "," "," "," ",{"$f":"IF(S465=\"\",\"\",\"leave empty\")","v":"leave empty"},"leave empty",null,null,null,null,null," ",35,86,0,null,false]
[6,"D5","",null,0.01,null,null,{"$f":"IF(AC467=1,\"H\",\"\")","v":""}," "," "," "," "," "," "," "," "," "," ",{"$f":"IF(S466=\"\",\"\",\"leave empty\")","v":"leave empty"},"leave empty",null,null,null,null,null," ",35,86,0,null,false]
[6,"E5","",null,0.01,null,null,null,null,null,null,null,null,null,null,null,null,null,null,null,null,null,null,null,null," ",35,86,0,null,false]
[6,"F5","",null,0.01,null,null,null,null,null,null,null,null,null,null,null,null,null,null,null,null,null,null,null,null," ",35,86,0,null,false]
[6,"G5","",null,0.01,null,null,null,null,null,null,null,null,null,null,null,null,null,null,null,null,null,null,null,null," ",35,86,0,null,false]
[6,"H5","",null,0.01,null,null,null,{"$f":"IF(AC472=1,\"Plate \"&TEXT(AA472+1,\"0\"),\"\")","v":""},null,null,null,null,null,null,null,null,null,null,null,null,null,null,null,null," ",35,86,0,null,false]
[6,"A6","",null,0.01,null,null,null,{"$f":"IF($AC472=1,\"1\",\"\")","v":""},{"$f":"IF($AC472=1,\"2\",\"\")","v":""},{"$f":"IF($AC472=1,\"3\",\"\")","v":""},{"$f":"IF($AC472=1,\"4\",\"\")","v":""},{"$f":"IF($AC472=1,\"5\",\"\")","v":""},{"$f":"IF($AC472=1,\"6\",\"\")","v":""},{"$f":"IF($AC472=1,\"7\",\"\")","v":""},{"$f":"IF($AC472=1,\"8\",\"\")","v":""},{"$f":"IF($AC472=1,\"9\",\"\")","v":""},{"$f":"IF($AC472=1,\"10\",\"\")","v":""},{"$f":"IF($AC472=1,\"11\",\"\")","v":""},{"$f":"IF($AC472=1,\"12\",\"\")","v":""},null,null,null,null,null," ",36,86,0,null,false]
[6,"B6","",null,0.01,null,null,{"$f":"IF(AC473=1,\"A\",\"\")","v":""},{"$f":"OFFSET($Z$2,ROW()-StartRow-1-$AA473*PanelHeight+$AA473*WellsInPlate+(COLUMN()-9)*8,0,1,1)","v":" "}," "," "," "," "," "," "," "," "," "," ",{"$f":"IF(COUNTIF(I473:S480,\" \")<88,\"leave empty\",\"\")","v":"leave empty"},null,null,null,null,null," ",36,86,0,null,false]
[6,"C6","",null,0.01,null,null,{"$f":"IF(AC474=1,\"B\",\"\")","v":""}," "," "," "," "," "," "," "," "," "," "," ",{"$f":"IF(T473=\"\",\"\",\"leave empty\")","v":"leave empty"},null,null,null,null,null," ",36,86,0,null,false]
[6,"D6","",null,0.01,null,null,{"$f":"IF(AC475=1,\"C\",\"\")","v":""}," "," "," "," "," "," "," "," "," "," "," ",{"$f":"IF(T474=\"\",\"\",\"leave empty\")","v":"leave empty"},null,null,null,null,null," ",36,86,0,null,false]
[6,"E6","",null,0.01,null,null,{"$f":"IF(AC476=1,\"D\",\"\")","v":""}," "," "," "," "," "," "," "," "," "," "," ","leave empty",null,null,null,null,null," ",36,86,0,null,false]
[6,"F6","",null,0.01,null,null,{"$f":"IF(AC477=1,\"E\",\"\")","v":""}," "," "," "," "," "," "," "," "," "," "," ","leave empty",null,null,null,null,null," ",36,86,0,null,false]
[6,"G6","",null,0.01,null,null,{"$f":"IF(AC478=1,\"F\",\"\")","v":""}," "," "," "," "," "," "," "," "," "," "," ","leave empty",null,null,null,null,null," ",36,86,0,null,false]
[6,"H6","",null,0.01,null,null,{"$f":"IF(AC479=1,\"G\",\"\")","v":""}," "," "," "," "," "," "," "," "," "," ",{"$f":"IF(S478=\"\",\"\",\"leave empty\")","v":"leave empty"},"leave empty",null,null,null,null,null," ",36,86,0,null,false]
[6,"A7","",null,0.01,null,null,{"$f":"IF(AC480=1,\"H\",\"\")","v":""}," "," "," "," "," "," "," "," "," "," ",{"$f":"IF(S479=\"\",\"\",\"leave empty\")","v":"leave empty"},"leave empty",null,null,null,null,null," ",36,86,0,null,false]
[6,"B7","",null,0.01,null,null,null,null,null,null,null,null,null,null,null,null,null,null,null,null,null,null,null,null," ",36,86,0,null,false]
[6,"C7","",null,0.01,null,null,null,null,null,null,null,null,null,null,null,null,null,null,null,null,null,null,null,null," ",36,86,0,null,{"$f":"IF(COUNTBLANK(D472)=0,A464)","v":false}]
[6,"D7","",null,0.01,null,null,null,null,null,null,null,null,null,null,null,null,null,null,null,null,null,null,null,null," ",36,86,0,null,false]
[6,"E7","",null,0.01,null,null,null,{"$f":"IF(AC485=1,\"Plate \"&TEXT(AA485+1,\"0\"),\"\")","v":""},null,null,null,null,null,null,null,null,null,null,null,null,null,null,null,null," ",36,86,0,null,false]
[6,"F7","",null,0.01,null,null,null,{"$f":"IF($AC485=1,\"1\",\"\")","v":""},{"$f":"IF($AC485=1,\"2\",\"\")","v":""},{"$f":"IF($AC485=1,\"3\",\"\")","v":""},{"$f":"IF($AC485=1,\"4\",\"\")","v":""},{"$f":"IF($AC485=1,\"5\",\"\")","v":""},{"$f":"IF($AC485=1,\"6\",\"\")","v":""},{"$f":"IF($AC485=1,\"7\",\"\")","v":""},{"$f":"IF($AC485=1,\"8\",\"\")","v":""},{"$f":"IF($AC485=1,\"9\",\"\")","v":""},{"$f":"IF($AC485=1,\"10\",\"\")","v":""},{"$f":"IF($AC485=1,\"11\",\"\")","v":""},{"$f":"IF($AC485=1,\"12\",\"\")","v":""},null,null,null,null,null," ",{"$f":"CEILING((ROW()-StartRow+1)/PanelHeight,1)-1","v":37},86,{"$f":"IF(AB485=WellsInPlate,0,1)","v":0},null,false]
[6,"G7","",null,0.01,null,null,{"$f":"IF(AC486=1,\"A\",\"\")","v":""},{"$f":"OFFSET($Z$2,ROW()-StartRow-1-$AA486*PanelHeight+$AA486*WellsInPlate+(COLUMN()-9)*8,0,1,1)","v":" "}," "," "," "," "," "," "," "," "," "," ",{"$f":"IF(COUNTIF(I486:S493,\" \")<88,\"leave empty\",\"\")","v":"leave empty"},null,null,null,null,null," ",37,86,0,null,false]
[6,"H7","",null,0.01,null,null,{"$f":"IF(AC487=1,\"B\",\"\")","v":""}," "," "," "," "," "," "," "," "," "," "," ",{"$f":"IF(T486=\"\",\"\",\"leave empty\")","v":"leave empty"},null,null,null,null,null," ",37,86,0,null,false]
[6,"A8","",null,0.01,null,null,{"$f":"IF(AC488=1,\"C\",\"\")","v":""}," "," "," "," "," "," "," "," "," "," "," ",{"$f":"IF(T487=\"\",\"\",\"leave empty\")","v":"leave empty"},null,null,null,null,null," ",37,86,0,null,false]
[6,"B8","",null,0.01,null,null,{"$f":"IF(AC489=1,\"D\",\"\")","v":""}," "," "," "," "," "," "," "," "," "," "," ","leave empty",null,null,null,null,null," ",37,86,0,null,false]
[6,"C8","",null,0.01,null,null,{"$f":"IF(AC490=1,\"E\",\"\")","v":""}," "," "," "," "," "," "," "," "," "," "," ","leave empty",null,null,null,null,null," ",37,86,0,null,false]
[6,"D8","",null,0.01,null,null,{"$f":"IF(AC491=1,\"F\",\"\")","v":""}," "," "," "," "," "," "," "," "," "," "," ","leave empty",null,null,null,null,null," ",37,86,0,null,false]
[6,"E8","",null,0.01,null,null,{"$f":"IF(AC492=1,\"G\",\"\")","v":""}," "," "," "," "," "," "," "," "," "," ",{"$f":"IF(S491=\"\",\"\",\"leave empty\")","v":"leave empty"},"leave empty",null,null,null,null,null," ",37,86,0,null,false]
[6,"F8","",null,0.01,null,null,{"$f":"IF(AC493=1,\"H\",\"\")","v":""}," "," "," "," "," "," "," "," "," "," ",{"$f":"IF(S492=\"\",\"\",\"leave empty\")","v":"leave empty"},"leave empty",null,null,null,null,null," ",37,86,0,null,false]
[6,"G8","",null,0.01,null,null,null,null,null,null,null,null,null,null,null,null,null,null,null,null,null,null,null,null," ",37,86,0,null,false]
[6,"H8","",null,0.01,null,null,null,null,null,null,null,null,null,null,null,null,null,null,null,null,null,null,null,null," ",37,86,0,null,false]
[6,"A9","",null,0.01,null,null,null,null,null,null,null,null,null,null,null,null,null,null,null,null,null,null,null,null," ",37,86,0,null,false]
[6,"B9","",null,0.01,null,null,null,{"$f":"IF(AC498=1,\"Plate \"&TEXT(AA498+1,\"0\"),\"\")","v":""},null,null,null,null,null,null,null,null,null,null,null,null,null,null,null,null," ",37,86,0,null,false]
[6,"C9","",null,0.01,null,null,null,{"$f":"IF($AC498=1,\"1\",\"\")","v":""},{"$f":"IF($AC498=1,\"2\",\"\")","v":""},{"$f":"IF($AC498=1,\"3\",\"\")","v":""},{"$f":"IF($AC498=1,\"4\",\"\")","v":""},{"$f":"IF($AC498=1,\"5\",\"\")","v":""},{"$f":"IF($AC498=1,\"6\",\"\")","v":""},{"$f":"IF($AC498=1,\"7\",\"\")","v":""},{"$f":"IF($AC498=1,\"8\",\"\")","v":""},{"$f":"IF($AC498=1,\"9\",\"\")","v":""},{"$f":"IF($AC498=1,\"10\",\"\")","v":""},{"$f":"IF($AC498=1,\"11\",\"\")","v":""},{"$f":"IF($AC498=1,\"12\",\"\")","v":""},null,null,null,null,null," ",38,86,0,null,false]
[6,"D9","",null,0.01,null,null,{"$f":"IF(AC499=1,\"A\",\"\")","v":""},{"$f":"OFFSET($Z$2,ROW()-StartRow-1-$AA499*PanelHeight+$AA499*WellsInPlate+(COLUMN()-9)*8,0,1,1)","v":" "}," "," "," "," "," "," "," "," "," "," ",{"$f":"IF(COUNTIF(I499:S506,\" \")<88,\"leave empty\",\"\")","v":"leave empty"},null,null,null,null,null," ",38,86,0,null,false]
[6,"E9","",null,0.01,null,null,{"$f":"IF(AC500=1,\"B\",\"\")","v":""}," "," "," "," "," "," "," "," "," "," "," ",{"$f":"IF(T499=\"\",\"\",\"leave empty\")","v":"leave empty"},null,null,null,null,null," ",38,86,0,null,false]
[6,"F9","",null,0.01,null,null,{"$f":"IF(AC501=1,\"C\",\"\")","v":""}," "," "," "," "," "," "," "," "," "," "," ",{"$f":"IF(T500=\"\",\"\",\"leave empty\")","v":"leave empty"},null,null,null,null,null," ",38,86,0,null,false]
[6,"G9","",null,0.01,null,null,{"$f":"IF(AC502=1,\"D\",\"\")","v":""}," "," "," "," "," "," "," "," "," "," "," ","leave empty",null,null,null,null,null," ",38,86,0,null,false]
[6,"H9","",null,0.01,null,null,{"$f":"IF(AC503=1,\"E\",\"\")","v":""}," "," "," "," "," "," "," "," "," "," "," ","leave empty",null,null,null,null,null," ",38,86,0,null,false]
[6,"A10","",null,0.01,null,null,{"$f":"IF(AC504=1,\"F\",\"\")","v":""}," "," "," "," "," "," "," "," "," "," "," ","leave empty",null,null,null,null,null," ",38,86,0,null,false]
[6,"B10","",null,0.01,null,null,{"$f":"IF(AC505=1,\"G\",\"\")","v":""}," "," "," "," "," "," "," "," "," "," ",{"$f":"IF(S504=\"\",\"\",\"leave empty\")","v":"leave empty"},"leave empty",null,null,null,null,null," ",38,86,0,null,false]
[6,"C10","",null,0.01,null,null,{"$f":"IF(AC506=1,\"H\",\"\")","v":""}," "," "," "," "," "," "," "," "," "," ",{"$f":"IF(S505=\"\",\"\",\"leave empty\")","v":"leave empty"},"leave empty",null,null,null,null,null," ",38,86,0,null,false]
[6,"D10",{"$f":"IF(D507=0,\"\",D507)","v":""},null,0.01,null,null,null,null,null,null,null,null,null,null,null,null,null,null,null,null,null,null,null,null," ",38,86,0,null,false]
[6,"E10","",null,0.01,null,null,null,null,null,null,null,null,null,null,null,null,null,null,null,null,null,null,null,null," ",38,86,0,null,false]
[6,"F10","",null,0.01,null,null,null,null,null,null,null,null,null,null,null,null,null,null,null,null,null,null,null,null," ",38,86,0,null,false]
[6,"G10","",null,0.01,null,null,null,{"$f":"IF(AC511=1,\"Plate \"&TEXT(AA511+1,\"0\"),\"\")","v":""},null,null,null,null,null,null,null,null,null,null,null,null,null,null,null,null," ",38,86,0,null,false]
[6,"H10","",null,0.01,null,null,null,{"$f":"IF($AC511=1,\"1\",\"\")","v":""},{"$f":"IF($AC511=1,\"2\",\"\")","v":""},{"$f":"IF($AC511=1,\"3\",\"\")","v":""},{"$f":"IF($AC511=1,\"4\",\"\")","v":""},{"$f":"IF($AC511=1,\"5\",\"\")","v":""},{"$f":"IF($AC511=1,\"6\",\"\")","v":""},{"$f":"IF($AC511=1,\"7\",\"\")","v":""},{"$f":"IF($AC511=1,\"8\",\"\")","v":""},{"$f":"IF($AC511=1,\"9\",\"\")","v":""},{"$f":"IF($AC511=1,\"10\",\"\")","v":""},{"$f":"IF($AC511=1,\"11\",\"\")","v":""},{"$f":"IF($AC511=1,\"12\",\"\")","v":""},null,null,null,null,null," ",39,86,0,null,false]
[6,"A11","",null,0.01,null,null,{"$f":"IF(AC512=1,\"A\",\"\")","v":""},{"$f":"OFFSET($Z$2,ROW()-StartRow-1-$AA512*PanelHeight+$AA512*WellsInPlate+(COLUMN()-9)*8,0,1,1)","v":" "},{"$f":"OFFSET($Z$2,ROW()-StartRow-1-$AA512*PanelHeight+$AA512*WellsInPlate+(COLUMN()-9)*8,0,1,1)","v":" "}," "," "," "," "," "," "," "," "," ",{"$f":"IF(COUNTIF(I512:S519,\" \")<88,\"leave empty\",\"\")","v":"leave empty"},null,null,null,null,null," ",39,86,0,null,false]
[6,"B11","",null,0.01,null,null,{"$f":"IF(AC513=1,\"B\",\"\")","v":""}," "," "," "," "," "," "," "," "," "," "," ",{"$f":"IF(T512=\"\",\"\",\"leave empty\")","v":"leave empty"},null,null,null,null,null," ",39,86,0,null,false]
[6,"C11","",null,0.01,null,null,{"$f":"IF(AC514=1,\"C\",\"\")","v":""}," "," "," "," "," "," "," "," "," "," "," ",{"$f":"IF(T513=\"\",\"\",\"leave empty\")","v":"leave empty"},null,null,null,null,null,{"$f":"IF(LEN(INDEX($1:$1048576,ROW(),4))>0,INDEX($1:$1048576,ROW(),4),\" \")","v":" "},39,86,0,null,{"$f":"IF(COUNTBLANK(D504)=0,A496)","v":false}]
[6,"D11","",null,0.01,null,null,{"$f":"IF(AC515=1,\"D\",\"\")","v":""}," "," "," "," "," "," "," "," "," "," "," ","leave empty",null,null,null,null,null," ",39,86,0,null,false]
[6,"E11","",null,0.01,null,null,{"$f":"IF(AC516=1,\"E\",\"\")","v":""}," "," "," "," "," "," "," "," "," "," "," ","leave empty",null,null,null,null,null," ",{"$f":"CEILING((ROW()-StartRow+1)/PanelHeight,1)-1","v":39},{"$f":"COUNTBLANK(OFFSET(INDEX($1:$1048576,2,4),AA516*WellsInPlate,0,WellsInPlate,1))","v":86},{"$f":"IF(AB516=WellsInPlate,0,1)","v":0},null,false]
[6,"F11","",null,0.01,null,null,{"$f":"IF(AC517=1,\"F\",\"\")","v":""}," "," "," "," "," "," "," "," "," "," "," ","leave empty",null,null,null,null,null," ",{"$f":"CEILING((ROW()-StartRow+1)/PanelHeight,1)-1","v":39},86,{"$f":"IF(AB517=WellsInPlate,0,1)","v":0},null,false]
[7,"A1","",null,0.01,null,null,{"$f":"IF(AC518=1,\"G\",\"\")","v":""}," "," "," "," "," "," "," "," "," "," ",{"$f":"IF(S517=\"\",\"\",\"leave empty\")","v":"leave empty"},"leave empty",null,null,null,null,null," ",39,86,0,null,false]
[7,"B1","",null,0.01,null,null,{"$f":"IF(AC519=1,\"H\",\"\")","v":""}," "," "," "," "," "," "," "," "," "," ",{"$f":"IF(S518=\"\",\"\",\"leave empty\")","v":"leave empty"},"leave empty",null,null,null,null,null," ",39,86,0,null,false]
[7,"C1","",null,0.01,null,null,null,null,null,null,null,null,null,null,null,null,null,null,null,null,null,null,null,null," ",39,86,0,null,false]
[7,"D1","",null,0.01,null,null,null,null,null,null,null,null,null,null,null,null,null,null,null,null,null,null,null,null," ",39,86,0,null,false]
[7,"E1","",null,0.01,null,null,null,null,null,null,null,null,null,null,null,null,null,null,null,null,null,null,null,null," ",39,86,0,null,false]
[7,"F1","",null,0.01,null,null,null,{"$f":"IF(AC524=1,\"Plate \"&TEXT(AA524+1,\"0\"),\"\")","v":""},null,null,null,null,null,null,null,null,null,null,null,null,null,null,null,null," ",39,86,0,null,false]
[7,"G1","",null,0.01,null,null,null,null,null,null,null,null,null,null,null,null,null,null,null,null,null,null,null,null," ",40,86,0,null,false]
[7,"H1","",null,0.01,null,null,null,null,null,null,null,null,null,null,null,null,null,null,null,null,null,null,null,null," ",40,86,0,null,false]
[7,"A2","",null,0.01,null,null,null,null,null,null,null,null,null,null,null,null,null,null,null,null,null,null,null,null," ",40,86,0,null,false]
[7,"B2","",null,0.01,null,null,null,null,null,null,null,null,null,null,null,null,null,null,null,null,null,null,null,null," ",40,86,0,null,false]
[7,"C2","",null,0.01,null,null,null,null,null,null,null,null,null,null,null,null,null,null,null,null,null,null,null,null," ",40,86,0,null,{"$f":"IF(COUNTBLANK(#REF!)=0,A510)","v":{"$error":"#REF!"}}]
[7,"D2","",null,0.01,null,null,null,null,null,null,null,null,null,null,null,null,null,null,null,null,null,null,null,null," ",40,86,0,null,{"$f":"IF(COUNTBLANK(#REF!)=0,A511)","v":{"$error":"#REF!"}}]
[7,"E2","",null,0.01,null,null,null,null,null,null,null,null,null,null,null,null,null,null,null,null,null,null,null,null," ",40,86,0,null,{"$f":"IF(COUNTBLANK(D518)=0,A512)","v":false}]
[7,"F2","",null,0.01,null,null,null,null,null,null,null,null,null,null,null,null,null,null,null,null,null,null,null,null," ",40,86,0,null,false]
[7,"G2","",null,0.01,null,null,null,null,null,null,null,null,null,null,null,null,null,null,null,null,null,null,null,null," ",40,86,0,null,false]
[7,"H2","",null,0.01,null,null,null,null,null,null,null,null,null,null,null,null,null,null,null,null,null,null,null,null," ",40,86,0,null,false]
[7,"A3","",null,0.01,null,null,null,null,null,null,null,null,null,null,null,null,null,null,null,null,null,null,null,null," ",40,86,0,null,false]
[7,"B3","",null,0.01,null,null,null,null,null,null,null,null,null,null,null,null,null,null,null,null,null,null,null,null," ",40,86,0,null,false]
[7,"C3","",null,0.01,null,null,null,null,null,null,null,null,null,null,null,null,null,null,null,null,null,null,null,null," ",40,86,0,null,{"$f":"IF(COUNTBLANK(D524)=0,#REF!)","v":false}]
[7,"D3","",null,0.01,null,null,null,null,null,null,null,null,null,null,null,null,null,null,null,null,null,null,null,null," ",41,86,0,null,{"$f":"IF(COUNTBLANK(D525)=0,#REF!)","v":false}]
[7,"E3","",null,0.01,null,null,null,null,null,null,null,null,null,null,null,null,null,null,null,null,null,null,null,null," ",41,86,0,null,{"$f":"IF(COUNTBLANK(D526)=0,A518)","v":false}]
[7,"F3","",null,0.01,null,null,null,null,null,null,null,null,null,null,null,null,null,null,null,null,null,null,null,null," ",41,86,0,null,false]
[7,"G3","",null,0.01,null,null,null,null,null,null,null,null,null,null,null,null,null,null,null,null,null,null,null,null," ",41,86,0,null,false]
[7,"H3","",null,0.01,null,null,null,null,null,null,null,null,null,null,null,null,null,null,null,null,null,null,null,null," ",41,86,0,null,false]
[7,"A4","",null,0.01,null,null,null,null,null,null,null,null,null,null,null,null,null,null,null,null,null,null,null,null," ",41,86,0,null,false]
[7,"B4","",null,0.01,null,null,null,null,null,null,null,null,null,null,null,null,null,null,null,null,null,null,null,null," ",41,86,0,null,false]
[7,"C4","",null,0.01,null,null,null,null,null,null,null,null,null,null,null,null,null,null,null,null,null,null,null,null," ",41,86,0,null,false]
[7,"D4","",null,0.01,null,null,null,null,null,null,null,null,null,null,null,null,null,null,null,null,null,null,null,null," ",41,86,0,null,false]
[7,"E4","",null,0.01,null,null,null,null,null,null,null,null,null,null,null,null,null,null,null,null,null,null,null,null," ",41,86,0,null,false]
[7,"F4","",null,0.01,null,null,null,null,null,null,null,null,null,null,null,null,null,null,null,null,null,null,null,null," ",41,86,0,null,false]
[7,"G4","",null,0.01,null,null,null,null,null,null,null,null,null,null,null,null,null,null,null,null,null,null,null,null," ",41,86,0,null,false]
[7,"H4","",null,0.01,null,null,null,null,null,null,null,null,null,null,null,null,null,null,null,null,null,null,null,null," ",{"$f":"CEILING((ROW()-StartRow+1)/PanelHeight,1)-1","v":41},86,{"$f":"IF(AB549=WellsInPlate,0,1)","v":0},null,false]
[7,"A5","",null,0.01,null,null,null,null,null,null,null,null,null,null,null,null,null,null,null,null,null,null,null,null," ",42,86,0,null,false]
[7,"B5","",null,0.01,null,null,null,null,null,null,null,null,null,null,null,null,null,null,null,null,null,null,null,null," ",42,86,0,null,false]
[7,"C5","",null,0.01,null,null,null,null,null,null,null,null,null,null,null,null,null,null,null,null,null,null,null,null," ",42,86,0,null,false]
[7,"D5","",null,0.01,null,null,null,null,null,null,null,null,null,null,null,null,null,null,null,null,null,null,null,null," ",42,86,0,null,false]
[7,"E5","",null,0.01,null,null,null,null,null,null,null,null,null,null,null,null,null,null,null,null,null,null,null,null," ",42,86,0,null,false]
[7,"F5","",null,0.01,null,null,null,null,null,null,null,null,null,null,null,null,null,null,null,null,null,null,null,null," ",42,86,0,null,false]
[7,"G5","",null,0.01,null,null,null,null,null,null,null,null,null,null,null,null,null,null,null,null,null,null,null,null," ",42,86,0,null,false]
[7,"H5","",null,0.01,null,null,null,null,null,null,null,null,null,null,null,null,null,null,null,null,null,null,null,null," ",42,86,0,null,false]
[7,"A6","",null,0.01,null,null,null,null,null,null,null,null,null,null,null,null,null,null,null,null,null,null,null,null," ",42,86,0,null,false]
[7,"B6","",null,0.01,null,null,null,null,null,null,null,null,null,null,null,null,null,null,null,null,null,null,null,null," ",42,86,0,null,false]
[7,"C6","",null,0.01,null,null,null,null,null,null,null,null,null,null,null,null,null,null,null,null,null,null,null,null," ",42,86,0,null,false]
[7,"D6","",null,0.01,null,null,null,null,null,null,null,null,null,null,null,null,null,null,null,null,null,null,null,null," ",42,86,0,null,false]
[7,"E6","",null,0.01,null,null,null,null,null,null,null,null,null,null,null,null,null,null,null,null,null,null,null,null," ",42,86,0,null,false]
[7,"F6","",null,0.01,null,null,null,null,null,null,null,null,null,null,null,null,null,null,null,null,null,null,null,null," ",43,86,0,null,false]
[7,"G6","",null,0.01,null,null,null,null,null,null,null,null,null,null,null,null,null,null,null,null,null,null,null,null," ",43,86,0,null,false]
[7,"H6","",null,0.01,null,null,null,null,null,null,null,null,null,null,null,null,null,null,null,null,null,null,null,null," ",43,86,0,null,false]
[7,"A7","",null,0.01,null,null,null,null,null,null,null,null,null,null,null,null,null,null,null,null,null,null,null,null," ",43,86,0,null,false]
[7,"B7","",null,0.01,null,null,null,null,null,null,null,null,null,null,null,null,null,null,null,null,null,null,null,null," ",43,86,0,null,false]
[7,"C7","",null,0.01,null,null,null,null,null,null,null,null,null,null,null,null,null,null,null,null,null,null,null,null," ",43,86,0,null,false]
[7,"D7",{"$f":"IF(D569=0,\"\",D569)","v":""},null,0.01,null,null,null,null,null,null,null,null,null,null,null,null,null,null,null,null,null,null,null,null," ",43,86,0,null,false]
[7,"E7","",null,0.01,null,null,null,null,null,null,null,null,null,null,null,null,null,null,null,null,null,null,null,null," ",43,86,0,null,{"$f":"IF(COUNTBLANK(D558)=0,A550)","v":false}]
[7,"F7","",null,0.01,null,null,null,null,null,null,null,null,null,null,null,null,null,null,null,null,null,null,null,null," ",43,86,0,null,false]
[7,"G7","",null,0.01,null,null,null,null,null,null,null,null,null,null,null,null,null,null,null,null,null,null,null,null," ",43,86,0,null,false]
[7,"H7","",null,0.01,null,null,null,null,null,null,null,null,null,null,null,null,null,null,null,null,null,null,null,null," ",43,86,0,null,false]
[7,"A8","",null,0.01,null,null,null,null,null,null,null,null,null,null,null,null,null,null,null,null,null,null,null,null," ",43,86,0,null,false]
[7,"B8","",null,0.01,null,null,null,null,null,null,null,null,null,null,null,null,null,null,null,null,null,null,null,null," ",43,86,0,null,false]
[7,"C8","",null,0.01,null,null,null,null,null,null,null,null,null,null,null,null,null,null,null,null,null,null,null,null," ",44,86,0,null,false]
[7,"D8","",null,0.01,null,null,null,null,null,null,null,null,null,null,null,null,null,null,null,null,null,null,null,null," ",44,86,0,null,false]
[7,"E8","",null,0.01,null,null,null,null,null,null,null,null,null,null,null,null,null,null,null,null,null,null,null,null,{"$f":"IF(LEN(INDEX($1:$1048576,ROW(),4))>0,INDEX($1:$1048576,ROW(),4),\" \")","v":" "},44,86,0,null,false]
[7,"F8","",null,0.01,null,null,null,null,null,null,null,null,null,null,null,null,null,null,null,null,null,null,null,null," ",44,86,0,null,false]
[7,"G8","",null,0.01,null,null,null,null,null,null,null,null,null,null,null,null,null,null,null,null,null,null,null,null," ",{"$f":"CEILING((ROW()-StartRow+1)/PanelHeight,1)-1","v":44},{"$f":"COUNTBLANK(OFFSET(INDEX($1:$1048576,2,4),AA580*WellsInPlate,0,WellsInPlate,1))","v":86},{"$f":"IF(AB580=WellsInPlate,0,1)","v":0},null,false]
[7,"H8","",null,0.01,null,null,null,null,null,null,null,null,null,null,null,null,null,null,null,null,null,null,null,null," ",{"$f":"CEILING((ROW()-StartRow+1)/PanelHeight,1)-1","v":44},86,{"$f":"IF(AB581=WellsInPlate,0,1)","v":0},null,false]
[7,"A9","",null,0.01,null,null,null,null,null,null,null,null,null,null,null,null,null,null,null,null,null,null,null,null," ",44,86,0,null,false]
[7,"B9","",null,0.01,null,null,null,null,null,null,null,null,null,null,null,null,null,null,null,null,null,null,null,null," ",44,86,0,null,false]
[7,"C9","",null,0.01,null,null,null,null,null,null,null,null,null,null,null,null,null,null,null,null,null,null,null,null," ",44,86,0,null,false]
[7,"D9","",null,0.01,null,null,null,null,null,null,null,null,null,null,null,null,null,null,null,null,null,null,null,null," ",44,86,0,null,false]
[7,"E9","",null,0.01,null,null,null,null,null,null,null,null,null,null,null,null,null,null,null,null,null,null,null,null," ",44,86,0,null,false]
[7,"F9","",null,0.01,null,null,null,null,null,null,null,null,null,null,null,null,null,null,null,null,null,null,null,null," ",44,86,0,null,false]
[7,"G9","",null,0.01,null,null,null,null,null,null,null,null,null,null,null,null,null,null,null,null,null,null,null,null," ",44,86,0,null,false]
[7,"H9","",null,0.01,null,null,null,null,null,null,null,null,null,null,null,null,null,null,null,null,null,null,null,null," ",45,86,0,null,false]
[7,"A10","",null,0.01,null,null,null,null,null,null,null,null,null,null,null,null,null,null,null,null,null,null,null,null," ",45,86,0,null,false]
[7,"B10","",null,0.01,null,null,null,null,null,null,null,null,null,null,null,null,null,null,null,null,null,null,null,null," ",45,86,0,null,false]
[7,"C10","",null,0.01,null,null,null,null,null,null,null,null,null,null,null,null,null,null,null,null,null,null,null,null," ",45,86,0,null,false]
[7,"D10","",null,0.01,null,null,null,null,null,null,null,null,null,null,null,null,null,null,null,null,null,null,null,null," ",45,86,0,null,false]
[7,"E10","",null,0.01,null,null,null,null,null,null,null,null,null,null,null,null,null,null,null,null,null,null,null,null," ",45,86,0,null,false]
[7,"F10","",null,0.01,null,null,null,null,null,null,null,null,null,null,null,null,null,null,null,null,null,null,null,null," ",45,86,0,null,false]
[7,"G10","",null,0.01,null,null,null,null,null,null,null,null,null,null,null,null,null,null,null,null,null,null,null,null," ",45,86,0,null,false]
[7,"H10","",null,0.01,null,null,null,null,null,null,null,null,null,null,null,null,null,null,null,null,null,null,null,null," ",45,86,0,null,false]
[7,"A11","",null,0.01,null,null,null,null,null,null,null,null,null,null,null,null,null,null,null,null,null,null,null,null," ",45,86,0,null,false]
[7,"B11","",null,0.01,null,null,null,null,null,null,null,null,null,null,null,null,null,null,null,null,null,null,null,null," ",45,86,0,null,false]
[7,"C11","",null,0.01,null,null,null,null,null,null,null,null,null,null,null,null,null,null,null,null,null,null,null,null," ",45,86,0,null,false]
[7,"D11","",null,0.01,null,null,null,null,null,null,null,null,null,null,null,null,null,null,null,null,null,null,null,null," ",45,86,0,null,false]
[7,"E11","",null,0.01,null,null,null,null,null,null,null,null,null,null,null,null,null,null,null,null,null,null,null,null," ",46,86,0,null,{"$f":"IF(COUNTBLANK(D590)=0,A582)","v":false}]
[7,"F11","",null,0.01,null,null,null,null,null,null,null,null,null,null,null,null,null,null,null,null,null,null,null,null," ",46,86,0,null,false]
[8,"A1","",null,0.01,null,null,null,null,null,null,null,null,null,null,null,null,null,null,null,null,null,null,null,null," ",46,86,0,null,false]
[8,"B1","",null,0.01,null,null,null,null,null,null,null,null,null,null,null,null,null,null,null,null,null,null,null,null," ",46,86,0,null,false]
[8,"C1","",null,0.01,null,null,null,null,null,null,null,null,null,null,null,null,null,null,null,null,null,null,null,null," ",46,86,0,null,false]
[8,"D1","",null,0.01,null,null,null,null,null,null,null,null,null,null,null,null,null,null,null,null,null,null,null,null," ",46,86,0,null,false]
[8,"E1","",null,0.01,null,null,null,null,null,null,null,null,null,null,null,null,null,null,null,null,null,null,null,null," ",46,86,0,null,false]
[8,"F1","",null,0.01,null,null,null,null,null,null,null,null,null,null,null,null,null,null,null,null,null,null,null,null," ",46,86,0,null,false]
[8,"G1","",null,0.01,null,null,null,null,null,null,null,null,null,null,null,null,null,null,null,null,null,null,null,null," ",46,86,0,null,false]
[8,"H1","",null,0.01,null,null,null,null,null,null,null,null,null,null,null,null,null,null,null,null,null,null,null,null," ",46,86,0,null,false]
[8,"A2","",null,0.01,null,null,null,null,null,null,null,null,null,null,null,null,null,null,null,null,null,null,null,null," ",46,86,0,null,false]
[8,"B2","",null,0.01,null,null,null,null,null,null,null,null,null,null,null,null,null,null,null,null,null,null,null,null," ",{"$f":"CEILING((ROW()-StartRow+1)/PanelHeight,1)-1","v":46},86,{"$f":"IF(AB613=WellsInPlate,0,1)","v":0},null,false]
[8,"C2","",null,0.01,null,null,null,null,null,null,null,null,null,null,null,null,null,null,null,null,null,null,null,null," ",46,86,0,null,false]
[8,"D2","",null,0.01,null,null,null,null,null,null,null,null,null,null,null,null,null,null,null,null,null,null,null,null," ",47,86,0,null,false]
[8,"E2","",null,0.01,null,null,null,null,null,null,null,null,null,null,null,null,null,null,null,null,null,null,null,null," ",47,86,0,null,{"$f":"IF(COUNTBLANK(#REF!)=0,A596)","v":{"$error":"#REF!"}}]
[8,"F2","",null,0.01,null,null,null,null,null,null,null,null,null,null,null,null,null,null,null,null,null,null,null,null," ",47,86,0,null,{"$f":"IF(COUNTBLANK(#REF!)=0,A597)","v":{"$error":"#REF!"}}]
[8,"G2","",null,0.01,null,null,null,null,null,null,null,null,null,null,null,null,null,null,null,null,null,null,null,null," ",47,86,0,null,{"$f":"IF(COUNTBLANK(D604)=0,A598)","v":false}]
[8,"H2","",null,0.01,null,null,null,null,null,null,null,null,null,null,null,null,null,null,null,null,null,null,null,null," ",47,86,0,null,false]
[8,"A3","",null,0.01,null,null,null,null,null,null,null,null,null,null,null,null,null,null,null,null,null,null,null,null," ",47,86,0,null,false]
[8,"B3","",null,0.01,null,null,null,null,null,null,null,null,null,null,null,null,null,null,null,null,null,null,null,null," ",47,86,0,null,false]
[8,"C3","",null,0.01,null,null,null,null,null,null,null,null,null,null,null,null,null,null,null,null,null,null,null,null," ",47,86,0,null,false]
[8,"D3","",null,0.01,null,null,null,null,null,null,null,null,null,null,null,null,null,null,null,null,null,null,null,null," ",47,86,0,null,false]
[8,"E3","",null,0.01,null,null,null,null,null,null,null,null,null,null,null,null,null,null,null,null,null,null,null,null," ",47,86,0,null,{"$f":"IF(COUNTBLANK(D610)=0,#REF!)","v":false}]
[8,"F3","",null,0.01,null,null,null,null,null,null,null,null,null,null,null,null,null,null,null,null,null,null,null,null," ",47,86,0,null,{"$f":"IF(COUNTBLANK(D611)=0,#REF!)","v":false}]
[8,"G3","",null,0.01,null,null,null,null,null,null,null,null,null,null,null,null,null,null,null,null,null,null,null,null," ",47,86,0,null,{"$f":"IF(COUNTBLANK(D612)=0,A604)","v":false}]
[8,"H3","",null,0.01,null,null,null,null,null,null,null,null,null,null,null,null,null,null,null,null,null,null,null,null," ",47,86,0,null,false]
[8,"A4","",null,0.01,null,null,null,null,null,null,null,null,null,null,null,null,null,null,null,null,null,null,null,null," ",48,86,0,null,false]
[8,"B4","",null,0.01,null,null,null,null,null,null,null,null,null,null,null,null,null,null,null,null,null,null,null,null," ",48,86,0,null,false]
[8,"C4","",null,0.01,null,null,null,null,null,null,null,null,null,null,null,null,null,null,null,null,null,null,null,null," ",48,86,0,null,false]
[8,"D4",{"$f":"IF(D631=0,\"\",D631)","v":""},null,0.01,null,null,null,null,null,null,null,null,null,null,null,null,null,null,null,null,null,null,null,null," ",48,86,0,null,false]
[8,"E4","",null,0.01,null,null,null,null,null,null,null,null,null,null,null,null,null,null,null,null,null,null,null,null," ",48,86,0,null,false]
[8,"F4","",null,0.01,null,null,null,null,null,null,null,null,null,null,null,null,null,null,null,null,null,null,null,null," ",48,86,0,null,false]
[8,"G4","",null,0.01,null,null,null,null,null,null,null,null,null,null,null,null,null,null,null,null,null,null,null,null," ",48,86,0,null,false]
[8,"H4","",null,0.01,null,null,null,null,null,null,null,null,null,null,null,null,null,null,null,null,null,null,null,null," ",48,86,0,null,false]
[8,"A5","",null,0.01,null,null,null,null,null,null,null,null,null,null,null,null,null,null,null,null,null,null,null,null," ",48,86,0,null,false]
[8,"B5","",null,0.01,null,null,null,null,null,null,null,null,null,null,null,null,null,null,null,null,null,null,null,null," ",48,86,0,null,false]
[8,"C5","",null,0.01,null,null,null,null,null,null,null,null,null,null,null,null,null,null,null,null,null,null,null,null," ",48,86,0,null,false]
[8,"D5","",null,0.01,null,null,null,null,null,null,null,null,null,null,null,null,null,null,null,null,null,null,null,null," ",48,86,0,null,false]
[8,"E5","",null,0.01,null,null,null,null,null,null,null,null,null,null,null,null,null,null,null,null,null,null,null,null," ",48,86,0,null,false]
[8,"F5","",null,0.01,null,null,null,null,null,null,null,null,null,null,null,null,null,null,null,null,null,null,null,null," ",49,86,0,null,false]
[8,"G5","",null,0.01,null,null,null,null,null,null,null,null,null,null,null,null,null,null,null,null,null,null,null,null,{"$f":"IF(LEN(INDEX($1:$1048576,ROW(),4))>0,INDEX($1:$1048576,ROW(),4),\" \")","v":" "},49,86,0,null,false]
[8,"H5","",null,0.01,null,null,null,null,null,null,null,null,null,null,null,null,null,null,null,null,null,null,null,null," ",49,86,0,null,false]
[8,"A6","",null,0.01,null,null,null,null,null,null,null,null,null,null,null,null,null,null,null,null,null,null,null,null," ",{"$f":"CEILING((ROW()-StartRow+1)/PanelHeight,1)-1","v":49},{"$f":"COUNTBLANK(OFFSET(INDEX($1:$1048576,2,4),AA644*WellsInPlate,0,WellsInPlate,1))","v":86},{"$f":"IF(AB644=WellsInPlate,0,1)","v":0},null,false]
[8,"B6","",null,0.01,null,null,null,null,null,null,null,null,null,null,null,null,null,null,null,null,null,null,null,null," ",{"$f":"CEILING((ROW()-StartRow+1)/PanelHeight,1)-1","v":49},86,{"$f":"IF(AB645=WellsInPlate,0,1)","v":0},null,false]
[8,"C6","",null,0.01,null,null,null,null,null,null,null,null,null,null,null,null,null,null,null,null,null,null,null,null," ",49,86,0,null,false]
[8,"D6","",null,0.01,null,null,null,null,null,null,null,null,null,null,null,null,null,null,null,null,null,null,null,null," ",49,86,0,null,false]
[8,"E6","",null,0.01,null,null,null,null,null,null,null,null,null,null,null,null,null,null,null,null,null,null,null,null," ",49,86,0,null,false]
[8,"F6","",null,0.01,null,null,null,null,null,null,null,null,null,null,null,null,null,null,null,null,null,null,null,null," ",49,86,0,null,false]
[8,"G6","",null,0.01,null,null,null,null,null,null,null,null,null,null,null,null,null,null,null,null,null,null,null,null," ",49,86,0,null,false]
[8,"H6","",null,0.01,null,null,null,null,null,null,null,null,null,null,null,null,null,null,null,null,null,null,null,null," ",49,86,0,null,false]
[8,"A7","",null,0.01,null,null,null,null,null,null,null,null,null,null,null,null,null,null,null,null,null,null,null,null," ",49,86,0,null,false]
[8,"B7","",null,0.01,null,null,null,null,null,null,null,null,null,null,null,null,null,null,null,null,null,null,null,null," ",49,86,0,null,false]
[8,"C7","",null,0.01,null,null,null,null,null,null,null,null,null,null,null,null,null,null,null,null,null,null,null,null," ",50,86,0,null,false]
[8,"D7","",null,0.01,null,null,null,null,null,null,null,null,null,null,null,null,null,null,null,null,null,null,null,null," ",50,86,0,null,false]
[8,"E7","",null,0.01,null,null,null,null,null,null,null,null,null,null,null,null,null,null,null,null,null,null,null,null," ",50,86,0,null,false]
[8,"F7","",null,0.01,null,null,null,null,null,null,null,null,null,null,null,null,null,null,null,null,null,null,null,null," ",50,86,0,null,false]
[8,"G7","",null,0.01,null,null,null,null,null,null,null,null,null,null,null,null,null,null,null,null,null,null,null,null," ",50,86,0,null,{"$f":"IF(COUNTBLANK(D644)=0,A636)","v":false}]
[8,"H7","",null,0.01,null,null,null,null,null,null,null,null,null,null,null,null,null,null,null,null,null,null,null,null," ",50,86,0,null,false]
[8,"A8","",null,0.01,null,null,null,null,null,null,null,null,null,null,null,null,null,null,null,null,null,null,null,null," ",50,86,0,null,false]
[8,"B8","",null,0.01,null,null,null,null,null,null,null,null,null,null,null,null,null,null,null,null,null,null,null,null," ",50,86,0,null,false]
[8,"C8","",null,0.01,null,null,null,null,null,null,null,null,null,null,null,null,null,null,null,null,null,null,null,null," ",50,86,0,null,false]
[8,"D8","",null,0.01,null,null,null,null,null,null,null,null,null,null,null,null,null,null,null,null,null,null,null,null," ",50,86,0,null,false]
[8,"E8","",null,0.01,null,null,null,null,null,null,null,null,null,null,null,null,null,null,null,null,null,null,null,null," ",50,86,0,null,false]
[8,"F8","",null,0.01,null,null,null,null,null,null,null,null,null,null,null,null,null,null,null,null,null,null,null,null," ",50,86,0,null,false]
[8,"G8","",null,0.01,null,null,null,null,null,null,null,null,null,null,null,null,null,null,null,null,null,null,null,null," ",50,86,0,null,false]
[8,"H8","",null,0.01,null,null,null,null,null,null,null,null,null,null,null,null,null,null,null,null,null,null,null,null," ",51,86,0,null,false]
[8,"A9","",null,0.01,null,null,null,null,null,null,null,null,null,null,null,null,null,null,null,null,null,null,null,null," ",51,86,0,null,false]
[8,"B9","",null,0.01,null,null,null,null,null,null,null,null,null,null,null,null,null,null,null,null,null,null,null,null," ",51,86,0,null,false]
[8,"C9","",null,0.01,null,null,null,null,null,null,null,null,null,null,null,null,null,null,null,null,null,null,null,null," ",51,86,0,null,false]
[8,"D9","",null,0.01,null,null,null,null,null,null,null,null,null,null,null,null,null,null,null,null,null,null,null,null," ",51,86,0,null,false]
[8,"E9","",null,0.01,null,null,null,null,null,null,null,null,null,null,null,null,null,null,null,null,null,null,null,null," ",51,86,0,null,false]
[8,"F9","",null,0.01,null,null,null,null,null,null,null,null,null,null,null,null,null,null,null,null,null,null,null,null," ",51,86,0,null,false]
[8,"G9","",null,0.01,null,null,null,null,null,null,null,null,null,null,null,null,null,null,null,null,null,null,null,null," ",51,86,0,null,false]
[8,"H9","",null,0.01,null,null,null,null,null,null,null,null,null,null,null,null,null,null,null,null,null,null,null,null," ",51,86,0,null,false]
[8,"A10","",null,0.01,null,null,null,null,null,null,null,null,null,null,null,null,null,null,null,null,null,null,null,null," ",51,86,0,null,false]
[8,"B10","",null,0.01,null,null,null,null,null,null,null,null,null,null,null,null,null,null,null,null,null,null,null,null," ",{"$f":"CEILING((ROW()-StartRow+1)/PanelHeight,1)-1","v":51},86,{"$f":"IF(AB677=WellsInPlate,0,1)","v":0},null,false]
[8,"C10","",null,0.01,null,null,null,null,null,null,null,null,null,null,null,null,null,null,null,null,null,null,null,null," ",51,86,0,null,false]
[8,"D10","",null,0.01,null,null,null,null,null,null,null,null,null,null,null,null,null,null,null,null,null,null,null,null," ",51,86,0,null,false]
[8,"E10","",null,0.01,null,null,null,null,null,null,null,null,null,null,null,null,null,null,null,null,null,null,null,null," ",52,86,0,null,false]
[8,"F10","",null,0.01,null,null,null,null,null,null,null,null,null,null,null,null,null,null,null,null,null,null,null,null," ",52,86,0,null,false]
[8,"G10","",null,0.01,null,null,null,null,null,null,null,null,null,null,null,null,null,null,null,null,null,null,null,null," ",52,86,0,null,false]
[8,"H10","",null,0.01,null,null,null,null,null,null,null,null,null,null,null,null,null,null,null,null,null,null,null,null," ",52,86,0,null,false]
[8,"A11","",null,0.01,null,null,null,null,null,null,null,null,null,null,null,null,null,null,null,null,null,null,null,null," ",52,86,0,null,false]
[8,"B11","",null,0.01,null,null,null,null,null,null,null,null,null,null,null,null,null,null,null,null,null,null,null,null," ",52,86,0,null,false]
[8,"C11","",null,0.01,null,null,null,null,null,null,null,null,null,null,null,null,null,null,null,null,null,null,null,null," ",52,86,0,null,false]
[8,"D11","",null,0.01,null,null,null,null,null,null,null,null,null,null,null,null,null,null,null,null,null,null,null,null," ",52,86,0,null,false]
[8,"E11","",null,0.01,null,null,null,null,null,null,null,null,null,null,null,null,null,null,null,null,null,null,null,null," ",52,86,0,null,false]
[8,"F11","",null,0.01,null,null,null,null,null,null,null,null,null,null,null,null,null,null,null,null,null,null,null,null," ",52,86,0,null,false]
[9,"A1","",null,0.01,null,null,null,null,null,null,null,null,null,null,null,null,null,null,null,null,null,null,null,null," ",52,86,0,null,{"$f":"IF(COUNTBLANK(D676)=0,A668)","v":false}]
[9,"B1","",null,0.01,null,null,null,null,null,null,null,null,null,null,null,null,null,null,null,null,null,null,null,null," ",52,86,0,null,false]
[9,"C1","",null,0.01,null,null,null,null,null,null,null,null,null,null,null,null,null,null,null,null,null,null,null,null," ",52,86,0,null,false]
[9,"D1",{"$f":"IF(D693=0,\"\",D693)","v":""},null,0.01,null,null,null,null,null,null,null,null,null,null,null,null,null,null,null,null,null,null,null,null," ",53,86,0,null,false]
[9,"E1","",null,0.01,null,null,null,null,null,null,null,null,null,null,null,null,null,null,null,null,null,null,null,null," ",53,86,0,null,false]
[9,"F1","",null,0.01,null,null,null,null,null,null,null,null,null,null,null,null,null,null,null,null,null,null,null,null," ",53,86,0,null,false]
[9,"G1","",null,0.01,null,null,null,null,null,null,null,null,null,null,null,null,null,null,null,null,null,null,null,null," ",53,86,0,null,false]
[9,"H1","",null,0.01,null,null,null,null,null,null,null,null,null,null,null,null,null,null,null,null,null,null,null,null," ",53,86,0,null,false]
[9,"A2","",null,0.01,null,null,null,null,null,null,null,null,null,null,null,null,null,null,null,null,null,null,null,null," ",53,86,0,null,false]
[9,"B2","",null,0.01,null,null,null,null,null,null,null,null,null,null,null,null,null,null,null,null,null,null,null,null," ",53,86,0,null,false]
[9,"C2","",null,0.01,null,null,null,null,null,null,null,null,null,null,null,null,null,null,null,null,null,null,null,null," ",53,86,0,null,false]
[9,"D2","",null,0.01,null,null,null,null,null,null,null,null,null,null,null,null,null,null,null,null,null,null,null,null," ",53,86,0,null,false]
[9,"E2","",null,0.01,null,null,null,null,null,null,null,null,null,null,null,null,null,null,null,null,null,null,null,null," ",53,86,0,null,false]
[9,"F2","",null,0.01,null,null,null,null,null,null,null,null,null,null,null,null,null,null,null,null,null,null,null,null," ",53,86,0,null,false]
[9,"G2","",null,0.01,null,null,null,null,null,null,null,null,null,null,null,null,null,null,null,null,null,null,null,null," ",53,86,0,null,{"$f":"IF(COUNTBLANK(#REF!)=0,A682)","v":{"$error":"#REF!"}}]
[9,"H2","",null,0.01,null,null,null,null,null,null,null,null,null,null,null,null,null,null,null,null,null,null,null,null," ",53,86,0,null,{"$f":"IF(COUNTBLANK(#REF!)=0,A683)","v":{"$error":"#REF!"}}]
[9,"A3","",null,0.01,null,null,null,null,null,null,null,null,null,null,null,null,null,null,null,null,null,null,null,null,{"$f":"IF(LEN(INDEX($1:$1048576,ROW(),4))>0,INDEX($1:$1048576,ROW(),4),\" \")","v":" "},54,86,0,null,{"$f":"IF(COUNTBLANK(D690)=0,A684)","v":false}]
[9,"B3","",null,0.01,null,null,null,null,null,null,null,null,null,null,null,null,null,null,null,null,null,null,null,null," ",54,86,0,null,false]
[9,"C3","",null,0.01,null,null,null,null,null,null,null,null,null,null,null,null,null,null,null,null,null,null,null,null," ",{"$f":"CEILING((ROW()-StartRow+1)/PanelHeight,1)-1","v":54},{"$f":"COUNTBLANK(OFFSET(INDEX($1:$1048576,2,4),AA708*WellsInPlate,0,WellsInPlate,1))","v":86},{"$f":"IF(AB708=WellsInPlate,0,1)","v":0},null,false]
[9,"D3","",null,0.01,null,null,null,null,null,null,null,null,null,null,null,null,null,null,null,null,null,null,null,null," ",{"$f":"CEILING((ROW()-StartRow+1)/PanelHeight,1)-1","v":54},86,{"$f":"IF(AB709=WellsInPlate,0,1)","v":0},null,false]
[9,"E3","",null,0.01,null,null,null,null,null,null,null,null,null,null,null,null,null,null,null,null,null,null,null,null," ",54,86,0,null,false]
[9,"F3","",null,0.01,null,null,null,null,null,null,null,null,null,null,null,null,null,null,null,null,null,null,null,null," ",54,86,0,null,false]
[9,"G3","",null,0.01,null,null,null,null,null,null,null,null,null,null,null,null,null,null,null,null,null,null,null,null," ",54,86,0,null,{"$f":"IF(COUNTBLANK(D696)=0,#REF!)","v":false}]
[9,"H3","",null,0.01,null,null,null,null,null,null,null,null,null,null,null,null,null,null,null,null,null,null,null,null," ",54,86,0,null,{"$f":"IF(COUNTBLANK(D697)=0,#REF!)","v":false}]
[9,"A4","",null,0.01,null,null,null,null,null,null,null,null,null,null,null,null,null,null,null,null,null,null,null,null," ",54,86,0,null,{"$f":"IF(COUNTBLANK(D698)=0,A690)","v":false}]
[9,"B4","",null,0.01,null,null,null,null,null,null,null,null,null,null,null,null,null,null,null,null,null,null,null,null," ",54,86,0,null,false]
[9,"C4","",null,0.01,null,null,null,null,null,null,null,null,null,null,null,null,null,null,null,null,null,null,null,null," ",54,86,0,null,false]
[9,"D4","",null,0.01,null,null,null,null,null,null,null,null,null,null,null,null,null,null,null,null,null,null,null,null," ",54,86,0,null,false]
[9,"E4","",null,0.01,null,null,null,null,null,null,null,null,null,null,null,null,null,null,null,null,null,null,null,null," ",54,86,0,null,false]
[9,"F4","",null,0.01,null,null,null,null,null,null,null,null,null,null,null,null,null,null,null,null,null,null,null,null," ",55,86,0,null,false]
[9,"G4","",null,0.01,null,null,null,null,null,null,null,null,null,null,null,null,null,null,null,null,null,null,null,null," ",55,86,0,null,false]
[9,"H4","",null,0.01,null,null,null,null,null,null,null,null,null,null,null,null,null,null,null,null,null,null,null,null," ",55,86,0,null,false]
[9,"A5","",null,0.01,null,null,null,null,null,null,null,null,null,null,null,null,null,null,null,null,null,null,null,null," ",55,86,0,null,false]
[9,"B5","",null,0.01,null,null,null,null,null,null,null,null,null,null,null,null,null,null,null,null,null,null,null,null," ",55,86,0,null,false]
[9,"C5","",null,0.01,null,null,null,null,null,null,null,null,null,null,null,null,null,null,null,null,null,null,null,null," ",55,86,0,null,false]
[9,"D5","",null,0.01,null,null,null,null,null,null,null,null,null,null,null,null,null,null,null,null,null,null,null,null," ",55,86,0,null,false]
[9,"E5","",null,0.01,null,null,null,null,null,null,null,null,null,null,null,null,null,null,null,null,null,null,null,null," ",55,86,0,null,false]
[9,"F5","",null,0.01,null,null,null,null,null,null,null,null,null,null,null,null,null,null,null,null,null,null,null,null," ",55,86,0,null,false]
[9,"G5","",null,0.01,null,null,null,null,null,null,null,null,null,null,null,null,null,null,null,null,null,null,null,null," ",55,86,0,null,false]
[9,"H5","",null,0.01,null,null,null,null,null,null,null,null,null,null,null,null,null,null,null,null,null,null,null,null," ",55,86,0,null,false]
[9,"A6","",null,0.01,null,null,null,null,null,null,null,null,null,null,null,null,null,null,null,null,null,null,null,null," ",55,86,0,null,false]
[9,"B6","",null,0.01,null,null,null,null,null,null,null,null,null,null,null,null,null,null,null,null,null,null,null,null," ",55,86,0,null,false]
[9,"C6","",null,0.01,null,null,null,null,null,null,null,null,null,null,null,null,null,null,null,null,null,null,null,null," ",56,86,0,null,false]
[9,"D6","",null,0.01,null,null,null,null,null,null,null,null,null,null,null,null,null,null,null,null,null,null,null,null," ",56,86,0,null,false]
[9,"E6","",null,0.01,null,null,null,null,null,null,null,null,null,null,null,null,null,null,null,null,null,null,null,null," ",56,86,0,null,false]
[9,"F6","",null,0.01,null,null,null,null,null,null,null,null,null,null,null,null,null,null,null,null,null,null,null,null," ",56,86,0,null,false]
[9,"G6","",null,0.01,null,null,null,null,null,null,null,null,null,null,null,null,null,null,null,null,null,null,null,null," ",56,86,0,null,false]
[9,"H6","",null,0.01,null,null,null,null,null,null,null,null,null,null,null,null,null,null,null,null,null,null,null,null," ",56,86,0,null,false]
[9,"A7","",null,0.01,null,null,null,null,null,null,null,null,null,null,null,null,null,null,null,null,null,null,null,null," ",56,86,0,null,false]
[9,"B7","",null,0.01,null,null,null,null,null,null,null,null,null,null,null,null,null,null,null,null,null,null,null,null," ",56,86,0,null,false]
[9,"C7","",null,0.01,null,null,null,null,null,null,null,null,null,null,null,null,null,null,null,null,null,null,null,null," ",56,86,0,null,false]
[9,"D7","",null,0.01,null,null,null,null,null,null,null,null,null,null,null,null,null,null,null,null,null,null,null,null," ",{"$f":"CEILING((ROW()-StartRow+1)/PanelHeight,1)-1","v":56},86,{"$f":"IF(AB741=WellsInPlate,0,1)","v":0},null,false]
[9,"E7","",null,0.01,null,null,null,null,null,null,null,null,null,null,null,null,null,null,null,null,null,null,null,null," ",56,86,0,null,false]
[9,"F7","",null,0.01,null,null,null,null,null,null,null,null,null,null,null,null,null,null,null,null,null,null,null,null," ",56,86,0,null,false]
[9,"G7","",null,0.01,null,null,null,null,null,null,null,null,null,null,null,null,null,null,null,null,null,null,null,null," ",56,86,0,null,false]
[9,"H7","",null,0.01,null,null,null,null,null,null,null,null,null,null,null,null,null,null,null,null,null,null,null,null," ",57,86,0,null,false]
[9,"A8","",null,0.01,null,null,null,null,null,null,null,null,null,null,null,null,null,null,null,null,null,null,null,null," ",57,86,0,null,{"$f":"IF(COUNTBLANK(D730)=0,A722)","v":false}]
[9,"B8","",null,0.01,null,null,null,null,null,null,null,null,null,null,null,null,null,null,null,null,null,null,null,null," ",57,86,0,null,false]
[9,"C8","",null,0.01,null,null,null,null,null,null,null,null,null,null,null,null,null,null,null,null,null,null,null,null," ",57,86,0,null,false]
[9,"D8","",null,0.01,null,null,null,null,null,null,null,null,null,null,null,null,null,null,null,null,null,null,null,null," ",57,86,0,null,false]
[9,"E8","",null,0.01,null,null,null,null,null,null,null,null,null,null,null,null,null,null,null,null,null,null,null,null," ",57,86,0,null,false]
[9,"F8","",null,0.01,null,null,null,null,null,null,null,null,null,null,null,null,null,null,null,null,null,null,null,null," ",57,86,0,null,false]
[9,"G8","",null,0.01,null,null,null,null,null,null,null,null,null,null,null,null,null,null,null,null,null,null,null,null," ",57,86,0,null,false]
[9,"H8","",null,0.01,null,null,null,null,null,null,null,null,null,null,null,null,null,null,null,null,null,null,null,null," ",57,86,0,null,false]
[9,"A9","",null,0.01,null,null,null,null,null,null,null,null,null,null,null,null,null,null,null,null,null,null,null,null," ",57,86,0,null,false]
[9,"B9","",null,0.01,null,null,null,null,null,null,null,null,null,null,null,null,null,null,null,null,null,null,null,null," ",57,86,0,null,false]
[9,"C9","",null,0.01,null,null,null,null,null,null,null,null,null,null,null,null,null,null,null,null,null,null,null,null," ",57,86,0,null,false]
[9,"D9",{"$f":"IF(D757=0,\"\",D757)","v":""},null,0.01,null,null,null,null,null,null,null,null,null,null,null,null,null,null,null,null,null,null,null,null," ",57,86,0,null,false]
[9,"E9","",null,0.01,null,null,null,null,null,null,null,null,null,null,null,null,null,null,null,null,null,null,null,null," ",58,86,0,null,false]
[9,"F9","",null,0.01,null,null,null,null,null,null,null,null,null,null,null,null,null,null,null,null,null,null,null,null," ",58,86,0,null,false]
[9,"G9","",null,0.01,null,null,null,null,null,null,null,null,null,null,null,null,null,null,null,null,null,null,null,null," ",58,86,0,null,false]
[9,"H9","",null,0.01,null,null,null,null,null,null,null,null,null,null,null,null,null,null,null,null,null,null,null,null," ",58,86,0,null,false]
[9,"A10","",null,0.01,null,null,null,null,null,null,null,null,null,null,null,null,null,null,null,null,null,null,null,null," ",58,86,0,null,false]
[9,"B10","",null,0.01,null,null,null,null,null,null,null,null,null,null,null,null,null,null,null,null,null,null,null,null," ",58,86,0,null,false]
[9,"C10","",null,0.01,null,null,null,null,null,null,null,null,null,null,null,null,null,null,null,null,null,null,null,null," ",58,86,0,null,false]
[9,"D10","",null,0.01,null,null,null,null,null,null,null,null,null,null,null,null,null,null,null,null,null,null,null,null," ",58,86,0,null,false]
[9,"E10","",null,0.01,null,null,null,null,null,null,null,null,null,null,null,null,null,null,null,null,null,null,null,null," ",58,86,0,null,false]
[9,"F10","",null,0.01,null,null,null,null,null,null,null,null,null,null,null,null,null,null,null,null,null,null,null,null," ",58,86,0,null,false]
[9,"G10","",null,0.01,null,null,null,null,null,null,null,null,null,null,null,null,null,null,null,null,null,null,null,null," ",58,86,0,null,false]
[9,"H10","",null,0.01,null,null,null,null,null,null,null,null,null,null,null,null,null,null,null,null,null,null,null,null," ",58,86,0,null,false]
[9,"A11","",null,0.01,null,null,null,null,null,null,null,null,null,null,null,null,null,null,null,null,null,null,null,null,{"$f":"IF(LEN(INDEX($1:$1048576,ROW(),4))>0,INDEX($1:$1048576,ROW(),4),\" \")","v":" "},58,86,0,null,false]
[9,"B11","",null,0.01,null,null,null,null,null,null,null,null,null,null,null,null,null,null,null,null,null,null,null,null," ",59,86,0,null,false]
[9,"C11","",null,0.01,null,null,null,null,null,null,null,null,null,null,null,null,null,null,null,null,null,null,null,null," ",{"$f":"CEILING((ROW()-StartRow+1)/PanelHeight,1)-1","v":59},{"$f":"COUNTBLANK(OFFSET(INDEX($1:$1048576,2,4),AA772*WellsInPlate,0,WellsInPlate,1))","v":86},{"$f":"IF(AB772=WellsInPlate,0,1)","v":0},null,false]
[9,"D11","",null,0.01,null,null,null,null,null,null,null,null,null,null,null,null,null,null,null,null,null,null,null,null," ",{"$f":"CEILING((ROW()-StartRow+1)/PanelHeight,1)-1","v":59},86,{"$f":"IF(AB773=WellsInPlate,0,1)","v":0},null,false]
[9,"E11","",null,0.01,null,null,null,null,null,null,null,null,null,null,null,null,null,null,null,null,null,null,null,null," ",59,86,0,null,false]
[9,"F11","",null,0.01,null,null,null,null,null,null,null,null,null,null,null,null,null,null,null,null,null,null,null,null," ",59,86,0,null,false]
[10,"A1","",null,0.01,null,null,null,null,null,null,null,null,null,null,null,null,null,null,null,null,null,null,null,null," ",59,86,0,null,false]
[10,"B1","",null,0.01,null,null,null,null,null,null,null,null,null,null,null,null,null,null,null,null,null,null,null,null," ",59,86,0,null,false]
[10,"C1","",null,0.01,null,null,null,null,null,null,null,null,null,null,null,null,null,null,null,null,null,null,null,null," ",59,86,0,null,{"$f":"IF(COUNTBLANK(D762)=0,A754)","v":false}]
[10,"D1","",null,0.01,null,null,null,null,null,null,null,null,null,null,null,null,null,null,null,null,null,null,null,null," ",59,86,0,null,false]
[10,"E1","",null,0.01,null,null,null,null,null,null,null,null,null,null,null,null,null,null,null,null,null,null,null,null," ",59,86,0,null,false]
[10,"F1","",null,0.01,null,null,null,null,null,null,null,null,null,null,null,null,null,null,null,null,null,null,null,null," ",59,86,0,null,false]
[10,"G1","",null,0.01,null,null,null,null,null,null,null,null,null,null,null,null,null,null,null,null,null,null,null,null," ",59,86,0,null,false]
[10,"H1","",null,0.01,null,null,null,null,null,null,null,null,null,null,null,null,null,null,null,null,null,null,null,null," ",59,86,0,null,false]
[10,"A2","",null,0.01,null,null,null,null,null,null,null,null,null,null,null,null,null,null,null,null,null,null,null,null," ",60,86,0,null,false]
[10,"B2","",null,0.01,null,null,null,null,null,null,null,null,null,null,null,null,null,null,null,null,null,null,null,null," ",60,86,0,null,false]
[10,"C2","",null,0.01,null,null,null,null,null,null,null,null,null,null,null,null,null,null,null,null,null,null,null,null," ",60,86,0,null,false]
[10,"D2","",null,0.01,null,null,null,null,null,null,null,null,null,null,null,null,null,null,null,null,null,null,null,null," ",60,86,0,null,false]
[10,"E2","",null,0.01,null,null,null,null,null,null,null,null,null,null,null,null,null,null,null,null,null,null,null,null," ",60,86,0,null,false]
[10,"F2","",null,0.01,null,null,null,null,null,null,null,null,null,null,null,null,null,null,null,null,null,null,null,null," ",60,86,0,null,false]
[10,"G2","",null,0.01,null,null,null,null,null,null,null,null,null,null,null,null,null,null,null,null,null,null,null,null," ",60,86,0,null,false]
[10,"H2","",null,0.01,null,null,null,null,null,null,null,null,null,null,null,null,null,null,null,null,null,null,null,null," ",60,86,0,null,false]
[10,"A3","",null,0.01,null,null,null,null,null,null,null,null,null,null,null,null,null,null,null,null,null,null,null,null," ",60,86,0,null,{"$f":"IF(COUNTBLANK(#REF!)=0,A768)","v":{"$error":"#REF!"}}]
[10,"B3","",null,0.01,null,null,null,null,null,null,null,null,null,null,null,null,null,null,null,null,null,null,null,null," ",60,86,0,null,{"$f":"IF(COUNTBLANK(#REF!)=0,A769)","v":{"$error":"#REF!"}}]
[10,"C3","",null,0.01,null,null,null,null,null,null,null,null,null,null,null,null,null,null,null,null,null,null,null,null," ",60,86,0,null,{"$f":"IF(COUNTBLANK(D776)=0,A770)","v":false}]
[10,"D3","",null,0.01,null,null,null,null,null,null,null,null,null,null,null,null,null,null,null,null,null,null,null,null," ",60,86,0,null,false]
[10,"E3","",null,0.01,null,null,null,null,null,null,null,null,null,null,null,null,null,null,null,null,null,null,null,null," ",60,86,0,null,false]
[10,"F3","",null,0.01,null,null,null,null,null,null,null,null,null,null,null,null,null,null,null,null,null,null,null,null," ",61,86,0,null,false]
[10,"G3","",null,0.01,null,null,null,null,null,null,null,null,null,null,null,null,null,null,null,null,null,null,null,null," ",61,86,0,null,false]
[10,"H3","",null,0.01,null,null,null,null,null,null,null,null,null,null,null,null,null,null,null,null,null,null,null,null," ",61,86,0,null,false]
[10,"A4","",null,0.01,null,null,null,null,null,null,null,null,null,null,null,null,null,null,null,null,null,null,null,null," ",61,86,0,null,{"$f":"IF(COUNTBLANK(D782)=0,#REF!)","v":false}]
[10,"B4","",null,0.01,null,null,null,null,null,null,null,null,null,null,null,null,null,null,null,null,null,null,null,null," ",61,86,0,null,{"$f":"IF(COUNTBLANK(D783)=0,#REF!)","v":false}]
[10,"C4","",null,0.01,null,null,null,null,null,null,null,null,null,null,null,null,null,null,null,null,null,null,null,null," ",61,86,0,null,{"$f":"IF(COUNTBLANK(D784)=0,A776)","v":false}]
[10,"D4","",null,0.01,null,null,null,null,null,null,null,null,null,null,null,null,null,null,null,null,null,null,null,null," ",61,86,0,null,false]
[10,"E4","",null,0.01,null,null,null,null,null,null,null,null,null,null,null,null,null,null,null,null,null,null,null,null," ",61,86,0,null,false]
[10,"F4","",null,0.01,null,null,null,null,null,null,null,null,null,null,null,null,null,null,null,null,null,null,null,null," ",{"$f":"CEILING((ROW()-StartRow+1)/PanelHeight,1)-1","v":61},86,{"$f":"IF(AB805=WellsInPlate,0,1)","v":0},null,false]
[10,"G4","",null,0.01,null,null,null,null,null,null,null,null,null,null,null,null,null,null,null,null,null,null,null,null," ",61,86,0,null,false]
[10,"H4","",null,0.01,null,null,null,null,null,null,null,null,null,null,null,null,null,null,null,null,null,null,null,null," ",61,86,0,null,false]
[10,"A5","",null,0.01,null,null,null,null,null,null,null,null,null,null,null,null,null,null,null,null,null,null,null,null," ",61,86,0,null,false]
[10,"B5","",null,0.01,null,null,null,null,null,null,null,null,null,null,null,null,null,null,null,null,null,null,null,null," ",61,86,0,null,false]
[10,"C5","",null,0.01,null,null,null,null,null,null,null,null,null,null,null,null,null,null,null,null,null,null,null,null," ",62,86,0,null,false]
[10,"D5","",null,0.01,null,null,null,null,null,null,null,null,null,null,null,null,null,null,null,null,null,null,null,null," ",62,86,0,null,false]
[10,"E5","",null,0.01,null,null,null,null,null,null,null,null,null,null,null,null,null,null,null,null,null,null,null,null," ",62,86,0,null,false]
[10,"F5","",null,0.01,null,null,null,null,null,null,null,null,null,null,null,null,null,null,null,null,null,null,null,null," ",62,86,0,null,false]
[10,"G5","",null,0.01,null,null,null,null,null,null,null,null,null,null,null,null,null,null,null,null,null,null,null,null," ",62,86,0,null,false]
[10,"H5","",null,0.01,null,null,null,null,null,null,null,null,null,null,null,null,null,null,null,null,null,null,null,null," ",62,86,0,null,false]
[10,"A6","",null,0.01,null,null,null,null,null,null,null,null,null,null,null,null,null,null,null,null,null,null,null,null," ",62,86,0,null,false]
[10,"B6","",null,0.01,null,null,null,null,null,null,null,null,null,null,null,null,null,null,null,null,null,null,null,null," ",62,86,0,null,false]
[10,"C6","",null,0.01,null,null,null,null,null,null,null,null,null,null,null,null,null,null,null,null,null,null,null,null," ",62,86,0,null,false]
[10,"D6",{"$f":"IF(D819=0,\"\",D819)","v":""},null,0.01,null,null,null,null,null,null,null,null,null,null,null,null,null,null,null,null,null,null,null,null," ",62,86,0,null,false]
[10,"E6","",null,0.01,null,null,null,null,null,null,null,null,null,null,null,null,null,null,null,null,null,null,null,null," ",62,86,0,null,false]
[10,"F6","",null,0.01,null,null,null,null,null,null,null,null,null,null,null,null,null,null,null,null,null,null,null,null," ",62,86,0,null,false]
[10,"G6","",null,0.01,null,null,null,null,null,null,null,null,null,null,null,null,null,null,null,null,null,null,null,null," ",62,86,0,null,false]
[10,"H6","",null,0.01,null,null,null,null,null,null,null,null,null,null,null,null,null,null,null,null,null,null,null,null," ",63,86,0,null,false]
[10,"A7","",null,0.01,null,null,null,null,null,null,null,null,null,null,null,null,null,null,null,null,null,null,null,null," ",63,86,0,null,false]
[10,"B7","",null,0.01,null,null,null,null,null,null,null,null,null,null,null,null,null,null,null,null,null,null,null,null," ",63,86,0,null,false]
[10,"C7","",null,0.01,null,null,null,null,null,null,null,null,null,null,null,null,null,null,null,null,null,null,null,null," ",63,86,0,null,false]
[10,"D7","",null,0.01,null,null,null,null,null,null,null,null,null,null,null,null,null,null,null,null,null,null,null,null," ",63,86,0,null,false]
[10,"E7","",null,0.01,null,null,null,null,null,null,null,null,null,null,null,null,null,null,null,null,null,null,null,null," ",63,86,0,null,false]
[10,"F7","",null,0.01,null,null,null,null,null,null,null,null,null,null,null,null,null,null,null,null,null,null,null,null," ",63,86,0,null,false]
[10,"G7","",null,0.01,null,null,null,null,null,null,null,null,null,null,null,null,null,null,null,null,null,null,null,null," ",63,86,0,null,false]
[10,"H7","",null,0.01,null,null,null,null,null,null,null,null,null,null,null,null,null,null,null,null,null,null,null,null," ",63,86,0,null,false]
[10,"A8","",null,0.01,null,null,null,null,null,null,null,null,null,null,null,null,null,null,null,null,null,null,null,null," ",63,86,0,null,false]
[10,"B8","",null,0.01,null,null,null,null,null,null,null,null,null,null,null,null,null,null,null,null,null,null,null,null," ",63,86,0,null,false]
[10,"C8","",null,0.01,null,null,null,null,null,null,null,null,null,null,null,null,null,null,null,null,null,null,null,null,{"$f":"IF(LEN(INDEX($1:$1048576,ROW(),4))>0,INDEX($1:$1048576,ROW(),4),\" \")","v":" "},63,86,0,null,{"$f":"IF(COUNTBLANK(D816)=0,A808)","v":false}]
[10,"D8","",null,0.01,null,null,null,null,null,null,null,null,null,null,null,null,null,null,null,null,null,null,null,null," ",63,86,0,null,false]
[10,"E8","",null,0.01,null,null,null,null,null,null,null,null,null,null,null,null,null,null,null,null,null,null,null,null," ",{"$f":"CEILING((ROW()-StartRow+1)/PanelHeight,1)-1","v":64},{"$f":"COUNTBLANK(OFFSET(INDEX($1:$1048576,2,4),AA836*WellsInPlate,0,WellsInPlate,1))","v":86},{"$f":"IF(AB836=WellsInPlate,0,1)","v":0},null,false]
[10,"F8","",null,0.01,null,null,null,null,null,null,null,null,null,null,null,null,null,null,null,null,null,null,null,null," ",{"$f":"CEILING((ROW()-StartRow+1)/PanelHeight,1)-1","v":64},86,{"$f":"IF(AB837=WellsInPlate,0,1)","v":0},null,false]
[10,"G8","",null,0.01,null,null,null,null,null,null,null,null,null,null,null,null,null,null,null,null,null,null,null,null," ",64,86,0,null,false]
[10,"H8","",null,0.01,null,null,null,null,null,null,null,null,null,null,null,null,null,null,null,null,null,null,null,null," ",64,86,0,null,false]
[10,"A9","",null,0.01,null,null,null,null,null,null,null,null,null,null,null,null,null,null,null,null,null,null,null,null," ",64,86,0,null,false]
[10,"B9","",null,0.01,null,null,null,null,null,null,null,null,null,null,null,null,null,null,null,null,null,null,null,null," ",64,86,0,null,false]
[10,"C9","",null,0.01,null,null,null,null,null,null,null,null,null,null,null,null,null,null,null,null,null,null,null,null," ",64,86,0,null,false]
[10,"D9","",null,0.01,null,null,null,null,null,null,null,null,null,null,null,null,null,null,null,null,null,null,null,null," ",64,86,0,null,false]
[10,"E9","",null,0.01,null,null,null,null,null,null,null,null,null,null,null,null,null,null,null,null,null,null,null,null," ",64,86,0,null,false]
[10,"F9","",null,0.01,null,null,null,null,null,null,null,null,null,null,null,null,null,null,null,null,null,null,null,null," ",64,86,0,null,false]
[10,"G9","",null,0.01,null,null,null,null,null,null,null,null,null,null,null,null,null,null,null,null,null,null,null,null," ",64,86,0,null,false]
[10,"H9","",null,0.01,null,null,null,null,null,null,null,null,null,null,null,null,null,null,null,null,null,null,null,null," ",64,86,0,null,false]
[10,"A10","",null,0.01,null,null,null,null,null,null,null,null,null,null,null,null,null,null,null,null,null,null,null,null," ",64,86,0,null,false]
[10,"B10","",null,0.01,null,null,null,null,null,null,null,null,null,null,null,null,null,null,null,null,null,null,null,null," ",65,86,0,null,false]
[10,"C10","",null,0.01,null,null,null,null,null,null,null,null,null,null,null,null,null,null,null,null,null,null,null,null," ",65,86,0,null,false]
[10,"D10","",null,0.01,null,null,null,null,null,null,null,null,null,null,null,null,null,null,null,null,null,null,null,null," ",65,86,0,null,false]
[10,"E10","",null,0.01,null,null,null,null,null,null,null,null,null,null,null,null,null,null,null,null,null,null,null,null," ",65,86,0,null,false]
[10,"F10","",null,0.01,null,null,null,null,null,null,null,null,null,null,null,null,null,null,null,null,null,null,null,null," ",65,86,0,null,false]
[10,"G10","",null,0.01,null,null,null,null,null,null,null,null,null,null,null,null,null,null,null,null,null,null,null,null," ",65,86,0,null,false]
[10,"H10","",null,0.01,null,null,null,null,null,null,null,null,null,null,null,null,null,null,null,null,null,null,null,null," ",65,86,0,null,false]
[10,"A11","",null,0.01,null,null,null,null,null,null,null,null,null,null,null,null,null,null,null,null,null,null,null,null," ",65,86,0,null,false]
[10,"B11","",null,0.01,null,null,null,null,null,null,null,null,null,null,null,null,null,null,null,null,null,null,null,null," ",65,86,0,null,false]
[10,"C11","",null,0.01,null,null,null,null,null,null,null,null,null,null,null,null,null,null,null,null,null,null,null,null," ",65,86,0,null,false]
[10,"D11","",null,0.01,null,null,null,null,null,null,null,null,null,null,null,null,null,null,null,null,null,null,null,null," ",65,86,0,null,false]
[10,"E11","",null,0.01,null,null,null,null,null,null,null,null,null,null,null,null,null,null,null,null,null,null,null,null," ",65,86,0,null,false]
[10,"F11","",null,0.01,null,null,null,null,null,null,null,null,null,null,null,null,null,null,null,null,null,null,null,null," ",65,86,0,null,false]
[11,"A1","",null,0.01,null,null,null,null,null,null,null,null,null,null,null,null,null,null,null,null,null,null,null,null," ",66,86,0,null,false]
[11,"B1","",null,0.01,null,null,null,null,null,null,null,null,null,null,null,null,null,null,null,null,null,null,null,null," ",66,86,0,null,false]
[11,"C1","",null,0.01,null,null,null,null,null,null,null,null,null,null,null,null,null,null,null,null,null,null,null,null," ",66,86,0,null,false]
[11,"D1","",null,0.01,null,null,null,null,null,null,null,null,null,null,null,null,null,null,null,null,null,null,null,null," ",66,86,0,null,false]
[11,"E1","",null,0.01,null,null,null,null,null,null,null,null,null,null,null,null,null,null,null,null,null,null,null,null," ",66,86,0,null,{"$f":"IF(COUNTBLANK(D848)=0,A840)","v":false}]
[11,"F1","",null,0.01,null,null,null,null,null,null,null,null,null,null,null,null,null,null,null,null,null,null,null,null," ",66,86,0,null,false]
[11,"G1","",null,0.01,null,null,null,null,null,null,null,null,null,null,null,null,null,null,null,null,null,null,null,null," ",66,86,0,null,false]
[11,"H1","",null,0.01,null,null,null,null,null,null,null,null,null,null,null,null,null,null,null,null,null,null,null,null," ",{"$f":"CEILING((ROW()-StartRow+1)/PanelHeight,1)-1","v":66},86,{"$f":"IF(AB869=WellsInPlate,0,1)","v":0},null,false]
[11,"A2","",null,0.01,null,null,null,null,null,null,null,null,null,null,null,null,null,null,null,null,null,null,null,null," ",66,86,0,null,false]
[11,"B2","",null,0.01,null,null,null,null,null,null,null,null,null,null,null,null,null,null,null,null,null,null,null,null," ",66,86,0,null,false]
[11,"C2","",null,0.01,null,null,null,null,null,null,null,null,null,null,null,null,null,null,null,null,null,null,null,null," ",66,86,0,null,false]
[11,"D2","",null,0.01,null,null,null,null,null,null,null,null,null,null,null,null,null,null,null,null,null,null,null,null," ",66,86,0,null,false]
[11,"E2","",null,0.01,null,null,null,null,null,null,null,null,null,null,null,null,null,null,null,null,null,null,null,null," ",66,86,0,null,false]
[11,"F2","",null,0.01,null,null,null,null,null,null,null,null,null,null,null,null,null,null,null,null,null,null,null,null," ",67,86,0,null,false]
[11,"G2","",null,0.01,null,null,null,null,null,null,null,null,null,null,null,null,null,null,null,null,null,null,null,null," ",67,86,0,null,false]
[11,"H2","",null,0.01,null,null,null,null,null,null,null,null,null,null,null,null,null,null,null,null,null,null,null,null," ",67,86,0,null,false]
[11,"A3","",null,0.01,null,null,null,null,null,null,null,null,null,null,null,null,null,null,null,null,null,null,null,null," ",67,86,0,null,false]
[11,"B3","",null,0.01,null,null,null,null,null,null,null,null,null,null,null,null,null,null,null,null,null,null,null,null," ",67,86,0,null,false]
[11,"C3","",null,0.01,null,null,null,null,null,null,null,null,null,null,null,null,null,null,null,null,null,null,null,null," ",67,86,0,null,{"$f":"IF(COUNTBLANK(#REF!)=0,A854)","v":{"$error":"#REF!"}}]
[11,"D3",{"$f":"IF(D881=0,\"\",D881)","v":""},null,0.01,null,null,null,null,null,null,null,null,null,null,null,null,null,null,null,null,null,null,null,null," ",67,86,0,null,{"$f":"IF(COUNTBLANK(#REF!)=0,A855)","v":{"$error":"#REF!"}}]
[11,"E3","",null,0.01,null,null,null,null,null,null,null,null,null,null,null,null,null,null,null,null,null,null,null,null," ",67,86,0,null,{"$f":"IF(COUNTBLANK(D862)=0,A856)","v":false}]
[11,"F3","",null,0.01,null,null,null,null,null,null,null,null,null,null,null,null,null,null,null,null,null,null,null,null," ",67,86,0,null,false]
[11,"G3","",null,0.01,null,null,null,null,null,null,null,null,null,null,null,null,null,null,null,null,null,null,null,null," ",67,86,0,null,false]
[11,"H3","",null,0.01,null,null,null,null,null,null,null,null,null,null,null,null,null,null,null,null,null,null,null,null," ",67,86,0,null,false]
[11,"A4","",null,0.01,null,null,null,null,null,null,null,null,null,null,null,null,null,null,null,null,null,null,null,null," ",67,86,0,null,false]
[11,"B4","",null,0.01,null,null,null,null,null,null,null,null,null,null,null,null,null,null,null,null,null,null,null,null," ",67,86,0,null,false]
[11,"C4","",null,0.01,null,null,null,null,null,null,null,null,null,null,null,null,null,null,null,null,null,null,null,null," ",68,86,0,null,{"$f":"IF(COUNTBLANK(D868)=0,#REF!)","v":false}]
[11,"D4","",null,0.01,null,null,null,null,null,null,null,null,null,null,null,null,null,null,null,null,null,null,null,null," ",68,86,0,null,{"$f":"IF(COUNTBLANK(D869)=0,#REF!)","v":false}]
[11,"E4","",null,0.01,null,null,null,null,null,null,null,null,null,null,null,null,null,null,null,null,null,null,null,null," ",68,86,0,null,{"$f":"IF(COUNTBLANK(D870)=0,A862)","v":false}]
[11,"F4","",null,0.01,null,null,null,null,null,null,null,null,null,null,null,null,null,null,null,null,null,null,null,null," ",68,86,0,null,false]
[11,"G4","",null,0.01,null,null,null,null,null,null,null,null,null,null,null,null,null,null,null,null,null,null,null,null," ",68,86,0,null,false]
[11,"H4","",null,0.01,null,null,null,null,null,null,null,null,null,null,null,null,null,null,null,null,null,null,null,null," ",68,86,0,null,false]
[11,"A5","",null,0.01,null,null,null,null,null,null,null,null,null,null,null,null,null,null,null,null,null,null,null,null," ",68,86,0,null,false]
[11,"B5","",null,0.01,null,null,null,null,null,null,null,null,null,null,null,null,null,null,null,null,null,null,null,null," ",68,86,0,null,false]
[11,"C5","",null,0.01,null,null,null,null,null,null,null,null,null,null,null,null,null,null,null,null,null,null,null,null," ",68,86,0,null,false]
[11,"D5","",null,0.01,null,null,null,null,null,null,null,null,null,null,null,null,null,null,null,null,null,null,null,null," ",68,86,0,null,false]
[11,"E5","",null,0.01,null,null,null,null,null,null,null,null,null,null,null,null,null,null,null,null,null,null,null,null,{"$f":"IF(LEN(INDEX($1:$1048576,ROW(),4))>0,INDEX($1:$1048576,ROW(),4),\" \")","v":" "},68,86,0,null,false]
[11,"F5","",null,0.01,null,null,null,null,null,null,null,null,null,null,null,null,null,null,null,null,null,null,null,null," ",68,86,0,null,false]
[11,"G5","",null,0.01,null,null,null,null,null,null,null,null,null,null,null,null,null,null,null,null,null,null,null,null," ",{"$f":"CEILING((ROW()-StartRow+1)/PanelHeight,1)-1","v":68},{"$f":"COUNTBLANK(OFFSET(INDEX($1:$1048576,2,4),AA900*WellsInPlate,0,WellsInPlate,1))","v":86},{"$f":"IF(AB900=WellsInPlate,0,1)","v":0},null,false]
[11,"H5","",null,0.01,null,null,null,null,null,null,null,null,null,null,null,null,null,null,null,null,null,null,null,null," ",{"$f":"CEILING((ROW()-StartRow+1)/PanelHeight,1)-1","v":69},86,{"$f":"IF(AB901=WellsInPlate,0,1)","v":0},null,false]
[11,"A6","",null,0.01,null,null,null,null,null,null,null,null,null,null,null,null,null,null,null,null,null,null,null,null," ",69,86,0,null,false]
[11,"B6","",null,0.01,null,null,null,null,null,null,null,null,null,null,null,null,null,null,null,null,null,null,null,null," ",69,86,0,null,false]
[11,"C6","",null,0.01,null,null,null,null,null,null,null,null,null,null,null,null,null,null,null,null,null,null,null,null," ",69,86,0,null,false]
[11,"D6","",null,0.01,null,null,null,null,null,null,null,null,null,null,null,null,null,null,null,null,null,null,null,null," ",69,86,0,null,false]
[11,"E6","",null,0.01,null,null,null,null,null,null,null,null,null,null,null,null,null,null,null,null,null,null,null,null," ",69,86,0,null,false]
[11,"F6","",null,0.01,null,null,null,null,null,null,null,null,null,null,null,null,null,null,null,null,null,null,null,null," ",69,86,0,null,false]
[11,"G6","",null,0.01,null,null,null,null,null,null,null,null,null,null,null,null,null,null,null,null,null,null,null,null," ",69,86,0,null,false]
[11,"H6","",null,0.01,null,null,null,null,null,null,null,null,null,null,null,null,null,null,null,null,null,null,null,null," ",69,86,0,null,false]
[11,"A7","",null,0.01,null,null,null,null,null,null,null,null,null,null,null,null,null,null,null,null,null,null,null,null," ",69,86,0,null,false]
[11,"B7","",null,0.01,null,null,null,null,null,null,null,null,null,null,null,null,null,null,null,null,null,null,null,null," ",69,86,0,null,false]
[11,"C7","",null,0.01,null,null,null,null,null,null,null,null,null,null,null,null,null,null,null,null,null,null,null,null," ",69,86,0,null,false]
[11,"D7","",null,0.01,null,null,null,null,null,null,null,null,null,null,null,null,null,null,null,null,null,null,null,null," ",69,86,0,null,false]
[11,"E7","",null,0.01,null,null,null,null,null,null,null,null,null,null,null,null,null,null,null,null,null,null,null,null," ",70,86,0,null,false]
[11,"F7","",null,0.01,null,null,null,null,null,null,null,null,null,null,null,null,null,null,null,null,null,null,null,null," ",70,86,0,null,false]
[11,"G7","",null,0.01,null,null,null,null,null,null,null,null,null,null,null,null,null,null,null,null,null,null,null,null," ",70,86,0,null,false]
[11,"H7","",null,0.01,null,null,null,null,null,null,null,null,null,null,null,null,null,null,null,null,null,null,null,null," ",70,86,0,null,false]
[11,"A8","",null,0.01,null,null,null,null,null,null,null,null,null,null,null,null,null,null,null,null,null,null,null,null," ",70,86,0,null,false]
[11,"B8","",null,0.01,null,null,null,null,null,null,null,null,null,null,null,null,null,null,null,null,null,null,null,null," ",70,86,0,null,false]
[11,"C8","",null,0.01,null,null,null,null,null,null,null,null,null,null,null,null,null,null,null,null,null,null,null,null," ",70,86,0,null,false]
[11,"D8","",null,0.01,null,null,null,null,null,null,null,null,null,null,null,null,null,null,null,null,null,null,null,null," ",70,86,0,null,false]
[11,"E8","",null,0.01,null,null,null,null,null,null,null,null,null,null,null,null,null,null,null,null,null,null,null,null," ",70,86,0,null,{"$f":"IF(COUNTBLANK(D902)=0,A894)","v":false}]
[11,"F8","",null,0.01,null,null,null,null,null,null,null,null,null,null,null,null,null,null,null,null,null,null,null,null," ",70,86,0,null,false]
[11,"G8","",null,0.01,null,null,null,null,null,null,null,null,null,null,null,null,null,null,null,null,null,null,null,null," ",70,86,0,null,false]
[11,"H8","",null,0.01,null,null,null,null,null,null,null,null,null,null,null,null,null,null,null,null,null,null,null,null," ",70,86,0,null,false]
[11,"A9","",null,0.01,null,null,null,null,null,null,null,null,null,null,null,null,null,null,null,null,null,null,null,null," ",70,86,0,null,false]
[11,"B9","",null,0.01,null,null,null,null,null,null,null,null,null,null,null,null,null,null,null,null,null,null,null,null," ",71,86,0,null,false]
[11,"C9","",null,0.01,null,null,null,null,null,null,null,null,null,null,null,null,null,null,null,null,null,null,null,null," ",71,86,0,null,false]
[11,"D9","",null,0.01,null,null,null,null,null,null,null,null,null,null,null,null,null,null,null,null,null,null,null,null," ",71,86,0,null,false]
[11,"E9","",null,0.01,null,null,null,null,null,null,null,null,null,null,null,null,null,null,null,null,null,null,null,null," ",71,86,0,null,false]
[11,"F9","",null,0.01,null,null,null,null,null,null,null,null,null,null,null,null,null,null,null,null,null,null,null,null," ",71,86,0,null,false]
[11,"G9","",null,0.01,null,null,null,null,null,null,null,null,null,null,null,null,null,null,null,null,null,null,null,null," ",71,86,0,null,false]
[11,"H9","",null,0.01,null,null,null,null,null,null,null,null,null,null,null,null,null,null,null,null,null,null,null,null," ",{"$f":"CEILING((ROW()-StartRow+1)/PanelHeight,1)-1","v":71},86,{"$f":"IF(AB933=WellsInPlate,0,1)","v":0},null,false]
[11,"A10","",null,0.01,null,null,null,null,null,null,null,null,null,null,null,null,null,null,null,null,null,null,null,null," ",71,86,0,null,false]
[11,"B10","",null,0.01,null,null,null,null,null,null,null,null,null,null,null,null,null,null,null,null,null,null,null,null," ",71,86,0,null,false]
[11,"C10","",null,0.01,null,null,null,null,null,null,null,null,null,null,null,null,null,null,null,null,null,null,null,null," ",71,86,0,null,false]
[11,"D10","",null,0.01,null,null,null,null,null,null,null,null,null,null,null,null,null,null,null,null,null,null,null,null," ",71,86,0,null,false]
[11,"E10","",null,0.01,null,null,null,null,null,null,null,null,null,null,null,null,null,null,null,null,null,null,null,null," ",71,86,0,null,false]
[11,"F10","",null,0.01,null,null,null,null,null,null,null,null,null,null,null,null,null,null,null,null,null,null,null,null," ",71,86,0,null,false]
[11,"G10","",null,0.01,null,null,null,null,null,null,null,null,null,null,null,null,null,null,null,null,null,null,null,null," ",72,86,0,null,false]
[11,"H10","",null,0.01,null,null,null,null,null,null,null,null,null,null,null,null,null,null,null,null,null,null,null,null," ",72,86,0,null,false]
[11,"A11","",null,0.01,null,null,null,null,null,null,null,null,null,null,null,null,null,null,null,null,null,null,null,null," ",72,86,0,null,false]
[11,"B11","",null,0.01,null,null,null,null,null,null,null,null,null,null,null,null,null,null,null,null,null,null,null,null," ",72,86,0,null,false]
[11,"C11","",null,0.01,null,null,null,null,null,null,null,null,null,null,null,null,null,null,null,null,null,null,null,null," ",72,86,0,null,false]
[11,"D11",{"$f":"IF(D945=0,\"\",D945)","v":""},null,0.01,null,null,null,null,null,null,null,null,null,null,null,null,null,null,null,null,null,null,null,null," ",72,86,0,null,false]
[11,"E11","",null,0.01,null,null,null,null,null,null,null,null,null,null,null,null,null,null,null,null,null,null,null,null," ",72,86,0,null,false]
[11,"F11","",null,0.01,null,null,null,null,null,null,null,null,null,null,null,null,null,null,null,null,null,null,null,null," ",72,86,0,null,false]
[12,"A1","",null,0.01,null,null,null,null,null,null,null,null,null,null,null,null,null,null,null,null,null,null,null,null," ",72,86,0,null,false]
[12,"B1","",null,0.01,null,null,null,null,null,null,null,null,null,null,null,null,null,null,null,null,null,null,null,null," ",72,86,0,null,false]
[12,"C1","",null,0.01,null,null,null,null,null,null,null,null,null,null,null,null,null,null,null,null,null,null,null,null," ",72,86,0,null,false]
[12,"D1","",null,0.01,null,null,null,null,null,null,null,null,null,null,null,null,null,null,null,null,null,null,null,null," ",72,86,0,null,false]
[12,"E1","",null,0.01,null,null,null,null,null,null,null,null,null,null,null,null,null,null,null,null,null,null,null,null," ",72,86,0,null,false]
[12,"F1","",null,0.01,null,null,null,null,null,null,null,null,null,null,null,null,null,null,null,null,null,null,null,null," ",73,86,0,null,false]
[12,"G1","",null,0.01,null,null,null,null,null,null,null,null,null,null,null,null,null,null,null,null,null,null,null,null," ",73,86,0,null,{"$f":"IF(COUNTBLANK(D934)=0,A926)","v":false}]
[12,"H1","",null,0.01,null,null,null,null,null,null,null,null,null,null,null,null,null,null,null,null,null,null,null,null," ",73,86,0,null,false]
[12,"A2","",null,0.01,null,null,null,null,null,null,null,null,null,null,null,null,null,null,null,null,null,null,null,null," ",73,86,0,null,false]
[12,"B2","",null,0.01,null,null,null,null,null,null,null,null,null,null,null,null,null,null,null,null,null,null,null,null," ",73,86,0,null,false]
[12,"C2","",null,0.01,null,null,null,null,null,null,null,null,null,null,null,null,null,null,null,null,null,null,null,null," ",73,86,0,null,false]
[12,"D2","",null,0.01,null,null,null,null,null,null,null,null,null,null,null,null,null,null,null,null,null,null,null,null," ",73,86,0,null,false]
[12,"E2","",null,0.01,null,null,null,null,null,null,null,null,null,null,null,null,null,null,null,null,null,null,null,null," ",73,86,0,null,false]
[12,"F2","",null,0.01,null,null,null,null,null,null,null,null,null,null,null,null,null,null,null,null,null,null,null,null," ",73,86,0,null,false]
[12,"G2","",null,0.01,null,null,null,null,null,null,null,null,null,null,null,null,null,null,null,null,null,null,null,null,{"$f":"IF(LEN(INDEX($1:$1048576,ROW(),4))>0,INDEX($1:$1048576,ROW(),4),\" \")","v":" "},73,86,0,null,false]
[12,"H2","",null,0.01,null,null,null,null,null,null,null,null,null,null,null,null,null,null,null,null,null,null,null,null," ",73,86,0,null,false]
[12,"A3","",null,0.01,null,null,null,null,null,null,null,null,null,null,null,null,null,null,null,null,null,null,null,null," ",{"$f":"CEILING((ROW()-StartRow+1)/PanelHeight,1)-1","v":73},{"$f":"COUNTBLANK(OFFSET(INDEX($1:$1048576,2,4),AA964*WellsInPlate,0,WellsInPlate,1))","v":86},{"$f":"IF(AB964=WellsInPlate,0,1)","v":0},null,false]
[12,"B3","",null,0.01,null,null,null,null,null,null,null,null,null,null,null,null,null,null,null,null,null,null,null,null," ",{"$f":"CEILING((ROW()-StartRow+1)/PanelHeight,1)-1","v":73},86,{"$f":"IF(AB965=WellsInPlate,0,1)","v":0},null,false]
[12,"C3","",null,0.01,null,null,null,null,null,null,null,null,null,null,null,null,null,null,null,null,null,null,null,null," ",74,86,0,null,false]
[12,"D3","",null,0.01,null,null,null,null,null,null,null,null,null,null,null,null,null,null,null,null,null,null,null,null," ",74,86,0,null,false]
[12,"E3","",null,0.01,null,null,null,null,null,null,null,null,null,null,null,null,null,null,null,null,null,null,null,null," ",74,86,0,null,{"$f":"IF(COUNTBLANK(#REF!)=0,A940)","v":{"$error":"#REF!"}}]
[12,"F3","",null,0.01,null,null,null,null,null,null,null,null,null,null,null,null,null,null,null,null,null,null,null,null," ",74,86,0,null,{"$f":"IF(COUNTBLANK(#REF!)=0,A941)","v":{"$error":"#REF!"}}]
[12,"G3","",null,0.01,null,null,null,null,null,null,null,null,null,null,null,null,null,null,null,null,null,null,null,null," ",74,86,0,null,{"$f":"IF(COUNTBLANK(D948)=0,A942)","v":false}]
[12,"H3","",null,0.01,null,null,null,null,null,null,null,null,null,null,null,null,null,null,null,null,null,null,null,null," ",74,86,0,null,false]
[12,"A4","",null,0.01,null,null,null,null,null,null,null,null,null,null,null,null,null,null,null,null,null,null,null,null," ",74,86,0,null,false]
[12,"B4","",null,0.01,null,null,null,null,null,null,null,null,null,null,null,null,null,null,null,null,null,null,null,null," ",74,86,0,null,false]
[12,"C4","",null,0.01,null,null,null,null,null,null,null,null,null,null,null,null,null,null,null,null,null,null,null,null," ",74,86,0,null,false]
[12,"D4","",null,0.01,null,null,null,null,null,null,null,null,null,null,null,null,null,null,null,null,null,null,null,null," ",74,86,0,null,false]
[12,"E4","",null,0.01,null,null,null,null,null,null,null,null,null,null,null,null,null,null,null,null,null,null,null,null," ",74,86,0,null,{"$f":"IF(COUNTBLANK(D954)=0,#REF!)","v":false}]
[12,"F4","",null,0.01,null,null,null,null,null,null,null,null,null,null,null,null,null,null,null,null,null,null,null,null," ",74,86,0,null,{"$f":"IF(COUNTBLANK(D955)=0,#REF!)","v":false}]
[12,"G4","",null,0.01,null,null,null,null,null,null,null,null,null,null,null,null,null,null,null,null,null,null,null,null," ",74,86,0,null,{"$f":"IF(COUNTBLANK(D956)=0,A948)","v":false}]
[12,"H4","",null,0.01,null,null,null,null,null,null,null,null,null,null,null,null,null,null,null,null,null,null,null,null," ",75,86,0,null,false]
[12,"A5","",null,0.01,null,null,null,null,null,null,null,null,null,null,null,null,null,null,null,null,null,null,null,null," ",75,86,0,null,false]
[12,"B5","",null,0.01,null,null,null,null,null,null,null,null,null,null,null,null,null,null,null,null,null,null,null,null," ",75,86,0,null,false]
[12,"C5","",null,0.01,null,null,null,null,null,null,null,null,null,null,null,null,null,null,null,null,null,null,null,null," ",75,86,0,null,false]
[12,"D5","",null,0.01,null,null,null,null,null,null,null,null,null,null,null,null,null,null,null,null,null,null,null,null," ",75,86,0,null,false]
[12,"E5","",null,0.01,null,null,null,null,null,null,null,null,null,null,null,null,null,null,null,null,null,null,null,null," ",75,86,0,null,false]
[12,"F5","",null,0.01,null,null,null,null,null,null,null,null,null,null,null,null,null,null,null,null,null,null,null,null," ",75,86,0,null,false]
[12,"G5","",null,0.01,null,null,null,null,null,null,null,null,null,null,null,null,null,null,null,null,null,null,null,null," ",75,86,0,null,false]
[12,"H5","",null,0.01,null,null,null,null,null,null,null,null,null,null,null,null,null,null,null,null,null,null,null,null," ",75,86,0,null,false]
[12,"A6","",null,0.01,null,null,null,null,null,null,null,null,null,null,null,null,null,null,null,null,null,null,null,null," ",75,86,0,null,false]
[12,"B6","",null,0.01,null,null,null,null,null,null,null,null,null,null,null,null,null,null,null,null,null,null,null,null," ",75,86,0,null,false]
[12,"C6","",null,0.01,null,null,null,null,null,null,null,null,null,null,null,null,null,null,null,null,null,null,null,null," ",75,86,0,null,false]
[12,"D6","",null,0.01,null,null,null,null,null,null,null,null,null,null,null,null,null,null,null,null,null,null,null,null," ",75,86,0,null,false]
[12,"E6","",null,0.01,null,null,null,null,null,null,null,null,null,null,null,null,null,null,null,null,null,null,null,null," ",76,86,0,null,false]
[12,"F6","",null,0.01,null,null,null,null,null,null,null,null,null,null,null,null,null,null,null,null,null,null,null,null," ",76,86,0,null,false]
[12,"G6","",null,0.01,null,null,null,null,null,null,null,null,null,null,null,null,null,null,null,null,null,null,null,null," ",76,86,0,null,false]
[12,"H6","",null,0.01,null,null,null,null,null,null,null,null,null,null,null,null,null,null,null,null,null,null,null,null," ",76,86,0,null,false]
[12,"A7","",null,0.01,null,null,null,null,null,null,null,null,null,null,null,null,null,null,null,null,null,null,null,null," ",76,86,0,null,false]
[12,"B7","",null,0.01,null,null,null,null,null,null,null,null,null,null,null,null,null,null,null,null,null,null,null,null," ",{"$f":"CEILING((ROW()-StartRow+1)/PanelHeight,1)-1","v":76},86,{"$f":"IF(AB997=WellsInPlate,0,1)","v":0},null,false]
[12,"C7","",null,0.01,null,null,null,null,null,null,null,null,null,null,null,null,null,null,null,null,null,null,null,null," ",76,86,0,null,false]
[12,"D7","",null,0.01,null,null,null,null,null,null,null,null,null,null,null,null,null,null,null,null,null,null,null,null," ",76,86,0,null,false]
[12,"E7","",null,0.01,null,null,null,null,null,null,null,null,null,null,null,null,null,null,null,null,null,null,null,null," ",76,86,0,null,false]
[12,"F7","",null,0.01,null,null,null,null,null,null,null,null,null,null,null,null,null,null,null,null,null,null,null,null," ",76,86,0,null,false]
[12,"C8","",null,0.01,null,null,null,null,null,null,null,null,null,null,null,null,null,null,null,null,null,null,null,null," ",77,86,0,null,false]
[12,"H8","",null,0.01,null,null,null,null,null,null,null,null,null,null,null,null,null,null,null,null,null,null,null,null," ",77,86,0,null,false]
[12,"A9","",null,0.01,null,null,null,null,null,null,null,null,null,null,null,null,null,null,null,null,null,null,null,null," ",77,86,0,null,false]
[12,"G9","",null,0.01,null,null,null,null,null,null,null,null,null,null,null,null,null,null,null,null,null,null,null,null," ",78,86,0,null,false]
[12,"B10","",null,0.01,null,null,null,null,null,null,null,null,null,null,null,null,null,null,null,null,null,null,null,null," ",78,86,0,null,false]
[12,"G10","",null,0.01,null,null,null,null,null,null,null,null,null,null,null,null,null,null,null,null,null,null,null,null,{"$f":"IF(LEN(INDEX($1:$1048576,ROW(),4))>0,INDEX($1:$1048576,ROW(),4),\" \")","v":" "},78,86,0,null,false]
[12,"H10","",null,0.01,null,null,null,null,null,null,null,null,null,null,null,null,null,null,null,null,null,null,null,null," ",78,86,0,null,false]
[12,"E11","",null,0.01,null,null,null,null,null,null,null,null,null,null,null,null,null,null,null,null,null,null,null,null," ",79,86,0,null,false]
[13,"C1","",null,0.01,null,null,null,null,null,null,null,null,null,null,null,null,null,null,null,null,null,null,null,null," ",79,86,0,null,false]
[13,"H1","",null,0.01,null,null,null,null,null,null,null,null,null,null,null,null,null,null,null,null,null,null,null,null," ",79,86,0,null,false]
[13,"A2","",null,0.01,null,null,null,null,null,null,null,null,null,null,null,null,null,null,null,null,null,null,null,null," ",79,86,0,null,{"$f":"IF(COUNTBLANK(D1020)=0,A1012)","v":false}]
[13,"G2","",null,0.01,null,null,null,null,null,null,null,null,null,null,null,null,null,null,null,null,null,null,null,null," ",80,86,0,null,false]
[13,"B3","",null,0.01,null,null,null,null,null,null,null,null,null,null,null,null,null,null,null,null,null,null,null,null," ",80,86,0,null,false]
[13,"G3","",null,0.01,null,null,null,null,null,null,null,null,null,null,null,null,null,null,null,null,null,null,null,null," ",80,86,0,null,{"$f":"IF(COUNTBLANK(#REF!)=0,A1026)","v":{"$error":"#REF!"}}]
[13,"H3","",null,0.01,null,null,null,null,null,null,null,null,null,null,null,null,null,null,null,null,null,null,null,null," ",81,86,0,null,{"$f":"IF(COUNTBLANK(#REF!)=0,A1027)","v":{"$error":"#REF!"}}]
[13,"E4","",null,0.01,null,null,null,null,null,null,null,null,null,null,null,null,null,null,null,null,null,null,null,null," ",81,86,0,null,false]
[13,"A5","",null,0.01,null,null,null,null,null,null,null,null,null,null,null,null,null,null,null,null,null,null,null,null," ",81,86,0,null,{"$f":"IF(COUNTBLANK(D1042)=0,A1034)","v":false}]
[13,"F5","",null,0.01,null,null,null,null,null,null,null,null,null,null,null,null,null,null,null,null,null,null,null,null," ",82,86,0,null,false]
[13,"G5","",null,0.01,null,null,null,null,null,null,null,null,null,null,null,null,null,null,null,null,null,null,null,null," ",82,86,0,null,false]
[13,"E6","",null,0.01,null,null,null,null,null,null,null,null,null,null,null,null,null,null,null,null,null,null,null,null," ",82,86,0,null,false]
[13,"H6","",null,0.01,null,null,null,null,null,null,null,null,null,null,null,null,null,null,null,null,null,null,null,null," ",82,86,0,null,false]
[13,"E7","",null,0.01,null,null,null,null,null,null,null,null,null,null,null,null,null,null,null,null,null,null,null,null," ",83,86,0,null,false]
[13,"F7","",null,0.01,null,null,null,null,null,null,null,null,null,null,null,null,null,null,null,null,null,null,null,null," ",83,86,0,null,false]
[13,"C8","",null,0.01,null,null,null,null,null,null,null,null,null,null,null,null,null,null,null,null,null,null,null,null," ",{"$f":"CEILING((ROW()-StartRow+1)/PanelHeight,1)-1","v":83},{"$f":"COUNTBLANK(OFFSET(INDEX($1:$1048576,2,4),AA1092*WellsInPlate,0,WellsInPlate,1))","v":86},{"$f":"IF(AB1092=WellsInPlate,0,1)","v":0},null,false]
[13,"G8","",null,0.01,null,null,null,null,null,null,null,null,null,null,null,null,null,null,null,null,null,null,null,null," ",84,86,0,null,false]
[13,"D9","",null,0.01,null,null,null,null,null,null,null,null,null,null,null,null,null,null,null,null,null,null,null,null," ",84,86,0,null,false]
[13,"E9","",null,0.01,null,null,null,null,null,null,null,null,null,null,null,null,null,null,null,null,null,null,null,null," ",84,86,0,null,false]
[13,"C10","",null,0.01,null,null,null,null,null,null,null,null,null,null,null,null,null,null,null,null,null,null,null,null," ",84,86,0,null,false]
[13,"F10","",null,0.01,null,null,null,null,null,null,null,null,null,null,null,null,null,null,null,null,null,null,null,null," ",85,86,0,null,false]
[13,"C11","",null,0.01,null,null,null,null,null,null,null,null,null,null,null,null,null,null,null,null,null,null,null,null," ",85,86,0,null,false]
[13,"D11","",null,0.01,null,null,null,null,null,null,null,null,null,null,null,null,null,null,null,null,null,null,null,null," ",85,86,0,null,false]
[14,"C1","",null,0.01,null,null,null,null,null,null,null,null,null,null,null,null,null,null,null,null,null,null,null,null," ",86,86,0,null,false]
[14,"G1","",null,0.01,null,null,null,null,null,null,null,null,null,null,null,null,null,null,null,null,null,null,null,null," ",86,86,0,null,false]
[14,"D2",{"$f":"IF(D1131=0,\"\",D1131)","v":""},null,0.01,null,null,null,null,null,null,null,null,null,null,null,null,null,null,null,null,null,null,null,null," ",86,86,0,null,false]
[14,"E2","",null,0.01,null,null,null,null,null,null,null,null,null,null,null,null,null,null,null,null,null,null,null,null," ",86,86,0,null,false]
[14,"B3","",null,0.01,null,null,null,null,null,null,null,null,null,null,null,null,null,null,null,null,null,null,null,null," ",87,86,0,null,false]
[14,"E3","",null,0.01,null,null,null,null,null,null,null,null,null,null,null,null,null,null,null,null,null,null,null,null," ",87,86,0,null,false]
[14,"C4","",null,0.01,null,null,null,null,null,null,null,null,null,null,null,null,null,null,null,null,null,null,null,null," ",87,86,0,null,{"$f":"IF(COUNTBLANK(D1120)=0,A1114)","v":false}]
[14,"D4","",null,0.01,null,null,null,null,null,null,null,null,null,null,null,null,null,null,null,null,null,null,null,null," ",87,86,0,null,false]
[14,"A5","",null,0.01,null,null,null,null,null,null,null,null,null,null,null,null,null,null,null,null,null,null,null,null," ",88,86,0,null,{"$f":"IF(COUNTBLANK(D1126)=0,#REF!)","v":false}]
[14,"E5","",null,0.01,null,null,null,null,null,null,null,null,null,null,null,null,null,null,null,null,null,null,null,null," ",{"$f":"CEILING((ROW()-StartRow+1)/PanelHeight,1)-1","v":88},{"$f":"COUNTBLANK(OFFSET(INDEX($1:$1048576,2,4),AA1156*WellsInPlate,0,WellsInPlate,1))","v":86},{"$f":"IF(AB1156=WellsInPlate,0,1)","v":0},null,false]
[14,"B6","",null,0.01,null,null,null,null,null,null,null,null,null,null,null,null,null,null,null,null,null,null,null,null," ",89,86,0,null,false]
[14,"C6","",null,0.01,null,null,null,null,null,null,null,null,null,null,null,null,null,null,null,null,null,null,null,null," ",89,86,0,null,false]
[14,"H6","",null,0.01,null,null,null,null,null,null,null,null,null,null,null,null,null,null,null,null,null,null,null,null," ",89,86,0,null,false]
[14,"C7","",null,0.01,null,null,null,null,null,null,null,null,null,null,null,null,null,null,null,null,null,null,null,null," ",89,86,0,null,false]
[14,"A8","",null,0.01,null,null,null,null,null,null,null,null,null,null,null,null,null,null,null,null,null,null,null,null," ",90,86,0,null,false]
[14,"B8","",null,0.01,null,null,null,null,null,null,null,null,null,null,null,null,null,null,null,null,null,null,null,null," ",90,86,0,null,false]
[14,"G8","",null,0.01,null,null,null,null,null,null,null,null,null,null,null,null,null,null,null,null,null,null,null,null," ",90,86,0,null,false]
[14,"C9","",null,0.01,null,null,null,null,null,null,null,null,null,null,null,null,null,null,null,null,null,null,null,null," ",90,86,0,null,{"$f":"IF(COUNTBLANK(D1160)=0,A1152)","v":false}]
[14,"H9","",null,0.01,null,null,null,null,null,null,null,null,null,null,null,null,null,null,null,null,null,null,null,null," ",91,86,0,null,false]
[14,"A10","",null,0.01,null,null,null,null,null,null,null,null,null,null,null,null,null,null,null,null,null,null,null,null," ",91,86,0,null,false]
[14,"F10","",null,0.01,null,null,null,null,null,null,null,null,null,null,null,null,null,null,null,null,null,null,null,null," ",91,86,0,null,false]
[14,"A11","",null,0.01,null,null,null,null,null,null,null,null,null,null,null,null,null,null,null,null,null,null,null,null," ",92,86,0,null,false]
[15,"A1","",null,0.01,null,null,null,null,null,null,null,null,null,null,null,null,null,null,null,null,null,null,null,null," ",92,86,0,null,false]
[15,"B1","",null,0.01,null,null,null,null,null,null,null,null,null,null,null,null,null,null,null,null,null,null,null,null," ",92,86,0,null,false]
[15,"G1","",null,0.01,null,null,null,null,null,null,null,null,null,null,null,null,null,null,null,null,null,null,null,null," ",92,86,0,null,false]
[15,"C2","",null,0.01,null,null,null,null,null,null,null,null,null,null,null,null,null,null,null,null,null,null,null,null," ",93,86,0,null,false]
[15,"H2","",null,0.01,null,null,null,null,null,null,null,null,null,null,null,null,null,null,null,null,null,null,null,null," ",{"$f":"CEILING((ROW()-StartRow+1)/PanelHeight,1)-1","v":93},86,{"$f":"IF(AB1221=WellsInPlate,0,1)","v":0},null,false]
[15,"A3","",null,0.01,null,null,null,null,null,null,null,null,null,null,null,null,null,null,null,null,null,null,null,null," ",93,86,0,null,false]
[15,"F3","",null,0.01,null,null,null,null,null,null,null,null,null,null,null,null,null,null,null,null,null,null,null,null," ",94,86,0,null,false]
[15,"A4","",null,0.01,null,null,null,null,null,null,null,null,null,null,null,null,null,null,null,null,null,null,null,null," ",94,86,0,null,false]
[15,"G4","",null,0.01,null,null,null,null,null,null,null,null,null,null,null,null,null,null,null,null,null,null,null,null," ",94,86,0,null,false]
[15,"H4","",null,0.01,null,null,null,null,null,null,null,null,null,null,null,null,null,null,null,null,null,null,null,null," ",94,86,0,null,false]
[15,"E5","",null,0.01,null,null,null,null,null,null,null,null,null,null,null,null,null,null,null,null,null,null,null,null," ",95,86,0,null,{"$f":"IF(COUNTBLANK(D1214)=0,A1206)","v":false}]
[15,"A6","",null,0.01,null,null,null,null,null,null,null,null,null,null,null,null,null,null,null,null,null,null,null,null," ",95,86,0,null,false]
[15,"F6","",null,0.01,null,null,null,null,null,null,null,null,null,null,null,null,null,null,null,null,null,null,null,null," ",95,86,0,null,false]
[15,"G6","",null,0.01,null,null,null,null,null,null,null,null,null,null,null,null,null,null,null,null,null,null,null,null," ",96,86,0,null,false]
[15,"D7",{"$f":"IF(D1257=0,\"\",D1257)","v":""},null,0.01,null,null,null,null,null,null,null,null,null,null,null,null,null,null,null,null,null,null,null,null," ",96,86,0,null,false]
[15,"G7","",null,0.01,null,null,null,null,null,null,null,null,null,null,null,null,null,null,null,null,null,null,null,null," ",96,86,0,null,false]
[15,"E8","",null,0.01,null,null,null,null,null,null,null,null,null,null,null,null,null,null,null,null,null,null,null,null," ",97,86,0,null,false]
[15,"F8","",null,0.01,null,null,null,null,null,null,null,null,null,null,null,null,null,null,null,null,null,null,null,null," ",97,86,0,null,false]
[15,"C9","",null,0.01,null,null,null,null,null,null,null,null,null,null,null,null,null,null,null,null,null,null,null,null," ",97,86,0,null,false]
[15,"H9","",null,0.01,null,null,null,null,null,null,null,null,null,null,null,null,null,null,null,null,null,null,null,null," ",97,86,0,null,false]
[15,"D10","",null,0.01,null,null,null,null,null,null,null,null,null,null,null,null,null,null,null,null,null,null,null,null," ",98,86,0,null,false]
[15,"E10","",null,0.01,null,null,null,null,null,null,null,null,null,null,null,null,null,null,null,null,null,null,null,null,{"$f":"IF(LEN(INDEX($1:$1048576,ROW(),4))>0,INDEX($1:$1048576,ROW(),4),\" \")","v":" "},98,86,0,null,false]
[15,"B11","",null,0.01,null,null,null,null,null,null,null,null,null,null,null,null,null,null,null,null,null,null,null,null," ",98,86,0,null,false]
[16,"A1","",null,0.01,null,null,null,null,null,null,null,null,null,null,null,null,null,null,null,null,null,null,null,null," ",99,86,0,null,false]
[16,"C1","",null,0.01,null,null,null,null,null,null,null,null,null,null,null,null,null,null,null,null,null,null,null,null," ",99,86,0,null,false]
[16,"F1","",null,0.01,null,null,null,null,null,null,null,null,null,null,null,null,null,null,null,null,null,null,null,null," ",99,86,0,null,false]
[16,"C2","",null,0.01,null,null,null,null,null,null,null,null,null,null,null,null,null,null,null,null,null,null,null,null," ",99,86,0,null,false]
[16,"H2","",null,0.01,null,null,null,null,null,null,null,null,null,null,null,null,null,null,null,null,null,null,null,null," ",100,86,0,null,false]
[16,"D3","",null,0.01,null,null,null,null,null,null,null,null,null,null,null,null,null,null,null,null,null,null,null,null," ",100,86,0,null,false]
[16,"E3","",null,0.01,null,null,null,null,null,null,null,null,null,null,null,null,null,null,null,null,null,null,null,null," ",100,86,0,null,false]
[16,"B4","",null,0.01,null,null,null,null,null,null,null,null,null,null,null,null,null,null,null,null,null,null,null,null," ",{"$f":"CEILING((ROW()-StartRow+1)/PanelHeight,1)-1","v":101},86,{"$f":"IF(AB1317=WellsInPlate,0,1)","v":0},null,false]
[16,"G4","",null,0.01,null,null,null,null,null,null,null,null,null,null,null,null,null,null,null,null,null,null,null,null," ",101,86,0,null,{"$f":"IF(COUNTBLANK(D1292)=0,A1286)","v":false}]
[16,"A5","",null,0.01,null,null,null,null,null,null,null,null,null,null,null,null,null,null,null,null,null,null,null,null," ",101,86,0,null,false]
[16,"D5","",null,0.01,null,null,null,null,null,null,null,null,null,null,null,null,null,null,null,null,null,null,null,null," ",101,86,0,null,false]
[16,"A6","",null,0.01,null,null,null,null,null,null,null,null,null,null,null,null,null,null,null,null,null,null,null,null," ",102,86,0,null,false]
[16,"F6","",null,0.01,null,null,null,null,null,null,null,null,null,null,null,null,null,null,null,null,null,null,null,null," ",102,86,0,null,false]
[16,"B7","",null,0.01,null,null,null,null,null,null,null,null,null,null,null,null,null,null,null,null,null,null,null,null," ",102,86,0,null,false]
[16,"C7","",null,0.01,null,null,null,null,null,null,null,null,null,null,null,null,null,null,null,null,null,null,null,null," ",102,86,0,null,false]
[16,"H7","",null,0.01,null,null,null,null,null,null,null,null,null,null,null,null,null,null,null,null,null,null,null,null," ",103,86,0,null,false]
[16,"E8","",null,0.01,null,null,null,null,null,null,null,null,null,null,null,null,null,null,null,null,null,null,null,null," ",103,86,0,null,false]
[16,"G8","",null,0.01,null,null,null,null,null,null,null,null,null,null,null,null,null,null,null,null,null,null,null,null," ",103,86,0,null,false]
[16,"B9","",null,0.01,null,null,null,null,null,null,null,null,null,null,null,null,null,null,null,null,null,null,null,null," ",104,86,0,null,false]
[16,"G9","",null,0.01,null,null,null,null,null,null,null,null,null,null,null,null,null,null,null,null,null,null,null,null," ",104,86,0,null,{"$f":"IF(COUNTBLANK(D1332)=0,A1324)","v":false}]
[16,"D10","",null,0.01,null,null,null,null,null,null,null,null,null,null,null,null,null,null,null,null,null,null,null,null," ",104,86,0,null,false]
[16,"H10","",null,0.01,null,null,null,null,null,null,null,null,null,null,null,null,null,null,null,null,null,null,null,null," ",105,86,0,null,false]
[16,"A11","",null,0.01,null,null,null,null,null,null,null,null,null,null,null,null,null,null,null,null,null,null,null,null," ",105,86,0,null,false]
[16,"F11","",null,0.01,null,null,null,null,null,null,null,null,null,null,null,null,null,null,null,null,null,null,null,null," ",105,86,0,null,false]
[17,"E1","",null,0.01,null,null,null,null,null,null,null,null,null,null,null,null,null,null,null,null,null,null,null,null," ",106,86,0,null,false]
[17,"G1","",null,0.01,null,null,null,null,null,null,null,null,null,null,null,null,null,null,null,null,null,null,null,null," ",106,86,0,null,false]
[17,"B2","",null,0.01,null,null,null,null,null,null,null,null,null,null,null,null,null,null,null,null,null,null,null,null," ",106,86,0,null,false]
[17,"G2","",null,0.01,null,null,null,null,null,null,null,null,null,null,null,null,null,null,null,null,null,null,null,null," ",106,86,0,null,false]
[17,"D3","",null,0.01,null,null,null,null,null,null,null,null,null,null,null,null,null,null,null,null,null,null,null,null," ",107,86,0,null,false]
[17,"H3","",null,0.01,null,null,null,null,null,null,null,null,null,null,null,null,null,null,null,null,null,null,null,null," ",107,86,0,null,false]
[17,"A4","",null,0.01,null,null,null,null,null,null,null,null,null,null,null,null,null,null,null,null,null,null,null,null," ",107,86,0,null,false]
[17,"F4","",null,0.01,null,null,null,null,null,null,null,null,null,null,null,null,null,null,null,null,null,null,null,null," ",107,86,0,null,false]
[17,"C5","",null,0.01,null,null,null,null,null,null,null,null,null,null,null,null,null,null,null,null,null,null,null,null," ",{"$f":"CEILING((ROW()-StartRow+1)/PanelHeight,1)-1","v":108},{"$f":"COUNTBLANK(OFFSET(INDEX($1:$1048576,2,4),AA1412*WellsInPlate,0,WellsInPlate,1))","v":86},{"$f":"IF(AB1412=WellsInPlate,0,1)","v":0},null,false]
[17,"H5","",null,0.01,null,null,null,null,null,null,null,null,null,null,null,null,null,null,null,null,null,null,null,null," ",108,86,0,null,{"$f":"IF(COUNTBLANK(D1385)=0,#REF!)","v":false}]
[17,"B6","",null,0.01,null,null,null,null,null,null,null,null,null,null,null,null,null,null,null,null,null,null,null,null," ",108,86,0,null,false]
[17,"E6","",null,0.01,null,null,null,null,null,null,null,null,null,null,null,null,null,null,null,null,null,null,null,null," ",109,86,0,null,false]
[17,"B7","",null,0.01,null,null,null,null,null,null,null,null,null,null,null,null,null,null,null,null,null,null,null,null," ",109,86,0,null,false]
[17,"G7","",null,0.01,null,null,null,null,null,null,null,null,null,null,null,null,null,null,null,null,null,null,null,null," ",109,86,0,null,false]
[17,"B8","",null,0.01,null,null,null,null,null,null,null,null,null,null,null,null,null,null,null,null,null,null,null,null," ",110,86,0,null,false]
[17,"D8","",null,0.01,null,null,null,null,null,null,null,null,null,null,null,null,null,null,null,null,null,null,null,null," ",110,86,0,null,false]
[17,"A9","",null,0.01,null,null,null,null,null,null,null,null,null,null,null,null,null,null,null,null,null,null,null,null," ",110,86,0,null,false]
[17,"F9","",null,0.01,null,null,null,null,null,null,null,null,null,null,null,null,null,null,null,null,null,null,null,null," ",111,86,0,null,false]
[17,"H9","",null,0.01,null,null,null,null,null,null,null,null,null,null,null,null,null,null,null,null,null,null,null,null," ",111,86,0,null,false]
[17,"C10","",null,0.01,null,null,null,null,null,null,null,null,null,null,null,null,null,null,null,null,null,null,null,null," ",111,86,0,null,false]
[17,"H10","",null,0.01,null,null,null,null,null,null,null,null,null,null,null,null,null,null,null,null,null,null,null,null," ",111,86,0,null,false]
[17,"E11","",null,0.01,null,null,null,null,null,null,null,null,null,null,null,null,null,null,null,null,null,null,null,null," ",112,86,0,null,false]
[18,"B1","",null,0.01,null,null,null,null,null,null,null,null,null,null,null,null,null,null,null,null,null,null,null,null," ",112,86,0,null,false]
[18,"D1","",null,0.01,null,null,null,null,null,null,null,null,null,null,null,null,null,null,null,null,null,null,null,null," ",112,86,0,null,false]
[18,"A2","",null,0.01,null,null,null,null,null,null,null,null,null,null,null,null,null,null,null,null,null,null,null,null," ",112,86,0,null,false]
[18,"F2","",null,0.01,null,null,null,null,null,null,null,null,null,null,null,null,null,null,null,null,null,null,null,null," ",{"$f":"CEILING((ROW()-StartRow+1)/PanelHeight,1)-1","v":113},86,{"$f":"IF(AB1477=WellsInPlate,0,1)","v":0},null,false]
[18,"H2","",null,0.01,null,null,null,null,null,null,null,null,null,null,null,null,null,null,null,null,null,null,null,null," ",113,86,0,null,false]
[18,"C3","",null,0.01,null,null,null,null,null,null,null,null,null,null,null,null,null,null,null,null,null,null,null,null," ",113,86,0,null,{"$f":"IF(COUNTBLANK(D1450)=0,A1442)","v":false}]
[18,"H3","",null,0.01,null,null,null,null,null,null,null,null,null,null,null,null,null,null,null,null,null,null,null,null," ",114,86,0,null,false]
[18,"E4","",null,0.01,null,null,null,null,null,null,null,null,null,null,null,null,null,null,null,null,null,null,null,null," ",114,86,0,null,false]
[18,"F4","",null,0.01,null,null,null,null,null,null,null,null,null,null,null,null,null,null,null,null,null,null,null,null," ",114,86,0,null,false]
[18,"B5","",null,0.01,null,null,null,null,null,null,null,null,null,null,null,null,null,null,null,null,null,null,null,null," ",114,86,0,null,{"$f":"IF(COUNTBLANK(#REF!)=0,A1457)","v":{"$error":"#REF!"}}]
[18,"G5","",null,0.01,null,null,null,null,null,null,null,null,null,null,null,null,null,null,null,null,null,null,null,null," ",115,86,0,null,false]
[18,"D6",{"$f":"IF(D1507=0,\"\",D1507)","v":""},null,0.01,null,null,null,null,null,null,null,null,null,null,null,null,null,null,null,null,null,null,null,null," ",115,86,0,null,false]
[18,"F6","",null,0.01,null,null,null,null,null,null,null,null,null,null,null,null,null,null,null,null,null,null,null,null," ",{"$f":"CEILING((ROW()-StartRow+1)/PanelHeight,1)-1","v":115},86,{"$f":"IF(AB1509=WellsInPlate,0,1)","v":0},null,false]
[18,"A7","",null,0.01,null,null,null,null,null,null,null,null,null,null,null,null,null,null,null,null,null,null,null,null," ",116,86,0,null,false]
[18,"F7","",null,0.01,null,null,null,null,null,null,null,null,null,null,null,null,null,null,null,null,null,null,null,null," ",116,86,0,null,false]
[18,"C8","",null,0.01,null,null,null,null,null,null,null,null,null,null,null,null,null,null,null,null,null,null,null,null," ",116,86,0,null,false]
[18,"D8","",null,0.01,null,null,null,null,null,null,null,null,null,null,null,null,null,null,null,null,null,null,null,null," ",116,86,0,null,false]
[18,"H8","",null,0.01,null,null,null,null,null,null,null,null,null,null,null,null,null,null,null,null,null,null,null,null," ",117,86,0,null,false]
[18,"E9","",null,0.01,null,null,null,null,null,null,null,null,null,null,null,null,null,null,null,null,null,null,null,null," ",117,86,0,null,false]
[18,"B10","",null,0.01,null,null,null,null,null,null,null,null,null,null,null,null,null,null,null,null,null,null,null,null," ",117,86,0,null,false]
[18,"C10","",null,0.01,null,null,null,null,null,null,null,null,null,null,null,null,null,null,null,null,null,null,null,null,{"$f":"IF(LEN(INDEX($1:$1048576,ROW(),4))>0,INDEX($1:$1048576,ROW(),4),\" \")","v":" "},118,86,0,null,{"$f":"IF(COUNTBLANK(D1504)=0,A1496)","v":false}]
[18,"A11","",null,0.01,null,null,null,null,null,null,null,null,null,null,null,null,null,null,null,null,null,null,null,null," ",118,86,0,null,false]
[18,"D11","",null,0.01,null,null,null,null,null,null,null,null,null,null,null,null,null,null,null,null,null,null,null,null," ",118,86,0,null,false]
[19,"C1","",null,0.01,null,null,null,null,null,null,null,null,null,null,null,null,null,null,null,null,null,null,null,null," ",119,86,0,null,false]
[19,"D1","",null,0.01,null,null,null,null,null,null,null,null,null,null,null,null,null,null,null,null,null,null,null,null," ",119,86,0,null,false]
[19,"H1","",null,0.01,null,null,null,null,null,null,null,null,null,null,null,null,null,null,null,null,null,null,null,null," ",119,86,0,null,false]
[19,"E2","",null,0.01,null,null,null,null,null,null,null,null,null,null,null,null,null,null,null,null,null,null,null,null," ",119,86,0,null,false]
[19,"B3","",null,0.01,null,null,null,null,null,null,null,null,null,null,null,null,null,null,null,null,null,null,null,null," ",120,86,0,null,false]
[19,"C3","",null,0.01,null,null,null,null,null,null,null,null,null,null,null,null,null,null,null,null,null,null,null,null," ",120,86,0,null,false]
[19,"A4","",null,0.01,null,null,null,null,null,null,null,null,null,null,null,null,null,null,null,null,null,null,null,null," ",120,86,0,null,false]
[19,"D4","",null,0.01,null,null,null,null,null,null,null,null,null,null,null,null,null,null,null,null,null,null,null,null," ",121,86,0,null,false]
[19,"A5","",null,0.01,null,null,null,null,null,null,null,null,null,null,null,null,null,null,null,null,null,null,null,null," ",121,86,0,null,false]
[19,"B5","",null,0.01,null,null,null,null,null,null,null,null,null,null,null,null,null,null,null,null,null,null,null,null," ",121,86,0,null,false]
[19,"F5","",null,0.01,null,null,null,null,null,null,null,null,null,null,null,null,null,null,null,null,null,null,null,null," ",121,86,0,null,false]
[19,"C6","",null,0.01,null,null,null,null,null,null,null,null,null,null,null,null,null,null,null,null,null,null,null,null," ",122,86,0,null,{"$f":"IF(COUNTBLANK(D1556)=0,#REF!)","v":false}]
[19,"H6","",null,0.01,null,null,null,null,null,null,null,null,null,null,null,null,null,null,null,null,null,null,null,null," ",122,86,0,null,false]
[19,"A7","",null,0.01,null,null,null,null,null,null,null,null,null,null,null,null,null,null,null,null,null,null,null,null," ",122,86,0,null,false]
[19,"G7","",null,0.01,null,null,null,null,null,null,null,null,null,null,null,null,null,null,null,null,null,null,null,null," ",{"$f":"CEILING((ROW()-StartRow+1)/PanelHeight,1)-1","v":123},{"$f":"COUNTBLANK(OFFSET(INDEX($1:$1048576,2,4),AA1604*WellsInPlate,0,WellsInPlate,1))","v":86},{"$f":"IF(AB1604=WellsInPlate,0,1)","v":0},null,false]
[19,"B8","",null,0.01,null,null,null,null,null,null,null,null,null,null,null,null,null,null,null,null,null,null,null,null," ",123,86,0,null,false]
[19,"G8","",null,0.01,null,null,null,null,null,null,null,null,null,null,null,null,null,null,null,null,null,null,null,null," ",123,86,0,null,false]
[19,"H8","",null,0.01,null,null,null,null,null,null,null,null,null,null,null,null,null,null,null,null,null,null,null,null," ",123,86,0,null,false]
[19,"D9","",null,0.01,null,null,null,null,null,null,null,null,null,null,null,null,null,null,null,null,null,null,null,null," ",124,86,0,null,false]
[19,"A10","",null,0.01,null,null,null,null,null,null,null,null,null,null,null,null,null,null,null,null,null,null,null,null," ",124,86,0,null,false]
[19,"F10","",null,0.01,null,null,null,null,null,null,null,null,null,null,null,null,null,null,null,null,null,null,null,null," ",124,86,0,null,false]
[19,"G10","",null,0.01,null,null,null,null,null,null,null,null,null,null,null,null,null,null,null,null,null,null,null,null," ",124,86,0,null,false]
[19,"E11","",null,0.01,null,null,null,null,null,null,null,null,null,null,null,null,null,null,null,null,null,null,null,null," ",125,86,0,null,false]
[20,"B1","",null,0.01,null,null,null,null,null,null,null,null,null,null,null,null,null,null,null,null,null,null,null,null," ",{"$f":"CEILING((ROW()-StartRow+1)/PanelHeight,1)-1","v":125},86,{"$f":"IF(AB1637=WellsInPlate,0,1)","v":0},null,false]
[20,"G1","",null,0.01,null,null,null,null,null,null,null,null,null,null,null,null,null,null,null,null,null,null,null,null," ",126,86,0,null,false]
[20,"H1","",null,0.01,null,null,null,null,null,null,null,null,null,null,null,null,null,null,null,null,null,null,null,null," ",126,86,0,null,false]
[20,"D2","",null,0.01,null,null,null,null,null,null,null,null,null,null,null,null,null,null,null,null,null,null,null,null," ",126,86,0,null,false]
[20,"A3","",null,0.01,null,null,null,null,null,null,null,null,null,null,null,null,null,null,null,null,null,null,null,null," ",126,86,0,null,false]
[20,"F3","",null,0.01,null,null,null,null,null,null,null,null,null,null,null,null,null,null,null,null,null,null,null,null," ",127,86,0,null,false]
[20,"G3","",null,0.01,null,null,null,null,null,null,null,null,null,null,null,null,null,null,null,null,null,null,null,null," ",127,86,0,null,{"$f":"IF(COUNTBLANK(D1622)=0,A1614)","v":false}]
[20,"E4","",null,0.01,null,null,null,null,null,null,null,null,null,null,null,null,null,null,null,null,null,null,null,null," ",127,86,0,null,false]
[20,"H4","",null,0.01,null,null,null,null,null,null,null,null,null,null,null,null,null,null,null,null,null,null,null,null," ",127,86,0,null,false]
[20,"E5","",null,0.01,null,null,null,null,null,null,null,null,null,null,null,null,null,null,null,null,null,null,null,null," ",128,86,0,null,{"$f":"IF(COUNTBLANK(#REF!)=0,A1628)","v":{"$error":"#REF!"}}]
[20,"F5","",null,0.01,null,null,null,null,null,null,null,null,null,null,null,null,null,null,null,null,null,null,null,null," ",128,86,0,null,{"$f":"IF(COUNTBLANK(#REF!)=0,A1629)","v":{"$error":"#REF!"}}]
[20,"C6","",null,0.01,null,null,null,null,null,null,null,null,null,null,null,null,null,null,null,null,null,null,null,null," ",128,86,0,null,false]
[20,"G6","",null,0.01,null,null,null,null,null,null,null,null,null,null,null,null,null,null,null,null,null,null,null,null," ",129,86,0,null,{"$f":"IF(COUNTBLANK(D1644)=0,A1636)","v":false}]
[20,"D7","",null,0.01,null,null,null,null,null,null,null,null,null,null,null,null,null,null,null,null,null,null,null,null," ",129,86,0,null,false]
[20,"E7","",null,0.01,null,null,null,null,null,null,null,null,null,null,null,null,null,null,null,null,null,null,null,null," ",129,86,0,null,false]
[20,"B8","",null,0.01,null,null,null,null,null,null,null,null,null,null,null,null,null,null,null,null,null,null,null,null," ",129,86,0,null,false]
[20,"G8","",null,0.01,null,null,null,null,null,null,null,null,null,null,null,null,null,null,null,null,null,null,null,null," ",130,86,0,null,false]
[20,"C9","",null,0.01,null,null,null,null,null,null,null,null,null,null,null,null,null,null,null,null,null,null,null,null," ",130,86,0,null,false]
[20,"D9","",null,0.01,null,null,null,null,null,null,null,null,null,null,null,null,null,null,null,null,null,null,null,null," ",130,86,0,null,false]
[20,"A10","",null,0.01,null,null,null,null,null,null,null,null,null,null,null,null,null,null,null,null,null,null,null,null," ",131,86,0,null,false]
[20,"E10","",null,0.01,null,null,null,null,null,null,null,null,null,null,null,null,null,null,null,null,null,null,null,null," ",131,86,0,null,false]
[20,"B11","",null,0.01,null,null,null,null,null,null,null,null,null,null,null,null,null,null,null,null,null,null,null,null," ",131,86,0,null,false]
[20,"C11","",null,0.01,null,null,null,null,null,null,null,null,null,null,null,null,null,null,null,null,null,null,null,null," ",131,86,0,null,false]
[21,"B1","",null,0.01,null,null,null,null,null,null,null,null,null,null,null,null,null,null,null,null,null,null,null,null," ",132,86,0,null,false]
[21,"G1","",null,0.01,null,null,null,null,null,null,null,null,null,null,null,null,null,null,null,null,null,null,null,null," ",132,86,0,null,false]
[21,"C2","",null,0.01,null,null,null,null,null,null,null,null,null,null,null,null,null,null,null,null,null,null,null,null," ",{"$f":"CEILING((ROW()-StartRow+1)/PanelHeight,1)-1","v":132},{"$f":"COUNTBLANK(OFFSET(INDEX($1:$1048576,2,4),AA1732*WellsInPlate,0,WellsInPlate,1))","v":86},{"$f":"IF(AB1732=WellsInPlate,0,1)","v":0},null,false]
[21,"D2","",null,0.01,null,null,null,null,null,null,null,null,null,null,null,null,null,null,null,null,null,null,null,null," ",{"$f":"CEILING((ROW()-StartRow+1)/PanelHeight,1)-1","v":133},86,{"$f":"IF(AB1733=WellsInPlate,0,1)","v":0},null,false]
[21,"A3","",null,0.01,null,null,null,null,null,null,null,null,null,null,null,null,null,null,null,null,null,null,null,null," ",133,86,0,null,false]
[21,"E3","",null,0.01,null,null,null,null,null,null,null,null,null,null,null,null,null,null,null,null,null,null,null,null," ",133,86,0,null,false]
[21,"B4","",null,0.01,null,null,null,null,null,null,null,null,null,null,null,null,null,null,null,null,null,null,null,null," ",134,86,0,null,false]
[21,"C4","",null,0.01,null,null,null,null,null,null,null,null,null,null,null,null,null,null,null,null,null,null,null,null," ",134,86,0,null,false]
[21,"H4","",null,0.01,null,null,null,null,null,null,null,null,null,null,null,null,null,null,null,null,null,null,null,null," ",134,86,0,null,false]
[21,"E5","",null,0.01,null,null,null,null,null,null,null,null,null,null,null,null,null,null,null,null,null,null,null,null," ",134,86,0,null,false]
[21,"A6","",null,0.01,null,null,null,null,null,null,null,null,null,null,null,null,null,null,null,null,null,null,null,null," ",135,86,0,null,{"$f":"IF(COUNTBLANK(D1722)=0,A1716)","v":false}]
[21,"B6","",null,0.01,null,null,null,null,null,null,null,null,null,null,null,null,null,null,null,null,null,null,null,null," ",135,86,0,null,false]
[21,"G6","",null,0.01,null,null,null,null,null,null,null,null,null,null,null,null,null,null,null,null,null,null,null,null," ",135,86,0,null,{"$f":"IF(COUNTBLANK(D1728)=0,#REF!)","v":false}]
[21,"C7","",null,0.01,null,null,null,null,null,null,null,null,null,null,null,null,null,null,null,null,null,null,null,null," ",136,86,0,null,false]
[21,"H7","",null,0.01,null,null,null,null,null,null,null,null,null,null,null,null,null,null,null,null,null,null,null,null," ",136,86,0,null,false]
[21,"A8","",null,0.01,null,null,null,null,null,null,null,null,null,null,null,null,null,null,null,null,null,null,null,null," ",136,86,0,null,false]
[21,"F8","",null,0.01,null,null,null,null,null,null,null,null,null,null,null,null,null,null,null,null,null,null,null,null," ",136,86,0,null,false]
[21,"C9","",null,0.01,null,null,null,null,null,null,null,null,null,null,null,null,null,null,null,null,null,null,null,null," ",137,86,0,null,false]
[21,"G9","",null,0.01,null,null,null,null,null,null,null,null,null,null,null,null,null,null,null,null,null,null,null,null," ",137,86,0,null,false]
[21,"H9","",null,0.01,null,null,null,null,null,null,null,null,null,null,null,null,null,null,null,null,null,null,null,null," ",137,86,0,null,false]
[21,"E10","",null,0.01,null,null,null,null,null,null,null,null,null,null,null,null,null,null,null,null,null,null,null,null," ",138,86,0,null,false]
[21,"A11","",null,0.01,null,null,null,null,null,null,null,null,null,null,null,null,null,null,null,null,null,null,null,null," ",138,86,0,null,{"$f":"IF(COUNTBLANK(D1762)=0,A1754)","v":false}]
[21,"F11","",null,0.01,null,null,null,null,null,null,null,null,null,null,null,null,null,null,null,null,null,null,null,null," ",138,86,0,null,false]
[22,"A1","",null,0.01,null,null,null,null,null,null,null,null,null,null,null,null,null,null,null,null,null,null,null,null," ",138,86,0,null,false]
[22,"F1","",null,0.01,null,null,null,null,null,null,null,null,null,null,null,null,null,null,null,null,null,null,null,null," ",139,86,0,null,false]
[22,"C2","",null,0.01,null,null,null,null,null,null,null,null,null,null,null,null,null,null,null,null,null,null,null,null," ",139,86,0,null,false]
[22,"E2","",null,0.01,null,null,null,null,null,null,null,null,null,null,null,null,null,null,null,null,null,null,null,null," ",139,86,0,null,false]
[22,"H2","",null,0.01,null,null,null,null,null,null,null,null,null,null,null,null,null,null,null,null,null,null,null,null," ",139,86,0,null,false]
[22,"E3","",null,0.01,null,null,null,null,null,null,null,null,null,null,null,null,null,null,null,null,null,null,null,null," ",140,86,0,null,false]
[22,"B4","",null,0.01,null,null,null,null,null,null,null,null,null,null,null,null,null,null,null,null,null,null,null,null," ",140,86,0,null,false]
[22,"E4","",null,0.01,null,null,null,null,null,null,null,null,null,null,null,null,null,null,null,null,null,null,null,null," ",140,86,0,null,false]
[22,"G4","",null,0.01,null,null,null,null,null,null,null,null,null,null,null,null,null,null,null,null,null,null,null,null," ",141,86,0,null,false]
[22,"D5","",null,0.01,null,null,null,null,null,null,null,null,null,null,null,null,null,null,null,null,null,null,null,null," ",141,86,0,null,false]
[22,"A6","",null,0.01,null,null,null,null,null,null,null,null,null,null,null,null,null,null,null,null,null,null,null,null," ",141,86,0,null,{"$f":"IF(COUNTBLANK(#REF!)=0,A1800)","v":{"$error":"#REF!"}}]
[22,"C6","",null,0.01,null,null,null,null,null,null,null,null,null,null,null,null,null,null,null,null,null,null,null,null," ",142,86,0,null,{"$f":"IF(COUNTBLANK(D1808)=0,A1802)","v":false}]
[22,"F6","",null,0.01,null,null,null,null,null,null,null,null,null,null,null,null,null,null,null,null,null,null,null,null," ",142,86,0,null,false]
[22,"C7","",null,0.01,null,null,null,null,null,null,null,null,null,null,null,null,null,null,null,null,null,null,null,null,{"$f":"IF(LEN(INDEX($1:$1048576,ROW(),4))>0,INDEX($1:$1048576,ROW(),4),\" \")","v":" "},142,86,0,null,{"$f":"IF(COUNTBLANK(D1816)=0,A1808)","v":false}]
[22,"H7","",null,0.01,null,null,null,null,null,null,null,null,null,null,null,null,null,null,null,null,null,null,null,null," ",143,86,0,null,false]
[22,"C8","",null,0.01,null,null,null,null,null,null,null,null,null,null,null,null,null,null,null,null,null,null,null,null," ",143,86,0,null,false]
[22,"E8","",null,0.01,null,null,null,null,null,null,null,null,null,null,null,null,null,null,null,null,null,null,null,null," ",143,86,0,null,false]
[22,"B9","",null,0.01,null,null,null,null,null,null,null,null,null,null,null,null,null,null,null,null,null,null,null,null," ",143,86,0,null,false]
[22,"G9","",null,0.01,null,null,null,null,null,null,null,null,null,null,null,null,null,null,null,null,null,null,null,null," ",144,86,0,null,false]
[22,"A10","",null,0.01,null,null,null,null,null,null,null,null,null,null,null,null,null,null,null,null,null,null,null,null," ",144,86,0,null,false]
[22,"D10",{"$f":"IF(D1883=0,\"\",D1883)","v":""},null,0.01,null,null,null,null,null,null,null,null,null,null,null,null,null,null,null,null,null,null,null,null," ",144,86,0,null,false]
[22,"A11","",null,0.01,null,null,null,null,null,null,null,null,null,null,null,null,null,null,null,null,null,null,null,null," ",144,86,0,null,false]
[22,"F11","",null,0.01,null,null,null,null,null,null,null,null,null,null,null,null,null,null,null,null,null,null,null,null," ",{"$f":"CEILING((ROW()-StartRow+1)/PanelHeight,1)-1","v":145},86,{"$f":"IF(AB1893=WellsInPlate,0,1)","v":0},null,false]
[23,"C1","",null,0.01,null,null,null,null,null,null,null,null,null,null,null,null,null,null,null,null,null,null,null,null," ",145,86,0,null,false]
[23,"E1","",null,0.01,null,null,null,null,null,null,null,null,null,null,null,null,null,null,null,null,null,null,null,null," ",145,86,0,null,false]
[23,"B2","",null,0.01,null,null,null,null,null,null,null,null,null,null,null,null,null,null,null,null,null,null,null,null," ",146,86,0,null,false]
[23,"G2","",null,0.01,null,null,null,null,null,null,null,null,null,null,null,null,null,null,null,null,null,null,null,null," ",146,86,0,null,false]
[23,"A3","",null,0.01,null,null,null,null,null,null,null,null,null,null,null,null,null,null,null,null,null,null,null,null," ",146,86,0,null,false]
[23,"D3","",null,0.01,null,null,null,null,null,null,null,null,null,null,null,null,null,null,null,null,null,null,null,null," ",146,86,0,null,false]
[23,"A4","",null,0.01,null,null,null,null,null,null,null,null,null,null,null,null,null,null,null,null,null,null,null,null," ",147,86,0,null,false]
[23,"F4","",null,0.01,null,null,null,null,null,null,null,null,null,null,null,null,null,null,null,null,null,null,null,null," ",147,86,0,null,false]
[23,"A5","",null,0.01,null,null,null,null,null,null,null,null,null,null,null,null,null,null,null,null,null,null,null,null," ",147,86,0,null,false]
[23,"C5","",null,0.01,null,null,null,null,null,null,null,null,null,null,null,null,null,null,null,null,null,null,null,null," ",148,86,0,null,false]
[23,"H5","",null,0.01,null,null,null,null,null,null,null,null,null,null,null,null,null,null,null,null,null,null,null,null," ",148,86,0,null,false]
[23,"E6","",null,0.01,null,null,null,null,null,null,null,null,null,null,null,null,null,null,null,null,null,null,null,null," ",148,86,0,null,{"$f":"IF(COUNTBLANK(D1894)=0,A1888)","v":false}]
[23,"B7","",null,0.01,null,null,null,null,null,null,null,null,null,null,null,null,null,null,null,null,null,null,null,null," ",149,86,0,null,false]
[23,"C7","",null,0.01,null,null,null,null,null,null,null,null,null,null,null,null,null,null,null,null,null,null,null,null," ",149,86,0,null,{"$f":"IF(COUNTBLANK(D1900)=0,#REF!)","v":false}]
[23,"G7","",null,0.01,null,null,null,null,null,null,null,null,null,null,null,null,null,null,null,null,null,null,null,null," ",149,86,0,null,false]
[23,"D8","",null,0.01,null,null,null,null,null,null,null,null,null,null,null,null,null,null,null,null,null,null,null,null," ",149,86,0,null,false]
[23,"A9","",null,0.01,null,null,null,null,null,null,null,null,null,null,null,null,null,null,null,null,null,null,null,null," ",150,86,0,null,false]
[23,"D9","",null,0.01,null,null,null,null,null,null,null,null,null,null,null,null,null,null,null,null,null,null,null,null," ",150,86,0,null,false]
[23,"F9","",null,0.01,null,null,null,null,null,null,null,null,null,null,null,null,null,null,null,null,null,null,null,null," ",150,86,0,null,false]
[23,"C10","",null,0.01,null,null,null,null,null,null,null,null,null,null,null,null,null,null,null,null,null,null,null,null," ",151,86,0,null,false]
[23,"H10","",null,0.01,null,null,null,null,null,null,null,null,null,null,null,null,null,null,null,null,null,null,null,null," ",151,86,0,null,false]
[23,"A11","",null,0.01,null,null,null,null,null,null,null,null,null,null,null,null,null,null,null,null,null,null,null,null," ",151,86,0,null,false]
[23,"E11","",null,0.01,null,null,null,null,null,null,null,null,null,null,null,null,null,null,null,null,null,null,null,null," ",151,86,0,null,{"$f":"IF(COUNTBLANK(D1934)=0,A1926)","v":false}]
[24,"D1","",null,0.01,null,null,null,null,null,null,null,null,null,null,null,null,null,null,null,null,null,null,null,null," ",152,86,0,null,false]
[24,"A2","",null,0.01,null,null,null,null,null,null,null,null,null,null,null,null,null,null,null,null,null,null,null,null," ",{"$f":"CEILING((ROW()-StartRow+1)/PanelHeight,1)-1","v":152},{"$f":"COUNTBLANK(OFFSET(INDEX($1:$1048576,2,4),AA1988*WellsInPlate,0,WellsInPlate,1))","v":86},{"$f":"IF(AB1988=WellsInPlate,0,1)","v":0},null,false]
[24,"D2","",null,0.01,null,null,null,null,null,null,null,null,null,null,null,null,null,null,null,null,null,null,null,null," ",152,86,0,null,false]
[24,"F2","",null,0.01,null,null,null,null,null,null,null,null,null,null,null,null,null,null,null,null,null,null,null,null," ",153,86,0,null,false]
[24,"C3","",null,0.01,null,null,null,null,null,null,null,null,null,null,null,null,null,null,null,null,null,null,null,null," ",153,86,0,null,false]
[24,"H3","",null,0.01,null,null,null,null,null,null,null,null,null,null,null,null,null,null,null,null,null,null,null,null," ",153,86,0,null,false]
[24,"A4","",null,0.01,null,null,null,null,null,null,null,null,null,null,null,null,null,null,null,null,null,null,null,null," ",153,86,0,null,false]
[24,"E4","",null,0.01,null,null,null,null,null,null,null,null,null,null,null,null,null,null,null,null,null,null,null,null," ",154,86,0,null,false]
[24,"B5","",null,0.01,null,null,null,null,null,null,null,null,null,null,null,null,null,null,null,null,null,null,null,null," ",154,86,0,null,false]
[24,"G5","",null,0.01,null,null,null,null,null,null,null,null,null,null,null,null,null,null,null,null,null,null,null,null," ",154,86,0,null,false]
[24,"B6","",null,0.01,null,null,null,null,null,null,null,null,null,null,null,null,null,null,null,null,null,null,null,null," ",{"$f":"CEILING((ROW()-StartRow+1)/PanelHeight,1)-1","v":155},86,{"$f":"IF(AB2021=WellsInPlate,0,1)","v":0},null,false]
[24,"D6","",null,0.01,null,null,null,null,null,null,null,null,null,null,null,null,null,null,null,null,null,null,null,null," ",155,86,0,null,false]
[24,"A7","",null,0.01,null,null,null,null,null,null,null,null,null,null,null,null,null,null,null,null,null,null,null,null," ",155,86,0,null,false]
[24,"F7","",null,0.01,null,null,null,null,null,null,null,null,null,null,null,null,null,null,null,null,null,null,null,null," ",156,86,0,null,{"$f":"IF(COUNTBLANK(D1987)=0,#REF!)","v":false}]
[24,"H7","",null,0.01,null,null,null,null,null,null,null,null,null,null,null,null,null,null,null,null,null,null,null,null," ",156,86,0,null,false]
[24,"C8","",null,0.01,null,null,null,null,null,null,null,null,null,null,null,null,null,null,null,null,null,null,null,null," ",156,86,0,null,false]
[24,"H8","",null,0.01,null,null,null,null,null,null,null,null,null,null,null,null,null,null,null,null,null,null,null,null," ",156,86,0,null,false]
[24,"E9","",null,0.01,null,null,null,null,null,null,null,null,null,null,null,null,null,null,null,null,null,null,null,null," ",157,86,0,null,false]
[24,"H9","",null,0.01,null,null,null,null,null,null,null,null,null,null,null,null,null,null,null,null,null,null,null,null," ",157,86,0,null,false]
[24,"B10","",null,0.01,null,null,null,null,null,null,null,null,null,null,null,null,null,null,null,null,null,null,null,null," ",{"$f":"CEILING((ROW()-StartRow+1)/PanelHeight,1)-1","v":157},86,{"$f":"IF(AB2053=WellsInPlate,0,1)","v":0},null,false]
[24,"G10","",null,0.01,null,null,null,null,null,null,null,null,null,null,null,null,null,null,null,null,null,null,null,null," ",158,86,0,null,false]
[24,"D11","",null,0.01,null,null,null,null,null,null,null,null,null,null,null,null,null,null,null,null,null,null,null,null," ",158,86,0,null,false]
[24,"F11","",null,0.01,null,null,null,null,null,null,null,null,null,null,null,null,null,null,null,null,null,null,null,null," ",158,86,0,null,false]
[25,"C1","",null,0.01,null,null,null,null,null,null,null,null,null,null,null,null,null,null,null,null,null,null,null,null," ",158,86,0,null,false]
[25,"H1","",null,0.01,null,null,null,null,null,null,null,null,null,null,null,null,null,null,null,null,null,null,null,null," ",159,86,0,null,false]
[25,"E2","",null,0.01,null,null,null,null,null,null,null,null,null,null,null,null,null,null,null,null,null,null,null,null," ",159,86,0,null,false]
[25,"F2","",null,0.01,null,null,null,null,null,null,null,null,null,null,null,null,null,null,null,null,null,null,null,null," ",159,86,0,null,false]
[25,"B3","",null,0.01,null,null,null,null,null,null,null,null,null,null,null,null,null,null,null,null,null,null,null,null," ",159,86,0,null,false]
[25,"G3","",null,0.01,null,null,null,null,null,null,null,null,null,null,null,null,null,null,null,null,null,null,null,null," ",160,86,0,null,false]
[25,"D4","",null,0.01,null,null,null,null,null,null,null,null,null,null,null,null,null,null,null,null,null,null,null,null," ",160,86,0,null,false]
[25,"E4","",null,0.01,null,null,null,null,null,null,null,null,null,null,null,null,null,null,null,null,null,null,null,null," ",160,86,0,null,false]
[25,"B5","",null,0.01,null,null,null,null,null,null,null,null,null,null,null,null,null,null,null,null,null,null,null,null," ",161,86,0,null,false]
[25,"F5","",null,0.01,null,null,null,null,null,null,null,null,null,null,null,null,null,null,null,null,null,null,null,null," ",161,86,0,null,false]
[25,"C6","",null,0.01,null,null,null,null,null,null,null,null,null,null,null,null,null,null,null,null,null,null,null,null," ",161,86,0,null,false]
[25,"D6","",null,0.01,null,null,null,null,null,null,null,null,null,null,null,null,null,null,null,null,null,null,null,null," ",161,86,0,null,false]
[25,"H6","",null,0.01,null,null,null,null,null,null,null,null,null,null,null,null,null,null,null,null,null,null,null,null," ",162,86,0,null,{"$f":"IF(COUNTBLANK(#REF!)=0,A2059)","v":{"$error":"#REF!"}}]
[25,"E7","",null,0.01,null,null,null,null,null,null,null,null,null,null,null,null,null,null,null,null,null,null,null,null," ",162,86,0,null,false]
[25,"B8","",null,0.01,null,null,null,null,null,null,null,null,null,null,null,null,null,null,null,null,null,null,null,null," ",163,86,0,null,false]
[25,"C8","",null,0.01,null,null,null,null,null,null,null,null,null,null,null,null,null,null,null,null,null,null,null,null," ",163,86,0,null,false]
[25,"H8","",null,0.01,null,null,null,null,null,null,null,null,null,null,null,null,null,null,null,null,null,null,null,null," ",163,86,0,null,false]
[25,"D9",{"$f":"IF(D2133=0,\"\",D2133)","v":""},null,0.01,null,null,null,null,null,null,null,null,null,null,null,null,null,null,null,null,null,null,null,null," ",163,86,0,null,false]
[25,"A10","",null,0.01,null,null,null,null,null,null,null,null,null,null,null,null,null,null,null,null,null,null,null,null," ",164,86,0,null,false]
[25,"B10","",null,0.01,null,null,null,null,null,null,null,null,null,null,null,null,null,null,null,null,null,null,null,null," ",164,86,0,null,false]
[25,"F10","",null,0.01,null,null,null,null,null,null,null,null,null,null,null,null,null,null,null,null,null,null,null,null," ",164,86,0,null,false]
[25,"C11","",null,0.01,null,null,null,null,null,null,null,null,null,null,null,null,null,null,null,null,null,null,null,null," ",164,86,0,null,false]
[26,"B1","",null,0.01,null,null,null,null,null,null,null,null,null,null,null,null,null,null,null,null,null,null,null,null," ",165,86,0,null,false]
[26,"C1","",null,0.01,null,null,null,null,null,null,null,null,null,null,null,null,null,null,null,null,null,null,null,null," ",165,86,0,null,{"$f":"IF(COUNTBLANK(D2106)=0,A2098)","v":false}]
[26,"H1","",null,0.01,null,null,null,null,null,null,null,null,null,null,null,null,null,null,null,null,null,null,null,null," ",165,86,0,null,false]
[26,"D2","",null,0.01,null,null,null,null,null,null,null,null,null,null,null,null,null,null,null,null,null,null,null,null," ",166,86,0,null,false]
[26,"A3","",null,0.01,null,null,null,null,null,null,null,null,null,null,null,null,null,null,null,null,null,null,null,null," ",166,86,0,null,false]
[26,"B3","",null,0.01,null,null,null,null,null,null,null,null,null,null,null,null,null,null,null,null,null,null,null,null," ",166,86,0,null,false]
[26,"F3","",null,0.01,null,null,null,null,null,null,null,null,null,null,null,null,null,null,null,null,null,null,null,null," ",166,86,0,null,false]
[26,"C4","",null,0.01,null,null,null,null,null,null,null,null,null,null,null,null,null,null,null,null,null,null,null,null,{"$f":"IF(LEN(INDEX($1:$1048576,ROW(),4))>0,INDEX($1:$1048576,ROW(),4),\" \")","v":" "},167,86,0,null,false]
[26,"H4","",null,0.01,null,null,null,null,null,null,null,null,null,null,null,null,null,null,null,null,null,null,null,null," ",167,86,0,null,false]
[26,"A5","",null,0.01,null,null,null,null,null,null,null,null,null,null,null,null,null,null,null,null,null,null,null,null," ",167,86,0,null,false]
[26,"F5","",null,0.01,null,null,null,null,null,null,null,null,null,null,null,null,null,null,null,null,null,null,null,null," ",168,86,0,null,false]
[26,"B6","",null,0.01,null,null,null,null,null,null,null,null,null,null,null,null,null,null,null,null,null,null,null,null," ",168,86,0,null,false]
[26,"G6","",null,0.01,null,null,null,null,null,null,null,null,null,null,null,null,null,null,null,null,null,null,null,null," ",168,86,0,null,false]
[26,"H6","",null,0.01,null,null,null,null,null,null,null,null,null,null,null,null,null,null,null,null,null,null,null,null," ",168,86,0,null,false]
[26,"D7","",null,0.01,null,null,null,null,null,null,null,null,null,null,null,null,null,null,null,null,null,null,null,null," ",169,86,0,null,false]
[26,"A8","",null,0.01,null,null,null,null,null,null,null,null,null,null,null,null,null,null,null,null,null,null,null,null," ",169,86,0,null,{"$f":"IF(COUNTBLANK(D2158)=0,#REF!)","v":false}]
[26,"F8","",null,0.01,null,null,null,null,null,null,null,null,null,null,null,null,null,null,null,null,null,null,null,null," ",{"$f":"CEILING((ROW()-StartRow+1)/PanelHeight,1)-1","v":169},86,{"$f":"IF(AB2213=WellsInPlate,0,1)","v":0},null,false]
[26,"G8","",null,0.01,null,null,null,null,null,null,null,null,null,null,null,null,null,null,null,null,null,null,null,null," ",170,86,0,null,false]
[26,"D9","",null,0.01,null,null,null,null,null,null,null,null,null,null,null,null,null,null,null,null,null,null,null,null," ",170,86,0,null,false]
[26,"A10","",null,0.01,null,null,null,null,null,null,null,null,null,null,null,null,null,null,null,null,null,null,null,null," ",170,86,0,null,false]
[26,"E10","",null,0.01,null,null,null,null,null,null,null,null,null,null,null,null,null,null,null,null,null,null,null,null," ",171,86,0,null,false]
[26,"F10","",null,0.01,null,null,null,null,null,null,null,null,null,null,null,null,null,null,null,null,null,null,null,null," ",171,86,0,null,false]
[26,"C11","",null,0.01,null,null,null,null,null,null,null,null,null,null,null,null,null,null,null,null,null,null,null,null," ",171,86,0,null,false]
[26,"F11","",null,0.01,null,null,null,null,null,null,null,null,null,null,null,null,null,null,null,null,null,null,null,null," ",171,86,0,null,false]
[27,"F1","",null,0.01,null,null,null,null,null,null,null,null,null,null,null,null,null,null,null,null,null,null,null,null," ",172,86,0,null,false]
[27,"G1","",null,0.01,null,null,null,null,null,null,null,null,null,null,null,null,null,null,null,null,null,null,null,null," ",{"$f":"CEILING((ROW()-StartRow+1)/PanelHeight,1)-1","v":172},{"$f":"COUNTBLANK(OFFSET(INDEX($1:$1048576,2,4),AA2244*WellsInPlate,0,WellsInPlate,1))","v":86},{"$f":"IF(AB2244=WellsInPlate,0,1)","v":0},null,false]
[27,"D2","",null,0.01,null,null,null,null,null,null,null,null,null,null,null,null,null,null,null,null,null,null,null,null," ",172,86,0,null,false]
[27,"A3","",null,0.01,null,null,null,null,null,null,null,null,null,null,null,null,null,null,null,null,null,null,null,null," ",173,86,0,null,false]
[27,"E3","",null,0.01,null,null,null,null,null,null,null,null,null,null,null,null,null,null,null,null,null,null,null,null," ",173,86,0,null,false]
[27,"F3","",null,0.01,null,null,null,null,null,null,null,null,null,null,null,null,null,null,null,null,null,null,null,null," ",173,86,0,null,false]
[27,"C4","",null,0.01,null,null,null,null,null,null,null,null,null,null,null,null,null,null,null,null,null,null,null,null," ",173,86,0,null,false]
[27,"F4","",null,0.01,null,null,null,null,null,null,null,null,null,null,null,null,null,null,null,null,null,null,null,null," ",174,86,0,null,false]
[27,"D5","",null,0.01,null,null,null,null,null,null,null,null,null,null,null,null,null,null,null,null,null,null,null,null," ",174,86,0,null,false]
[27,"E5","",null,0.01,null,null,null,null,null,null,null,null,null,null,null,null,null,null,null,null,null,null,null,null," ",174,86,0,null,{"$f":"IF(COUNTBLANK(D2224)=0,A2216)","v":false}]
[27,"B6","",null,0.01,null,null,null,null,null,null,null,null,null,null,null,null,null,null,null,null,null,null,null,null," ",175,86,0,null,false]
[27,"G6","",null,0.01,null,null,null,null,null,null,null,null,null,null,null,null,null,null,null,null,null,null,null,null," ",175,86,0,null,false]
[27,"C7","",null,0.01,null,null,null,null,null,null,null,null,null,null,null,null,null,null,null,null,null,null,null,null," ",175,86,0,null,{"$f":"IF(COUNTBLANK(#REF!)=0,A2230)","v":{"$error":"#REF!"}}]
[27,"D7","",null,0.01,null,null,null,null,null,null,null,null,null,null,null,null,null,null,null,null,null,null,null,null," ",175,86,0,null,{"$f":"IF(COUNTBLANK(#REF!)=0,A2231)","v":{"$error":"#REF!"}}]
[27,"A8","",null,0.01,null,null,null,null,null,null,null,null,null,null,null,null,null,null,null,null,null,null,null,null," ",176,86,0,null,false]
[27,"D8","",null,0.01,null,null,null,null,null,null,null,null,null,null,null,null,null,null,null,null,null,null,null,null," ",176,86,0,null,{"$f":"IF(COUNTBLANK(D2245)=0,#REF!)","v":false}]
[27,"B9","",null,0.01,null,null,null,null,null,null,null,null,null,null,null,null,null,null,null,null,null,null,null,null," ",176,86,0,null,false]
[27,"C9","",null,0.01,null,null,null,null,null,null,null,null,null,null,null,null,null,null,null,null,null,null,null,null," ",176,86,0,null,false]
[27,"H9","",null,0.01,null,null,null,null,null,null,null,null,null,null,null,null,null,null,null,null,null,null,null,null," ",{"$f":"CEILING((ROW()-StartRow+1)/PanelHeight,1)-1","v":177},86,{"$f":"IF(AB2309=WellsInPlate,0,1)","v":0},null,false]
[27,"E10","",null,0.01,null,null,null,null,null,null,null,null,null,null,null,null,null,null,null,null,null,null,null,null," ",177,86,0,null,false]
[27,"A11","",null,0.01,null,null,null,null,null,null,null,null,null,null,null,null,null,null,null,null,null,null,null,null," ",178,86,0,null,false]
[27,"B11","",null,0.01,null,null,null,null,null,null,null,null,null,null,null,null,null,null,null,null,null,null,null,null," ",178,86,0,null,false]
[28,"A1","",null,0.01,null,null,null,null,null,null,null,null,null,null,null,null,null,null,null,null,null,null,null,null," ",178,86,0,null,false]
[28,"D1","",null,0.01,null,null,null,null,null,null,null,null,null,null,null,null,null,null,null,null,null,null,null,null," ",178,86,0,null,false]
[28,"B2","",null,0.01,null,null,null,null,null,null,null,null,null,null,null,null,null,null,null,null,null,null,null,null," ",179,86,0,null,false]
[28,"C2","",null,0.01,null,null,null,null,null,null,null,null,null,null,null,null,null,null,null,null,null,null,null,null," ",179,86,0,null,false]
[28,"H2","",null,0.01,null,null,null,null,null,null,null,null,null,null,null,null,null,null,null,null,null,null,null,null," ",179,86,0,null,false]
[28,"E3","",null,0.01,null,null,null,null,null,null,null,null,null,null,null,null,null,null,null,null,null,null,null,null," ",180,86,0,null,false]
[28,"A4","",null,0.01,null,null,null,null,null,null,null,null,null,null,null,null,null,null,null,null,null,null,null,null," ",180,86,0,null,false]
[28,"B4","",null,0.01,null,null,null,null,null,null,null,null,null,null,null,null,null,null,null,null,null,null,null,null," ",180,86,0,null,false]
[28,"G4","",null,0.01,null,null,null,null,null,null,null,null,null,null,null,null,null,null,null,null,null,null,null,null," ",180,86,0,null,false]
[28,"D5","",null,0.01,null,null,null,null,null,null,null,null,null,null,null,null,null,null,null,null,null,null,null,null," ",181,86,0,null,false]
[28,"G5","",null,0.01,null,null,null,null,null,null,null,null,null,null,null,null,null,null,null,null,null,null,null,null," ",181,86,0,null,{"$f":"IF(COUNTBLANK(D2310)=0,A2302)","v":false}]
[28,"A6","",null,0.01,null,null,null,null,null,null,null,null,null,null,null,null,null,null,null,null,null,null,null,null," ",181,86,0,null,false]
[28,"F6","",null,0.01,null,null,null,null,null,null,null,null,null,null,null,null,null,null,null,null,null,null,null,null," ",181,86,0,null,false]
[28,"C7","",null,0.01,null,null,null,null,null,null,null,null,null,null,null,null,null,null,null,null,null,null,null,null," ",182,86,0,null,false]
[28,"G7","",null,0.01,null,null,null,null,null,null,null,null,null,null,null,null,null,null,null,null,null,null,null,null," ",182,86,0,null,{"$f":"IF(COUNTBLANK(D2324)=0,A2318)","v":false}]
[28,"H7","",null,0.01,null,null,null,null,null,null,null,null,null,null,null,null,null,null,null,null,null,null,null,null," ",182,86,0,null,false]
[28,"E8","",null,0.01,null,null,null,null,null,null,null,null,null,null,null,null,null,null,null,null,null,null,null,null," ",183,86,0,null,{"$f":"IF(COUNTBLANK(D2330)=0,#REF!)","v":false}]
[28,"B9","",null,0.01,null,null,null,null,null,null,null,null,null,null,null,null,null,null,null,null,null,null,null,null," ",183,86,0,null,false]
[28,"E9","",null,0.01,null,null,null,null,null,null,null,null,null,null,null,null,null,null,null,null,null,null,null,null," ",183,86,0,null,false]
[28,"G9","",null,0.01,null,null,null,null,null,null,null,null,null,null,null,null,null,null,null,null,null,null,null,null," ",183,86,0,null,false]
[28,"D10","",null,0.01,null,null,null,null,null,null,null,null,null,null,null,null,null,null,null,null,null,null,null,null," ",184,86,0,null,false]
[28,"A11","",null,0.01,null,null,null,null,null,null,null,null,null,null,null,null,null,null,null,null,null,null,null,null," ",184,86,0,null,false]
[28,"E11","",null,0.01,null,null,null,null,null,null,null,null,null,null,null,null,null,null,null,null,null,null,null,null," ",184,86,0,null,false]
[28,"F11","",null,0.01,null,null,null,null,null,null,null,null,null,null,null,null,null,null,null,null,null,null,null,null," ",185,86,0,null,false]
[29,"E1","",null,0.01,null,null,null,null,null,null,null,null,null,null,null,null,null,null,null,null,null,null,null,null," ",185,86,0,null,false]
[29,"B2","",null,0.01,null,null,null,null,null,null,null,null,null,null,null,null,null,null,null,null,null,null,null,null," ",185,86,0,null,false]
[29,"E2","",null,0.01,null,null,null,null,null,null,null,null,null,null,null,null,null,null,null,null,null,null,null,null," ",186,86,0,null,false]
[29,"G2","",null,0.01,null,null,null,null,null,null,null,null,null,null,null,null,null,null,null,null,null,null,null,null," ",186,86,0,null,false]
[29,"D3","",null,0.01,null,null,null,null,null,null,null,null,null,null,null,null,null,null,null,null,null,null,null,null," ",186,86,0,null,false]
[29,"A4","",null,0.01,null,null,null,null,null,null,null,null,null,null,null,null,null,null,null,null,null,null,null,null,{"$f":"IF(LEN(INDEX($1:$1048576,ROW(),4))>0,INDEX($1:$1048576,ROW(),4),\" \")","v":" "},186,86,0,null,false]
[29,"E4","",null,0.01,null,null,null,null,null,null,null,null,null,null,null,null,null,null,null,null,null,null,null,null," ",187,86,0,null,false]
[29,"F4","",null,0.01,null,null,null,null,null,null,null,null,null,null,null,null,null,null,null,null,null,null,null,null," ",187,86,0,null,false]
[29,"C5","",null,0.01,null,null,null,null,null,null,null,null,null,null,null,null,null,null,null,null,null,null,null,null," ",187,86,0,null,false]
[29,"H5","",null,0.01,null,null,null,null,null,null,null,null,null,null,null,null,null,null,null,null,null,null,null,null," ",188,86,0,null,false]
[29,"C6","",null,0.01,null,null,null,null,null,null,null,null,null,null,null,null,null,null,null,null,null,null,null,null," ",188,86,0,null,false]
[29,"E6","",null,0.01,null,null,null,null,null,null,null,null,null,null,null,null,null,null,null,null,null,null,null,null," ",188,86,0,null,false]
[29,"B7","",null,0.01,null,null,null,null,null,null,null,null,null,null,null,null,null,null,null,null,null,null,null,null," ",188,86,0,null,false]
[29,"G7","",null,0.01,null,null,null,null,null,null,null,null,null,null,null,null,null,null,null,null,null,null,null,null," ",189,86,0,null,{"$f":"IF(COUNTBLANK(#REF!)=0,A2402)","v":{"$error":"#REF!"}}]
[29,"C8","",null,0.01,null,null,null,null,null,null,null,null,null,null,null,null,null,null,null,null,null,null,null,null," ",189,86,0,null,false]
[29,"D8","",null,0.01,null,null,null,null,null,null,null,null,null,null,null,null,null,null,null,null,null,null,null,null," ",{"$f":"CEILING((ROW()-StartRow+1)/PanelHeight,1)-1","v":189},86,{"$f":"IF(AB2469=WellsInPlate,0,1)","v":0},null,false]
[29,"A9","",null,0.01,null,null,null,null,null,null,null,null,null,null,null,null,null,null,null,null,null,null,null,null," ",190,86,0,null,{"$f":"IF(COUNTBLANK(D2418)=0,A2410)","v":false}]
[29,"F9","",null,0.01,null,null,null,null,null,null,null,null,null,null,null,null,null,null,null,null,null,null,null,null," ",190,86,0,null,false]
[29,"C10","",null,0.01,null,null,null,null,null,null,null,null,null,null,null,null,null,null,null,null,null,null,null,null," ",190,86,0,null,false]
[29,"E10","",null,0.01,null,null,null,null,null,null,null,null,null,null,null,null,null,null,null,null,null,null,null,null," ",190,86,0,null,false]
[29,"H10","",null,0.01,null,null,null,null,null,null,null,null,null,null,null,null,null,null,null,null,null,null,null,null," ",191,86,0,null,false]
[29,"E11","",null,0.01,null,null,null,null,null,null,null,null,null,null,null,null,null,null,null,null,null,null,null,null," ",191,86,0,null,false]
[30,"D1","",null,0.01,null,null,null,null,null,null,null,null,null,null,null,null,null,null,null,null,null,null,null,null," ",191,86,0,null,false]
[30,"E1","",null,0.01,null,null,null,null,null,null,null,null,null,null,null,null,null,null,null,null,null,null,null,null," ",{"$f":"CEILING((ROW()-StartRow+1)/PanelHeight,1)-1","v":192},{"$f":"COUNTBLANK(OFFSET(INDEX($1:$1048576,2,4),AA2500*WellsInPlate,0,WellsInPlate,1))","v":86},{"$f":"IF(AB2500=WellsInPlate,0,1)","v":0},null,false]
[30,"A2","",null,0.01,null,null,null,null,null,null,null,null,null,null,null,null,null,null,null,null,null,null,null,null," ",192,86,0,null,false]
[30,"F2","",null,0.01,null,null,null,null,null,null,null,null,null,null,null,null,null,null,null,null,null,null,null,null," ",192,86,0,null,false]
[30,"C3","",null,0.01,null,null,null,null,null,null,null,null,null,null,null,null,null,null,null,null,null,null,null,null," ",193,86,0,null,false]
[30,"E3","",null,0.01,null,null,null,null,null,null,null,null,null,null,null,null,null,null,null,null,null,null,null,null," ",193,86,0,null,false]
[30,"H3","",null,0.01,null,null,null,null,null,null,null,null,null,null,null,null,null,null,null,null,null,null,null,null," ",193,86,0,null,false]
[30,"E4","",null,0.01,null,null,null,null,null,null,null,null,null,null,null,null,null,null,null,null,null,null,null,null," ",193,86,0,null,false]
[30,"B5","",null,0.01,null,null,null,null,null,null,null,null,null,null,null,null,null,null,null,null,null,null,null,null," ",194,86,0,null,false]
[30,"C5","",null,0.01,null,null,null,null,null,null,null,null,null,null,null,null,null,null,null,null,null,null,null,null," ",194,86,0,null,false]
[30,"G5","",null,0.01,null,null,null,null,null,null,null,null,null,null,null,null,null,null,null,null,null,null,null,null," ",194,86,0,null,false]
[30,"D6","",null,0.01,null,null,null,null,null,null,null,null,null,null,null,null,null,null,null,null,null,null,null,null," ",195,86,0,null,false]
[30,"A7","",null,0.01,null,null,null,null,null,null,null,null,null,null,null,null,null,null,null,null,null,null,null,null," ",195,86,0,null,false]
[30,"C7","",null,0.01,null,null,null,null,null,null,null,null,null,null,null,null,null,null,null,null,null,null,null,null," ",195,86,0,null,false]
[30,"F7","",null,0.01,null,null,null,null,null,null,null,null,null,null,null,null,null,null,null,null,null,null,null,null," ",195,86,0,null,false]
[30,"C8","",null,0.01,null,null,null,null,null,null,null,null,null,null,null,null,null,null,null,null,null,null,null,null," ",196,86,0,null,{"$f":"IF(COUNTBLANK(D2496)=0,A2490)","v":false}]
[30,"H8","",null,0.01,null,null,null,null,null,null,null,null,null,null,null,null,null,null,null,null,null,null,null,null," ",196,86,0,null,false]
[30,"A9","",null,0.01,null,null,null,null,null,null,null,null,null,null,null,null,null,null,null,null,null,null,null,null," ",196,86,0,null,{"$f":"IF(COUNTBLANK(D2502)=0,#REF!)","v":false}]
[30,"E9","",null,0.01,null,null,null,null,null,null,null,null,null,null,null,null,null,null,null,null,null,null,null,null," ",{"$f":"CEILING((ROW()-StartRow+1)/PanelHeight,1)-1","v":196},{"$f":"COUNTBLANK(OFFSET(INDEX($1:$1048576,2,4),AA2564*WellsInPlate,0,WellsInPlate,1))","v":86},{"$f":"IF(AB2564=WellsInPlate,0,1)","v":0},null,false]
[30,"B10","",null,0.01,null,null,null,null,null,null,null,null,null,null,null,null,null,null,null,null,null,null,null,null," ",197,86,0,null,false]
[30,"G10","",null,0.01,null,null,null,null,null,null,null,null,null,null,null,null,null,null,null,null,null,null,null,null," ",197,86,0,null,false]
[30,"B11","",null,0.01,null,null,null,null,null,null,null,null,null,null,null,null,null,null,null,null,null,null,null,null," ",197,86,0,null,false]
[30,"D11","",null,0.01,null,null,null,null,null,null,null,null,null,null,null,null,null,null,null,null,null,null,null,null," ",198,86,0,null,false]
[31,"C1","",null,0.01,null,null,null,null,null,null,null,null,null,null,null,null,null,null,null,null,null,null,null,null," ",198,86,0,null,false]
[31,"H1","",null,0.01,null,null,null,null,null,null,null,null,null,null,null,null,null,null,null,null,null,null,null,null," ",198,86,0,null,false]
[31,"A2","",null,0.01,null,null,null,null,null,null,null,null,null,null,null,null,null,null,null,null,null,null,null,null," ",198,86,0,null,false]
[31,"E2","",null,0.01,null,null,null,null,null,null,null,null,null,null,null,null,null,null,null,null,null,null,null,null," ",199,86,0,null,{"$f":"IF(COUNTBLANK(D2536)=0,A2528)","v":false}]
[31,"B3","",null,0.01,null,null,null,null,null,null,null,null,null,null,null,null,null,null,null,null,null,null,null,null," ",199,86,0,null,false]
[31,"G3","",null,0.01,null,null,null,null,null,null,null,null,null,null,null,null,null,null,null,null,null,null,null,null," ",200,86,0,null,false]
[31,"B4","",null,0.01,null,null,null,null,null,null,null,null,null,null,null,null,null,null,null,null,null,null,null,null," ",200,86,0,null,false]
[31,"D4","",null,0.01,null,null,null,null,null,null,null,null,null,null,null,null,null,null,null,null,null,null,null,null," ",200,86,0,null,false]
[31,"A5","",null,0.01,null,null,null,null,null,null,null,null,null,null,null,null,null,null,null,null,null,null,null,null," ",200,86,0,null,false]
[31,"F5","",null,0.01,null,null,null,null,null,null,null,null,null,null,null,null,null,null,null,null,null,null,null,null," ",201,86,0,null,false]
[31,"G5","",null,0.01,null,null,null,null,null,null,null,null,null,null,null,null,null,null,null,null,null,null,null,null," ",201,86,0,null,false]
[31,"D6","",null,0.01,null,null,null,null,null,null,null,null,null,null,null,null,null,null,null,null,null,null,null,null," ",201,86,0,null,false]
[31,"H6","",null,0.01,null,null,null,null,null,null,null,null,null,null,null,null,null,null,null,null,null,null,null,null," ",{"$f":"CEILING((ROW()-StartRow+1)/PanelHeight,1)-1","v":201},86,{"$f":"IF(AB2629=WellsInPlate,0,1)","v":0},null,false]
[31,"E7","",null,0.01,null,null,null,null,null,null,null,null,null,null,null,null,null,null,null,null,null,null,null,null," ",202,86,0,null,false]
[31,"F7","",null,0.01,null,null,null,null,null,null,null,null,null,null,null,null,null,null,null,null,null,null,null,null," ",202,86,0,null,false]
[31,"D8","",null,0.01,null,null,null,null,null,null,null,null,null,null,null,null,null,null,null,null,null,null,null,null," ",202,86,0,null,{"$f":"IF(COUNTBLANK(#REF!)=0,A2575)","v":{"$error":"#REF!"}}]
[31,"G8","",null,0.01,null,null,null,null,null,null,null,null,null,null,null,null,null,null,null,null,null,null,null,null," ",203,86,0,null,false]
[31,"D9","",null,0.01,null,null,null,null,null,null,null,null,null,null,null,null,null,null,null,null,null,null,null,null," ",203,86,0,null,{"$f":"IF(COUNTBLANK(D2589)=0,#REF!)","v":false}]
[31,"E9","",null,0.01,null,null,null,null,null,null,null,null,null,null,null,null,null,null,null,null,null,null,null,null," ",203,86,0,null,{"$f":"IF(COUNTBLANK(D2590)=0,A2582)","v":false}]
[31,"B10","",null,0.01,null,null,null,null,null,null,null,null,null,null,null,null,null,null,null,null,null,null,null,null," ",203,86,0,null,false]
[31,"F10","",null,0.01,null,null,null,null,null,null,null,null,null,null,null,null,null,null,null,null,null,null,null,null," ",204,86,0,null,false]
[31,"C11","",null,0.01,null,null,null,null,null,null,null,null,null,null,null,null,null,null,null,null,null,null,null,null," ",204,86,0,null,false]
[31,"D11","",null,0.01,null,null,null,null,null,null,null,null,null,null,null,null,null,null,null,null,null,null,null,null," ",204,86,0,null,false]
[32,"D1","",null,0.01,null,null,null,null,null,null,null,null,null,null,null,null,null,null,null,null,null,null,null,null," ",205,86,0,null,false]
[32,"G1","",null,0.01,null,null,null,null,null,null,null,null,null,null,null,null,null,null,null,null,null,null,null,null," ",205,86,0,null,false]
[32,"D2","",null,0.01,null,null,null,null,null,null,null,null,null,null,null,null,null,null,null,null,null,null,null,null," ",205,86,0,null,false]
[32,"E2","",null,0.01,null,null,null,null,null,null,null,null,null,null,null,null,null,null,null,null,null,null,null,null," ",205,86,0,null,false]
[32,"B3","",null,0.01,null,null,null,null,null,null,null,null,null,null,null,null,null,null,null,null,null,null,null,null," ",206,86,0,null,false]
[32,"F3","",null,0.01,null,null,null,null,null,null,null,null,null,null,null,null,null,null,null,null,null,null,null,null," ",206,86,0,null,false]
[32,"C4","",null,0.01,null,null,null,null,null,null,null,null,null,null,null,null,null,null,null,null,null,null,null,null," ",206,86,0,null,false]
[32,"D4",{"$f":"IF(D2695=0,\"\",D2695)","v":""},null,0.01,null,null,null,null,null,null,null,null,null,null,null,null,null,null,null,null,null,null,null,null," ",207,86,0,null,false]
[32,"B5","",null,0.01,null,null,null,null,null,null,null,null,null,null,null,null,null,null,null,null,null,null,null,null," ",207,86,0,null,false]
[32,"E5","",null,0.01,null,null,null,null,null,null,null,null,null,null,null,null,null,null,null,null,null,null,null,null," ",207,86,0,null,false]
[32,"B6","",null,0.01,null,null,null,null,null,null,null,null,null,null,null,null,null,null,null,null,null,null,null,null," ",208,86,0,null,false]
[32,"C6","",null,0.01,null,null,null,null,null,null,null,null,null,null,null,null,null,null,null,null,null,null,null,null," ",208,86,0,null,false]
[32,"H6","",null,0.01,null,null,null,null,null,null,null,null,null,null,null,null,null,null,null,null,null,null,null,null," ",208,86,0,null,false]
[32,"D7","",null,0.01,null,null,null,null,null,null,null,null,null,null,null,null,null,null,null,null,null,null,null,null," ",208,86,0,null,false]
[32,"A8","",null,0.01,null,null,null,null,null,null,null,null,null,null,null,null,null,null,null,null,null,null,null,null," ",209,86,0,null,false]
[32,"B8","",null,0.01,null,null,null,null,null,null,null,null,null,null,null,null,null,null,null,null,null,null,null,null," ",{"$f":"CEILING((ROW()-StartRow+1)/PanelHeight,1)-1","v":209},86,{"$f":"IF(AB2725=WellsInPlate,0,1)","v":0},null,false]
[32,"H8","",null,0.01,null,null,null,null,null,null,null,null,null,null,null,null,null,null,null,null,null,null,null,null," ",209,86,0,null,false]
[32,"C9","",null,0.01,null,null,null,null,null,null,null,null,null,null,null,null,null,null,null,null,null,null,null,null," ",210,86,0,null,false]
[32,"H9","",null,0.01,null,null,null,null,null,null,null,null,null,null,null,null,null,null,null,null,null,null,null,null," ",210,86,0,null,false]
[32,"A10","",null,0.01,null,null,null,null,null,null,null,null,null,null,null,null,null,null,null,null,null,null,null,null," ",210,86,0,null,false]
[32,"F10","",null,0.01,null,null,null,null,null,null,null,null,null,null,null,null,null,null,null,null,null,null,null,null," ",210,86,0,null,false]
[32,"B11","",null,0.01,null,null,null,null,null,null,null,null,null,null,null,null,null,null,null,null,null,null,null,null," ",211,86,0,null,false]
[33,"A1","",null,0.01,null,null,null,null,null,null,null,null,null,null,null,null,null,null,null,null,null,null,null,null,{"$f":"IF(LEN(INDEX($1:$1048576,ROW(),4))>0,INDEX($1:$1048576,ROW(),4),\" \")","v":" "},211,86,0,null,false]
[33,"B1","",null,0.01,null,null,null,null,null,null,null,null,null,null,null,null,null,null,null,null,null,null,null,null," ",211,86,0,null,false]
[33,"G1","",null,0.01,null,null,null,null,null,null,null,null,null,null,null,null,null,null,null,null,null,null,null,null," ",212,86,0,null,false]
[33,"B2","",null,0.01,null,null,null,null,null,null,null,null,null,null,null,null,null,null,null,null,null,null,null,null," ",212,86,0,null,false]
[33,"H2","",null,0.01,null,null,null,null,null,null,null,null,null,null,null,null,null,null,null,null,null,null,null,null," ",212,86,0,null,false]
[33,"A3","",null,0.01,null,null,null,null,null,null,null,null,null,null,null,null,null,null,null,null,null,null,null,null," ",212,86,0,null,{"$f":"IF(COUNTBLANK(D2708)=0,A2700)","v":false}]
[33,"F3","",null,0.01,null,null,null,null,null,null,null,null,null,null,null,null,null,null,null,null,null,null,null,null," ",213,86,0,null,false]
[33,"B4","",null,0.01,null,null,null,null,null,null,null,null,null,null,null,null,null,null,null,null,null,null,null,null," ",213,86,0,null,false]
[33,"G4","",null,0.01,null,null,null,null,null,null,null,null,null,null,null,null,null,null,null,null,null,null,null,null," ",213,86,0,null,false]
[33,"H4","",null,0.01,null,null,null,null,null,null,null,null,null,null,null,null,null,null,null,null,null,null,null,null," ",213,86,0,null,false]
[33,"E5","",null,0.01,null,null,null,null,null,null,null,null,null,null,null,null,null,null,null,null,null,null,null,null," ",214,86,0,null,false]
[33,"H5","",null,0.01,null,null,null,null,null,null,null,null,null,null,null,null,null,null,null,null,null,null,null,null," ",214,86,0,null,false]
[33,"F6","",null,0.01,null,null,null,null,null,null,null,null,null,null,null,null,null,null,null,null,null,null,null,null," ",215,86,0,null,false]
[33,"G6","",null,0.01,null,null,null,null,null,null,null,null,null,null,null,null,null,null,null,null,null,null,null,null," ",215,86,0,null,false]
[33,"D7","",null,0.01,null,null,null,null,null,null,null,null,null,null,null,null,null,null,null,null,null,null,null,null," ",215,86,0,null,false]
[33,"H7","",null,0.01,null,null,null,null,null,null,null,null,null,null,null,null,null,null,null,null,null,null,null,null," ",215,86,0,null,false]
[33,"E8","",null,0.01,null,null,null,null,null,null,null,null,null,null,null,null,null,null,null,null,null,null,null,null," ",216,86,0,null,false]
[33,"F8","",null,0.01,null,null,null,null,null,null,null,null,null,null,null,null,null,null,null,null,null,null,null,null," ",216,86,0,null,false]
[33,"C9","",null,0.01,null,null,null,null,null,null,null,null,null,null,null,null,null,null,null,null,null,null,null,null," ",{"$f":"CEILING((ROW()-StartRow+1)/PanelHeight,1)-1","v":216},{"$f":"COUNTBLANK(OFFSET(INDEX($1:$1048576,2,4),AA2820*WellsInPlate,0,WellsInPlate,1))","v":86},{"$f":"IF(AB2820=WellsInPlate,0,1)","v":0},null,false]
[33,"F9","",null,0.01,null,null,null,null,null,null,null,null,null,null,null,null,null,null,null,null,null,null,null,null," ",216,86,0,null,false]
[33,"D10","",null,0.01,null,null,null,null,null,null,null,null,null,null,null,null,null,null,null,null,null,null,null,null," ",217,86,0,null,false]
[33,"E10","",null,0.01,null,null,null,null,null,null,null,null,null,null,null,null,null,null,null,null,null,null,null,null," ",217,86,0,null,false]
[33,"B11","",null,0.01,null,null,null,null,null,null,null,null,null,null,null,null,null,null,null,null,null,null,null,null," ",217,86,0,null,false]
[33,"F11","",null,0.01,null,null,null,null,null,null,null,null,null,null,null,null,null,null,null,null,null,null,null,null," ",218,86,0,null,false]
[34,"E1","",null,0.01,null,null,null,null,null,null,null,null,null,null,null,null,null,null,null,null,null,null,null,null," ",218,86,0,null,false]
[34,"F1","",null,0.01,null,null,null,null,null,null,null,null,null,null,null,null,null,null,null,null,null,null,null,null," ",218,86,0,null,false]
[34,"C2","",null,0.01,null,null,null,null,null,null,null,null,null,null,null,null,null,null,null,null,null,null,null,null," ",218,86,0,null,false]
[34,"F2","",null,0.01,null,null,null,null,null,null,null,null,null,null,null,null,null,null,null,null,null,null,null,null," ",{"$f":"CEILING((ROW()-StartRow+1)/PanelHeight,1)-1","v":219},86,{"$f":"IF(AB2853=WellsInPlate,0,1)","v":0},null,false]
[34,"D3","",null,0.01,null,null,null,null,null,null,null,null,null,null,null,null,null,null,null,null,null,null,null,null," ",219,86,0,null,false]
[34,"E3","",null,0.01,null,null,null,null,null,null,null,null,null,null,null,null,null,null,null,null,null,null,null,null," ",219,86,0,null,false]
[34,"B4","",null,0.01,null,null,null,null,null,null,null,null,null,null,null,null,null,null,null,null,null,null,null,null," ",220,86,0,null,false]
[34,"F4","",null,0.01,null,null,null,null,null,null,null,null,null,null,null,null,null,null,null,null,null,null,null,null," ",220,86,0,null,false]
[34,"C5","",null,0.01,null,null,null,null,null,null,null,null,null,null,null,null,null,null,null,null,null,null,null,null," ",220,86,0,null,false]
[34,"D5","",null,0.01,null,null,null,null,null,null,null,null,null,null,null,null,null,null,null,null,null,null,null,null," ",220,86,0,null,false]
[34,"A6","",null,0.01,null,null,null,null,null,null,null,null,null,null,null,null,null,null,null,null,null,null,null,null," ",221,86,0,null,false]
[34,"F6","",null,0.01,null,null,null,null,null,null,null,null,null,null,null,null,null,null,null,null,null,null,null,null," ",{"$f":"CEILING((ROW()-StartRow+1)/PanelHeight,1)-1","v":221},86,{"$f":"IF(AB2885=WellsInPlate,0,1)","v":0},null,false]
[34,"H6","",null,0.01,null,null,null,null,null,null,null,null,null,null,null,null,null,null,null,null,null,null,null,null," ",221,86,0,null,false]
[34,"C7","",null,0.01,null,null,null,null,null,null,null,null,null,null,null,null,null,null,null,null,null,null,null,null," ",222,86,0,null,{"$f":"IF(COUNTBLANK(D2826)=0,A2818)","v":false}]
[34,"H7","",null,0.01,null,null,null,null,null,null,null,null,null,null,null,null,null,null,null,null,null,null,null,null," ",222,86,0,null,false]
[34,"E8","",null,0.01,null,null,null,null,null,null,null,null,null,null,null,null,null,null,null,null,null,null,null,null," ",222,86,0,null,false]
[34,"A9","",null,0.01,null,null,null,null,null,null,null,null,null,null,null,null,null,null,null,null,null,null,null,null," ",223,86,0,null,{"$f":"IF(COUNTBLANK(#REF!)=0,A2832)","v":{"$error":"#REF!"}}]
[34,"B9","",null,0.01,null,null,null,null,null,null,null,null,null,null,null,null,null,null,null,null,null,null,null,null," ",223,86,0,null,{"$f":"IF(COUNTBLANK(#REF!)=0,A2833)","v":{"$error":"#REF!"}}]
[34,"G9","",null,0.01,null,null,null,null,null,null,null,null,null,null,null,null,null,null,null,null,null,null,null,null," ",223,86,0,null,false]
[34,"D10","",null,0.01,null,null,null,null,null,null,null,null,null,null,null,null,null,null,null,null,null,null,null,null," ",223,86,0,null,false]
[34,"F10","",null,0.01,null,null,null,null,null,null,null,null,null,null,null,null,null,null,null,null,null,null,null,null," ",{"$f":"CEILING((ROW()-StartRow+1)/PanelHeight,1)-1","v":224},86,{"$f":"IF(AB2917=WellsInPlate,0,1)","v":0},null,false]
[34,"A11","",null,0.01,null,null,null,null,null,null,null,null,null,null,null,null,null,null,null,null,null,null,null,null," ",224,86,0,null,false]
[34,"F11","",null,0.01,null,null,null,null,null,null,null,null,null,null,null,null,null,null,null,null,null,null,null,null," ",224,86,0,null,false]
[35,"E1","",null,0.01,null,null,null,null,null,null,null,null,null,null,null,null,null,null,null,null,null,null,null,null," ",225,86,0,null,false]
[35,"A2","",null,0.01,null,null,null,null,null,null,null,null,null,null,null,null,null,null,null,null,null,null,null,null," ",225,86,0,null,false]
[35,"B2","",null,0.01,null,null,null,null,null,null,null,null,null,null,null,null,null,null,null,null,null,null,null,null," ",225,86,0,null,false]
[35,"G2","",null,0.01,null,null,null,null,null,null,null,null,null,null,null,null,null,null,null,null,null,null,null,null," ",225,86,0,null,false]
[35,"D3",{"$f":"IF(D2945=0,\"\",D2945)","v":""},null,0.01,null,null,null,null,null,null,null,null,null,null,null,null,null,null,null,null,null,null,null,null," ",226,86,0,null,false]
[35,"F3","",null,0.01,null,null,null,null,null,null,null,null,null,null,null,null,null,null,null,null,null,null,null,null," ",226,86,0,null,false]
[35,"A4","",null,0.01,null,null,null,null,null,null,null,null,null,null,null,null,null,null,null,null,null,null,null,null," ",226,86,0,null,false]
[35,"F4","",null,0.01,null,null,null,null,null,null,null,null,null,null,null,null,null,null,null,null,null,null,null,null," ",227,86,0,null,false]
[35,"C5","",null,0.01,null,null,null,null,null,null,null,null,null,null,null,null,null,null,null,null,null,null,null,null," ",227,86,0,null,false]
[35,"G5","",null,0.01,null,null,null,null,null,null,null,null,null,null,null,null,null,null,null,null,null,null,null,null," ",227,86,0,null,false]
[35,"H5","",null,0.01,null,null,null,null,null,null,null,null,null,null,null,null,null,null,null,null,null,null,null,null," ",227,86,0,null,false]
[35,"E6","",null,0.01,null,null,null,null,null,null,null,null,null,null,null,null,null,null,null,null,null,null,null,null," ",228,86,0,null,false]
[35,"B7","",null,0.01,null,null,null,null,null,null,null,null,null,null,null,null,null,null,null,null,null,null,null,null," ",228,86,0,null,false]
[35,"D7","",null,0.01,null,null,null,null,null,null,null,null,null,null,null,null,null,null,null,null,null,null,null,null," ",228,86,0,null,false]
[35,"G7","",null,0.01,null,null,null,null,null,null,null,null,null,null,null,null,null,null,null,null,null,null,null,null," ",228,86,0,null,false]
[35,"D8","",null,0.01,null,null,null,null,null,null,null,null,null,null,null,null,null,null,null,null,null,null,null,null," ",229,86,0,null,false]
[35,"A9","",null,0.01,null,null,null,null,null,null,null,null,null,null,null,null,null,null,null,null,null,null,null,null," ",229,86,0,null,false]
[35,"E9","",null,0.01,null,null,null,null,null,null,null,null,null,null,null,null,null,null,null,null,null,null,null,null," ",230,86,0,null,{"$f":"IF(COUNTBLANK(D2926)=0,A2920)","v":false}]
[35,"F9","",null,0.01,null,null,null,null,null,null,null,null,null,null,null,null,null,null,null,null,null,null,null,null," ",230,86,0,null,false]
[35,"C10","",null,0.01,null,null,null,null,null,null,null,null,null,null,null,null,null,null,null,null,null,null,null,null," ",230,86,0,null,{"$f":"IF(COUNTBLANK(D2932)=0,#REF!)","v":false}]
[35,"H10","",null,0.01,null,null,null,null,null,null,null,null,null,null,null,null,null,null,null,null,null,null,null,null," ",230,86,0,null,false]
[35,"B11","",null,0.01,null,null,null,null,null,null,null,null,null,null,null,null,null,null,null,null,null,null,null,null," ",231,86,0,null,false]
[35,"E11","",null,0.01,null,null,null,null,null,null,null,null,null,null,null,null,null,null,null,null,null,null,null,null,{"$f":"IF(LEN(INDEX($1:$1048576,ROW(),4))>0,INDEX($1:$1048576,ROW(),4),\" \")","v":" "},231,86,0,null,false]
[36,"D1","",null,0.01,null,null,null,null,null,null,null,null,null,null,null,null,null,null,null,null,null,null,null,null," ",231,86,0,null,false]
[36,"A2","",null,0.01,null,null,null,null,null,null,null,null,null,null,null,null,null,null,null,null,null,null,null,null," ",232,86,0,null,false]
[36,"F2","",null,0.01,null,null,null,null,null,null,null,null,null,null,null,null,null,null,null,null,null,null,null,null," ",232,86,0,null,false]
[36,"A3","",null,0.01,null,null,null,null,null,null,null,null,null,null,null,null,null,null,null,null,null,null,null,null," ",232,86,0,null,false]
[36,"C3","",null,0.01,null,null,null,null,null,null,null,null,null,null,null,null,null,null,null,null,null,null,null,null," ",232,86,0,null,false]
[36,"H3","",null,0.01,null,null,null,null,null,null,null,null,null,null,null,null,null,null,null,null,null,null,null,null," ",233,86,0,null,false]
[36,"E4","",null,0.01,null,null,null,null,null,null,null,null,null,null,null,null,null,null,null,null,null,null,null,null," ",233,86,0,null,false]
[36,"G4","",null,0.01,null,null,null,null,null,null,null,null,null,null,null,null,null,null,null,null,null,null,null,null," ",233,86,0,null,false]
[36,"B5","",null,0.01,null,null,null,null,null,null,null,null,null,null,null,null,null,null,null,null,null,null,null,null," ",{"$f":"CEILING((ROW()-StartRow+1)/PanelHeight,1)-1","v":233},86,{"$f":"IF(AB3045=WellsInPlate,0,1)","v":0},null,false]
[36,"G5","",null,0.01,null,null,null,null,null,null,null,null,null,null,null,null,null,null,null,null,null,null,null,null," ",234,86,0,null,false]
[36,"D6","",null,0.01,null,null,null,null,null,null,null,null,null,null,null,null,null,null,null,null,null,null,null,null," ",234,86,0,null,false]
[36,"G6","",null,0.01,null,null,null,null,null,null,null,null,null,null,null,null,null,null,null,null,null,null,null,null," ",234,86,0,null,false]
[36,"A7","",null,0.01,null,null,null,null,null,null,null,null,null,null,null,null,null,null,null,null,null,null,null,null," ",235,86,0,null,false]
[36,"F7","",null,0.01,null,null,null,null,null,null,null,null,null,null,null,null,null,null,null,null,null,null,null,null," ",235,86,0,null,false]
[36,"C8","",null,0.01,null,null,null,null,null,null,null,null,null,null,null,null,null,null,null,null,null,null,null,null," ",235,86,0,null,false]
[36,"E8","",null,0.01,null,null,null,null,null,null,null,null,null,null,null,null,null,null,null,null,null,null,null,null," ",236,86,0,null,false]
[36,"H8","",null,0.01,null,null,null,null,null,null,null,null,null,null,null,null,null,null,null,null,null,null,null,null," ",236,86,0,null,false]
[36,"E9","",null,0.01,null,null,null,null,null,null,null,null,null,null,null,null,null,null,null,null,null,null,null,null," ",236,86,0,null,{"$f":"IF(COUNTBLANK(#REF!)=0,A3004)","v":{"$error":"#REF!"}}]
[36,"B10","",null,0.01,null,null,null,null,null,null,null,null,null,null,null,null,null,null,null,null,null,null,null,null," ",237,86,0,null,false]
[36,"E10","",null,0.01,null,null,null,null,null,null,null,null,null,null,null,null,null,null,null,null,null,null,null,null," ",237,86,0,null,{"$f":"IF(COUNTBLANK(D3018)=0,#REF!)","v":false}]
[36,"G10","",null,0.01,null,null,null,null,null,null,null,null,null,null,null,null,null,null,null,null,null,null,null,null," ",237,86,0,null,{"$f":"IF(COUNTBLANK(D3020)=0,A3012)","v":false}]
[36,"D11","",null,0.01,null,null,null,null,null,null,null,null,null,null,null,null,null,null,null,null,null,null,null,null," ",237,86,0,null,false]
[37,"C1","",null,0.01,null,null,null,null,null,null,null,null,null,null,null,null,null,null,null,null,null,null,null,null," ",238,86,0,null,false]
[37,"E1","",null,0.01,null,null,null,null,null,null,null,null,null,null,null,null,null,null,null,null,null,null,null,null," ",238,86,0,null,false]
[37,"H1","",null,0.01,null,null,null,null,null,null,null,null,null,null,null,null,null,null,null,null,null,null,null,null," ",238,86,0,null,false]
[37,"E2","",null,0.01,null,null,null,null,null,null,null,null,null,null,null,null,null,null,null,null,null,null,null,null," ",238,86,0,null,false]
[37,"B3","",null,0.01,null,null,null,null,null,null,null,null,null,null,null,null,null,null,null,null,null,null,null,null," ",239,86,0,null,false]
[37,"C3","",null,0.01,null,null,null,null,null,null,null,null,null,null,null,null,null,null,null,null,null,null,null,null," ",239,86,0,null,false]
[37,"G3","",null,0.01,null,null,null,null,null,null,null,null,null,null,null,null,null,null,null,null,null,null,null,null," ",239,86,0,null,false]
[37,"D4","",null,0.01,null,null,null,null,null,null,null,null,null,null,null,null,null,null,null,null,null,null,null,null," ",240,86,0,null,false]
[37,"A5","",null,0.01,null,null,null,null,null,null,null,null,null,null,null,null,null,null,null,null,null,null,null,null," ",240,86,0,null,false]
[37,"C5","",null,0.01,null,null,null,null,null,null,null,null,null,null,null,null,null,null,null,null,null,null,null,null," ",240,86,0,null,false]
[37,"F5","",null,0.01,null,null,null,null,null,null,null,null,null,null,null,null,null,null,null,null,null,null,null,null," ",240,86,0,null,false]
[37,"C6","",null,0.01,null,null,null,null,null,null,null,null,null,null,null,null,null,null,null,null,null,null,null,null," ",{"$f":"CEILING((ROW()-StartRow+1)/PanelHeight,1)-1","v":241},{"$f":"COUNTBLANK(OFFSET(INDEX($1:$1048576,2,4),AA3140*WellsInPlate,0,WellsInPlate,1))","v":86},{"$f":"IF(AB3140=WellsInPlate,0,1)","v":0},null,false]
[37,"H6","",null,0.01,null,null,null,null,null,null,null,null,null,null,null,null,null,null,null,null,null,null,null,null," ",241,86,0,null,false]
[37,"A7","",null,0.01,null,null,null,null,null,null,null,null,null,null,null,null,null,null,null,null,null,null,null,null," ",241,86,0,null,false]
[37,"E7","",null,0.01,null,null,null,null,null,null,null,null,null,null,null,null,null,null,null,null,null,null,null,null," ",242,86,0,null,false]
[37,"B8","",null,0.01,null,null,null,null,null,null,null,null,null,null,null,null,null,null,null,null,null,null,null,null," ",242,86,0,null,false]
[37,"G8","",null,0.01,null,null,null,null,null,null,null,null,null,null,null,null,null,null,null,null,null,null,null,null," ",242,86,0,null,false]
[37,"H8","",null,0.01,null,null,null,null,null,null,null,null,null,null,null,null,null,null,null,null,null,null,null,null," ",242,86,0,null,false]
[37,"F9","",null,0.01,null,null,null,null,null,null,null,null,null,null,null,null,null,null,null,null,null,null,null,null," ",243,86,0,null,false]
[37,"A10","",null,0.01,null,null,null,null,null,null,null,null,null,null,null,null,null,null,null,null,null,null,null,null," ",243,86,0,null,{"$f":"IF(COUNTBLANK(D3098)=0,A3092)","v":false}]
[37,"F10","",null,0.01,null,null,null,null,null,null,null,null,null,null,null,null,null,null,null,null,null,null,null,null," ",243,86,0,null,false]
[37,"G10","",null,0.01,null,null,null,null,null,null,null,null,null,null,null,null,null,null,null,null,null,null,null,null," ",244,86,0,null,{"$f":"IF(COUNTBLANK(D3104)=0,#REF!)","v":false}]
[37,"C11","",null,0.01,null,null,null,null,null,null,null,null,null,null,null,null,null,null,null,null,null,null,null,null," ",244,86,0,null,false]
[38,"B1","",null,0.01,null,null,null,null,null,null,null,null,null,null,null,null,null,null,null,null,null,null,null,null," ",244,86,0,null,false]
[38,"G1","",null,0.01,null,null,null,null,null,null,null,null,null,null,null,null,null,null,null,null,null,null,null,null," ",245,86,0,null,false]
[38,"H1","",null,0.01,null,null,null,null,null,null,null,null,null,null,null,null,null,null,null,null,null,null,null,null," ",245,86,0,null,false]
[38,"F2","",null,0.01,null,null,null,null,null,null,null,null,null,null,null,null,null,null,null,null,null,null,null,null," ",245,86,0,null,false]
[38,"A3","",null,0.01,null,null,null,null,null,null,null,null,null,null,null,null,null,null,null,null,null,null,null,null," ",245,86,0,null,false]
[38,"F3","",null,0.01,null,null,null,null,null,null,null,null,null,null,null,null,null,null,null,null,null,null,null,null," ",{"$f":"CEILING((ROW()-StartRow+1)/PanelHeight,1)-1","v":246},86,{"$f":"IF(AB3205=WellsInPlate,0,1)","v":0},null,false]
[38,"G3","",null,0.01,null,null,null,null,null,null,null,null,null,null,null,null,null,null,null,null,null,null,null,null," ",246,86,0,null,false]
[38,"C4","",null,0.01,null,null,null,null,null,null,null,null,null,null,null,null,null,null,null,null,null,null,null,null," ",246,86,0,null,{"$f":"IF(COUNTBLANK(D3138)=0,A3130)","v":false}]
[38,"H4","",null,0.01,null,null,null,null,null,null,null,null,null,null,null,null,null,null,null,null,null,null,null,null," ",247,86,0,null,false]
[38,"E5","",null,0.01,null,null,null,null,null,null,null,null,null,null,null,null,null,null,null,null,null,null,null,null," ",247,86,0,null,false]
[38,"F5","",null,0.01,null,null,null,null,null,null,null,null,null,null,null,null,null,null,null,null,null,null,null,null," ",247,86,0,null,false]
[38,"D6","",null,0.01,null,null,null,null,null,null,null,null,null,null,null,null,null,null,null,null,null,null,null,null," ",247,86,0,null,false]
[38,"G6","",null,0.01,null,null,null,null,null,null,null,null,null,null,null,null,null,null,null,null,null,null,null,null," ",248,86,0,null,false]
[38,"D7","",null,0.01,null,null,null,null,null,null,null,null,null,null,null,null,null,null,null,null,null,null,null,null," ",248,86,0,null,false]
[38,"E7","",null,0.01,null,null,null,null,null,null,null,null,null,null,null,null,null,null,null,null,null,null,null,null," ",248,86,0,null,false]
[38,"A8","",null,0.01,null,null,null,null,null,null,null,null,null,null,null,null,null,null,null,null,null,null,null,null," ",248,86,0,null,false]
[38,"F8","",null,0.01,null,null,null,null,null,null,null,null,null,null,null,null,null,null,null,null,null,null,null,null," ",249,86,0,null,false]
[38,"C9","",null,0.01,null,null,null,null,null,null,null,null,null,null,null,null,null,null,null,null,null,null,null,null," ",249,86,0,null,false]
[38,"D9","",null,0.01,null,null,null,null,null,null,null,null,null,null,null,null,null,null,null,null,null,null,null,null," ",249,86,0,null,false]
[38,"B10","",null,0.01,null,null,null,null,null,null,null,null,null,null,null,null,null,null,null,null,null,null,null,null," ",250,86,0,null,{"$f":"IF(COUNTBLANK(#REF!)=0,A3177)","v":{"$error":"#REF!"}}]
[38,"E10","",null,0.01,null,null,null,null,null,null,null,null,null,null,null,null,null,null,null,null,null,null,null,null," ",250,86,0,null,false]
[38,"B11","",null,0.01,null,null,null,null,null,null,null,null,null,null,null,null,null,null,null,null,null,null,null,null," ",250,86,0,null,{"$f":"IF(COUNTBLANK(D3191)=0,#REF!)","v":false}]
[38,"C11","",null,0.01,null,null,null,null,null,null,null,null,null,null,null,null,null,null,null,null,null,null,null,null,{"$f":"IF(LEN(INDEX($1:$1048576,ROW(),4))>0,INDEX($1:$1048576,ROW(),4),\" \")","v":" "},250,86,0,null,{"$f":"IF(COUNTBLANK(D3192)=0,A3184)","v":false}]
[39,"A1","",null,0.01,null,null,null,null,null,null,null,null,null,null,null,null,null,null,null,null,null,null,null,null," ",251,86,0,null,false]
[39,"F1","",null,0.01,null,null,null,null,null,null,null,null,null,null,null,null,null,null,null,null,null,null,null,null," ",251,86,0,null,false]
[39,"C2","",null,0.01,null,null,null,null,null,null,null,null,null,null,null,null,null,null,null,null,null,null,null,null," ",252,86,0,null,false]
[39,"D2","",null,0.01,null,null,null,null,null,null,null,null,null,null,null,null,null,null,null,null,null,null,null,null," ",252,86,0,null,false]
[39,"A3","",null,0.01,null,null,null,null,null,null,null,null,null,null,null,null,null,null,null,null,null,null,null,null," ",252,86,0,null,false]
[39,"F3","",null,0.01,null,null,null,null,null,null,null,null,null,null,null,null,null,null,null,null,null,null,null,null," ",252,86,0,null,false]
[39,"B4","",null,0.01,null,null,null,null,null,null,null,null,null,null,null,null,null,null,null,null,null,null,null,null," ",253,86,0,null,false]
[39,"C4","",null,0.01,null,null,null,null,null,null,null,null,null,null,null,null,null,null,null,null,null,null,null,null," ",253,86,0,null,false]
[39,"H4","",null,0.01,null,null,null,null,null,null,null,null,null,null,null,null,null,null,null,null,null,null,null,null," ",{"$f":"CEILING((ROW()-StartRow+1)/PanelHeight,1)-1","v":253},86,{"$f":"IF(AB3301=WellsInPlate,0,1)","v":0},null,false]
[39,"D5","",null,0.01,null,null,null,null,null,null,null,null,null,null,null,null,null,null,null,null,null,null,null,null," ",253,86,0,null,false]
[39,"A6","",null,0.01,null,null,null,null,null,null,null,null,null,null,null,null,null,null,null,null,null,null,null,null," ",254,86,0,null,false]
[39,"B6","",null,0.01,null,null,null,null,null,null,null,null,null,null,null,null,null,null,null,null,null,null,null,null," ",254,86,0,null,false]
[39,"G6","",null,0.01,null,null,null,null,null,null,null,null,null,null,null,null,null,null,null,null,null,null,null,null," ",254,86,0,null,false]
[39,"D7",{"$f":"IF(D3321=0,\"\",D3321)","v":""},null,0.01,null,null,null,null,null,null,null,null,null,null,null,null,null,null,null,null,null,null,null,null," ",255,86,0,null,false]
[39,"H7","",null,0.01,null,null,null,null,null,null,null,null,null,null,null,null,null,null,null,null,null,null,null,null," ",255,86,0,null,false]
[39,"A8","",null,0.01,null,null,null,null,null,null,null,null,null,null,null,null,null,null,null,null,null,null,null,null," ",255,86,0,null,false]
[39,"F8","",null,0.01,null,null,null,null,null,null,null,null,null,null,null,null,null,null,null,null,null,null,null,null," ",255,86,0,null,false]
[39,"B9","",null,0.01,null,null,null,null,null,null,null,null,null,null,null,null,null,null,null,null,null,null,null,null," ",256,86,0,null,false]
[39,"G9","",null,0.01,null,null,null,null,null,null,null,null,null,null,null,null,null,null,null,null,null,null,null,null," ",256,86,0,null,false]
[39,"H9","",null,0.01,null,null,null,null,null,null,null,null,null,null,null,null,null,null,null,null,null,null,null,null," ",256,86,0,null,false]
[39,"E10","",null,0.01,null,null,null,null,null,null,null,null,null,null,null,null,null,null,null,null,null,null,null,null," ",257,86,0,null,{"$f":"IF(COUNTBLANK(D3270)=0,A3264)","v":false}]
[39,"B11","",null,0.01,null,null,null,null,null,null,null,null,null,null,null,null,null,null,null,null,null,null,null,null," ",257,86,0,null,false]
[39,"F11","",null,0.01,null,null,null,null,null,null,null,null,null,null,null,null,null,null,null,null,null,null,null,null," ",257,86,0,null,false]
[40,"A1","",null,0.01,null,null,null,null,null,null,null,null,null,null,null,null,null,null,null,null,null,null,null,null," ",257,86,0,null,false]
[40,"F1","",null,0.01,null,null,null,null,null,null,null,null,null,null,null,null,null,null,null,null,null,null,null,null," ",258,86,0,null,false]
[40,"B2","",null,0.01,null,null,null,null,null,null,null,null,null,null,null,null,null,null,null,null,null,null,null,null," ",{"$f":"CEILING((ROW()-StartRow+1)/PanelHeight,1)-1","v":258},86,{"$f":"IF(AB3365=WellsInPlate,0,1)","v":0},null,false]
[40,"G2","",null,0.01,null,null,null,null,null,null,null,null,null,null,null,null,null,null,null,null,null,null,null,null," ",258,86,0,null,false]
[40,"H2","",null,0.01,null,null,null,null,null,null,null,null,null,null,null,null,null,null,null,null,null,null,null,null," ",259,86,0,null,false]
[40,"E3","",null,0.01,null,null,null,null,null,null,null,null,null,null,null,null,null,null,null,null,null,null,null,null," ",259,86,0,null,false]
[40,"B4","",null,0.01,null,null,null,null,null,null,null,null,null,null,null,null,null,null,null,null,null,null,null,null," ",259,86,0,null,false]
[40,"F4","",null,0.01,null,null,null,null,null,null,null,null,null,null,null,null,null,null,null,null,null,null,null,null," ",260,86,0,null,false]
[40,"G4","",null,0.01,null,null,null,null,null,null,null,null,null,null,null,null,null,null,null,null,null,null,null,null," ",260,86,0,null,{"$f":"IF(COUNTBLANK(D3310)=0,A3302)","v":false}]
[40,"D5","",null,0.01,null,null,null,null,null,null,null,null,null,null,null,null,null,null,null,null,null,null,null,null," ",260,86,0,null,false]
[40,"H5","",null,0.01,null,null,null,null,null,null,null,null,null,null,null,null,null,null,null,null,null,null,null,null," ",260,86,0,null,false]
[40,"E6","",null,0.01,null,null,null,null,null,null,null,null,null,null,null,null,null,null,null,null,null,null,null,null," ",261,86,0,null,false]
[40,"F6","",null,0.01,null,null,null,null,null,null,null,null,null,null,null,null,null,null,null,null,null,null,null,null," ",261,86,0,null,false]
[40,"C7","",null,0.01,null,null,null,null,null,null,null,null,null,null,null,null,null,null,null,null,null,null,null,null," ",261,86,0,null,false]
[40,"H7","",null,0.01,null,null,null,null,null,null,null,null,null,null,null,null,null,null,null,null,null,null,null,null," ",262,86,0,null,false]
[40,"D8","",null,0.01,null,null,null,null,null,null,null,null,null,null,null,null,null,null,null,null,null,null,null,null," ",262,86,0,null,false]
[40,"E8","",null,0.01,null,null,null,null,null,null,null,null,null,null,null,null,null,null,null,null,null,null,null,null," ",262,86,0,null,false]
[40,"B9","",null,0.01,null,null,null,null,null,null,null,null,null,null,null,null,null,null,null,null,null,null,null,null," ",262,86,0,null,false]
[40,"G9","",null,0.01,null,null,null,null,null,null,null,null,null,null,null,null,null,null,null,null,null,null,null,null," ",263,86,0,null,false]
[40,"B10","",null,0.01,null,null,null,null,null,null,null,null,null,null,null,null,null,null,null,null,null,null,null,null," ",{"$f":"CEILING((ROW()-StartRow+1)/PanelHeight,1)-1","v":263},86,{"$f":"IF(AB3429=WellsInPlate,0,1)","v":0},null,false]
[40,"D10","",null,0.01,null,null,null,null,null,null,null,null,null,null,null,null,null,null,null,null,null,null,null,null," ",263,86,0,null,false]
[40,"A11","",null,0.01,null,null,null,null,null,null,null,null,null,null,null,null,null,null,null,null,null,null,null,null," ",264,86,0,null,false]
[40,"F11","",null,0.01,null,null,null,null,null,null,null,null,null,null,null,null,null,null,null,null,null,null,null,null," ",264,86,0,null,{"$f":"IF(COUNTBLANK(D3363)=0,#REF!)","v":false}]
[null,null,null,null,null,null,null,null,null,null,null,null,null,null,null,null,null,null,null,null,null,null,null,null,null," ",{"$f":"CEILING((ROW()-StartRow+1)/PanelHeight,1)-1","v":264},86,0,null,{"$f":"IF(COUNTBLANK(#REF!)=0,#REF!)","v":{"$error":"#REF!"}}]
[null,null,null,null,null,null,null,null,null,null,null,null,null,null,null,null,null,null,null,null,null,null,null,null,null," ",264,86,0,null,{"$f":"IF(COUNTBLANK(#REF!)=0,#REF!)","v":{"$error":"#REF!"}}]
[null,null,null,null,null,null,null,null,null,null,null,null,null,null,null,null,null,null,null,null,null,null,null,null,null," ",265,86,0,null,{"$f":"IF(COUNTBLANK(#REF!)=0,#REF!)","v":{"$error":"#REF!"}}]
[null,null,null,null,null,null,null,null,null,null,null,null,null,null,null,null,null,null,null,null,null,null,null,null,null," ",265,86,0,null,{"$f":"IF(COUNTBLANK(#REF!)=0,#REF!)","v":{"$error":"#REF!"}}]
[null,null,null,null,null,null,null,null,null,null,null,null,null,null,null,null,null,null,null,null,null,null,null,null,null," ",265,86,0,null,{"$f":"IF(COUNTBLANK(#REF!)=0,#REF!)","v":{"$error":"#REF!"}}]
[null,null,null,null,null,null,null,null,null,null,null,null,null,null,null,null,null,null,null,null,null,null,null,null,null," ",265,86,0,null,{"$f":"IF(COUNTBLANK(#REF!)=0,#REF!)","v":{"$error":"#REF!"}}]
[null,null,null,null,null,null,null,null,null,null,null,null,null,null,null,null,null,null,null,null,null,null,null,null,null," ",266,86,0,null,{"$f":"IF(COUNTBLANK(#REF!)=0,#REF!)","v":{"$error":"#REF!"}}]
[null,null,null,null,null,null,null,null,null,null,null,null,null,null,null,null,null,null,null,null,null,null,null,null,null," ",266,86,0,null,{"$f":"IF(COUNTBLANK(#REF!)=0,#REF!)","v":{"$error":"#REF!"}}]
[null,null,null,null,null,null,null,null,null,null,null,null,null,null,null,null,null,null,null,null,null,null,null,null,null," ",266,86,0,null,{"$f":"IF(COUNTBLANK(#REF!)=0,#REF!)","v":{"$error":"#REF!"}}]
[null,null,null,null,null,null,null,null,null,null,null,null,null,null,null,null,null,null,null,null,null,null,null,null,null," ",267,86,0,null,{"$f":"IF(COUNTBLANK(#REF!)=0,#REF!)","v":{"$error":"#REF!"}}]
[null,null,null,null,null,null,null,null,null,null,null,null,null,null,null,null,null,null,null,null,null,null,null,null,null," ",267,86,0,null,{"$f":"IF(COUNTBLANK(#REF!)=0,#REF!)","v":{"$error":"#REF!"}}]
[null,null,null,null,null,null,null,null,null,null,null,null,null,null,null,null,null,null,null,null,null,null,null,null,null," ",267,86,0,null,{"$f":"IF(COUNTBLANK(#REF!)=0,#REF!)","v":{"$error":"#REF!"}}]
[null,null,null,null,null,null,null,null,null,null,null,null,null,null,null,null,null,null,null,null,null,null,null,null,null," ",268,86,0,null,{"$f":"IF(COUNTBLANK(#REF!)=0,#REF!)","v":{"$error":"#REF!"}}]
[null,null,null,null,null,null,null,null,null,null,null,null,null,null,null,null,null,null,null,null,null,null,null,null,null," ",268,86,0,null,{"$f":"IF(COUNTBLANK(#REF!)=0,#REF!)","v":{"$error":"#REF!"}}]
[null,null,null,null,null,null,null,null,null,null,null,null,null,null,null,null,null,null,null,null,null,null,null,null,null," ",268,86,0,null,{"$f":"IF(COUNTBLANK(#REF!)=0,#REF!)","v":{"$error":"#REF!"}}]
[null,null,null,null,null,null,null,null,null,null,null,null,null,null,null,null,null,null,null,null,null,null,null,null,null," ",269,86,0,null,{"$f":"IF(COUNTBLANK(#REF!)=0,#REF!)","v":{"$error":"#REF!"}}]
[null,null,null,null,null,null,null,null,null,null,null,null,null,null,null,null,null,null,null,null,null,null,null,null,null," ",269,86,0,null,{"$f":"IF(COUNTBLANK(#REF!)=0,#REF!)","v":{"$error":"#REF!"}}]
[null,null,null,null,null,null,null,null,null,null,null,null,null,null,null,null,null,null,null,null,null,null,null,null,null," ",269,86,0,null,{"$f":"IF(COUNTBLANK(#REF!)=0,#REF!)","v":{"$error":"#REF!"}}]
[null,null,null,null,null,null,null,null,null,null,null,null,null,null,null,null,null,null,null,null,null,null,null,null,null," ",269,86,0,null,{"$f":"IF(COUNTBLANK(#REF!)=0,#REF!)","v":{"$error":"#REF!"}}]
[null,null,null,null,null,null,null,null,null,null,null,null,null,null,null,null,null,null,null,null,null,null,null,null,null," ",270,86,0,null,{"$f":"IF(COUNTBLANK(#REF!)=0,#REF!)","v":{"$error":"#REF!"}}]
[null,null,null,null,null,null,null,null,null,null,null,null,null,null,null,null,null,null,null,null,null,null,null,null,null," ",270,86,0,null,{"$f":"IF(COUNTBLANK(#REF!)=0,#REF!)","v":{"$error":"#REF!"}}]
[null,null,null,null,null,null,null,null,null,null,null,null,null,null,null,null,null,null,null,null,null,null,null,null,null," ",270,86,0,null,{"$f":"IF(COUNTBLANK(#REF!)=0,#REF!)","v":{"$error":"#REF!"}}]
[null,null,null,null,null,null,null,null,null,null,null,null,null,null,null,null,null,null,null,null,null,null,null,null,null,null,null,null,null,null,{"$f":"IF(COUNTBLANK(E3446)=0,#REF!)","v":false}]
[null,null,null,null,null,null,null,null,null,null,null,null,null,null,null,null,null,null,null,null,null,null,null,null,null,null,null,null,null,null,false]
[null,null,null,null,null,null,null,null,null,null,null,null,null,null,null,null,null,null,null,null,null,null,null,null,null,null,null,null,null,null,false]
[null,null,null,null,null,null,null,null,null,null,null,null,null,null,null,null,null,null,null,null,null,null,null,null,null,null,null,null,null,null,false]
[null,null,null,null,null,null,null,null,null,null,null,null,null,null,null,null,null,null,null,null,null,null,null,null,null,null,null,null,null,null,false]
[null,null,null,null,null,null,null,null,null,null,null,null,null,null,null,null,null,null,null,null,null,null,null,null,null,null,null,null,null,null,false]
[null,null,null,null,null,null,null,null,null,null,null,null,null,null,null,null,null,null,null,null,null,null,null,null,null,null,null,null,null,null,false]
[null,null,null,null,null,null,null,null,null,null,null,null,null,null,null,null,null,null,null,null,null,null,null,null,null,null,null,null,null,null,false]
[null,null,null,null,null,null,null,null,null,null,null,null,null,null,null,null,null,null,null,null,null,null,null,null,null,null,null,null,null,null,false]
[null,null,null,null,null,null,null,null,null,null,null,null,null,null,null,null,null,null,null,null,null,null,null,null,null,null,null,null,null,null,false]
[null,null,null,null,null,null,null,null,null,null,null,null,null,null,null,null,null,null,null,null,null,null,null,null,null,null,null,null,null,null,false]
[null,null,null,null,null,null,null,null,null,null,null,null,null,null,null,null,null,null,null,null,null,null,null,null,null,null,null,null,null,null,false]
[null,null,null,null,null,null,null,null,null,null,null,null,null,null,null,null,null,null,null,null,null,null,null,null,null,null,null,null,null,null,false]
[null,null,null,null,null,null,null,null,null,null,null,null,null,null,null,null,null,null,null,null,null,null,null,null,null,null,null,null,null,null,false]
[null,null,null,null,null,null,null,null,null,null,null,null,null,null,null,null,null,null,null,null,null,null,null,null,null,null,null,null,null,null,false]
[null,null,null,null,null,null,null,null,null,null,null,null,null,null,null,null,null,null,null,null,null,null,null,null,null,null,null,null,null,null,false]
[null,null,null,null,null,null,null,null,null,null,null,null,null,null,null,null,null,null,null,null,null,null,null,null,null,null,null,null,null,null,false]
[null,null,null,null,null,null,null,null,null,null,null,null,null,null,null,null,null,null,null,null,null,null,null,null,null,null,null,null,null,null,false]
[null,null,null,null,null,null,null,null,null,null,null,null,null,null,null,null,null,null,null,null,null,null,null,null,null,null,null,null,null,null,false]
[null,null,null,null,null,null,null,null,null,null,null,null,null,null,null,null,null,null,null,null,null,null,null,null,null,null,null,null,null,null,false]
[null,null,null,null,null,null,null,null,null,null,null,null,null,null,null,null,null,null,null,null,null,null,null,null,null,null,null,null,null,null,false]
[null,null,null,null,null,null,null,null,null,null,null,null,null,null,null,null,null,null,null,null,null,null,null,null,null,null,null,null,null,null,false]
[null,null,null,null,null,null,null,null,null,null,null,null,null,null,null,null,null,null,null,null,null,null,null,null,null,null,null,null,null,null,false]
[null,null,null,null,null,null,null,null,null,null,null,null,null,null,null,null,null,null,null,null,null,null,null,null,null,null,null,null,null,null,false]
[null,null,null,null,null,null,null,null,null,null,null,null,null,null,null,null,null,null,null,null,null,null,null,null,null,null,null,null,null,null,false]
[null,null,null,null,null,null,null,null,null,null,null,null,null,null,null,null,null,null,null,null,null,null,null,null,null,null,null,null,null,null,false]
[null,null,null,null,null,null,null,null,null,null,null,null,null,null,null,null,null,null,null,null,null,null,null,null,null,null,null,null,null,null,false]
[null,null,null,null,null,null,null,null,null,null,null,null,null,null,null,null,null,null,null,null,null,null,null,null,null,null,null,null,null,null,false]
[null,null,null,null,null,null,null,null,null,null,null,null,null,null,null,null,null,null,null,null,null,null,null,null,null,null,null,null,null,null,false]
[null,null,null,null,null,null,null,null,null,null,null,null,null,null,null,null,null,null,null,null,null,null,null,null,null,null,null,null,null,null,false]
[null,null,null,null,null,null,null,null,null,null,null,null,null,null,null,null,null,null,null,null,null,null,null,null,null,null,null,null,null,null,false]
[null,null,null,null,null,null,null,null,null,null,null,null,null,null,null,null,null,null,null,null,null,null,null,null,null,null,null,null,null,null,false]
[null,null,null,null,null,null,null,null,null,null,null,null,null,null,null,null,null,null,null,null,null,null,null,null,null,null,null,null,null,null,false]
[null,null,null,null,null,null,null,null,null,null,null,null,null,null,null,null,null,null,null,null,null,null,null,null,null,null,null,null,null,null,false]
[null,null,null,null,null,null,null,null,null,null,null,null,null,null,null,null,null,null,null,null,null,null,null,null,null,null,null,null,null,null,false]
[null,null,null,null,null,null,null,null,null,null,null,null,null,null,null,null,null,null,null,null,null,null,null,null,null,null,null,null,null,null,{"$f":"IF(COUNTBLANK(E3578)=0,B3570)","v":false}]
[null,null,null,null,null,null,null,null,null,null,null,null,null,null,null,null,null,null,null,null,null,null,null,null,null,null,null,null,null,null,false]
[null,null,null,null,null,null,null,null,null,null,null,null,null,null,null,null,null,null,null,null,null,null,null,null,null,null,null,null,null,null,false]
[null,null,null,null,null,null,null,null,null,null,null,null,null,null,null,null,null,null,null,null,null,null,null,null,null,null,null,null,null,null,false]
[null,null,null,null,null,null,null,null,null,null,null,null,null,null,null,null,null,null,null,null,null,null,null,null,null,null,null,null,null,null,false]
[null,null,null,null,null,null,null,null,null,null,null,null,null,null,null,null,null,null,null,null,null,null,null,null,null,null,null,null,null,null,false]
[null,null,null,null,null,null,null,null,null,null,null,null,null,null,null,null,null,null,null,null,null,null,null,null,null,null,null,null,null,null,false]
[null,null,null,null,null,null,null,null,null,null,null,null,null,null,null,null,null,null,null,null,null,null,null,null,null,null,null,null,null,null,false]
[null,null,null,null,null,null,null,null,null,null,null,null,null,null,null,null,null,null,null,null,null,null,null,null,null,null,null,null,null,null,false]
[null,null,null,null,null,null,null,null,null,null,null,null,null,null,null,null,null,null,null,null,null,null,null,null,null,null,null,null,null,null,false]
[null,null,null,null,null,null,null,null,null,null,null,null,null,null,null,null,null,null,null,null,null,null,null,null,null,null,null,null,null,null,false]
[null,null,null,null,null,null,null,null,null,null,null,null,null,null,null,null,null,null,null,null,null,null,null,null,null,null,null,null,null,null,false]
[null,null,null,null,null,null,null,null,null,null,null,null,null,null,null,null,null,null,null,null,null,null,null,null,null,null,null,null,null,null,false]
[null,null,null,null,null,null,null,null,null,null,null,null,null,null,null,null,null,null,null,null,null,null,null,null,null,null,null,null,null,null,false]
[null,null,null,null,null,null,null,null,null,null,null,null,null,null,null,null,null,null,null,null,null,null,null,null,null,null,null,null,null,null,false]
[null,null,null,null,null,null,null,null,null,null,null,null,null,null,null,null,null,null,null,null,null,null,null,null,null,null,null,null,null,null,false]
[null,null,null,null,null,null,null,null,null,null,null,null,null,null,null,null,null,null,null,null,null,null,null,null,null,null,null,null,null,null,false]
[null,null,null,null,null,null,null,null,null,null,null,null,null,null,null,null,null,null,null,null,null,null,null,null,null,null,null,null,null,null,{"$f":"IF(COUNTBLANK(E3642)=0,B3634)","v":false}]
[null,null,null,null,null,null,null,null,null,null,null,null,null,null,null,null,null,null,null,null,null,null,null,null,null,null,null,null,null,null,false]
[null,null,null,null,null,null,null,null,null,null,null,null,null,null,null,null,null,null,null,null,null,null,null,null,null,null,null,null,null,null,false]
[null,null,null,null,null,null,null,null,null,null,null,null,null,null,null,null,null,null,null,null,null,null,null,null,null,null,null,null,null,null,false]
[null,null,null,null,null,null,null,null,null,null,null,null,null,null,null,null,null,null,null,null,null,null,null,null,null,null,null,null,null,null,false]
[null,null,null,null,null,null,null,null,null,null,null,null,null,null,null,null,null,null,null,null,null,null,null,null,null,null,null,null,null,null,false]
[null,null,null,null,null,null,null,null,null,null,null,null,null,null,null,null,null,null,null,null,null,null,null,null,null,null,null,null,null,null,false]
[null,null,null,null,null,null,null,null,null,null,null,null,null,null,null,null,null,null,null,null,null,null,null,null,null,null,null,null,null,null,false]
[null,null,null,null,null,null,null,null,null,null,null,null,null,null,null,null,null,null,null,null,null,null,null,null,null,null,null,null,null,null,false]
[null,null,null,null,null,null,null,null,null,null,null,null,null,null,null,null,null,null,null,null,null,null,null,null,null,null,null,null,null,null,false]
[null,null,null,null,null,null,null,null,null,null,null,null,null,null,null,null,null,null,null,null,null,null,null,null,null,null,null,null,null,null,false]
[null,null,null,null,null,null,null,null,null,null,null,null,null,null,null,null,null,null,null,null,null,null,null,null,null,null,null,null,null,null,false]
[null,null,null,null,null,null,null,null,null,null,null,null,null,null,null,null,null,null,null,null,null,null,null,null,null,null,null,null,null,null,false]
[null,null,null,null,null,null,null,null,null,null,null,null,null,null,null,null,null,null,null,null,null,null,null,null,null,null,null,null,null,null,false]
[null,null,null,null,null,null,null,null,null,null,null,null,null,null,null,null,null,null,null,null,null,null,null,null,null,null,null,null,null,null,false]
[null,null,null,null,null,null,null,null,null,null,null,null,null,null,null,null,null,null,null,null,null,null,null,null,null,null,null,null,null,null,false]
[null,null,null,null,null,null,null,null,null,null,null,null,null,null,null,null,null,null,null,null,null,null,null,null,null,null,null,null,null,null,false]
[null,null,null,null,null,null,null,null,null,null,null,null,null,null,null,null,null,null,null,null,null,null,null,null,null,null,null,null,null,null,{"$f":"IF(COUNTBLANK(E3706)=0,B3698)","v":false}]
[null,null,null,null,null,null,null,null,null,null,null,null,null,null,null,null,null,null,null,null,null,null,null,null,null,null,null,null,null,null,false]
[null,null,null,null,null,null,null,null,null,null,null,null,null,null,null,null,null,null,null,null,null,null,null,null,null,null,null,null,null,null,false]
[null,null,null,null,null,null,null,null,null,null,null,null,null,null,null,null,null,null,null,null,null,null,null,null,null,null,null,null,null,null,false]
[null,null,null,null,null,null,null,null,null,null,null,null,null,null,null,null,null,null,null,null,null,null,null,null,null,null,null,null,null,null,false]
[null,null,null,null,null,null,null,null,null,null,null,null,null,null,null,null,null,null,null,null,null,null,null,null,null,null,null,null,null,null,false]
[null,null,null,null,null,null,null,null,null,null,null,null,null,null,null,null,null,null,null,null,null,null,null,null,null,null,null,null,null,null,false]
[null,null,null,null,null,null,null,null,null,null,null,null,null,null,null,null,null,null,null,null,null,null,null,null,null,null,null,null,null,null,false]
[null,null,null,null,null,null,null,null,null,null,null,null,null,null,null,null,null,null,null,null,null,null,null,null,null,null,null,null,null,null,false]
[null,null,null,null,null,null,null,null,null,null,null,null,null,null,null,null,null,null,null,null,null,null,null,null,null,null,null,null,null,null,false]
[null,null,null,null,null,null,null,null,null,null,null,null,null,null,null,null,null,null,null,null,null,null,null,null,null,null,null,null,null,null,false]
[null,null,null,null,null,null,null,null,null,null,null,null,null,null,null,null,null,null,null,null,null,null,null,null,null,null,null,null,null,null,false]
[null,null,null,null,null,null,null,null,null,null,null,null,null,null,null,null,null,null,null,null,null,null,null,null,null,null,null,null,null,null,false]
[null,null,null,null,null,null,null,null,null,null,null,null,null,null,null,null,null,null,null,null,null,null,null,null,null,null,null,null,null,null,false]
[null,null,null,null,null,null,null,null,null,null,null,null,null,null,null,null,null,null,null,null,null,null,null,null,null,null,null,null,null,null,false]
[null,null,null,null,null,null,null,null,null,null,null,null,null,null,null,null,null,null,null,null,null,null,null,null,null,null,null,null,null,null,false]
[null,null,null,null,null,null,null,null,null,null,null,null,null,null,null,null,null,null,null,null,null,null,null,null,null,null,null,null,null,null,false]
[null,null,null,null,null,null,null,null,null,null,null,null,null,null,null,null,null,null,null,null,null,null,null,null,null,null,null,null,null,null,false]
[null,null,null,null,null,null,null,null,null,null,null,null,null,null,null,null,null,null,null,null,null,null,null,null,null,null,null,null,null,null,false]
[null,null,null,null,null,null,null,null,null,null,null,null,null,null,null,null,null,null,null,null,null,null,null,null,null,null,null,null,null,null,false]
[null,null,null,null,null,null,null,null,null,null,null,null,null,null,null,null,null,null,null,null,null,null,null,null,null,null,null,null,null,null,false]
[null,null,null,null,null,null,null,null,null,null,null,null,null,null,null,null,null,null,null,null,null,null,null,null,null,null,null,null,null,null,false]
[null,null,null,null,null,null,null,null,null,null,null,null,null,null,null,null,null,null,null,null,null,null,null,null,null,null,null,null,null,null,false]
[null,null,null,null,null,null,null,null,null,null,null,null,null,null,null,null,null,null,null,null,null,null,null,null,null,null,null,null,null,null,false]
[null,null,null,null,null,null,null,null,null,null,null,null,null,null,null,null,null,null,null,null,null,null,null,null,null,null,null,null,null,null,false]
[null,null,null,null,null,null,null,null,null,null,null,null,null,null,null,null,null,null,null,null,null,null,null,null,null,null,null,null,null,null,false]
[null,null,null,null,null,null,null,null,null,null,null,null,null,null,null,null,null,null,null,null,null,null,null,null,null,null,null,null,null,null,false]
[null,null,null,null,null,null,null,null,null,null,null,null,null,null,null,null,null,null,null,null,null,null,null,null,null,null,null,null,null,null,false]
[null,null,null,null,null,null,null,null,null,null,null,null,null,null,null,null,null,null,null,null,null,null,null,null,null,null,null,null,null,null,false]
[null,null,null,null,null,null,null,null,null,null,null,null,null,null,null,null,null,null,null,null,null,null,null,null,null,null,null,null,null,null,false]
[null,null,null,null,null,null,null,null,null,null,null,null,null,null,null,null,null,null,null,null,null,null,null,null,null,null,null,null,null,null,false]
[null,null,null,null,null,null,null,null,null,null,null,null,null,null,null,null,null,null,null,null,null,null,null,null,null,null,null,null,null,null,false]
[null,null,null,null,null,null,null,null,null,null,null,null,null,null,null,null,null,null,null,null,null,null,null,null,null,null,null,null,null,null,false]
[null,null,null,null,null,null,null,null,null,null,null,null,null,null,null,null,null,null,null,null,null,null,null,null,null,null,null,null,null,null,false]
[null,null,null,null,null,null,null,null,null,null,null,null,null,null,null,null,null,null,null,null,null,null,null,null,null,null,null,null,null,null,false]
[null,null,null,null,null,null,null,null,null,null,null,null,null,null,null,null,null,null,null,null,null,null,null,null,null,null,null,null,null,null,false]
[null,null,null,null,null,null,null,null,null,null,null,null,null,null,null,null,null,null,null,null,null,null,null,null,null,null,null,null,null,null,false]
[null,null,null,null,null,null,null,null,null,null,null,null,null,null,null,null,null,null,null,null,null,null,null,null,null,null,null,null,null,null,false]
[null,null,null,null,null,null,null,null,null,null,null,null,null,null,null,null,null,null,null,null,null,null,null,null,null,null,null,null,null,null,false]
[null,null,null,null,null,null,null,null,null,null,null,null,null,null,null,null,null,null,null,null,null,null,null,null,null,null,null,null,null,null,false]
[null,null,null,null,null,null,null,null,null,null,null,null,null,null,null,null,null,null,null,null,null,null,null,null,null,null,null,null,null,null,false]
[null,null,null,null,null,null,null,null,null,null,null,null,null,null,null,null,null,null,null,null,null,null,null,null,null,null,null,null,null,null,false]
[null,null,null,null,null,null,null,null,null,null,null,null,null,null,null,null,null,null,null,null,null,null,null,null,null,null,null,null,null,null,false]
[null,null,null,null,null,null,null,null,null,null,null,null,null,null,null,null,null,null,null,null,null,null,null,null,null,null,null,null,null,null,false]
[null,null,null,null,null,null,null,null,null,null,null,null,null,null,null,null,null,null,null,null,null,null,null,null,null,null,null,null,null,null,false]
[null,null,null,null,null,null,null,null,null,null,null,null,null,null,null,null,null,null,null,null,null,null,null,null,null,null,null,null,null,null,false]
[null,null,null,null,null,null,null,null,null,null,null,null,null,null,null,null,null,null,null,null,null,null,null,null,null,null,null,null,null,null,false]
[null,null,null,null,null,null,null,null,null,null,null,null,null,null,null,null,null,null,null,null,null,null,null,null,null,null,null,null,null,null,false]
[null,null,null,null,null,null,null,null,null,null,null,null,null,null,null,null,null,null,null,null,null,null,null,null,null,null,null,null,null,null,false]
[null,null,null,null,null,null,null,null,null,null,null,null,null,null,null,null,null,null,null,null,null,null,null,null,null,null,null,null,null,null,false]
[null,null,null,null,null,null,null,null,null,null,null,null,null,null,null,null,null,null,null,null,null,null,null,null,null,null,null,null,null,null,false]
[null,null,null,null,null,null,null,null,null,null,null,null,null,null,null,null,null,null,null,null,null,null,null,null,null,null,null,null,null,null,false]
[null,null,null,null,null,null,null,null,null,null,null,null,null,null,null,null,null,null,null,null,null,null,null,null,null,null,null,null,null,null,false]
[null,null,null,null,null,null,null,null,null,null,null,null,null,null,null,null,null,null,null,null,null,null,null,null,null,null,null,null,null,null,false]
[null,null,null,null,null,null,null,null,null,null,null,null,null,null,null,null,null,null,null,null,null,null,null,null,null,null,null,null,null,null,false]
[null,null,null,null,null,null,null,null,null,null,null,null,null,null,null,null,null,null,null,null,null,null,null,null,null,null,null,null,null,null,false]
[null,null,null,null,null,null,null,null,null,null,null,null,null,null,null,null,null,null,null,null,null,null,null,null,null,null,null,null,null,null,false]
[null,null,null,null,null,null,null,null,null,null,null,null,null,null,null,null,null,null,null,null,null,null,null,null,null,null,null,null,null,null,false]
[null,null,null,null,null,null,null,null,null,null,null,null,null,null,null,null,null,null,null,null,null,null,null,null,null,null,null,null,null,null,false]
[null,null,null,null,null,null,null,null,null,null,null,null,null,null,null,null,null,null,null,null,null,null,null,null,null,null,null,null,null,null,false]
[null,null,null,null,null,null,null,null,null,null,null,null,null,null,null,null,null,null,null,null,null,null,null,null,null,null,null,null,null,null,false]
[null,null,null,null,null,null,null,null,null,null,null,null,null,null,null,null,null,null,null,null,null,null,null,null,null,null,null,null,null,null,false]
[null,null,null,null,null,null,null,null,null,null,null,null,null,null,null,null,null,null,null,null,null,null,null,null,null,null,null,null,null,null,false]
[null,null,null,null,null,null,null,null,null,null,null,null,null,null,null,null,null,null,null,null,null,null,null,null,null,null,null,null,null,null,false]
[null,null,null,null,null,null,null,null,null,null,null,null,null,null,null,null,null,null,null,null,null,null,null,null,null,null,null,null,null,null,false]
[null,null,null,null,null,null,null,null,null,null,null,null,null,null,null,null,null,null,null,null,null,null,null,null,null,null,null,null,null,null,false]
[null,null,null,null,null,null,null,null,null,null,null,null,null,null,null,null,null,null,null,null,null,null,null,null,null,null,null,null,null,null,false]
[null,null,null,null,null,null,null,null,null,null,null,null,null,null,null,null,null,null,null,null,null,null,null,null,null,null,null,null,null,null,false]
[null,null,null,null,null,null,null,null,null,null,null,null,null,null,null,null,null,null,null,null,null,null,null,null,null,null,null,null,null,null,{"$f":"IF(COUNTBLANK(E3962)=0,B3954)","v":false}]
[null,null,null,null,null,null,null,null,null,null,null,null,null,null,null,null,null,null,null,null,null,null,null,null,null,null,null,null,null,null,false]
[null,null,null,null,null,null,null,null,null,null,null,null,null,null,null,null,null,null,null,null,null,null,null,null,null,null,null,null,null,null,false]
[null,null,null,null,null,null,null,null,null,null,null,null,null,null,null,null,null,null,null,null,null,null,null,null,null,null,null,null,null,null,false]
[null,null,null,null,null,null,null,null,null,null,null,null,null,null,null,null,null,null,null,null,null,null,null,null,null,null,null,null,null,null,false]
[null,null,null,null,null,null,null,null,null,null,null,null,null,null,null,null,null,null,null,null,null,null,null,null,null,null,null,null,null,null,false]
[null,null,null,null,null,null,null,null,null,null,null,null,null,null,null,null,null,null,null,null,null,null,null,null,null,null,null,null,null,null,false]
[null,null,null,null,null,null,null,null,null,null,null,null,null,null,null,null,null,null,null,null,null,null,null,null,null,null,null,null,null,null,false]
[null,null,null,null,null,null,null,null,null,null,null,null,null,null,null,null,null,null,null,null,null,null,null,null,null,null,null,null,null,null,false]
[null,null,null,null,null,null,null,null,null,null,null,null,null,null,null,null,null,null,null,null,null,null,null,null,null,null,null,null,null,null,false]
[null,null,null,null,null,null,null,null,null,null,null,null,null,null,null,null,null,null,null,null,null,null,null,null,null,null,null,null,null,null,false]
[null,null,null,null,null,null,null,null,null,null,null,null,null,null,null,null,null,null,null,null,null,null,null,null,null,null,null,null,null,null,false]
[null,null,null,null,null,null,null,null,null,null,null,null,null,null,null,null,null,null,null,null,null,null,null,null,null,null,null,null,null,null,false]
[null,null,null,null,null,null,null,null,null,null,null,null,null,null,null,null,null,null,null,null,null,null,null,null,null,null,null,null,null,null,false]
[null,null,null,null,null,null,null,null,null,null,null,null,null,null,null,null,null,null,null,null,null,null,null,null,null,null,null,null,null,null,false]
[null,null,null,null,null,null,null,null,null,null,null,null,null,null,null,null,null,null,null,null,null,null,null,null,null,null,null,null,null,null,false]
[null,null,null,null,null,null,null,null,null,null,null,null,null,null,null,null,null,null,null,null,null,null,null,null,null,null,null,null,null,null,false]
[null,null,null,null,null,null,null,null,null,null,null,null,null,null,null,null,null,null,null,null,null,null,null,null,null,null,null,null,null,null,false]
[null,null,null,null,null,null,null,null,null,null,null,null,null,null,null,null,null,null,null,null,null,null,null,null,null,null,null,null,null,null,false]
[null,null,null,null,null,null,null,null,null,null,null,null,null,null,null,null,null,null,null,null,null,null,null,null,null,null,null,null,null,null,false]
[null,null,null,null,null,null,null,null,null,null,null,null,null,null,null,null,null,null,null,null,null,null,null,null,null,null,null,null,null,null,false]
[null,null,null,null,null,null,null,null,null,null,null,null,null,null,null,null,null,null,null,null,null,null,null,null,null,null,null,null,null,null,false]
[null,null,null,null,null,null,null,null,null,null,null,null,null,null,null,null,null,null,null,null,null,null,null,null,null,null,null,null,null,null,false]
[null,null,null,null,null,null,null,null,null,null,null,null,null,null,null,null,null,null,null,null,null,null,null,null,null,null,null,null,null,null,false]
[null,null,null,null,null,null,null,null,null,null,null,null,null,null,null,null,null,null,null,null,null,null,null,null,null,null,null,null,null,null,false]
[null,null,null,null,null,null,null,null,null,null,null,null,null,null,null,null,null,null,null,null,null,null,null,null,null,null,null,null,null,null,false]
[null,null,null,null,null,null,null,null,null,null,null,null,null,null,null,null,null,null,null,null,null,null,null,null,null,null,null,null,null,null,false]
[null,null,null,null,null,null,null,null,null,null,null,null,null,null,null,null,null,null,null,null,null,null,null,null,null,null,null,null,null,null,false]
[null,null,null,null,null,null,null,null,null,null,null,null,null,null,null,null,null,null,null,null,null,null,null,null,null,null,null,null,null,null,false]
[null,null,null,null,null,null,null,null,null,null,null,null,null,null,null,null,null,null,null,null,null,null,null,null,null,null,null,null,null,null,false]
[null,null,null,null,null,null,null,null,null,null,null,null,null,null,null,null,null,null,null,null,null,null,null,null,null,null,null,null,null,null,false]
[null,null,null,null,null,null,null,null,null,null,null,null,null,null,null,null,null,null,null,null,null,null,null,null,null,null,null,null,null,null,false]
[null,null,null,null,null,null,null,null,null,null,null,null,null,null,null,null,null,null,null,null,null,null,null,null,null,null,null,null,null,null,false]
[null,null,null,null,null,null,null,null,null,null,null,null,null,null,null,null,null,null,null,null,null,null,null,null,null,null,null,null,null,null,false]
[null,null,null,null,null,null,null,null,null,null,null,null,null,null,null,null,null,null,null,null,null,null,null,null,null,null,null,null,null,null,false]
[null,null,null,null,null,null,null,null,null,null,null,null,null,null,null,null,null,null,null,null,null,null,null,null,null,null,null,null,null,null,false]
[null,null,null,null,null,null,null,null,null,null,null,null,null,null,null,null,null,null,null,null,null,null,null,null,null,null,null,null,null,null,false]
[null,null,null,null,null,null,null,null,null,null,null,null,null,null,null,null,null,null,null,null,null,null,null,null,null,null,null,null,null,null,false]
[null,null,null,null,null,null,null,null,null,null,null,null,null,null,null,null,null,null,null,null,null,null,null,null,null,null,null,null,null,null,false]
[null,null,null,null,null,null,null,null,null,null,null,null,null,null,null,null,null,null,null,null,null,null,null,null,null,null,null,null,null,null,false]
[null,null,null,null,null,null,null,null,null,null,null,null,null,null,null,null,null,null,null,null,null,null,null,null,null,null,null,null,null,null,false]
[null,null,null,null,null,null,null,null,null,null,null,null,null,null,null,null,null,null,null,null,null,null,null,null,null,null,null,null,null,null,false]
[null,null,null,null,null,null,null,null,null,null,null,null,null,null,null,null,null,null,null,null,null,null,null,null,null,null,null,null,null,null,false]
[null,null,null,null,null,null,null,null,null,null,null,null,null,null,null,null,null,null,null,null,null,null,null,null,null,null,null,null,null,null,false]
[null,null,null,null,null,null,null,null,null,null,null,null,null,null,null,null,null,null,null,null,null,null,null,null,null,null,null,null,null,null,false]
[null,null,null,null,null,null,null,null,null,null,null,null,null,null,null,null,null,null,null,null,null,null,null,null,null,null,null,null,null,null,false]
[null,null,null,null,null,null,null,null,null,null,null,null,null,null,null,null,null,null,null,null,null,null,null,null,null,null,null,null,null,null,false]
[null,null,null,null,null,null,null,null,null,null,null,null,null,null,null,null,null,null,null,null,null,null,null,null,null,null,null,null,null,null,false]
[null,null,null,null,null,null,null,null,null,null,null,null,null,null,null,null,null,null,null,null,null,null,null,null,null,null,null,null,null,null,false]
[null,null,null,null,null,null,null,null,null,null,null,null,null,null,null,null,null,null,null,null,null,null,null,null,null,null,null,null,null,null,false]
[null,null,null,null,null,null,null,null,null,null,null,null,null,null,null,null,null,null,null,null,null,null,null,null,null,null,null,null,null,null,false]
[null,null,null,null,null,null,null,null,null,null,null,null,null,null,null,null,null,null,null,null,null,null,null,null,null,null,null,null,null,null,{"$f":"IF(COUNTBLANK(E4154)=0,B4146)","v":false}]
[null,null,null,null,null,null,null,null,null,null,null,null,null,null,null,null,null,null,null,null,null,null,null,null,null,null,null,null,null,null,false]
[null,null,null,null,null,null,null,null,null,null,null,null,null,null,null,null,null,null,null,null,null,null,null,null,null,null,null,null,null,null,false]
[null,null,null,null,null,null,null,null,null,null,null,null,null,null,null,null,null,null,null,null,null,null,null,null,null,null,null,null,null,null,false]
[null,null,null,null,null,null,null,null,null,null,null,null,null,null,null,null,null,null,null,null,null,null,null,null,null,null,null,null,null,null,false]
[null,null,null,null,null,null,null,null,null,null,null,null,null,null,null,null,null,null,null,null,null,null,null,null,null,null,null,null,null,null,false]
[null,null,null,null,null,null,null,null,null,null,null,null,null,null,null,null,null,null,null,null,null,null,null,null,null,null,null,null,null,null,false]
[null,null,null,null,null,null,null,null,null,null,null,null,null,null,null,null,null,null,null,null,null,null,null,null,null,null,null,null,null,null,false]
[null,null,null,null,null,null,null,null,null,null,null,null,null,null,null,null,null,null,null,null,null,null,null,null,null,null,null,null,null,null,false]
[null,null,null,null,null,null,null,null,null,null,null,null,null,null,null,null,null,null,null,null,null,null,null,null,null,null,null,null,null,null,false]
[null,null,null,null,null,null,null,null,null,null,null,null,null,null,null,null,null,null,null,null,null,null,null,null,null,null,null,null,null,null,false]
[null,null,null,null,null,null,null,null,null,null,null,null,null,null,null,null,null,null,null,null,null,null,null,null,null,null,null,null,null,null,false]
[null,null,null,null,null,null,null,null,null,null,null,null,null,null,null,null,null,null,null,null,null,null,null,null,null,null,null,null,null,null,false]
[null,null,null,null,null,null,null,null,null,null,null,null,null,null,null,null,null,null,null,null,null,null,null,null,null,null,null,null,null,null,false]
[null,null,null,null,null,null,null,null,null,null,null,null,null,null,null,null,null,null,null,null,null,null,null,null,null,null,null,null,null,null,false]
[null,null,null,null,null,null,null,null,null,null,null,null,null,null,null,null,null,null,null,null,null,null,null,null,null,null,null,null,null,null,false]
[null,null,null,null,null,null,null,null,null,null,null,null,null,null,null,null,null,null,null,null,null,null,null,null,null,null,null,null,null,null,false]
[null,null,null,null,null,null,null,null,null,null,null,null,null,null,null,null,null,null,null,null,null,null,null,null,null,null,null,null,null,null,false]
[null,null,null,null,null,null,null,null,null,null,null,null,null,null,null,null,null,null,null,null,null,null,null,null,null,null,null,null,null,null,false]
[null,null,null,null,null,null,null,null,null,null,null,null,null,null,null,null,null,null,null,null,null,null,null,null,null,null,null,null,null,null,false]
[null,null,null,null,null,null,null,null,null,null,null,null,null,null,null,null,null,null,null,null,null,null,null,null,null,null,null,null,null,null,false]
[null,null,null,null,null,null,null,null,null,null,null,null,null,null,null,null,null,null,null,null,null,null,null,null,null,null,null,null,null,null,false]
[null,null,null,null,null,null,null,null,null,null,null,null,null,null,null,null,null,null,null,null,null,null,null,null,null,null,null,null,null,null,false]
[null,null,null,null,null,null,null,null,null,null,null,null,null,null,null,null,null,null,null,null,null,null,null,null,null,null,null,null,null,null,false]
[null,null,null,null,null,null,null,null,null,null,null,null,null,null,null,null,null,null,null,null,null,null,null,null,null,null,null,null,null,null,false]
[null,null,null,null,null,null,null,null,null,null,null,null,null,null,null,null,null,null,null,null,null,null,null,null,null,null,null,null,null,null,false]
[null,null,null,null,null,null,null,null,null,null,null,null,null,null,null,null,null,null,null,null,null,null,null,null,null,null,null,null,null,null,false]
[null,null,null,null,null,null,null,null,null,null,null,null,null,null,null,null,null,null,null,null,null,null,null,null,null,null,null,null,null,null,false]
[null,null,null,null,null,null,null,null,null,null,null,null,null,null,null,null,null,null,null,null,null,null,null,null,null,null,null,null,null,null,false]
[null,null,null,null,null,null,null,null,null,null,null,null,null,null,null,null,null,null,null,null,null,null,null,null,null,null,null,null,null,null,false]
[null,null,null,null,null,null,null,null,null,null,null,null,null,null,null,null,null,null,null,null,null,null,null,null,null,null,null,null,null,null,false]
[null,null,null,null,null,null,null,null,null,null,null,null,null,null,null,null,null,null,null,null,null,null,null,null,null,null,null,null,null,null,false]
[null,null,null,null,null,null,null,null,null,null,null,null,null,null,null,null,null,null,null,null,null,null,null,null,null,null,null,null,null,null,false]
[null,null,null,null,null,null,null,null,null,null,null,null,null,null,null,null,null,null,null,null,null,null,null,null,null,null,null,null,null,null,false]
[null,null,null,null,null,null,null,null,null,null,null,null,null,null,null,null,null,null,null,null,null,null,null,null,null,null,null,null,null,null,{"$f":"IF(COUNTBLANK(E4282)=0,B4274)","v":false}]
[null,null,null,null,null,null,null,null,null,null,null,null,null,null,null,null,null,null,null,null,null,null,null,null,null,null,null,null,null,null,false]
[null,null,null,null,null,null,null,null,null,null,null,null,null,null,null,null,null,null,null,null,null,null,null,null,null,null,null,null,null,null,false]
[null,null,null,null,null,null,null,null,null,null,null,null,null,null,null,null,null,null,null,null,null,null,null,null,null,null,null,null,null,null,false]
[null,null,null,null,null,null,null,null,null,null,null,null,null,null,null,null,null,null,null,null,null,null,null,null,null,null,null,null,null,null,false]
[null,null,null,null,null,null,null,null,null,null,null,null,null,null,null,null,null,null,null,null,null,null,null,null,null,null,null,null,null,null,false]
[null,null,null,null,null,null,null,null,null,null,null,null,null,null,null,null,null,null,null,null,null,null,null,null,null,null,null,null,null,null,false]
[null,null,null,null,null,null,null,null,null,null,null,null,null,null,null,null,null,null,null,null,null,null,null,null,null,null,null,null,null,null,false]
[null,null,null,null,null,null,null,null,null,null,null,null,null,null,null,null,null,null,null,null,null,null,null,null,null,null,null,null,null,null,false]
[null,null,null,null,null,null,null,null,null,null,null,null,null,null,null,null,null,null,null,null,null,null,null,null,null,null,null,null,null,null,false]
[null,null,null,null,null,null,null,null,null,null,null,null,null,null,null,null,null,null,null,null,null,null,null,null,null,null,null,null,null,null,false]
[null,null,null,null,null,null,null,null,null,null,null,null,null,null,null,null,null,null,null,null,null,null,null,null,null,null,null,null,null,null,false]
[null,null,null,null,null,null,null,null,null,null,null,null,null,null,null,null,null,null,null,null,null,null,null,null,null,null,null,null,null,null,false]
[null,null,null,null,null,null,null,null,null,null,null,null,null,null,null,null,null,null,null,null,null,null,null,null,null,null,null,null,null,null,false]
[null,null,null,null,null,null,null,null,null,null,null,null,null,null,null,null,null,null,null,null,null,null,null,null,null,null,null,null,null,null,false]
[null,null,null,null,null,null,null,null,null,null,null,null,null,null,null,null,null,null,null,null,null,null,null,null,null,null,null,null,null,null,false]
[null,null,null,null,null,null,null,null,null,null,null,null,null,null,null,null,null,null,null,null,null,null,null,null,null,null,null,null,null,null,false]
[null,null,null,null,null,null,null,null,null,null,null,null,null,null,null,null,null,null,null,null,null,null,null,null,null,null,null,null,null,null,false]
[null,null,null,null,null,null,null,null,null,null,null,null,null,null,null,null,null,null,null,null,null,null,null,null,null,null,null,null,null,null,false]
[null,null,null,null,null,null,null,null,null,null,null,null,null,null,null,null,null,null,null,null,null,null,null,null,null,null,null,null,null,null,false]
[null,null,null,null,null,null,null,null,null,null,null,null,null,null,null,null,null,null,null,null,null,null,null,null,null,null,null,null,null,null,false]
[null,null,null,null,null,null,null,null,null,null,null,null,null,null,null,null,null,null,null,null,null,null,null,null,null,null,null,null,null,null,false]
[null,null,null,null,null,null,null,null,null,null,null,null,null,null,null,null,null,null,null,null,null,null,null,null,null,null,null,null,null,null,false]
[null,null,null,null,null,null,null,null,null,null,null,null,null,null,null,null,null,null,null,null,null,null,null,null,null,null,null,null,null,null,false]
[null,null,null,null,null,null,null,null,null,null,null,null,null,null,null,null,null,null,null,null,null,null,null,null,null,null,null,null,null,null,false]
[null,null,null,null,null,null,null,null,null,null,null,null,null,null,null,null,null,null,null,null,null,null,null,null,null,null,null,null,null,null,false]
[null,null,null,null,null,null,null,null,null,null,null,null,null,null,null,null,null,null,null,null,null,null,null,null,null,null,null,null,null,null,false]
[null,null,null,null,null,null,null,null,null,null,null,null,null,null,null,null,null,null,null,null,null,null,null,null,null,null,null,null,null,null,false]
[null,null,null,null,null,null,null,null,null,null,null,null,null,null,null,null,null,null,null,null,null,null,null,null,null,null,null,null,null,null,false]
[null,null,null,null,null,null,null,null,null,null,null,null,null,null,null,null,null,null,null,null,null,null,null,null,null,null,null,null,null,null,false]
[null,null,null,null,null,null,null,null,null,null,null,null,null,null,null,null,null,null,null,null,null,null,null,null,null,null,null,null,null,null,false]
[null,null,null,null,null,null,null,null,null,null,null,null,null,null,null,null,null,null,null,null,null,null,null,null,null,null,null,null,null,null,false]
[null,null,null,null,null,null,null,null,null,null,null,null,null,null,null,null,null,null,null,null,null,null,null,null,null,null,null,null,null,null,false]
[null,null,null,null,null,null,null,null,null,null,null,null,null,null,null,null,null,null,null,null,null,null,null,null,null,null,null,null,null,null,false]
[null,null,null,null,null,null,null,null,null,null,null,null,null,null,null,null,null,null,null,null,null,null,null,null,null,null,null,null,null,null,false]
[null,null,null,null,null,null,null,null,null,null,null,null,null,null,null,null,null,null,null,null,null,null,null,null,null,null,null,null,null,null,false]
[null,null,null,null,null,null,null,null,null,null,null,null,null,null,null,null,null,null,null,null,null,null,null,null,null,null,null,null,null,null,false]
[null,null,null,null,null,null,null,null,null,null,null,null,null,null,null,null,null,null,null,null,null,null,null,null,null,null,null,null,null,null,false]
[null,null,null,null,null,null,null,null,null,null,null,null,null,null,null,null,null,null,null,null,null,null,null,null,null,null,null,null,null,null,false]
[null,null,null,null,null,null,null,null,null,null,null,null,null,null,null,null,null,null,null,null,null,null,null,null,null,null,null,null,null,null,false]
[null,null,null,null,null,null,null,null,null,null,null,null,null,null,null,null,null,null,null,null,null,null,null,null,null,null,null,null,null,null,false]
[null,null,null,null,null,null,null,null,null,null,null,null,null,null,null,null,null,null,null,null,null,null,null,null,null,null,null,null,null,null,false]
[null,null,null,null,null,null,null,null,null,null,null,null,null,null,null,null,null,null,null,null,null,null,null,null,null,null,null,null,null,null,false]
[null,null,null,null,null,null,null,null,null,null,null,null,null,null,null,null,null,null,null,null,null,null,null,null,null,null,null,null,null,null,false]
[null,null,null,null,null,null,null,null,null,null,null,null,null,null,null,null,null,null,null,null,null,null,null,null,null,null,null,null,null,null,false]
[null,null,null,null,null,null,null,null,null,null,null,null,null,null,null,null,null,null,null,null,null,null,null,null,null,null,null,null,null,null,false]
[null,null,null,null,null,null,null,null,null,null,null,null,null,null,null,null,null,null,null,null,null,null,null,null,null,null,null,null,null,null,false]
[null,null,null,null,null,null,null,null,null,null,null,null,null,null,null,null,null,null,null,null,null,null,null,null,null,null,null,null,null,null,false]
[null,null,null,null,null,null,null,null,null,null,null,null,null,null,null,null,null,null,null,null,null,null,null,null,null,null,null,null,null,null,false]
[null,null,null,null,null,null,null,null,null,null,null,null,null,null,null,null,null,null,null,null,null,null,null,null,null,null,null,null,null,null,false]
[null,null,null,null,null,null,null,null,null,null,null,null,null,null,null,null,null,null,null,null,null,null,null,null,null,null,null,null,null,null,false]
[null,null,null,null,null,null,null,null,null,null,null,null,null,null,null,null,null,null,null,null,null,null,null,null,null,null,null,null,null,null,false]
[null,null,null,null,null,null,null,null,null,null,null,null,null,null,null,null,null,null,null,null,null,null,null,null,null,null,null,null,null,null,false]
[null,null,null,null,null,null,null,null,null,null,null,null,null,null,null,null,null,null,null,null,null,null,null,null,null,null,null,null,null,null,false]
[null,null,null,null,null,null,null,null,null,null,null,null,null,null,null,null,null,null,null,null,null,null,null,null,null,null,null,null,null,null,false]
[null,null,null,null,null,null,null,null,null,null,null,null,null,null,null,null,null,null,null,null,null,null,null,null,null,null,null,null,null,null,false]
[null,null,null,null,null,null,null,null,null,null,null,null,null,null,null,null,null,null,null,null,null,null,null,null,null,null,null,null,null,null,false]
[null,null,null,null,null,null,null,null,null,null,null,null,null,null,null,null,null,null,null,null,null,null,null,null,null,null,null,null,null,null,false]
[null,null,null,null,null,null,null,null,null,null,null,null,null,null,null,null,null,null,null,null,null,null,null,null,null,null,null,null,null,null,false]
[null,null,null,null,null,null,null,null,null,null,null,null,null,null,null,null,null,null,null,null,null,null,null,null,null,null,null,null,null,null,false]
[null,null,null,null,null,null,null,null,null,null,null,null,null,null,null,null,null,null,null,null,null,null,null,null,null,null,null,null,null,null,false]
[null,null,null,null,null,null,null,null,null,null,null,null,null,null,null,null,null,null,null,null,null,null,null,null,null,null,null,null,null,null,false]
[null,null,null,null,null,null,null,null,null,null,null,null,null,null,null,null,null,null,null,null,null,null,null,null,null,null,null,null,null,null,false]
[null,null,null,null,null,null,null,null,null,null,null,null,null,null,null,null,null,null,null,null,null,null,null,null,null,null,null,null,null,null,false]
[null,null,null,null,null,null,null,null,null,null,null,null,null,null,null,null,null,null,null,null,null,null,null,null,null,null,null,null,null,null,false]
[null,null,null,null,null,null,null,null,null,null,null,null,null,null,null,null,null,null,null,null,null,null,null,null,null,null,null,null,null,null,false]
[null,null,null,null,null,null,null,null,null,null,null,null,null,null,null,null,null,null,null,null,null,null,null,null,null,null,null,null,null,null,false]
[null,null,null,null,null,null,null,null,null,null,null,null,null,null,null,null,null,null,null,null,null,null,null,null,null,null,null,null,null,null,false]
[null,null,null,null,null,null,null,null,null,null,null,null,null,null,null,null,null,null,null,null,null,null,null,null,null,null,null,null,null,null,false]
[null,null,null,null,null,null,null,null,null,null,null,null,null,null,null,null,null,null,null,null,null,null,null,null,null,null,null,null,null,null,{"$f":"IF(COUNTBLANK(E4538)=0,B4530)","v":false}]
[null,null,null,null,null,null,null,null,null,null,null,null,null,null,null,null,null,null,null,null,null,null,null,null,null,null,null,null,null,null,false]
[null,null,null,null,null,null,null,null,null,null,null,null,null,null,null,null,null,null,null,null,null,null,null,null,null,null,null,null,null,null,false]
[null,null,null,null,null,null,null,null,null,null,null,null,null,null,null,null,null,null,null,null,null,null,null,null,null,null,null,null,null,null,false]
[null,null,null,null,null,null,null,null,null,null,null,null,null,null,null,null,null,null,null,null,null,null,null,null,null,null,null,null,null,null,false]
[null,null,null,null,null,null,null,null,null,null,null,null,null,null,null,null,null,null,null,null,null,null,null,null,null,null,null,null,null,null,false]
[null,null,null,null,null,null,null,null,null,null,null,null,null,null,null,null,null,null,null,null,null,null,null,null,null,null,null,null,null,null,false]
[null,null,null,null,null,null,null,null,null,null,null,null,null,null,null,null,null,null,null,null,null,null,null,null,null,null,null,null,null,null,false]
[null,null,null,null,null,null,null,null,null,null,null,null,null,null,null,null,null,null,null,null,null,null,null,null,null,null,null,null,null,null,false]
[null,null,null,null,null,null,null,null,null,null,null,null,null,null,null,null,null,null,null,null,null,null,null,null,null,null,null,null,null,null,false]
[null,null,null,null,null,null,null,null,null,null,null,null,null,null,null,null,null,null,null,null,null,null,null,null,null,null,null,null,null,null,false]
[null,null,null,null,null,null,null,null,null,null,null,null,null,null,null,null,null,null,null,null,null,null,null,null,null,null,null,null,null,null,false]
[null,null,null,null,null,null,null,null,null,null,null,null,null,null,null,null,null,null,null,null,null,null,null,null,null,null,null,null,null,null,false]
[null,null,null,null,null,null,null,null,null,null,null,null,null,null,null,null,null,null,null,null,null,null,null,null,null,null,null,null,null,null,false]
[null,null,null,null,null,null,null,null,null,null,null,null,null,null,null,null,null,null,null,null,null,null,null,null,null,null,null,null,null,null,false]
[null,null,null,null,null,null,null,null,null,null,null,null,null,null,null,null,null,null,null,null,null,null,null,null,null,null,null,null,null,null,false]
[null,null,null,null,null,null,null,null,null,null,null,null,null,null,null,null,null,null,null,null,null,null,null,null,null,null,null,null,null,null,false]
[null,null,null,null,null,null,null,null,null,null,null,null,null,null,null,null,null,null,null,null,null,null,null,null,null,null,null,null,null,null,false]
[null,null,null,null,null,null,null,null,null,null,null,null,null,null,null,null,null,null,null,null,null,null,null,null,null,null,null,null,null,null,false]
[null,null,null,null,null,null,null,null,null,null,null,null,null,null,null,null,null,null,null,null,null,null,null,null,null,null,null,null,null,null,false]
[null,null,null,null,null,null,null,null,null,null,null,null,null,null,null,null,null,null,null,null,null,null,null,null,null,null,null,null,null,null,false]
[null,null,null,null,null,null,null,null,null,null,null,null,null,null,null,null,null,null,null,null,null,null,null,null,null,null,null,null,null,null,false]
[null,null,null,null,null,null,null,null,null,null,null,null,null,null,null,null,null,null,null,null,null,null,null,null,null,null,null,null,null,null,false]
[null,null,null,null,null,null,null,null,null,null,null,null,null,null,null,null,null,null,null,null,null,null,null,null,null,null,null,null,null,null,false]
[null,null,null,null,null,null,null,null,null,null,null,null,null,null,null,null,null,null,null,null,null,null,null,null,null,null,null,null,null,null,false]
[null,null,null,null,null,null,null,null,null,null,null,null,null,null,null,null,null,null,null,null,null,null,null,null,null,null,null,null,null,null,false]
[null,null,null,null,null,null,null,null,null,null,null,null,null,null,null,null,null,null,null,null,null,null,null,null,null,null,null,null,null,null,false]
[null,null,null,null,null,null,null,null,null,null,null,null,null,null,null,null,null,null,null,null,null,null,null,null,null,null,null,null,null,null,false]
[null,null,null,null,null,null,null,null,null,null,null,null,null,null,null,null,null,null,null,null,null,null,null,null,null,null,null,null,null,null,false]
[null,null,null,null,null,null,null,null,null,null,null,null,null,null,null,null,null,null,null,null,null,null,null,null,null,null,null,null,null,null,false]
[null,null,null,null,null,null,null,null,null,null,null,null,null,null,null,null,null,null,null,null,null,null,null,null,null,null,null,null,null,null,false]
[null,null,null,null,null,null,null,null,null,null,null,null,null,null,null,null,null,null,null,null,null,null,null,null,null,null,null,null,null,null,false]
[null,null,null,null,null,null,null,null,null,null,null,null,null,null,null,null,null,null,null,null,null,null,null,null,null,null,null,null,null,null,false]
[null,null,null,null,null,null,null,null,null,null,null,null,null,null,null,null,null,null,null,null,null,null,null,null,null,null,null,null,null,null,false]
[null,null,null,null,null,null,null,null,null,null,null,null,null,null,null,null,null,null,null,null,null,null,null,null,null,null,null,null,null,null,false]
[null,null,null,null,null,null,null,null,null,null,null,null,null,null,null,null,null,null,null,null,null,null,null,null,null,null,null,null,null,null,false]
[null,null,null,null,null,null,null,null,null,null,null,null,null,null,null,null,null,null,null,null,null,null,null,null,null,null,null,null,null,null,false]
[null,null,null,null,null,null,null,null,null,null,null,null,null,null,null,null,null,null,null,null,null,null,null,null,null,null,null,null,null,null,false]
[null,null,null,null,null,null,null,null,null,null,null,null,null,null,null,null,null,null,null,null,null,null,null,null,null,null,null,null,null,null,false]
[null,null,null,null,null,null,null,null,null,null,null,null,null,null,null,null,null,null,null,null,null,null,null,null,null,null,null,null,null,null,false]
[null,null,null,null,null,null,null,null,null,null,null,null,null,null,null,null,null,null,null,null,null,null,null,null,null,null,null,null,null,null,false]
[null,null,null,null,null,null,null,null,null,null,null,null,null,null,null,null,null,null,null,null,null,null,null,null,null,null,null,null,null,null,false]
[null,null,null,null,null,null,null,null,null,null,null,null,null,null,null,null,null,null,null,null,null,null,null,null,null,null,null,null,null,null,false]
[null,null,null,null,null,null,null,null,null,null,null,null,null,null,null,null,null,null,null,null,null,null,null,null,null,null,null,null,null,null,false]
[null,null,null,null,null,null,null,null,null,null,null,null,null,null,null,null,null,null,null,null,null,null,null,null,null,null,null,null,null,null,false]
[null,null,null,null,null,null,null,null,null,null,null,null,null,null,null,null,null,null,null,null,null,null,null,null,null,null,null,null,null,null,false]
[null,null,null,null,null,null,null,null,null,null,null,null,null,null,null,null,null,null,null,null,null,null,null,null,null,null,null,null,null,null,false]
[null,null,null,null,null,null,null,null,null,null,null,null,null,null,null,null,null,null,null,null,null,null,null,null,null,null,null,null,null,null,false]
[null,null,null,null,null,null,null,null,null,null,null,null,null,null,null,null,null,null,null,null,null,null,null,null,null,null,null,null,null,null,false]
[null,null,null,null,null,null,null,null,null,null,null,null,null,null,null,null,null,null,null,null,null,null,null,null,null,null,null,null,null,null,false]
[null,null,null,null,null,null,null,null,null,null,null,null,null,null,null,null,null,null,null,null,null,null,null,null,null,null,null,null,null,null,false]
[null,null,null,null,null,null,null,null,null,null,null,null,null,null,null,null,null,null,null,null,null,null,null,null,null,null,null,null,null,null,false]
[null,null,null,null,null,null,null,null,null,null,null,null,null,null,null,null,null,null,null,null,null,null,null,null,null,null,null,null,null,null,false]
[null,null,null,null,null,null,null,null,null,null,null,null,null,null,null,null,null,null,null,null,null,null,null,null,null,null,null,null,null,null,false]
[null,null,null,null,null,null,null,null,null,null,null,null,null,null,null,null,null,null,null,null,null,null,null,null,null,null,null,null,null,null,false]
[null,null,null,null,null,null,null,null,null,null,null,null,null,null,null,null,null,null,null,null,null,null,null,null,null,null,null,null,null,null,false]
[null,null,null,null,null,null,null,null,null,null,null,null,null,null,null,null,null,null,null,null,null,null,null,null,null,null,null,null,null,null,false]
[null,null,null,null,null,null,null,null,null,null,null,null,null,null,null,null,null,null,null,null,null,null,null,null,null,null,null,null,null,null,false]
[null,null,null,null,null,null,null,null,null,null,null,null,null,null,null,null,null,null,null,null,null,null,null,null,null,null,null,null,null,null,false]
[null,null,null,null,null,null,null,null,null,null,null,null,null,null,null,null,null,null,null,null,null,null,null,null,null,null,null,null,null,null,false]
[null,null,null,null,null,null,null,null,null,null,null,null,null,null,null,null,null,null,null,null,null,null,null,null,null,null,null,null,null,null,false]
[null,null,null,null,null,null,null,null,null,null,null,null,null,null,null,null,null,null,null,null,null,null,null,null,null,null,null,null,null,null,false]
[null,null,null,null,null,null,null,null,null,null,null,null,null,null,null,null,null,null,null,null,null,null,null,null,null,null,null,null,null,null,false]
[null,null,null,null,null,null,null,null,null,null,null,null,null,null,null,null,null,null,null,null,null,null,null,null,null,null,null,null,null,null,false]
[null,null,null,null,null,null,null,null,null,null,null,null,null,null,null,null,null,null,null,null,null,null,null,null,null,null,null,null,null,null,false]
[null,null,null,null,null,null,null,null,null,null,null,null,null,null,null,null,null,null,null,null,null,null,null,null,null,null,null,null,null,null,false]
[null,null,null,null,null,null,null,null,null,null,null,null,null,null,null,null,null,null,null,null,null,null,null,null,null,null,null,null,null,null,false]
[null,null,null,null,null,null,null,null,null,null,null,null,null,null,null,null,null,null,null,null,null,null,null,null,null,null,null,null,null,null,false]
[null,null,null,null,null,null,null,null,null,null,null,null,null,null,null,null,null,null,null,null,null,null,null,null,null,null,null,null,null,null,false]
[null,null,null,null,null,null,null,null,null,null,null,null,null,null,null,null,null,null,null,null,null,null,null,null,null,null,null,null,null,null,false]
[null,null,null,null,null,null,null,null,null,null,null,null,null,null,null,null,null,null,null,null,null,null,null,null,null,null,null,null,null,null,false]
[null,null,null,null,null,null,null,null,null,null,null,null,null,null,null,null,null,null,null,null,null,null,null,null,null,null,null,null,null,null,false]
[null,null,null,null,null,null,null,null,null,null,null,null,null,null,null,null,null,null,null,null,null,null,null,null,null,null,null,null,null,null,false]
[null,null,null,null,null,null,null,null,null,null,null,null,null,null,null,null,null,null,null,null,null,null,null,null,null,null,null,null,null,null,false]
[null,null,null,null,null,null,null,null,null,null,null,null,null,null,null,null,null,null,null,null,null,null,null,null,null,null,null,null,null,null,false]
[null,null,null,null,null,null,null,null,null,null,null,null,null,null,null,null,null,null,null,null,null,null,null,null,null,null,null,null,null,null,false]
[null,null,null,null,null,null,null,null,null,null,null,null,null,null,null,null,null,null,null,null,null,null,null,null,null,null,null,null,null,null,false]
[null,null,null,null,null,null,null,null,null,null,null,null,null,null,null,null,null,null,null,null,null,null,null,null,null,null,null,null,null,null,false]
[null,null,null,null,null,null,null,null,null,null,null,null,null,null,null,null,null,null,null,null,null,null,null,null,null,null,null,null,null,null,false]
[null,null,null,null,null,null,null,null,null,null,null,null,null,null,null,null,null,null,null,null,null,null,null,null,null,null,null,null,null,null,false]
[null,null,null,null,null,null,null,null,null,null,null,null,null,null,null,null,null,null,null,null,null,null,null,null,null,null,null,null,null,null,false]
[null,null,null,null,null,null,null,null,null,null,null,null,null,null,null,null,null,null,null,null,null,null,null,null,null,null,null,null,null,null,false]
[null,null,null,null,null,null,null,null,null,null,null,null,null,null,null,null,null,null,null,null,null,null,null,null,null,null,null,null,null,null,false]
[null,null,null,null,null,null,null,null,null,null,null,null,null,null,null,null,null,null,null,null,null,null,null,null,null,null,null,null,null,null,false]
[null,null,null,null,null,null,null,null,null,null,null,null,null,null,null,null,null,null,null,null,null,null,null,null,null,null,null,null,null,null,false]
[null,null,null,null,null,null,null,null,null,null,null,null,null,null,null,null,null,null,null,null,null,null,null,null,null,null,null,null,null,null,false]
[null,null,null,null,null,null,null,null,null,null,null,null,null,null,null,null,null,null,null,null,null,null,null,null,null,null,null,null,null,null,false]
[null,null,null,null,null,null,null,null,null,null,null,null,null,null,null,null,null,null,null,null,null,null,null,null,null,null,null,null,null,null,false]
[null,null,null,null,null,null,null,null,null,null,null,null,null,null,null,null,null,null,null,null,null,null,null,null,null,null,null,null,null,null,false]
[null,null,null,null,null,null,null,null,null,null,null,null,null,null,null,null,null,null,null,null,null,null,null,null,null,null,null,null,null,null,{"$f":"IF(COUNTBLANK(E4730)=0,B4722)","v":false}]
[null,null,null,null,null,null,null,null,null,null,null,null,null,null,null,null,null,null,null,null,null,null,null,null,null,null,null,null,null,null,false]
[null,null,null,null,null,null,null,null,null,null,null,null,null,null,null,null,null,null,null,null,null,null,null,null,null,null,null,null,null,null,false]
[null,null,null,null,null,null,null,null,null,null,null,null,null,null,null,null,null,null,null,null,null,null,null,null,null,null,null,null,null,null,false]
[null,null,null,null,null,null,null,null,null,null,null,null,null,null,null,null,null,null,null,null,null,null,null,null,null,null,null,null,null,null,false]
[null,null,null,null,null,null,null,null,null,null,null,null,null,null,null,null,null,null,null,null,null,null,null,null,null,null,null,null,null,null,false]
[null,null,null,null,null,null,null,null,null,null,null,null,null,null,null,null,null,null,null,null,null,null,null,null,null,null,null,null,null,null,false]
[null,null,null,null,null,null,null,null,null,null,null,null,null,null,null,null,null,null,null,null,null,null,null,null,null,null,null,null,null,null,false]
[null,null,null,null,null,null,null,null,null,null,null,null,null,null,null,null,null,null,null,null,null,null,null,null,null,null,null,null,null,null,false]
[null,null,null,null,null,null,null,null,null,null,null,null,null,null,null,null,null,null,null,null,null,null,null,null,null,null,null,null,null,null,false]
[null,null,null,null,null,null,null,null,null,null,null,null,null,null,null,null,null,null,null,null,null,null,null,null,null,null,null,null,null,null,false]
[null,null,null,null,null,null,null,null,null,null,null,null,null,null,null,null,null,null,null,null,null,null,null,null,null,null,null,null,null,null,false]
[null,null,null,null,null,null,null,null,null,null,null,null,null,null,null,null,null,null,null,null,null,null,null,null,null,null,null,null,null,null,false]
[null,null,null,null,null,null,null,null,null,null,null,null,null,null,null,null,null,null,null,null,null,null,null,null,null,null,null,null,null,null,false]
[null,null,null,null,null,null,null,null,null,null,null,null,null,null,null,null,null,null,null,null,null,null,null,null,null,null,null,null,null,null,false]
[null,null,null,null,null,null,null,null,null,null,null,null,null,null,null,null,null,null,null,null,null,null,null,null,null,null,null,null,null,null,false]
[null,null,null,null,null,null,null,null,null,null,null,null,null,null,null,null,null,null,null,null,null,null,null,null,null,null,null,null,null,null,false]
[null,null,null,null,null,null,null,null,null,null,null,null,null,null,null,null,null,null,null,null,null,null,null,null,null,null,null,null,null,null,false]
[null,null,null,null,null,null,null,null,null,null,null,null,null,null,null,null,null,null,null,null,null,null,null,null,null,null,null,null,null,null,false]
[null,null,null,null,null,null,null,null,null,null,null,null,null,null,null,null,null,null,null,null,null,null,null,null,null,null,null,null,null,null,false]
[null,null,null,null,null,null,null,null,null,null,null,null,null,null,null,null,null,null,null,null,null,null,null,null,null,null,null,null,null,null,false]
[null,null,null,null,null,null,null,null,null,null,null,null,null,null,null,null,null,null,null,null,null,null,null,null,null,null,null,null,null,null,false]
[null,null,null,null,null,null,null,null,null,null,null,null,null,null,null,null,null,null,null,null,null,null,null,null,null,null,null,null,null,null,false]
[null,null,null,null,null,null,null,null,null,null,null,null,null,null,null,null,null,null,null,null,null,null,null,null,null,null,null,null,null,null,false]
[null,null,null,null,null,null,null,null,null,null,null,null,null,null,null,null,null,null,null,null,null,null,null,null,null,null,null,null,null,null,false]
[null,null,null,null,null,null,null,null,null,null,null,null,null,null,null,null,null,null,null,null,null,null,null,null,null,null,null,null,null,null,false]
[null,null,null,null,null,null,null,null,null,null,null,null,null,null,null,null,null,null,null,null,null,null,null,null,null,null,null,null,null,null,false]
[null,null,null,null,null,null,null,null,null,null,null,null,null,null,null,null,null,null,null,null,null,null,null,null,null,null,null,null,null,null,false]
[null,null,null,null,null,null,null,null,null,null,null,null,null,null,null,null,null,null,null,null,null,null,null,null,null,null,null,null,null,null,false]
[null,null,null,null,null,null,null,null,null,null,null,null,null,null,null,null,null,null,null,null,null,null,null,null,null,null,null,null,null,null,false]
[null,null,null,null,null,null,null,null,null,null,null,null,null,null,null,null,null,null,null,null,null,null,null,null,null,null,null,null,null,null,false]
[null,null,null,null,null,null,null,null,null,null,null,null,null,null,null,null,null,null,null,null,null,null,null,null,null,null,null,null,null,null,false]
[null,null,null,null,null,null,null,null,null,null,null,null,null,null,null,null,null,null,null,null,null,null,null,null,null,null,null,null,null,null,false]
[null,null,null,null,null,null,null,null,null,null,null,null,null,null,null,null,null,null,null,null,null,null,null,null,null,null,null,null,null,null,false]
[null,null,null,null,null,null,null,null,null,null,null,null,null,null,null,null,null,null,null,null,null,null,null,null,null,null,null,null,null,null,false]
[null,null,null,null,null,null,null,null,null,null,null,null,null,null,null,null,null,null,null,null,null,null,null,null,null,null,null,null,null,null,false]
[null,null,null,null,null,null,null,null,null,null,null,null,null,null,null,null,null,null,null,null,null,null,null,null,null,null,null,null,null,null,false]
[null,null,null,null,null,null,null,null,null,null,null,null,null,null,null,null,null,null,null,null,null,null,null,null,null,null,null,null,null,null,false]
[null,null,null,null,null,null,null,null,null,null,null,null,null,null,null,null,null,null,null,null,null,null,null,null,null,null,null,null,null,null,false]
[null,null,null,null,null,null,null,null,null,null,null,null,null,null,null,null,null,null,null,null,null,null,null,null,null,null,null,null,null,null,false]
[null,null,null,null,null,null,null,null,null,null,null,null,null,null,null,null,null,null,null,null,null,null,null,null,null,null,null,null,null,null,false]
[null,null,null,null,null,null,null,null,null,null,null,null,null,null,null,null,null,null,null,null,null,null,null,null,null,null,null,null,null,null,false]
[null,null,null,null,null,null,null,null,null,null,null,null,null,null,null,null,null,null,null,null,null,null,null,null,null,null,null,null,null,null,false]
[null,null,null,null,null,null,null,null,null,null,null,null,null,null,null,null,null,null,null,null,null,null,null,null,null,null,null,null,null,null,false]
[null,null,null,null,null,null,null,null,null,null,null,null,null,null,null,null,null,null,null,null,null,null,null,null,null,null,null,null,null,null,false]
[null,null,null,null,null,null,null,null,null,null,null,null,null,null,null,null,null,null,null,null,null,null,null,null,null,null,null,null,null,null,false]
[null,null,null,null,null,null,null,null,null,null,null,null,null,null,null,null,null,null,null,null,null,null,null,null,null,null,null,null,null,null,false]
[null,null,null,null,null,null,null,null,null,null,null,null,null,null,null,null,null,null,null,null,null,null,null,null,null,null,null,null,null,null,false]
[null,null,null,null,null,null,null,null,null,null,null,null,null,null,null,null,null,null,null,null,null,null,null,null,null,null,null,null,null,null,false]
[null,null,null,null,null,null,null,null,null,null,null,null,null,null,null,null,null,null,null,null,null,null,null,null,null,null,null,null,null,null,false]
[null,null,null,null,null,null,null,null,null,null,null,null,null,null,null,null,null,null,null,null,null,null,null,null,null,null,null,null,null,null,false]
[null,null,null,null,null,null,null,null,null,null,null,null,null,null,null,null,null,null,null,null,null,null,null,null,null,null,null,null,null,null,false]
[null,null,null,null,null,null,null,null,null,null,null,null,null,null,null,null,null,null,null,null,null,null,null,null,null,null,null,null,null,null,false]
[null,null,null,null,null,null,null,null,null,null,null,null,null,null,null,null,null,null,null,null,null,null,null,null,null,null,null,null,null,null,false]
[null,null,null,null,null,null,null,null,null,null,null,null,null,null,null,null,null,null,null,null,null,null,null,null,null,null,null,null,null,null,false]
[null,null,null,null,null,null,null,null,null,null,null,null,null,null,null,null,null,null,null,null,null,null,null,null,null,null,null,null,null,null,false]
[null,null,null,null,null,null,null,null,null,null,null,null,null,null,null,null,null,null,null,null,null,null,null,null,null,null,null,null,null,null,false]
[null,null,null,null,null,null,null,null,null,null,null,null,null,null,null,null,null,null,null,null,null,null,null,null,null,null,null,null,null,null,false]
[null,null,null,null,null,null,null,null,null,null,null,null,null,null,null,null,null,null,null,null,null,null,null,null,null,null,null,null,null,null,false]
[null,null,null,null,null,null,null,null,null,null,null,null,null,null,null,null,null,null,null,null,null,null,null,null,null,null,null,null,null,null,false]
[null,null,null,null,null,null,null,null,null,null,null,null,null,null,null,null,null,null,null,null,null,null,null,null,null,null,null,null,null,null,false]
[null,null,null,null,null,null,null,null,null,null,null,null,null,null,null,null,null,null,null,null,null,null,null,null,null,null,null,null,null,null,false]
[null,null,null,null,null,null,null,null,null,null,null,null,null,null,null,null,null,null,null,null,null,null,null,null,null,null,null,null,null,null,false]
[null,null,null,null,null,null,null,null,null,null,null,null,null,null,null,null,null,null,null,null,null,null,null,null,null,null,null,null,null,null,false]
[null,null,null,null,null,null,null,null,null,null,null,null,null,null,null,null,null,null,null,null,null,null,null,null,null,null,null,null,null,null,{"$f":"IF(COUNTBLANK(E4794)=0,B4786)","v":false}]
[null,null,null,null,null,null,null,null,null,null,null,null,null,null,null,null,null,null,null,null,null,null,null,null,null,null,null,null,null,null,false]
[null,null,null,null,null,null,null,null,null,null,null,null,null,null,null,null,null,null,null,null,null,null,null,null,null,null,null,null,null,null,false]
[null,null,null,null,null,null,null,null,null,null,null,null,null,null,null,null,null,null,null,null,null,null,null,null,null,null,null,null,null,null,false]
[null,null,null,null,null,null,null,null,null,null,null,null,null,null,null,null,null,null,null,null,null,null,null,null,null,null,null,null,null,null,false]
[null,null,null,null,null,null,null,null,null,null,null,null,null,null,null,null,null,null,null,null,null,null,null,null,null,null,null,null,null,null,false]
[null,null,null,null,null,null,null,null,null,null,null,null,null,null,null,null,null,null,null,null,null,null,null,null,null,null,null,null,null,null,false]
[null,null,null,null,null,null,null,null,null,null,null,null,null,null,null,null,null,null,null,null,null,null,null,null,null,null,null,null,null,null,false]
[null,null,null,null,null,null,null,null,null,null,null,null,null,null,null,null,null,null,null,null,null,null,null,null,null,null,null,null,null,null,false]
[null,null,null,null,null,null,null,null,null,null,null,null,null,null,null,null,null,null,null,null,null,null,null,null,null,null,null,null,null,null,false]
[null,null,null,null,null,null,null,null,null,null,null,null,null,null,null,null,null,null,null,null,null,null,null,null,null,null,null,null,null,null,false]
[null,null,null,null,null,null,null,null,null,null,null,null,null,null,null,null,null,null,null,null,null,null,null,null,null,null,null,null,null,null,false]
[null,null,null,null,null,null,null,null,null,null,null,null,null,null,null,null,null,null,null,null,null,null,null,null,null,null,null,null,null,null,false]
[null,null,null,null,null,null,null,null,null,null,null,null,null,null,null,null,null,null,null,null,null,null,null,null,null,null,null,null,null,null,false]
[null,null,null,null,null,null,null,null,null,null,null,null,null,null,null,null,null,null,null,null,null,null,null,null,null,null,null,null,null,null,false]
[null,null,null,null,null,null,null,null,null,null,null,null,null,null,null,null,null,null,null,null,null,null,null,null,null,null,null,null,null,null,false]
[null,null,null,null,null,null,null,null,null,null,null,null,null,null,null,null,null,null,null,null,null,null,null,null,null,null,null,null,null,null,false]
[null,null,null,null,null,null,null,null,null,null,null,null,null,null,null,null,null,null,null,null,null,null,null,null,null,null,null,null,null,null,false]
[null,null,null,null,null,null,null,null,null,null,null,null,null,null,null,null,null,null,null,null,null,null,null,null,null,null,null,null,null,null,false]
[null,null,null,null,null,null,null,null,null,null,null,null,null,null,null,null,null,null,null,null,null,null,null,null,null,null,null,null,null,null,false]
[null,null,null,null,null,null,null,null,null,null,null,null,null,null,null,null,null,null,null,null,null,null,null,null,null,null,null,null,null,null,false]
[null,null,null,null,null,null,null,null,null,null,null,null,null,null,null,null,null,null,null,null,null,null,null,null,null,null,null,null,null,null,false]
[null,null,null,null,null,null,null,null,null,null,null,null,null,null,null,null,null,null,null,null,null,null,null,null,null,null,null,null,null,null,false]
[null,null,null,null,null,null,null,null,null,null,null,null,null,null,null,null,null,null,null,null,null,null,null,null,null,null,null,null,null,null,false]
[null,null,null,null,null,null,null,null,null,null,null,null,null,null,null,null,null,null,null,null,null,null,null,null,null,null,null,null,null,null,false]
[null,null,null,null,null,null,null,null,null,null,null,null,null,null,null,null,null,null,null,null,null,null,null,null,null,null,null,null,null,null,false]
[null,null,null,null,null,null,null,null,null,null,null,null,null,null,null,null,null,null,null,null,null,null,null,null,null,null,null,null,null,null,false]
[null,null,null,null,null,null,null,null,null,null,null,null,null,null,null,null,null,null,null,null,null,null,null,null,null,null,null,null,null,null,false]
[null,null,null,null,null,null,null,null,null,null,null,null,null,null,null,null,null,null,null,null,null,null,null,null,null,null,null,null,null,null,false]
[null,null,null,null,null,null,null,null,null,null,null,null,null,null,null,null,null,null,null,null,null,null,null,null,null,null,null,null,null,null,false]
[null,null,null,null,null,null,null,null,null,null,null,null,null,null,null,null,null,null,null,null,null,null,null,null,null,null,null,null,null,null,false]
[null,null,null,null,null,null,null,null,null,null,null,null,null,null,null,null,null,null,null,null,null,null,null,null,null,null,null,null,null,null,false]
[null,null,null,null,null,null,null,null,null,null,null,null,null,null,null,null,null,null,null,null,null,null,null,null,null,null,null,null,null,null,false]
[null,null,null,null,null,null,null,null,null,null,null,null,null,null,null,null,null,null,null,null,null,null,null,null,null,null,null,null,null,null,false]
[null,null,null,null,null,null,null,null,null,null,null,null,null,null,null,null,null,null,null,null,null,null,null,null,null,null,null,null,null,null,false]
[null,null,null,null,null,null,null,null,null,null,null,null,null,null,null,null,null,null,null,null,null,null,null,null,null,null,null,null,null,null,false]
[null,null,null,null,null,null,null,null,null,null,null,null,null,null,null,null,null,null,null,null,null,null,null,null,null,null,null,null,null,null,false]
[null,null,null,null,null,null,null,null,null,null,null,null,null,null,null,null,null,null,null,null,null,null,null,null,null,null,null,null,null,null,false]
[null,null,null,null,null,null,null,null,null,null,null,null,null,null,null,null,null,null,null,null,null,null,null,null,null,null,null,null,null,null,false]
[null,null,null,null,null,null,null,null,null,null,null,null,null,null,null,null,null,null,null,null,null,null,null,null,null,null,null,null,null,null,false]
[null,null,null,null,null,null,null,null,null,null,null,null,null,null,null,null,null,null,null,null,null,null,null,null,null,null,null,null,null,null,false]
[null,null,null,null,null,null,null,null,null,null,null,null,null,null,null,null,null,null,null,null,null,null,null,null,null,null,null,null,null,null,false]
[null,null,null,null,null,null,null,null,null,null,null,null,null,null,null,null,null,null,null,null,null,null,null,null,null,null,null,null,null,null,false]
[null,null,null,null,null,null,null,null,null,null,null,null,null,null,null,null,null,null,null,null,null,null,null,null,null,null,null,null,null,null,false]
[null,null,null,null,null,null,null,null,null,null,null,null,null,null,null,null,null,null,null,null,null,null,null,null,null,null,null,null,null,null,false]
[null,null,null,null,null,null,null,null,null,null,null,null,null,null,null,null,null,null,null,null,null,null,null,null,null,null,null,null,null,null,false]
[null,null,null,null,null,null,null,null,null,null,null,null,null,null,null,null,null,null,null,null,null,null,null,null,null,null,null,null,null,null,false]
[null,null,null,null,null,null,null,null,null,null,null,null,null,null,null,null,null,null,null,null,null,null,null,null,null,null,null,null,null,null,false]
[null,null,null,null,null,null,null,null,null,null,null,null,null,null,null,null,null,null,null,null,null,null,null,null,null,null,null,null,null,null,false]
[null,null,null,null,null,null,null,null,null,null,null,null,null,null,null,null,null,null,null,null,null,null,null,null,null,null,null,null,null,null,false]
[null,null,null,null,null,null,null,null,null,null,null,null,null,null,null,null,null,null,null,null,null,null,null,null,null,null,null,null,null,null,false]
[null,null,null,null,null,null,null,null,null,null,null,null,null,null,null,null,null,null,null,null,null,null,null,null,null,null,null,null,null,null,false]
[null,null,null,null,null,null,null,null,null,null,null,null,null,null,null,null,null,null,null,null,null,null,null,null,null,null,null,null,null,null,false]
[null,null,null,null,null,null,null,null,null,null,null,null,null,null,null,null,null,null,null,null,null,null,null,null,null,null,null,null,null,null,false]
[null,null,null,null,null,null,null,null,null,null,null,null,null,null,null,null,null,null,null,null,null,null,null,null,null,null,null,null,null,null,false]
[null,null,null,null,null,null,null,null,null,null,null,null,null,null,null,null,null,null,null,null,null,null,null,null,null,null,null,null,null,null,false]
[null,null,null,null,null,null,null,null,null,null,null,null,null,null,null,null,null,null,null,null,null,null,null,null,null,null,null,null,null,null,false]
[null,null,null,null,null,null,null,null,null,null,null,null,null,null,null,null,null,null,null,null,null,null,null,null,null,null,null,null,null,null,false]
[null,null,null,null,null,null,null,null,null,null,null,null,null,null,null,null,null,null,null,null,null,null,null,null,null,null,null,null,null,null,false]
[null,null,null,null,null,null,null,null,null,null,null,null,null,null,null,null,null,null,null,null,null,null,null,null,null,null,null,null,null,null,false]
[null,null,null,null,null,null,null,null,null,null,null,null,null,null,null,null,null,null,null,null,null,null,null,null,null,null,null,null,null,null,false]
[null,null,null,null,null,null,null,null,null,null,null,null,null,null,null,null,null,null,null,null,null,null,null,null,null,null,null,null,null,null,false]
[null,null,null,null,null,null,null,null,null,null,null,null,null,null,null,null,null,null,null,null,null,null,null,null,null,null,null,null,null,null,false]
[null,null,null,null,null,null,null,null,null,null,null,null,null,null,null,null,null,null,null,null,null,null,null,null,null,null,null,null,null,null,false]
[null,null,null,null,null,null,null,null,null,null,null,null,null,null,null,null,null,null,null,null,null,null,null,null,null,null,null,null,null,null,{"$f":"IF(COUNTBLANK(E4858)=0,B4850)","v":false}]
[null,null,null,null,null,null,null,null,null,null,null,null,null,null,null,null,null,null,null,null,null,null,null,null,null,null,null,null,null,null,false]
[null,null,null,null,null,null,null,null,null,null,null,null,null,null,null,null,null,null,null,null,null,null,null,null,null,null,null,null,null,null,false]
[null,null,null,null,null,null,null,null,null,null,null,null,null,null,null,null,null,null,null,null,null,null,null,null,null,null,null,null,null,null,false]
[null,null,null,null,null,null,null,null,null,null,null,null,null,null,null,null,null,null,null,null,null,null,null,null,null,null,null,null,null,null,false]
[null,null,null,null,null,null,null,null,null,null,null,null,null,null,null,null,null,null,null,null,null,null,null,null,null,null,null,null,null,null,false]
[null,null,null,null,null,null,null,null,null,null,null,null,null,null,null,null,null,null,null,null,null,null,null,null,null,null,null,null,null,null,false]
[null,null,null,null,null,null,null,null,null,null,null,null,null,null,null,null,null,null,null,null,null,null,null,null,null,null,null,null,null,null,false]
[null,null,null,null,null,null,null,null,null,null,null,null,null,null,null,null,null,null,null,null,null,null,null,null,null,null,null,null,null,null,false]
[null,null,null,null,null,null,null,null,null,null,null,null,null,null,null,null,null,null,null,null,null,null,null,null,null,null,null,null,null,null,false]
[null,null,null,null,null,null,null,null,null,null,null,null,null,null,null,null,null,null,null,null,null,null,null,null,null,null,null,null,null,null,false]
[null,null,null,null,null,null,null,null,null,null,null,null,null,null,null,null,null,null,null,null,null,null,null,null,null,null,null,null,null,null,false]
[null,null,null,null,null,null,null,null,null,null,null,null,null,null,null,null,null,null,null,null,null,null,null,null,null,null,null,null,null,null,false]
[null,null,null,null,null,null,null,null,null,null,null,null,null,null,null,null,null,null,null,null,null,null,null,null,null,null,null,null,null,null,false]
[null,null,null,null,null,null,null,null,null,null,null,null,null,null,null,null,null,null,null,null,null,null,null,null,null,null,null,null,null,null,false]
[null,null,null,null,null,null,null,null,null,null,null,null,null,null,null,null,null,null,null,null,null,null,null,null,null,null,null,null,null,null,false]
[null,null,null,null,null,null,null,null,null,null,null,null,null,null,null,null,null,null,null,null,null,null,null,null,null,null,null,null,null,null,false]
[null,null,null,null,null,null,null,null,null,null,null,null,null,null,null,null,null,null,null,null,null,null,null,null,null,null,null,null,null,null,false]
[null,null,null,null,null,null,null,null,null,null,null,null,null,null,null,null,null,null,null,null,null,null,null,null,null,null,null,null,null,null,false]
[null,null,null,null,null,null,null,null,null,null,null,null,null,null,null,null,null,null,null,null,null,null,null,null,null,null,null,null,null,null,false]
[null,null,null,null,null,null,null,null,null,null,null,null,null,null,null,null,null,null,null,null,null,null,null,null,null,null,null,null,null,null,false]
[null,null,null,null,null,null,null,null,null,null,null,null,null,null,null,null,null,null,null,null,null,null,null,null,null,null,null,null,null,null,false]
[null,null,null,null,null,null,null,null,null,null,null,null,null,null,null,null,null,null,null,null,null,null,null,null,null,null,null,null,null,null,false]
[null,null,null,null,null,null,null,null,null,null,null,null,null,null,null,null,null,null,null,null,null,null,null,null,null,null,null,null,null,null,false]
[null,null,null,null,null,null,null,null,null,null,null,null,null,null,null,null,null,null,null,null,null,null,null,null,null,null,null,null,null,null,false]
[null,null,null,null,null,null,null,null,null,null,null,null,null,null,null,null,null,null,null,null,null,null,null,null,null,null,null,null,null,null,false]
[null,null,null,null,null,null,null,null,null,null,null,null,null,null,null,null,null,null,null,null,null,null,null,null,null,null,null,null,null,null,false]
[null,null,null,null,null,null,null,null,null,null,null,null,null,null,null,null,null,null,null,null,null,null,null,null,null,null,null,null,null,null,false]
[null,null,null,null,null,null,null,null,null,null,null,null,null,null,null,null,null,null,null,null,null,null,null,null,null,null,null,null,null,null,false]
[null,null,null,null,null,null,null,null,null,null,null,null,null,null,null,null,null,null,null,null,null,null,null,null,null,null,null,null,null,null,false]
[null,null,null,null,null,null,null,null,null,null,null,null,null,null,null,null,null,null,null,null,null,null,null,null,null,null,null,null,null,null,false]
[null,null,null,null,null,null,null,null,null,null,null,null,null,null,null,null,null,null,null,null,null,null,null,null,null,null,null,null,null,null,false]
[null,null,null,null,null,null,null,null,null,null,null,null,null,null,null,null,null,null,null,null,null,null,null,null,null,null,null,null,null,null,false]
[null,null,null,null,null,null,null,null,null,null,null,null,null,null,null,null,null,null,null,null,null,null,null,null,null,null,null,null,null,null,false]
[null,null,null,null,null,null,null,null,null,null,null,null,null,null,null,null,null,null,null,null,null,null,null,null,null,null,null,null,null,null,false]
[null,null,null,null,null,null,null,null,null,null,null,null,null,null,null,null,null,null,null,null,null,null,null,null,null,null,null,null,null,null,false]
[null,null,null,null,null,null,null,null,null,null,null,null,null,null,null,null,null,null,null,null,null,null,null,null,null,null,null,null,null,null,false]
[null,null,null,null,null,null,null,null,null,null,null,null,null,null,null,null,null,null,null,null,null,null,null,null,null,null,null,null,null,null,false]
[null,null,null,null,null,null,null,null,null,null,null,null,null,null,null,null,null,null,null,null,null,null,null,null,null,null,null,null,null,null,false]
[null,null,null,null,null,null,null,null,null,null,null,null,null,null,null,null,null,null,null,null,null,null,null,null,null,null,null,null,null,null,false]
[null,null,null,null,null,null,null,null,null,null,null,null,null,null,null,null,null,null,null,null,null,null,null,null,null,null,null,null,null,null,false]
[null,null,null,null,null,null,null,null,null,null,null,null,null,null,null,null,null,null,null,null,null,null,null,null,null,null,null,null,null,null,false]
[null,null,null,null,null,null,null,null,null,null,null,null,null,null,null,null,null,null,null,null,null,null,null,null,null,null,null,null,null,null,false]
[null,null,null,null,null,null,null,null,null,null,null,null,null,null,null,null,null,null,null,null,null,null,null,null,null,null,null,null,null,null,false]
[null,null,null,null,null,null,null,null,null,null,null,null,null,null,null,null,null,null,null,null,null,null,null,null,null,null,null,null,null,null,false]
[null,null,null,null,null,null,null,null,null,null,null,null,null,null,null,null,null,null,null,null,null,null,null,null,null,null,null,null,null,null,false]
[null,null,null,null,null,null,null,null,null,null,null,null,null,null,null,null,null,null,null,null,null,null,null,null,null,null,null,null,null,null,false]
[null,null,null,null,null,null,null,null,null,null,null,null,null,null,null,null,null,null,null,null,null,null,null,null,null,null,null,null,null,null,false]
[null,null,null,null,null,null,null,null,null,null,null,null,null,null,null,null,null,null,null,null,null,null,null,null,null,null,null,null,null,null,false]
[null,null,null,null,null,null,null,null,null,null,null,null,null,null,null,null,null,null,null,null,null,null,null,null,null,null,null,null,null,null,false]
[null,null,null,null,null,null,null,null,null,null,null,null,null,null,null,null,null,null,null,null,null,null,null,null,null,null,null,null,null,null,false]
[null,null,null,null,null,null,null,null,null,null,null,null,null,null,null,null,null,null,null,null,null,null,null,null,null,null,null,null,null,null,false]
[null,null,null,null,null,null,null,null,null,null,null,null,null,null,null,null,null,null,null,null,null,null,null,null,null,null,null,null,null,null,false]
[null,null,null,null,null,null,null,null,null,null,null,null,null,null,null,null,null,null,null,null,null,null,null,null,null,null,null,null,null,null,false]
[null,null,null,null,null,null,null,null,null,null,null,null,null,null,null,null,null,null,null,null,null,null,null,null,null,null,null,null,null,null,false]
[null,null,null,null,null,null,null,null,null,null,null,null,null,null,null,null,null,null,null,null,null,null,null,null,null,null,null,null,null,null,false]
[null,null,null,null,null,null,null,null,null,null,null,null,null,null,null,null,null,null,null,null,null,null,null,null,null,null,null,null,null,null,false]
[null,null,null,null,null,null,null,null,null,null,null,null,null,null,null,null,null,null,null,null,null,null,null,null,null,null,null,null,null,null,false]
[null,null,null,null,null,null,null,null,null,null,null,null,null,null,null,null,null,null,null,null,null,null,null,null,null,null,null,null,null,null,false]
[null,null,null,null,null,null,null,null,null,null,null,null,null,null,null,null,null,null,null,null,null,null,null,null,null,null,null,null,null,null,false]
[null,null,null,null,null,null,null,null,null,null,null,null,null,null,null,null,null,null,null,null,null,null,null,null,null,null,null,null,null,null,false]
[null,null,null,null,null,null,null,null,null,null,null,null,null,null,null,null,null,null,null,null,null,null,null,null,null,null,null,null,null,null,false]
[null,null,null,null,null,null,null,null,null,null,null,null,null,null,null,null,null,null,null,null,null,null,null,null,null,null,null,null,null,null,false]
[null,null,null,null,null,null,null,null,null,null,null,null,null,null,null,null,null,null,null,null,null,null,null,null,null,null,null,null,null,null,false]
[null,null,null,null,null,null,null,null,null,null,null,null,null,null,null,null,null,null,null,null,null,null,null,null,null,null,null,null,null,null,{"$f":"IF(COUNTBLANK(E4922)=0,B4914)","v":false}]
[null,null,null,null,null,null,null,null,null,null,null,null,null,null,null,null,null,null,null,null,null,null,null,null,null,null,null,null,null,null,false]
[null,null,null,null,null,null,null,null,null,null,null,null,null,null,null,null,null,null,null,null,null,null,null,null,null,null,null,null,null,null,false]
[null,null,null,null,null,null,null,null,null,null,null,null,null,null,null,null,null,null,null,null,null,null,null,null,null,null,null,null,null,null,false]
[null,null,null,null,null,null,null,null,null,null,null,null,null,null,null,null,null,null,null,null,null,null,null,null,null,null,null,null,null,null,false]
[null,null,null,null,null,null,null,null,null,null,null,null,null,null,null,null,null,null,null,null,null,null,null,null,null,null,null,null,null,null,false]

{"sheet":"Plate labelling","index":3,"n_rows":64,"n_cols":3,"rows_kept":64,"cut":false,"hidden":false,"merged":[[0,0,0,1]]}
["Please fill in this form in case your plates have labels that differ from the plate no. as given in the 'Samples 96'  sheets. "]
[]
[]
["Plate ID in this workbook","Original plate ID","Comments"]
[1]
[2]
[3]
[4]
[5]
[6]
[7]
[8]
[9]
[10]
[11]
[12]
[13]
[14]
[15]
[16]
[17]
[18]
[19]
[20]
[21]
[22]
[23]
[24]
[25]
[26]
[27]
[28]
[29]
[30]
[31]
[32]
[33]
[34]
[35]
[36]
[37]
[38]
[39]
[40]
[41]
[42]
[43]
[44]
[45]
[46]
[47]
[48]
[49]
[50]
[51]
[52]
[53]
[54]
[55]
[56]
[57]
[58]
[59]
[60]